Workbook

Sheet Sheet1 (2) (hidden)
A1: =+B279 -> 293 | B1: J | C1: A | D1: =CONCATENATE("Sub G",B1,"A()") -> Sub GJA() | J1: =LEFT(D1,5) -> Sub G | K1: =RIGHT(D1,2) -> () | L1: =CONCATENATE(J1,B1,C1,K1) -> Sub GJA()
D2: '
D3: '
B4: 268 | D4: Range("B33").Select | J4: =LEFT(D4,12) -> Range("B | K4: =RIGHT(D4,9) -> ").Select | L4: =CONCATENATE(J4,B4,K4) -> Range("B268").Select
D5: Selection.Copy | L5: =+D5 -> Selection.Copy
D6: Sheets("PR1").Select | L6: =+D6 -> Sheets("PR1").Select
D7: Range("C2").Select | L7: =+D7 -> Range("C2").Select
D8: Selection.PasteSpecial Paste:=xlPasteValues, Operation:=xlNone, SkipBlanks _ | L8: =+D8 -> Selection.PasteSpecial Paste:=xlPasteValues, Operation:=xlNone, SkipBlanks _
D9: :=False, Transpose:=False | L9: =+D9 -> :=False, Transpose:=False
D11: End Sub | L11: =+D11 -> End Sub
B12: =+B1 -> J | C12: B | D12: =CONCATENATE("Sub G",B12,"A()") -> Sub GJA() | J12: =LEFT(D12,5) -> Sub G | K12: =RIGHT(D12,2) -> () | L12: =CONCATENATE(J12,B12,C12,K12) -> Sub GJB()
D13: ' | L13: =+D13 -> '
D14: ' | L14: =+D14 -> '
B15: =+B4+1 -> 269 | D15: Range("B34").Select | J15: =LEFT(D15,12) -> Range("B | K15: =RIGHT(D15,9) -> ").Select | L15: =CONCATENATE(J15,B15,K15) -> Range("B269").Select
D16: Selection.Copy | L16: =+D16 -> Selection.Copy
D17: Sheets("PR1").Select | L17: =+D17 -> Sheets("PR1").Select
D18: Range("C2").Select | L18: =+D18 -> Range("C2").Select
D19: Selection.PasteSpecial Paste:=xlPasteValues, Operation:=xlNone, SkipBlanks _ | L19: =+D19 -> Selection.PasteSpecial Paste:=xlPasteValues, Operation:=xlNone, SkipBlanks _
D20: :=False, Transpose:=False | L20: =+D20 -> :=False, Transpose:=False
D22: End Sub | L22: =+D22 -> End Sub
B23: =+B12 -> J | C23: C | D23: =CONCATENATE("Sub G",B23,"A()") -> Sub GJA() | J23: =LEFT(D23,5) -> Sub G | K23: =RIGHT(D23,2) -> () | L23: =CONCATENATE(J23,B23,C23,K23) -> Sub GJC()
D24: ' | L24: =+D24 -> '
D25: ' | L25: =+D25 -> '
B26: =+B15+1 -> 270 | D26: Range("B35").Select | J26: =LEFT(D26,12) -> Range("B | K26: =RIGHT(D26,9) -> ").Select | L26: =CONCATENATE(J26,B26,K26) -> Range("B270").Select
D27: Selection.Copy | L27: =+D27 -> Selection.Copy
D28: Sheets("PR1").Select | L28: =+D28 -> Sheets("PR1").Select
D29: Range("C2").Select | L29: =+D29 -> Range("C2").Select
D30: Selection.PasteSpecial Paste:=xlPasteValues, Operation:=xlNone, SkipBlanks _ | L30: =+D30 -> Selection.PasteSpecial Paste:=xlPasteValues, Operation:=xlNone, SkipBlanks _
D31: :=False, Transpose:=False | L31: =+D31 -> :=False, Transpose:=False
D33: End Sub | L33: =+D33 -> End Sub
B34: =+B23 -> J | C34: D | D34: =CONCATENATE("Sub G",B34,"A()") -> Sub GJA() | J34: =LEFT(D34,5) -> Sub G | K34: =RIGHT(D34,2) -> () | L34: =CONCATENATE(J34,B34,C34,K34) -> Sub GJD()
D35: ' | L35: =+D35 -> '
D36: ' | L36: =+D36 -> '
B37: =+B26+1 -> 271 | D37: Range("B36").Select | J37: =LEFT(D37,12) -> Range("B | K37: =RIGHT(D37,9) -> ").Select | L37: =CONCATENATE(J37,B37,K37) -> Range("B271").Select
D38: Selection.Copy | L38: =+D38 -> Selection.Copy
D39: Sheets("PR1").Select | L39: =+D39 -> Sheets("PR1").Select
D40: Range("C2").Select | L40: =+D40 -> Range("C2").Select
D41: Selection.PasteSpecial Paste:=xlPasteValues, Operation:=xlNone, SkipBlanks _ | L41: =+D41 -> Selection.PasteSpecial Paste:=xlPasteValues, Operation:=xlNone, SkipBlanks _
D42: :=False, Transpose:=False | L42: =+D42 -> :=False, Transpose:=False
D44: End Sub | L44: =+D44 -> End Sub
B45: =+B34 -> J | C45: E | D45: =CONCATENATE("Sub G",B45,"A()") -> Sub GJA() | J45: =LEFT(D45,5) -> Sub G | K45: =RIGHT(D45,2) -> () | L45: =CONCATENATE(J45,B45,C45,K45) -> Sub GJE()
D46: ' | L46: =+D46 -> '
D47: ' | L47: =+D47 -> '
B48: =+B37+1 -> 272 | D48: Range("B37").Select | J48: =LEFT(D48,12) -> Range("B | K48: =RIGHT(D48,9) -> ").Select | L48: =CONCATENATE(J48,B48,K48) -> Range("B272").Select
D49: Selection.Copy | L49: =+D49 -> Selection.Copy
D50: Sheets("PR1").Select | L50: =+D50 -> Sheets("PR1").Select
D51: Range("C2").Select | L51: =+D51 -> Range("C2").Select
D52: Selection.PasteSpecial Paste:=xlPasteValues, Operation:=xlNone, SkipBlanks _ | L52: =+D52 -> Selection.PasteSpecial Paste:=xlPasteValues, Operation:=xlNone, SkipBlanks _
D53: :=False, Transpose:=False | L53: =+D53 -> :=False, Transpose:=False
D55: End Sub | L55: =+D55 -> End Sub
B56: =+B45 -> J | C56: F | D56: =CONCATENATE("Sub G",B56,"A()") -> Sub GJA() | J56: =LEFT(D56,5) -> Sub G | K56: =RIGHT(D56,2) -> () | L56: =CONCATENATE(J56,B56,C56,K56) -> Sub GJF()
D57: ' | L57: =+D57 -> '
D58: ' | L58: =+D58 -> '
B59: =+B48+1 -> 273 | D59: Range("B38").Select | J59: =LEFT(D59,12) -> Range("B | K59: =RIGHT(D59,9) -> ").Select | L59: =CONCATENATE(J59,B59,K59) -> Range("B273").Select
D60: Selection.Copy | L60: =+D60 -> Selection.Copy
D61: Sheets("PR1").Select | L61: =+D61 -> Sheets("PR1").Select
D62: Range("C2").Select | L62: =+D62 -> Range("C2").Select
D63: Selection.PasteSpecial Paste:=xlPasteValues, Operation:=xlNone, SkipBlanks _ | L63: =+D63 -> Selection.PasteSpecial Paste:=xlPasteValues, Operation:=xlNone, SkipBlanks _
D64: :=False, Transpose:=False | L64: =+D64 -> :=False, Transpose:=False
D66: End Sub | L66: =+D66 -> End Sub
B67: =+B56 -> J | C67: G | D67: =CONCATENATE("Sub G",B67,"A()") -> Sub GJA() | J67: =LEFT(D67,5) -> Sub G | K67: =RIGHT(D67,2) -> () | L67: =CONCATENATE(J67,B67,C67,K67) -> Sub GJG()
D68: ' | L68: =+D68 -> '
D69: ' | L69: =+D69 -> '
B70: =+B59+1 -> 274 | D70: Range("B39").Select | J70: =LEFT(D70,12) -> Range("B | K70: =RIGHT(D70,9) -> ").Select | L70: =CONCATENATE(J70,B70,K70) -> Range("B274").Select
D71: Selection.Copy | L71: =+D71 -> Selection.Copy
D72: Sheets("PR1").Select | L72: =+D72 -> Sheets("PR1").Select
D73: Range("C2").Select | L73: =+D73 -> Range("C2").Select
D74: Selection.PasteSpecial Paste:=xlPasteValues, Operation:=xlNone, SkipBlanks _ | L74: =+D74 -> Selection.PasteSpecial Paste:=xlPasteValues, Operation:=xlNone, SkipBlanks _
D75: :=False, Transpose:=False | L75: =+D75 -> :=False, Transpose:=False
D77: End Sub | L77: =+D77 -> End Sub
B78: =+B67 -> J | C78: H | D78: =CONCATENATE("Sub G",B78,"A()") -> Sub GJA() | J78: =LEFT(D78,5) -> Sub G | K78: =RIGHT(D78,2) -> () | L78: =CONCATENATE(J78,B78,C78,K78) -> Sub GJH()
D79: ' | L79: =+D79 -> '
D80: ' | L80: =+D80 -> '
B81: =+B70+1 -> 275 | D81: Range("B40").Select | J81: =LEFT(D81,12) -> Range("B | K81: =RIGHT(D81,9) -> ").Select | L81: =CONCATENATE(J81,B81,K81) -> Range("B275").Select
D82: Selection.Copy | L82: =+D82 -> Selection.Copy
D83: Sheets("PR1").Select | L83: =+D83 -> Sheets("PR1").Select
D84: Range("C2").Select | L84: =+D84 -> Range("C2").Select
D85: Selection.PasteSpecial Paste:=xlPasteValues, Operation:=xlNone, SkipBlanks _ | L85: =+D85 -> Selection.PasteSpecial Paste:=xlPasteValues, Operation:=xlNone, SkipBlanks _
D86: :=False, Transpose:=False | L86: =+D86 -> :=False, Transpose:=False
D88: End Sub | L88: =+D88 -> End Sub
B89: =+B78 -> J | C89: I | D89: =CONCATENATE("Sub G",B89,"A()") -> Sub GJA() | J89: =LEFT(D89,5) -> Sub G | K89: =RIGHT(D89,2) -> () | L89: =CONCATENATE(J89,B89,C89,K89) -> Sub GJI()
D90: ' | L90: =+D90 -> '
D91: ' | L91: =+D91 -> '
B92: =+B81+1 -> 276 | D92: Range("B41").Select | J92: =LEFT(D92,12) -> Range("B | K92: =RIGHT(D92,9) -> ").Select | L92: =CONCATENATE(J92,B92,K92) -> Range("B276").Select
D93: Selection.Copy | L93: =+D93 -> Selection.Copy
D94: Sheets("PR1").Select | L94: =+D94 -> Sheets("PR1").Select
D95: Range("C2").Select | L95: =+D95 -> Range("C2").Select
D96: Selection.PasteSpecial Paste:=xlPasteValues, Operation:=xlNone, SkipBlanks _ | L96: =+D96 -> Selection.PasteSpecial Paste:=xlPasteValues, Operation:=xlNone, SkipBlanks _
D97: :=False, Transpose:=False | L97: =+D97 -> :=False, Transpose:=False
D99: End Sub | L99: =+D99 -> End Sub
B100: =+B89 -> J | C100: J | D100: =CONCATENATE("Sub G",B100,"A()") -> Sub GJA() | J100: =LEFT(D100,5) -> Sub G | K100: =RIGHT(D100,2) -> () | L100: =CONCATENATE(J100,B100,C100,K100) -> Sub GJJ()
D101: ' | L101: =+D101 -> '
D102: ' | L102: =+D102 -> '
B103: =+B92+1 -> 277 | D103: Range("B42").Select | J103: =LEFT(D103,12) -> Range("B | K103: =RIGHT(D103,9) -> ").Select | L103: =CONCATENATE(J103,B103,K103) -> Range("B277").Select
D104: Selection.Copy | L104: =+D104 -> Selection.Copy
D105: Sheets("PR1").Select | L105: =+D105 -> Sheets("PR1").Select
D106: Range("C2").Select | L106: =+D106 -> Range("C2").Select
D107: Selection.PasteSpecial Paste:=xlPasteValues, Operation:=xlNone, SkipBlanks _ | L107: =+D107 -> Selection.PasteSpecial Paste:=xlPasteValues, Operation:=xlNone, SkipBlanks _
D108: :=False, Transpose:=False | L108: =+D108 -> :=False, Transpose:=False
D110: End Sub | L110: =+D110 -> End Sub
B111: =+B100 -> J | C111: K | D111: =CONCATENATE("Sub G",B111,"A()") -> Sub GJA() | J111: =LEFT(D111,5) -> Sub G | K111: =RIGHT(D111,2) -> () | L111: =CONCATENATE(J111,B111,C111,K111) -> Sub GJK()
D112: ' | L112: =+D112 -> '
D113: ' | L113: =+D113 -> '
B114: =+B103+1 -> 278 | D114: Range("B43").Select | J114: =LEFT(D114,12) -> Range("B | K114: =RIGHT(D114,9) -> ").Select | L114: =CONCATENATE(J114,B114,K114) -> Range("B278").Select
D115: Selection.Copy | L115: =+D115 -> Selection.Copy
D116: Sheets("PR1").Select | L116: =+D116 -> Sheets("PR1").Select
D117: Range("C2").Select | L117: =+D117 -> Range("C2").Select
D118: Selection.PasteSpecial Paste:=xlPasteValues, Operation:=xlNone, SkipBlanks _ | L118: =+D118 -> Selection.PasteSpecial Paste:=xlPasteValues, Operation:=xlNone, SkipBlanks _
D119: :=False, Transpose:=False | L119: =+D119 -> :=False, Transpose:=False
D121: End Sub | L121: =+D121 -> End Sub
B122: =+B111 -> J | C122: L | D122: =CONCATENATE("Sub G",B122,"A()") -> Sub GJA() | J122: =LEFT(D122,5) -> Sub G | K122: =RIGHT(D122,2) -> () | L122: =CONCATENATE(J122,B122,C122,K122) -> Sub GJL()
D123: ' | L123: =+D123 -> '
D124: ' | L124: =+D124 -> '
B125: =+B114+1 -> 279 | D125: Range("B44").Select | J125: =LEFT(D125,12) -> Range("B | K125: =RIGHT(D125,9) -> ").Select | L125: =CONCATENATE(J125,B125,K125) -> Range("B279").Select
D126: Selection.Copy | L126: =+D126 -> Selection.Copy
D127: Sheets("PR1").Select | L127: =+D127 -> Sheets("PR1").Select
D128: Range("C2").Select | L128: =+D128 -> Range("C2").Select
D129: Selection.PasteSpecial Paste:=xlPasteValues, Operation:=xlNone, SkipBlanks _ | L129: =+D129 -> Selection.PasteSpecial Paste:=xlPasteValues, Operation:=xlNone, SkipBlanks _
D130: :=False, Transpose:=False | L130: =+D130 -> :=False, Transpose:=False
D132: End Sub | L132: =+D132 -> End Sub
B133: =+B122 -> J | C133: M | D133: =CONCATENATE("Sub G",B133,"A()") -> Sub GJA() | J133: =LEFT(D133,5) -> Sub G | K133: =RIGHT(D133,2) -> () | L133: =CONCATENATE(J133,B133,C133,K133) -> Sub GJM()
D134: ' | L134: =+D134 -> '
D135: ' | L135: =+D135 -> '
B136: =+B125+1 -> 280 | D136: Range("B45").Select | J136: =LEFT(D136,12) -> Range("B | K136: =RIGHT(D136,9) -> ").Select | L136: =CONCATENATE(J136,B136,K136) -> Range("B280").Select
D137: Selection.Copy | L137: =+D137 -> Selection.Copy
D138: Sheets("PR1").Select | L138: =+D138 -> Sheets("PR1").Select
D139: Range("C2").Select | L139: =+D139 -> Range("C2").Select
D140: Selection.PasteSpecial Paste:=xlPasteValues, Operation:=xlNone, SkipBlanks _ | L140: =+D140 -> Selection.PasteSpecial Paste:=xlPasteValues, Operation:=xlNone, SkipBlanks _
D141: :=False, Transpose:=False | L141: =+D141 -> :=False, Transpose:=False
D143: End Sub | L143: =+D143 -> End Sub
B144: =+B133 -> J | C144: N | D144: =CONCATENATE("Sub G",B144,"A()") -> Sub GJA() | J144: =LEFT(D144,5) -> Sub G | K144: =RIGHT(D144,2) -> () | L144: =CONCATENATE(J144,B144,C144,K144) -> Sub GJN()
D145: ' | L145: =+D145 -> '
D146: ' | L146: =+D146 -> '
B147: =+B136+1 -> 281 | D147: Range("B46").Select | J147: =LEFT(D147,12) -> Range("B | K147: =RIGHT(D147,9) -> ").Select | L147: =CONCATENATE(J147,B147,K147) -> Range("B281").Select
D148: Selection.Copy | L148: =+D148 -> Selection.Copy
D149: Sheets("PR1").Select | L149: =+D149 -> Sheets("PR1").Select
D150: Range("C2").Select | L150: =+D150 -> Range("C2").Select
D151: Selection.PasteSpecial Paste:=xlPasteValues, Operation:=xlNone, SkipBlanks _ | L151: =+D151 -> Selection.PasteSpecial Paste:=xlPasteValues, Operation:=xlNone, SkipBlanks _
D152: :=False, Transpose:=False | L152: =+D152 -> :=False, Transpose:=False
D154: End Sub | L154: =+D154 -> End Sub
B155: =+B144 -> J | C155: O | D155: =CONCATENATE("Sub G",B155,"A()") -> Sub GJA() | J155: =LEFT(D155,5) -> Sub G | K155: =RIGHT(D155,2) -> () | L155: =CONCATENATE(J155,B155,C155,K155) -> Sub GJO()
D156: ' | L156: =+D156 -> '
D157: ' | L157: =+D157 -> '
B158: =+B147+1 -> 282 | D158: Range("B47").Select | J158: =LEFT(D158,12) -> Range("B | K158: =RIGHT(D158,9) -> ").Select | L158: =CONCATENATE(J158,B158,K158) -> Range("B282").Select
D159: Selection.Copy | L159: =+D159 -> Selection.Copy
D160: Sheets("PR1").Select | L160: =+D160 -> Sheets("PR1").Select
D161: Range("C2").Select | L161: =+D161 -> Range("C2").Select
D162: Selection.PasteSpecial Paste:=xlPasteValues, Operation:=xlNone, SkipBlanks _ | L162: =+D162 -> Selection.PasteSpecial Paste:=xlPasteValues, Operation:=xlNone, SkipBlanks _
D163: :=False, Transpose:=False | L163: =+D163 -> :=False, Transpose:=False
D165: End Sub | L165: =+D165 -> End Sub
B166: =+B155 -> J | C166: P | D166: =CONCATENATE("Sub G",B166,"A()") -> Sub GJA() | J166: =LEFT(D166,5) -> Sub G | K166: =RIGHT(D166,2) -> () | L166: =CONCATENATE(J166,B166,C166,K166) -> Sub GJP()
D167: ' | L167: =+D167 -> '
D168: ' | L168: =+D168 -> '
B169: =+B158+1 -> 283 | D169: Range("B48").Select | J169: =LEFT(D169,12) -> Range("B | K169: =RIGHT(D169,9) -> ").Select | L169: =CONCATENATE(J169,B169,K169) -> Range("B283").Select
D170: Selection.Copy | L170: =+D170 -> Selection.Copy
D171: Sheets("PR1").Select | L171: =+D171 -> Sheets("PR1").Select
D172: Range("C2").Select | L172: =+D172 -> Range("C2").Select
D173: Selection.PasteSpecial Paste:=xlPasteValues, Operation:=xlNone, SkipBlanks _ | L173: =+D173 -> Selection.PasteSpecial Paste:=xlPasteValues, Operation:=xlNone, SkipBlanks _
D174: :=False, Transpose:=False | L174: =+D174 -> :=False, Transpose:=False
D176: End Sub | L176: =+D176 -> End Sub
B177: =+B166 -> J | C177: Q | D177: =CONCATENATE("Sub G",B177,"A()") -> Sub GJA() | J177: =LEFT(D177,5) -> Sub G | K177: =RIGHT(D177,2) -> () | L177: =CONCATENATE(J177,B177,C177,K177) -> Sub GJQ()
D178: ' | L178: =+D178 -> '
D179: ' | L179: =+D179 -> '
B180: =+B169+1 -> 284 | D180: Range("B49").Select | J180: =LEFT(D180,12) -> Range("B | K180: =RIGHT(D180,9) -> ").Select | L180: =CONCATENATE(J180,B180,K180) -> Range("B284").Select
D181: Selection.Copy | L181: =+D181 -> Selection.Copy
D182: Sheets("PR1").Select | L182: =+D182 -> Sheets("PR1").Select
D183: Range("C2").Select | L183: =+D183 -> Range("C2").Select
D184: Selection.PasteSpecial Paste:=xlPasteValues, Operation:=xlNone, SkipBlanks _ | L184: =+D184 -> Selection.PasteSpecial Paste:=xlPasteValues, Operation:=xlNone, SkipBlanks _
D185: :=False, Transpose:=False | L185: =+D185 -> :=False, Transpose:=False
D187: End Sub | L187: =+D187 -> End Sub
B188: =+B177 -> J | C188: R | D188: =CONCATENATE("Sub G",B188,"A()") -> Sub GJA() | J188: =LEFT(D188,5) -> Sub G | K188: =RIGHT(D188,2) -> () | L188: =CONCATENATE(J188,B188,C188,K188) -> Sub GJR()
D189: ' | L189: =+D189 -> '
D190: ' | L190: =+D190 -> '
B191: =+B180+1 -> 285 | D191: Range("B50").Select | J191: =LEFT(D191,12) -> Range("B | K191: =RIGHT(D191,9) -> ").Select | L191: =CONCATENATE(J191,B191,K191) -> Range("B285").Select
D192: Selection.Copy | L192: =+D192 -> Selection.Copy
D193: Sheets("PR1").Select | L193: =+D193 -> Sheets("PR1").Select
D194: Range("C2").Select | L194: =+D194 -> Range("C2").Select
D195: Selection.PasteSpecial Paste:=xlPasteValues, Operation:=xlNone, SkipBlanks _ | L195: =+D195 -> Selection.PasteSpecial Paste:=xlPasteValues, Operation:=xlNone, SkipBlanks _
D196: :=False, Transpose:=False | L196: =+D196 -> :=False, Transpose:=False
D198: End Sub | L198: =+D198 -> End Sub
B199: =+B188 -> J | C199: S | D199: =CONCATENATE("Sub G",B199,"A()") -> Sub GJA() | J199: =LEFT(D199,5) -> Sub G | K199: =RIGHT(D199,2) -> () | L199: =CONCATENATE(J199,B199,C199,K199) -> Sub GJS()
D200: ' | L200: =+D200 -> '
D201: ' | L201: =+D201 -> '
B202: =+B191+1 -> 286 | D202: Range("B51").Select | J202: =LEFT(D202,12) -> Range("B | K202: =RIGHT(D202,9) -> ").Select | L202: =CONCATENATE(J202,B202,K202) -> Range("B286").Select
D203: Selection.Copy | L203: =+D203 -> Selection.Copy
D204: Sheets("PR1").Select | L204: =+D204 -> Sheets("PR1").Select
D205: Range("C2").Select | L205: =+D205 -> Range("C2").Select
D206: Selection.PasteSpecial Paste:=xlPasteValues, Operation:=xlNone, SkipBlanks _ | L206: =+D206 -> Selection.PasteSpecial Paste:=xlPasteValues, Operation:=xlNone, SkipBlanks _
D207: :=False, Transpose:=False | L207: =+D207 -> :=False, Transpose:=False
D209: End Sub | L209: =+D209 -> End Sub
B210: =+B199 -> J | C210: T | D210: =CONCATENATE("Sub G",B210,"A()") -> Sub GJA() | J210: =LEFT(D210,5) -> Sub G | K210: =RIGHT(D210,2) -> () | L210: =CONCATENATE(J210,B210,C210,K210) -> Sub GJT()
D211: ' | L211: =+D211 -> '
D212: ' | L212: =+D212 -> '
B213: =+B202+1 -> 287 | D213: Range("B52").Select | J213: =LEFT(D213,12) -> Range("B | K213: =RIGHT(D213,9) -> ").Select | L213: =CONCATENATE(J213,B213,K213) -> Range("B287").Select
D214: Selection.Copy | L214: =+D214 -> Selection.Copy
D215: Sheets("PR1").Select | L215: =+D215 -> Sheets("PR1").Select
D216: Range("C2").Select | L216: =+D216 -> Range("C2").Select
D217: Selection.PasteSpecial Paste:=xlPasteValues, Operation:=xlNone, SkipBlanks _ | L217: =+D217 -> Selection.PasteSpecial Paste:=xlPasteValues, Operation:=xlNone, SkipBlanks _
D218: :=False, Transpose:=False | L218: =+D218 -> :=False, Transpose:=False
D220: End Sub | L220: =+D220 -> End Sub
... 60 more rows

Sheet 1
A1: STARS
B3: =+'D1'!$B$27 -> 0 | M3: 2021
B4: =+'D1'!$B$25 -> 0
K6: 5
B7: =IF(I36="T5","TINGKATAN 5","TINGKATAN 4") -> TINGKATAN 4
A19: PROFIL SEKOLAH
A20: GRED PURATA SEKOLAH
B21: SASARAN | C21: U4 | D21: PROJECTION / SEBENAR | E21: % | AD21: =+A23 -> 2020 | AE21: =+CA!M3 -> 2.222222222
A22: 2021 | B22: =$AE$22*(100-$AE$21)/100 ->  | C22: =IF($AH$22="4T",RUM!$P$8,IF($AH$22="4A",RUM!$P$9,IF($AH$22="5T",RUM!$P$10,IF($AH$22="5P",RUM!$P$11,"")))) ->  | D22: =IF(+Z24>100,100,Z24) ->  | E22: =SUM(E23:E25)/3 ->  | Y22: SASARAN | Z22: =+A22 -> 2021 | AA22: =+A23 -> 2020 | AB22: =+A24 -> 2019 | AC22: 2014 | AD22: =VLOOKUP(B4,'A2'!$A$2:$C$151,3,0) ->  | AE22: =VLOOKUP(CONCATENATE($AD$22,"5",RIGHT($AD$21,1),"L"),'A1'!$AC$2:$AI$2837,7,0) ->  | AH22: =VLOOKUP(C21,$AH$23:$AI$26,2,0) -> 5P
A23: =+A22-1 -> 2020 | C23: =IF($AH$22="4T",VLOOKUP(CONCATENATE($AD$23,"4",RIGHT($A$23-1,1),"T"),'A1'!$AC$2:$AJ$41139,7,0),IF($AH$22="4A",VLOOKUP(CONCATENATE($AD$23,"4",RIGHT($A$23-1,1),"A"),'A1'!$AC$2:$AJ$41139,7,0),IF($AH$22="5T",VLOOKUP(CONCATENATE($AD$23,"5",RIGHT($A$23,1),"T"),'A1'!$AC$2:$AJ$41139,7,0),IF($AH$22="5P",VLOOKUP(CONCATENATE($AD$23,"5",RIGHT($A$23,1),"P"),'A1'!$AC$2:$AJ$41139,7,0),"")))) ->  | D23: =VLOOKUP(CONCATENATE($AD$22,"5",RIGHT($A$23,1),"L"),'A1'!$AC$2:$AJ$41139,7,0) ->  | E23: =-(+D23-C23)/C23 ->  | Y23: =+B22 ->  | Z23: =+C22 ->  | AA23: =+C23 ->  | AB23: =+C24 ->  | AC23: =+C25 ->  | AD23: =VLOOKUP(AD22,'A2'!$C$2:$AB$117,25,0) ->  | AF23: GRED PURATA SEKOLAH | AG23: A | AH23: U4 | AI23: 5P
A24: =+A23-1 -> 2019 | C24: =IF($AH$22="4T",VLOOKUP(CONCATENATE($AD$24,"4",RIGHT($A$24-1,1),"T"),'A1'!$AC$2:$AJ$41139,7,0),IF($AH$22="4A",VLOOKUP(CONCATENATE($AD$24,"4",RIGHT($A$24-1,1),"A"),'A1'!$AC$2:$AJ$41139,7,0),IF($AH$22="5T",VLOOKUP(CONCATENATE($AD$24,"5",RIGHT($A$24,1),"T"),'A1'!$AC$2:$AJ$41139,7,0),IF($AH$22="5P",VLOOKUP(CONCATENATE($AD$24,"5",RIGHT($A$24,1),"P"),'A1'!$AC$2:$AJ$41139,7,0),"")))) ->  | D24: =VLOOKUP(CONCATENATE($AD$23,"5",RIGHT($A$24,1),"L"),'A1'!$AC$2:$AJ$41139,7,0) ->  | E24: =-(+D24-C24)/C24 ->  | Z24: =C22*(1-Z25) ->  | AA24: =+D23 ->  | AB24: =+D24 ->  | AC24: =+D25 ->  | AD24: =VLOOKUP(AD22,'A2'!$C$2:$AB$117,26,0) ->  | AH24: U3 | AI24: 5T
A25: =+A24-1 -> 2018 | C25: =IF($AH$22="4T",VLOOKUP(CONCATENATE($AD$24,"4",RIGHT($A$25-1,1),"T"),'A1'!$AC$2:$AJ$41139,7,0),IF($AH$22="4A",VLOOKUP(CONCATENATE($AD$24,"4",RIGHT($A$25-1,1),"A"),'A1'!$AC$2:$AJ$41139,7,0),IF($AH$22="5T",VLOOKUP(CONCATENATE($AD$24,"5",RIGHT($A$25,1),"T"),'A1'!$AC$2:$AJ$41139,7,0),IF($AH$22="5P",VLOOKUP(CONCATENATE($AD$24,"5",RIGHT($A$25,1),"P"),'A1'!$AC$2:$AJ$41139,7,0),"")))) ->  | D25: =VLOOKUP(CONCATENATE($AD$24,"5",RIGHT($A$25,1),"L"),'A1'!$AC$2:$AJ$41139,7,0) ->  | E25: =-(+D25-C25)/C25 ->  | Z25: =+E22 ->  | AH25: U2 | AI25: 4A
F26: PURATA | AF26: =VLOOKUP($A$20,AF23:AG25,2,0) -> A | AH26: U1 | AI26: 4T
B27: SASARAN
B28: PERCUBAAN
B29: PURATA
B30: SEBENAR
D36: =VLOOKUP(B4,'A2'!$D$2:$E$133,2,0) ->  | I36: =+'D1'!D1 -> T4
Y37: =(+E44-C44)/C44 ->  | Z37: =+CA!M3 -> 2.222222222
Y38: =SUM(Y41:Y43) -> 0 | AA38: =SUM(AA41:AA43) -> 0 | AB38: 0 | AC38: 0
A39: DATA ASAS | Y39: =COUNTIF('D2'!$BO$11:$BO$550,"TH") -> 0 | AA39: =COUNTIF('D2'!$BP$1011:$BP$1550,"TH") -> 0 | AB39: =COUNTIF('D2'!$BP$3011:$BP$3550,"TH") -> 0 | AC39: =COUNTIF('D2'!$BO$4011:$BP$4550,"TH") -> 0
C40: =+A23 -> 2020 | E40: ETR | F40: U1 | G40: U2 | H40: U3 | I40: U4 | Y40: =+Y38-Y39 -> 0 | AA40: =+AA38-AA39 -> 0 | AB40: 0 | AC40: 0
A41: SEMUA A | C41: =VLOOKUP(AD22,'A1'!$AE$2:$AJ$118,3,0)+VLOOKUP(AD22,'A1'!$AE$2:$AJ$118,4,0) ->  | E41: =+'PR2'!F4 -> 0 | F41: =+'PR2'!B17 -> 601 | G41: =+'PR2'!C4 -> 0 | H41: =+'PR2'!D4 -> 0 | I41: =+'PR2'!E4 -> 0 | Y41: =COUNTIF('D2'!$LX$11:$LX$550,Z41) -> 0 | Z41: 0 | AA41: =COUNTIF('D2'!$LX$1011:$LX$1550,Z41) -> 0 | AB41: =COUNTIF('D2'!$LX$3011:$LX$3550,Z41) -> 0 | AC41: =COUNTIF('D2'!$LX$4011:$LX$4550,Z41) -> 0
A42: 5A KE ATAS | E42: =+SUM('PR2'!F36:F45) -> 0 | F42: =SUM('PR2'!B36:B45) -> 0 | G42: =SUM('PR2'!C36:C45) -> 0 | H42: =+SUM('PR2'!D36:D45) -> 0 | I42: =+SUM('PR2'!E36:E45) -> 0 | Y42: =COUNTIF('D2'!$LX$11:$LX$550,Z42) -> 0 | Z42: 1 | AA42: =COUNTIF('D2'!$LX$1011:$LX$1550,Z42) -> 0 | AB42: =COUNTIF('D2'!$LX$3011:$LX$3550,Z42) -> 0 | AC42: =COUNTIF('D2'!$LX$4011:$LX$4550,Z42) -> 0
Y43: =COUNTIF('D2'!$LX$11:$LX$550,Z43) -> 0 | Z43: 2 | AA43: =COUNTIF('D2'!$LX$1011:$LX$1550,Z43) -> 0 | AB43: =COUNTIF('D2'!$LX$3011:$LX$3550,Z43) -> 0 | AC43: =COUNTIF('D2'!$LX$4011:$LX$4550,Z43) -> 0
A44: GPS | C44: =+RUM!P7 ->  | E44: =+CA!O8 ->  | F44: =+RUM!P8 ->  | G44: =+RUM!P9 ->  | H44: =+RUM!P10 ->  | I44: =+RUM!P11 ->  | Y44: =COUNTIF('D2'!$LX$11:$LX$550,Z44) -> 540 | AA44: =COUNTIF('D2'!$LX$1011:$LX$1550,Z44) -> 540 | AB44: =COUNTIF('D2'!$LX$3011:$LX$3550,Z44) -> 540 | AC44: =COUNTIF('D2'!$LX$4011:$LX$4550,Z44) -> 540
Y45: =+C46 -> GPS
C46: GPS | Y46: =+C40 -> 2020 | Z46: =VLOOKUP($Y$45,$A$41:$I$44,AA46,0) ->  | AA46: 3
AA47: 4
W48: TOV | X48: 6 | Y48: ETR | AA48: 5
W49: UJIAN 1 | X49: 7 | Y49: =+F40 -> U1 | AA49: 6
W50: PPT | X50: 8 | Y50: =+G40 -> U2 | AA50: 7
W51: PC | X51: 9 | Y51: =+H40 -> U3 | AA51: 8
W52: ETR | X52: 5 | Y52: =+I40 -> U4 | AA52: 9
Y61: =+DATA!S8 -> Bahasa Inggeris | Z61: =VLOOKUP(Y61,'A1'!$Z$2:$AL$106,13,0) -> 1119
Y62: =+DATA!S9 -> Biology | Z62: =VLOOKUP(Y62,'A1'!$Z$2:$AL$106,13,0) -> 4551
Y63: =+DATA!S10 -> Bahasa Melayu | Z63: =VLOOKUP(Y63,'A1'!$Z$2:$AL$106,13,0) -> 1103
Y64: =+DATA!S11 -> Bahasa Tamil | Z64: =VLOOKUP(Y64,'A1'!$Z$2:$AL$106,13,0) -> 6354
Y65: =+DATA!S12 -> Ekonomi | Z65: =VLOOKUP(Y65,'A1'!$Z$2:$AL$106,13,0) -> 3767
A66: PRETASI GRED PURATA | Y66: =+DATA!S13 -> Physics | Z66: =VLOOKUP(Y66,'A1'!$Z$2:$AL$106,13,0) -> 4531
B67: =+F40 -> U1 | C67: =+G40 -> U2 | D67: =+H40 -> U3 | E67: =+I40 -> U4 | F67: SEBENAR | G67: ETR | Y67: =+DATA!S14 -> Geografi | Z67: =VLOOKUP(Y67,'A1'!$Z$2:$AL$106,13,0) -> 2280
A68: =+A22 -> 2021 | B68: =+RUM!P8 ->  | C68: =+RUM!P9 ->  | D68: =+RUM!P10 ->  | E68: =+RUM!P11 ->  | G68: =+E44 ->  | Y68: =+DATA!S15 -> Grafik Komunikasi Teknikal | Z68: =VLOOKUP(Y68,'A1'!$Z$2:$AL$106,13,0) -> 3771
A69: =+A23 -> 2020 | B69: =VLOOKUP(CONCATENATE($AD$23,"4",RIGHT($A69-1,1),"T"),'A1'!$AC$2:$AI$5000,7,0) ->  | C69: =VLOOKUP(CONCATENATE($AD$23,"4",RIGHT($A69-1,1),"A"),'A1'!$AC$2:$AI$5000,7,0) ->  | D69: =VLOOKUP(CONCATENATE($AD$23,"5",RIGHT($A68-1,1),"T"),'A1'!$AC$2:$AI$5000,7,0) ->  | E69: =VLOOKUP(CONCATENATE($AD$23,"5",RIGHT($A69,1),"P"),'A1'!$AC$2:$AI$5000,7,0) ->  | F69: =VLOOKUP(CONCATENATE($AD$22,"5",RIGHT($A69,1),"L"),'A1'!$AC$2:$AI$5000,7,0) ->  | Y69: =+DATA!S16 -> Chemistry | Z69: =VLOOKUP(Y69,'A1'!$Z$2:$AL$106,13,0) -> 4541
A70: =+A24 -> 2019 | B70: =VLOOKUP(CONCATENATE($AD$24,"4",RIGHT($A70-1,1),"T"),'A1'!$AC$2:$AI$5000,7,0) ->  | C70: =VLOOKUP(CONCATENATE($AD$24,"4",RIGHT($A70-1,1),"A"),'A1'!$AC$2:$AI$5000,7,0) ->  | D70: =VLOOKUP(CONCATENATE($AD$24,"5",RIGHT($A69-1,1),"T"),'A1'!$AC$2:$AI$5000,7,0) ->  | E70: =VLOOKUP(CONCATENATE($AD$24,"5",RIGHT($A70,1),"P"),'A1'!$AC$2:$AI$5000,7,0) ->  | F70: =VLOOKUP(CONCATENATE($AD$23,"5",RIGHT($A70,1),"L"),'A1'!$AC$2:$AI$5000,7,0) ->  | Y70: =+DATA!S17 -> Mathematics | Z70: =VLOOKUP(Y70,'A1'!$Z$2:$AL$106,13,0) -> 1449
A71: =+A70-1 -> 2018 | B71: =VLOOKUP(CONCATENATE($AD$24,"4",RIGHT($A71-1,1),"T"),'A1'!$AC$2:$AI$5000,7,0) ->  | C71: =VLOOKUP(CONCATENATE($AD$24,"4",RIGHT($A71-1,1),"A"),'A1'!$AC$2:$AI$5000,7,0) ->  | D71: =VLOOKUP(CONCATENATE($AD$24,"5",RIGHT($A70-1,1),"T"),'A1'!$AC$2:$AI$5000,7,0) ->  | E71: =VLOOKUP(CONCATENATE($AD$24,"5",RIGHT($A71,1),"P"),'A1'!$AC$2:$AI$5000,7,0) ->  | F71: =VLOOKUP(CONCATENATE($AD$23,"5",RIGHT($A71,1),"L"),'A1'!$AC$2:$AI$5000,7,0) ->  | Y71: =+DATA!S18 -> Additional Mathematics | Z71: =VLOOKUP(Y71,'A1'!$Z$2:$AL$106,13,0) -> 3472
Y72: =+DATA!S19 -> Prinsip Perakaunan | Z72: =VLOOKUP(Y72,'A1'!$Z$2:$AL$106,13,0) -> 3756
Y73: =+DATA!S20 -> Pendidikan Islam | Z73: =VLOOKUP(Y73,'A1'!$Z$2:$AL$106,13,0) -> 1223
Y74: =+DATA!S21 -> Pendidikan Moral | Z74: =VLOOKUP(Y74,'A1'!$Z$2:$AL$106,13,0) -> 1225
Y75: =+DATA!S22 -> Pendidikan Seni Visual | Z75: =VLOOKUP(Y75,'A1'!$Z$2:$AL$106,13,0) -> 2611
Y76: =+DATA!S23 -> Reka Cipta | Z76: =VLOOKUP(Y76,'A1'!$Z$2:$AL$106,13,0) -> 3763
Y77: =+DATA!S24 -> Sejarah | Z77: =VLOOKUP(Y77,'A1'!$Z$2:$AL$106,13,0) -> 1249
Y78: =+DATA!S25 -> Science | Z78: =VLOOKUP(Y78,'A1'!$Z$2:$AL$106,13,0) -> 1511
Y79: =+DATA!S26 -> Sains Rumah Tangga | Z79: =VLOOKUP(Y79,'A1'!$Z$2:$AL$106,13,0) -> 3769
A80: PRETASI GRED PURATA | Y80: =+DATA!S27 -> Seni Reka Tanda | Z80: =VLOOKUP(Y80,'A1'!$Z$2:$AL$106,13,0) -> 7401
A81: Chemistry | Y81: =+DATA!S28 -> Tasawwur Islam | Z81: =VLOOKUP(Y81,'A1'!$Z$2:$AL$106,13,0) -> 5226
B82: =+B67 -> U1 | C82: =+C67 -> U2 | D82: =+D67 -> U3 | E82: =+E67 -> U4 | F82: SEBENAR | G82: ETR | Y82: =+DATA!S29 ->  | Z82: =VLOOKUP(Y82,'A1'!$Z$2:$AL$106,13,0) -> 
A83: =+A68 -> 2021 | B83: =VLOOKUP(CONCATENATE($A$90,B82),RUM!$X$15:$Y$203,2,0) ->  | C83: =VLOOKUP(CONCATENATE($A$90,C82),RUM!$X$15:$Y$203,2,0) ->  | D83: =VLOOKUP(CONCATENATE($A$90,D82),RUM!$X$15:$Y$203,2,0) ->  | E83: =VLOOKUP(CONCATENATE($A$90,E82),RUM!$X$15:$Y$203,2,0) ->  | G83: =VLOOKUP(CONCATENATE($A$90,G82),RUM!$X$15:$Y$203,2,0) ->  | Y83: =+DATA!S30 ->  | Z83: =VLOOKUP(Y83,'A1'!$Z$2:$AL$106,13,0) -> 
A84: =+A69 -> 2020 | B84: =VLOOKUP(CONCATENATE($AD$23,$A$90,"4",RIGHT($A84-1,1),"T"),'A1'!$AN$3:$AO$41139,2,0) ->  | C84: =VLOOKUP(CONCATENATE($AD$23,$A$90,"4",RIGHT($A84-1,1),"A"),'A1'!$AN$3:$AO$41139,2,0) ->  | D84: =VLOOKUP(CONCATENATE($AD$23,$A$90,"5",RIGHT($A84,1),"T"),'A1'!$AN$3:$AO$41139,2,0) ->  | E84: =VLOOKUP(CONCATENATE($AD$23,$A$90,"5",RIGHT($A84,1),"P"),'A1'!$AN$3:$AO$41139,2,0) ->  | F84: =VLOOKUP(CONCATENATE($AD$22,$A$90,"5",RIGHT($A84,1),"L"),'A1'!$AN$3:$AO$41139,2,0) ->  | Y84: =+DATA!S31 ->  | Z84: =VLOOKUP(Y84,'A1'!$Z$2:$AL$106,13,0) -> 
A85: =+A70 -> 2019 | B85: =VLOOKUP(CONCATENATE($AD$24,$A$90,"4",RIGHT($A85-1,1),"T"),'A1'!$AN$3:$AO$51139,2,0) ->  | C85: =VLOOKUP(CONCATENATE($AD$24,$A$90,"4",RIGHT($A85-1,1),"A"),'A1'!$AN$3:$AO$41139,2,0) ->  | D85: =VLOOKUP(CONCATENATE($AD$24,$A$90,"5",RIGHT($A85,1),"T"),'A1'!$AN$3:$AO$41139,2,0) ->  | E85: =VLOOKUP(CONCATENATE($AD$24,$A$90,"5",RIGHT($A85,1),"P"),'A1'!$AN$3:$AO$41139,2,0) ->  | F85: =VLOOKUP(CONCATENATE($AD$23,$A$90,"5",RIGHT($A85,1),"L"),'A1'!$AN$3:$AO$41139,2,0) ->  | Y85: =+DATA!S32 ->  | Z85: =VLOOKUP(Y85,'A1'!$Z$2:$AL$106,13,0) -> 
A86: =+A71 -> 2018 | B86: =VLOOKUP(CONCATENATE($AD$24,$A$90,"4",RIGHT($A86-1,1),"T"),'A1'!$AN$3:$AO$41139,2,0) ->  | C86: =VLOOKUP(CONCATENATE($AD$24,$A$90,"4",RIGHT($A86-1,1),"A"),'A1'!$AN$3:$AO$41139,2,0) ->  | D86: =VLOOKUP(CONCATENATE($AD$24,$A$90,"5",RIGHT($A86,1),"T"),'A1'!$AN$3:$AO$41139,2,0) ->  | E86: =VLOOKUP(CONCATENATE($AD$24,$A$90,"5",RIGHT($A86,1),"P"),'A1'!$AN$3:$AO$41139,2,0) ->  | F86: =VLOOKUP(CONCATENATE($AD$23,$A$90,"5",RIGHT($A86,1),"L"),'A1'!$AN$3:$AO$41139,2,0) ->  | Y86: =+DATA!S33 ->  | Z86: =VLOOKUP(Y86,'A1'!$Z$2:$AL$106,13,0) -> 
B87: =CONCATENATE($AD$23,$A$90,"4",RIGHT($A84-1,1),"T") ->  | Y87: =+DATA!S34 -> 0 | Z87: =VLOOKUP(Y87,'A1'!$Z$2:$AL$106,13,0) -> 0
C89: PRETASI MATA PELAJARAN
A90: =VLOOKUP(A81,$Y$61:$Z$90,2,0) -> 4541 | Y90: =+CA!C92 ->  | Z90: =VLOOKUP(Y90,'A1'!$Z$2:$AL$106,13,0) ->  | AM90: =+A23 -> 2020 | AN90: =+AM90-1 -> 2019 | AO90: =+AN90-1 -> 2018
AK91: 1 | AL91: =IF(ISNA(VLOOKUP(AK91,CA!$A$11:$B$70,2,0)),"",VLOOKUP(AK91,CA!$A$11:$B$70,2,0)) -> 1103 | AM91: =VLOOKUP(CONCATENATE($AD$22,AL91,"5",RIGHT($AM$90,1),"L"),'A1'!$AN$3:$AO$51139,2,0) ->  | AN91: =VLOOKUP(CONCATENATE($AD$23,AL91,"5",RIGHT($AN$90,1),"L"),'A1'!$AN$3:$AO$51139,2,0) ->  | AO91: =VLOOKUP(CONCATENATE($AD$23,AL91,"5",RIGHT($AO$90,1),"L"),'A1'!$AN$3:$AO$51139,2,0) -> 
AK92: 2 | AL92: =IF(ISNA(VLOOKUP(AK92,CA!$A$11:$B$70,2,0)),"",VLOOKUP(AK92,CA!$A$11:$B$70,2,0)) ->  | AM92: =VLOOKUP(CONCATENATE($AD$22,AL92,"5",RIGHT($AM$90,1),"L"),'A1'!$AN$3:$AO$51139,2,0) ->  | AN92: =VLOOKUP(CONCATENATE($AD$23,AL92,"5",RIGHT($AN$90,1),"L"),'A1'!$AN$3:$AO$51139,2,0) ->  | AO92: =VLOOKUP(CONCATENATE($AD$23,AL92,"5",RIGHT($AO$90,1),"L"),'A1'!$AN$3:$AO$51139,2,0) -> 
AK93: 3 | AL93: =IF(ISNA(VLOOKUP(AK93,CA!$A$11:$B$70,2,0)),"",VLOOKUP(AK93,CA!$A$11:$B$70,2,0)) ->  | AM93: =VLOOKUP(CONCATENATE($AD$22,AL93,"5",RIGHT($AM$90,1),"L"),'A1'!$AN$3:$AO$51139,2,0) ->  | AN93: =VLOOKUP(CONCATENATE($AD$23,AL93,"5",RIGHT($AN$90,1),"L"),'A1'!$AN$3:$AO$51139,2,0) ->  | AO93: =VLOOKUP(CONCATENATE($AD$23,AL93,"5",RIGHT($AO$90,1),"L"),'A1'!$AN$3:$AO$51139,2,0) -> 
AK94: 4 | AL94: =IF(ISNA(VLOOKUP(AK94,CA!$A$11:$B$70,2,0)),"",VLOOKUP(AK94,CA!$A$11:$B$70,2,0)) ->  | AM94: =VLOOKUP(CONCATENATE($AD$22,AL94,"5",RIGHT($AM$90,1),"L"),'A1'!$AN$3:$AO$51139,2,0) ->  | AN94: =VLOOKUP(CONCATENATE($AD$23,AL94,"5",RIGHT($AN$90,1),"L"),'A1'!$AN$3:$AO$51139,2,0) ->  | AO94: =VLOOKUP(CONCATENATE($AD$23,AL94,"5",RIGHT($AO$90,1),"L"),'A1'!$AN$3:$AO$51139,2,0) -> 
AK95: 5 | AL95: =IF(ISNA(VLOOKUP(AK95,CA!$A$11:$B$70,2,0)),"",VLOOKUP(AK95,CA!$A$11:$B$70,2,0)) ->  | AM95: =VLOOKUP(CONCATENATE($AD$22,AL95,"5",RIGHT($AM$90,1),"L"),'A1'!$AN$3:$AO$51139,2,0) ->  | AN95: =VLOOKUP(CONCATENATE($AD$23,AL95,"5",RIGHT($AN$90,1),"L"),'A1'!$AN$3:$AO$51139,2,0) ->  | AO95: =VLOOKUP(CONCATENATE($AD$23,AL95,"5",RIGHT($AO$90,1),"L"),'A1'!$AN$3:$AO$51139,2,0) -> 
AK96: 6 | AL96: =IF(ISNA(VLOOKUP(AK96,CA!$A$11:$B$70,2,0)),"",VLOOKUP(AK96,CA!$A$11:$B$70,2,0)) ->  | AM96: =VLOOKUP(CONCATENATE($AD$22,AL96,"5",RIGHT($AM$90,1),"L"),'A1'!$AN$3:$AO$51139,2,0) ->  | AN96: =VLOOKUP(CONCATENATE($AD$23,AL96,"5",RIGHT($AN$90,1),"L"),'A1'!$AN$3:$AO$51139,2,0) ->  | AO96: =VLOOKUP(CONCATENATE($AD$23,AL96,"5",RIGHT($AO$90,1),"L"),'A1'!$AN$3:$AO$51139,2,0) -> 
AK97: 7 | AL97: =IF(ISNA(VLOOKUP(AK97,CA!$A$11:$B$70,2,0)),"",VLOOKUP(AK97,CA!$A$11:$B$70,2,0)) ->  | AM97: =VLOOKUP(CONCATENATE($AD$22,AL97,"5",RIGHT($AM$90,1),"L"),'A1'!$AN$3:$AO$51139,2,0) ->  | AN97: =VLOOKUP(CONCATENATE($AD$23,AL97,"5",RIGHT($AN$90,1),"L"),'A1'!$AN$3:$AO$51139,2,0) ->  | AO97: =VLOOKUP(CONCATENATE($AD$23,AL97,"5",RIGHT($AO$90,1),"L"),'A1'!$AN$3:$AO$51139,2,0) -> 
AK98: 8 | AL98: =IF(ISNA(VLOOKUP(AK98,CA!$A$11:$B$70,2,0)),"",VLOOKUP(AK98,CA!$A$11:$B$70,2,0)) ->  | AM98: =VLOOKUP(CONCATENATE($AD$22,AL98,"5",RIGHT($AM$90,1),"L"),'A1'!$AN$3:$AO$51139,2,0) ->  | AN98: =VLOOKUP(CONCATENATE($AD$23,AL98,"5",RIGHT($AN$90,1),"L"),'A1'!$AN$3:$AO$51139,2,0) ->  | AO98: =VLOOKUP(CONCATENATE($AD$23,AL98,"5",RIGHT($AO$90,1),"L"),'A1'!$AN$3:$AO$51139,2,0) -> 
AK99: 9 | AL99: =IF(ISNA(VLOOKUP(AK99,CA!$A$11:$B$70,2,0)),"",VLOOKUP(AK99,CA!$A$11:$B$70,2,0)) ->  | AM99: =VLOOKUP(CONCATENATE($AD$22,AL99,"5",RIGHT($AM$90,1),"L"),'A1'!$AN$3:$AO$51139,2,0) ->  | AN99: =VLOOKUP(CONCATENATE($AD$23,AL99,"5",RIGHT($AN$90,1),"L"),'A1'!$AN$3:$AO$51139,2,0) ->  | AO99: =VLOOKUP(CONCATENATE($AD$23,AL99,"5",RIGHT($AO$90,1),"L"),'A1'!$AN$3:$AO$51139,2,0) -> 
AK100: 10 | AL100: =IF(ISNA(VLOOKUP(AK100,CA!$A$11:$B$70,2,0)),"",VLOOKUP(AK100,CA!$A$11:$B$70,2,0)) ->  | AM100: =VLOOKUP(CONCATENATE($AD$22,AL100,"5",RIGHT($AM$90,1),"L"),'A1'!$AN$3:$AO$51139,2,0) ->  | AN100: =VLOOKUP(CONCATENATE($AD$23,AL100,"5",RIGHT($AN$90,1),"L"),'A1'!$AN$3:$AO$51139,2,0) ->  | AO100: =VLOOKUP(CONCATENATE($AD$23,AL100,"5",RIGHT($AO$90,1),"L"),'A1'!$AN$3:$AO$51139,2,0) -> 
AK101: 11 | AL101: =IF(ISNA(VLOOKUP(AK101,CA!$A$11:$B$70,2,0)),"",VLOOKUP(AK101,CA!$A$11:$B$70,2,0)) ->  | AM101: =VLOOKUP(CONCATENATE($AD$22,AL101,"5",RIGHT($AM$90,1),"L"),'A1'!$AN$3:$AO$51139,2,0) ->  | AN101: =VLOOKUP(CONCATENATE($AD$23,AL101,"5",RIGHT($AN$90,1),"L"),'A1'!$AN$3:$AO$51139,2,0) ->  | AO101: =VLOOKUP(CONCATENATE($AD$23,AL101,"5",RIGHT($AO$90,1),"L"),'A1'!$AN$3:$AO$51139,2,0) -> 
AK102: 12 | AL102: =IF(ISNA(VLOOKUP(AK102,CA!$A$11:$B$70,2,0)),"",VLOOKUP(AK102,CA!$A$11:$B$70,2,0)) ->  | AM102: =VLOOKUP(CONCATENATE($AD$22,AL102,"5",RIGHT($AM$90,1),"L"),'A1'!$AN$3:$AO$51139,2,0) ->  | AN102: =VLOOKUP(CONCATENATE($AD$23,AL102,"5",RIGHT($AN$90,1),"L"),'A1'!$AN$3:$AO$51139,2,0) ->  | AO102: =VLOOKUP(CONCATENATE($AD$23,AL102,"5",RIGHT($AO$90,1),"L"),'A1'!$AN$3:$AO$51139,2,0) -> 
AK103: 13 | AL103: =IF(ISNA(VLOOKUP(AK103,CA!$A$11:$B$70,2,0)),"",VLOOKUP(AK103,CA!$A$11:$B$70,2,0)) ->  | AM103: =VLOOKUP(CONCATENATE($AD$22,AL103,"5",RIGHT($AM$90,1),"L"),'A1'!$AN$3:$AO$51139,2,0) ->  | AN103: =VLOOKUP(CONCATENATE($AD$23,AL103,"5",RIGHT($AN$90,1),"L"),'A1'!$AN$3:$AO$51139,2,0) ->  | AO103: =VLOOKUP(CONCATENATE($AD$23,AL103,"5",RIGHT($AO$90,1),"L"),'A1'!$AN$3:$AO$51139,2,0) -> 
AK104: 14 | AL104: =IF(ISNA(VLOOKUP(AK104,CA!$A$11:$B$70,2,0)),"",VLOOKUP(AK104,CA!$A$11:$B$70,2,0)) ->  | AM104: =VLOOKUP(CONCATENATE($AD$22,AL104,"5",RIGHT($AM$90,1),"L"),'A1'!$AN$3:$AO$51139,2,0) ->  | AN104: =VLOOKUP(CONCATENATE($AD$23,AL104,"5",RIGHT($AN$90,1),"L"),'A1'!$AN$3:$AO$51139,2,0) ->  | AO104: =VLOOKUP(CONCATENATE($AD$23,AL104,"5",RIGHT($AO$90,1),"L"),'A1'!$AN$3:$AO$51139,2,0) -> 
AK105: 15 | AL105: =IF(ISNA(VLOOKUP(AK105,CA!$A$11:$B$70,2,0)),"",VLOOKUP(AK105,CA!$A$11:$B$70,2,0)) ->  | AM105: =VLOOKUP(CONCATENATE($AD$22,AL105,"5",RIGHT($AM$90,1),"L"),'A1'!$AN$3:$AO$51139,2,0) ->  | AN105: =VLOOKUP(CONCATENATE($AD$23,AL105,"5",RIGHT($AN$90,1),"L"),'A1'!$AN$3:$AO$51139,2,0) ->  | AO105: =VLOOKUP(CONCATENATE($AD$23,AL105,"5",RIGHT($AO$90,1),"L"),'A1'!$AN$3:$AO$51139,2,0) -> 
AK106: 16 | AL106: =IF(ISNA(VLOOKUP(AK106,CA!$A$11:$B$70,2,0)),"",VLOOKUP(AK106,CA!$A$11:$B$70,2,0)) ->  | AM106: =VLOOKUP(CONCATENATE($AD$22,AL106,"5",RIGHT($AM$90,1),"L"),'A1'!$AN$3:$AO$51139,2,0) ->  | AN106: =VLOOKUP(CONCATENATE($AD$23,AL106,"5",RIGHT($AN$90,1),"L"),'A1'!$AN$3:$AO$51139,2,0) ->  | AO106: =VLOOKUP(CONCATENATE($AD$23,AL106,"5",RIGHT($AO$90,1),"L"),'A1'!$AN$3:$AO$51139,2,0) -> 
AK107: 17 | AL107: =IF(ISNA(VLOOKUP(AK107,CA!$A$11:$B$70,2,0)),"",VLOOKUP(AK107,CA!$A$11:$B$70,2,0)) ->  | AM107: =VLOOKUP(CONCATENATE($AD$22,AL107,"5",RIGHT($AM$90,1),"L"),'A1'!$AN$3:$AO$51139,2,0) ->  | AN107: =VLOOKUP(CONCATENATE($AD$23,AL107,"5",RIGHT($AN$90,1),"L"),'A1'!$AN$3:$AO$51139,2,0) ->  | AO107: =VLOOKUP(CONCATENATE($AD$23,AL107,"5",RIGHT($AO$90,1),"L"),'A1'!$AN$3:$AO$51139,2,0) -> 
AK108: 18 | AL108: =IF(ISNA(VLOOKUP(AK108,CA!$A$11:$B$70,2,0)),"",VLOOKUP(AK108,CA!$A$11:$B$70,2,0)) ->  | AM108: =VLOOKUP(CONCATENATE($AD$22,AL108,"5",RIGHT($AM$90,1),"L"),'A1'!$AN$3:$AO$51139,2,0) ->  | AN108: =VLOOKUP(CONCATENATE($AD$23,AL108,"5",RIGHT($AN$90,1),"L"),'A1'!$AN$3:$AO$51139,2,0) ->  | AO108: =VLOOKUP(CONCATENATE($AD$23,AL108,"5",RIGHT($AO$90,1),"L"),'A1'!$AN$3:$AO$51139,2,0) -> 
AK109: 19 | AL109: =IF(ISNA(VLOOKUP(AK109,CA!$A$11:$B$70,2,0)),"",VLOOKUP(AK109,CA!$A$11:$B$70,2,0)) ->  | AM109: =VLOOKUP(CONCATENATE($AD$22,AL109,"5",RIGHT($AM$90,1),"L"),'A1'!$AN$3:$AO$51139,2,0) ->  | AN109: =VLOOKUP(CONCATENATE($AD$23,AL109,"5",RIGHT($AN$90,1),"L"),'A1'!$AN$3:$AO$51139,2,0) ->  | AO109: =VLOOKUP(CONCATENATE($AD$23,AL109,"5",RIGHT($AO$90,1),"L"),'A1'!$AN$3:$AO$51139,2,0) -> 
AK110: 20 | AL110: =IF(ISNA(VLOOKUP(AK110,CA!$A$11:$B$70,2,0)),"",VLOOKUP(AK110,CA!$A$11:$B$70,2,0)) ->  | AM110: =VLOOKUP(CONCATENATE($AD$22,AL110,"5",RIGHT($AM$90,1),"L"),'A1'!$AN$3:$AO$51139,2,0) ->  | AN110: =VLOOKUP(CONCATENATE($AD$23,AL110,"5",RIGHT($AN$90,1),"L"),'A1'!$AN$3:$AO$51139,2,0) ->  | AO110: =VLOOKUP(CONCATENATE($AD$23,AL110,"5",RIGHT($AO$90,1),"L"),'A1'!$AN$3:$AO$51139,2,0) -> 
AM112: =+B67 -> U1 | AN112: =+C67 -> U2 | AO112: =+D82 -> U3 | AP112: =+E67 -> U4
AK113: 1 | AL113: =IF(ISNA(VLOOKUP(AK113,CA!$A$11:$B$70,2,0)),"",VLOOKUP(AK113,CA!$A$11:$B$70,2,0)) -> 1103 | AM113: =IF(ISERROR(VLOOKUP(CONCATENATE($AL113,AM$112),RUM!$X$15:$Y$203,2,0)),0,VLOOKUP(CONCATENATE($AL113,AM$112),RUM!$X$15:$Y$203,2,0)) -> 0 | AN113: =IF(ISERROR(VLOOKUP(CONCATENATE($AL113,AN$112),RUM!$X$15:$Y$203,2,0)),0,VLOOKUP(CONCATENATE($AL113,AN$112),RUM!$X$15:$Y$203,2,0)) -> 0 | AO113: =IF(ISERROR(VLOOKUP(CONCATENATE($AL113,AO$112),RUM!$X$15:$Y$203,2,0)),0,VLOOKUP(CONCATENATE($AL113,AO$112),RUM!$X$15:$Y$203,2,0)) -> 0 | AP113: =IF(ISERROR(VLOOKUP(CONCATENATE($AL113,AP$112),RUM!$X$15:$Y$203,2,0)),0,VLOOKUP(CONCATENATE($AL113,AP$112),RUM!$X$15:$Y$203,2,0)) -> 0
AK114: 2 | AL114: =IF(ISNA(VLOOKUP(AK114,CA!$A$11:$B$70,2,0)),"",VLOOKUP(AK114,CA!$A$11:$B$70,2,0)) ->  | AM114: =IF(ISERROR(VLOOKUP(CONCATENATE($AL114,AM$112),RUM!$X$15:$Y$203,2,0)),0,VLOOKUP(CONCATENATE($AL114,AM$112),RUM!$X$15:$Y$203,2,0)) -> 0 | AN114: =IF(ISERROR(VLOOKUP(CONCATENATE($AL114,AN$112),RUM!$X$15:$Y$203,2,0)),0,VLOOKUP(CONCATENATE($AL114,AN$112),RUM!$X$15:$Y$203,2,0)) -> 0 | AO114: =IF(ISERROR(VLOOKUP(CONCATENATE($AL114,AO$112),RUM!$X$15:$Y$203,2,0)),0,VLOOKUP(CONCATENATE($AL114,AO$112),RUM!$X$15:$Y$203,2,0)) -> 0 | AP114: =IF(ISERROR(VLOOKUP(CONCATENATE($AL114,AP$112),RUM!$X$15:$Y$203,2,0)),0,VLOOKUP(CONCATENATE($AL114,AP$112),RUM!$X$15:$Y$203,2,0)) -> 0
AK115: 3 | AL115: =IF(ISNA(VLOOKUP(AK115,CA!$A$11:$B$70,2,0)),"",VLOOKUP(AK115,CA!$A$11:$B$70,2,0)) ->  | AM115: =IF(ISERROR(VLOOKUP(CONCATENATE($AL115,AM$112),RUM!$X$15:$Y$203,2,0)),0,VLOOKUP(CONCATENATE($AL115,AM$112),RUM!$X$15:$Y$203,2,0)) -> 0 | AN115: =IF(ISERROR(VLOOKUP(CONCATENATE($AL115,AN$112),RUM!$X$15:$Y$203,2,0)),0,VLOOKUP(CONCATENATE($AL115,AN$112),RUM!$X$15:$Y$203,2,0)) -> 0 | AO115: =IF(ISERROR(VLOOKUP(CONCATENATE($AL115,AO$112),RUM!$X$15:$Y$203,2,0)),0,VLOOKUP(CONCATENATE($AL115,AO$112),RUM!$X$15:$Y$203,2,0)) -> 0 | AP115: =IF(ISERROR(VLOOKUP(CONCATENATE($AL115,AP$112),RUM!$X$15:$Y$203,2,0)),0,VLOOKUP(CONCATENATE($AL115,AP$112),RUM!$X$15:$Y$203,2,0)) -> 0
AK116: 4 | AL116: =IF(ISNA(VLOOKUP(AK116,CA!$A$11:$B$70,2,0)),"",VLOOKUP(AK116,CA!$A$11:$B$70,2,0)) ->  | AM116: =IF(ISERROR(VLOOKUP(CONCATENATE($AL116,AM$112),RUM!$X$15:$Y$203,2,0)),0,VLOOKUP(CONCATENATE($AL116,AM$112),RUM!$X$15:$Y$203,2,0)) -> 0 | AN116: =IF(ISERROR(VLOOKUP(CONCATENATE($AL116,AN$112),RUM!$X$15:$Y$203,2,0)),0,VLOOKUP(CONCATENATE($AL116,AN$112),RUM!$X$15:$Y$203,2,0)) -> 0 | AO116: =IF(ISERROR(VLOOKUP(CONCATENATE($AL116,AO$112),RUM!$X$15:$Y$203,2,0)),0,VLOOKUP(CONCATENATE($AL116,AO$112),RUM!$X$15:$Y$203,2,0)) -> 0 | AP116: =IF(ISERROR(VLOOKUP(CONCATENATE($AL116,AP$112),RUM!$X$15:$Y$203,2,0)),0,VLOOKUP(CONCATENATE($AL116,AP$112),RUM!$X$15:$Y$203,2,0)) -> 0
AK117: 5 | AL117: =IF(ISNA(VLOOKUP(AK117,CA!$A$11:$B$70,2,0)),"",VLOOKUP(AK117,CA!$A$11:$B$70,2,0)) ->  | AM117: =IF(ISERROR(VLOOKUP(CONCATENATE($AL117,AM$112),RUM!$X$15:$Y$203,2,0)),0,VLOOKUP(CONCATENATE($AL117,AM$112),RUM!$X$15:$Y$203,2,0)) -> 0 | AN117: =IF(ISERROR(VLOOKUP(CONCATENATE($AL117,AN$112),RUM!$X$15:$Y$203,2,0)),0,VLOOKUP(CONCATENATE($AL117,AN$112),RUM!$X$15:$Y$203,2,0)) -> 0 | AO117: =IF(ISERROR(VLOOKUP(CONCATENATE($AL117,AO$112),RUM!$X$15:$Y$203,2,0)),0,VLOOKUP(CONCATENATE($AL117,AO$112),RUM!$X$15:$Y$203,2,0)) -> 0 | AP117: =IF(ISERROR(VLOOKUP(CONCATENATE($AL117,AP$112),RUM!$X$15:$Y$203,2,0)),0,VLOOKUP(CONCATENATE($AL117,AP$112),RUM!$X$15:$Y$203,2,0)) -> 0
AK118: 6 | AL118: =IF(ISNA(VLOOKUP(AK118,CA!$A$11:$B$70,2,0)),"",VLOOKUP(AK118,CA!$A$11:$B$70,2,0)) ->  | AM118: =IF(ISERROR(VLOOKUP(CONCATENATE($AL118,AM$112),RUM!$X$15:$Y$203,2,0)),0,VLOOKUP(CONCATENATE($AL118,AM$112),RUM!$X$15:$Y$203,2,0)) -> 0 | AN118: =IF(ISERROR(VLOOKUP(CONCATENATE($AL118,AN$112),RUM!$X$15:$Y$203,2,0)),0,VLOOKUP(CONCATENATE($AL118,AN$112),RUM!$X$15:$Y$203,2,0)) -> 0 | AO118: =IF(ISERROR(VLOOKUP(CONCATENATE($AL118,AO$112),RUM!$X$15:$Y$203,2,0)),0,VLOOKUP(CONCATENATE($AL118,AO$112),RUM!$X$15:$Y$203,2,0)) -> 0 | AP118: =IF(ISERROR(VLOOKUP(CONCATENATE($AL118,AP$112),RUM!$X$15:$Y$203,2,0)),0,VLOOKUP(CONCATENATE($AL118,AP$112),RUM!$X$15:$Y$203,2,0)) -> 0
AK119: 7 | AL119: =IF(ISNA(VLOOKUP(AK119,CA!$A$11:$B$70,2,0)),"",VLOOKUP(AK119,CA!$A$11:$B$70,2,0)) ->  | AM119: =IF(ISERROR(VLOOKUP(CONCATENATE($AL119,AM$112),RUM!$X$15:$Y$203,2,0)),0,VLOOKUP(CONCATENATE($AL119,AM$112),RUM!$X$15:$Y$203,2,0)) -> 0 | AN119: =IF(ISERROR(VLOOKUP(CONCATENATE($AL119,AN$112),RUM!$X$15:$Y$203,2,0)),0,VLOOKUP(CONCATENATE($AL119,AN$112),RUM!$X$15:$Y$203,2,0)) -> 0 | AO119: =IF(ISERROR(VLOOKUP(CONCATENATE($AL119,AO$112),RUM!$X$15:$Y$203,2,0)),0,VLOOKUP(CONCATENATE($AL119,AO$112),RUM!$X$15:$Y$203,2,0)) -> 0 | AP119: =IF(ISERROR(VLOOKUP(CONCATENATE($AL119,AP$112),RUM!$X$15:$Y$203,2,0)),0,VLOOKUP(CONCATENATE($AL119,AP$112),RUM!$X$15:$Y$203,2,0)) -> 0
AK120: 8 | AL120: =IF(ISNA(VLOOKUP(AK120,CA!$A$11:$B$70,2,0)),"",VLOOKUP(AK120,CA!$A$11:$B$70,2,0)) ->  | AM120: =IF(ISERROR(VLOOKUP(CONCATENATE($AL120,AM$112),RUM!$X$15:$Y$203,2,0)),0,VLOOKUP(CONCATENATE($AL120,AM$112),RUM!$X$15:$Y$203,2,0)) -> 0 | AN120: =IF(ISERROR(VLOOKUP(CONCATENATE($AL120,AN$112),RUM!$X$15:$Y$203,2,0)),0,VLOOKUP(CONCATENATE($AL120,AN$112),RUM!$X$15:$Y$203,2,0)) -> 0 | AO120: =IF(ISERROR(VLOOKUP(CONCATENATE($AL120,AO$112),RUM!$X$15:$Y$203,2,0)),0,VLOOKUP(CONCATENATE($AL120,AO$112),RUM!$X$15:$Y$203,2,0)) -> 0 | AP120: =IF(ISERROR(VLOOKUP(CONCATENATE($AL120,AP$112),RUM!$X$15:$Y$203,2,0)),0,VLOOKUP(CONCATENATE($AL120,AP$112),RUM!$X$15:$Y$203,2,0)) -> 0
AK121: 9 | AL121: =IF(ISNA(VLOOKUP(AK121,CA!$A$11:$B$70,2,0)),"",VLOOKUP(AK121,CA!$A$11:$B$70,2,0)) ->  | AM121: =IF(ISERROR(VLOOKUP(CONCATENATE($AL121,AM$112),RUM!$X$15:$Y$203,2,0)),0,VLOOKUP(CONCATENATE($AL121,AM$112),RUM!$X$15:$Y$203,2,0)) -> 0 | AN121: =IF(ISERROR(VLOOKUP(CONCATENATE($AL121,AN$112),RUM!$X$15:$Y$203,2,0)),0,VLOOKUP(CONCATENATE($AL121,AN$112),RUM!$X$15:$Y$203,2,0)) -> 0 | AO121: =IF(ISERROR(VLOOKUP(CONCATENATE($AL121,AO$112),RUM!$X$15:$Y$203,2,0)),0,VLOOKUP(CONCATENATE($AL121,AO$112),RUM!$X$15:$Y$203,2,0)) -> 0 | AP121: =IF(ISERROR(VLOOKUP(CONCATENATE($AL121,AP$112),RUM!$X$15:$Y$203,2,0)),0,VLOOKUP(CONCATENATE($AL121,AP$112),RUM!$X$15:$Y$203,2,0)) -> 0
AK122: 10 | AL122: =IF(ISNA(VLOOKUP(AK122,CA!$A$11:$B$70,2,0)),"",VLOOKUP(AK122,CA!$A$11:$B$70,2,0)) ->  | AM122: =IF(ISERROR(VLOOKUP(CONCATENATE($AL122,AM$112),RUM!$X$15:$Y$203,2,0)),0,VLOOKUP(CONCATENATE($AL122,AM$112),RUM!$X$15:$Y$203,2,0)) -> 0 | AN122: =IF(ISERROR(VLOOKUP(CONCATENATE($AL122,AN$112),RUM!$X$15:$Y$203,2,0)),0,VLOOKUP(CONCATENATE($AL122,AN$112),RUM!$X$15:$Y$203,2,0)) -> 0 | AO122: =IF(ISERROR(VLOOKUP(CONCATENATE($AL122,AO$112),RUM!$X$15:$Y$203,2,0)),0,VLOOKUP(CONCATENATE($AL122,AO$112),RUM!$X$15:$Y$203,2,0)) -> 0 | AP122: =IF(ISERROR(VLOOKUP(CONCATENATE($AL122,AP$112),RUM!$X$15:$Y$203,2,0)),0,VLOOKUP(CONCATENATE($AL122,AP$112),RUM!$X$15:$Y$203,2,0)) -> 0
AK123: 11 | AL123: =IF(ISNA(VLOOKUP(AK123,CA!$A$11:$B$70,2,0)),"",VLOOKUP(AK123,CA!$A$11:$B$70,2,0)) ->  | AM123: =IF(ISERROR(VLOOKUP(CONCATENATE($AL123,AM$112),RUM!$X$15:$Y$203,2,0)),0,VLOOKUP(CONCATENATE($AL123,AM$112),RUM!$X$15:$Y$203,2,0)) -> 0 | AN123: =IF(ISERROR(VLOOKUP(CONCATENATE($AL123,AN$112),RUM!$X$15:$Y$203,2,0)),0,VLOOKUP(CONCATENATE($AL123,AN$112),RUM!$X$15:$Y$203,2,0)) -> 0 | AO123: =IF(ISERROR(VLOOKUP(CONCATENATE($AL123,AO$112),RUM!$X$15:$Y$203,2,0)),0,VLOOKUP(CONCATENATE($AL123,AO$112),RUM!$X$15:$Y$203,2,0)) -> 0 | AP123: =IF(ISERROR(VLOOKUP(CONCATENATE($AL123,AP$112),RUM!$X$15:$Y$203,2,0)),0,VLOOKUP(CONCATENATE($AL123,AP$112),RUM!$X$15:$Y$203,2,0)) -> 0
AK124: 12 | AL124: =IF(ISNA(VLOOKUP(AK124,CA!$A$11:$B$70,2,0)),"",VLOOKUP(AK124,CA!$A$11:$B$70,2,0)) ->  | AM124: =IF(ISERROR(VLOOKUP(CONCATENATE($AL124,AM$112),RUM!$X$15:$Y$203,2,0)),0,VLOOKUP(CONCATENATE($AL124,AM$112),RUM!$X$15:$Y$203,2,0)) -> 0 | AN124: =IF(ISERROR(VLOOKUP(CONCATENATE($AL124,AN$112),RUM!$X$15:$Y$203,2,0)),0,VLOOKUP(CONCATENATE($AL124,AN$112),RUM!$X$15:$Y$203,2,0)) -> 0 | AO124: =IF(ISERROR(VLOOKUP(CONCATENATE($AL124,AO$112),RUM!$X$15:$Y$203,2,0)),0,VLOOKUP(CONCATENATE($AL124,AO$112),RUM!$X$15:$Y$203,2,0)) -> 0 | AP124: =IF(ISERROR(VLOOKUP(CONCATENATE($AL124,AP$112),RUM!$X$15:$Y$203,2,0)),0,VLOOKUP(CONCATENATE($AL124,AP$112),RUM!$X$15:$Y$203,2,0)) -> 0
AK125: 13 | AL125: =IF(ISNA(VLOOKUP(AK125,CA!$A$11:$B$70,2,0)),"",VLOOKUP(AK125,CA!$A$11:$B$70,2,0)) ->  | AM125: =IF(ISERROR(VLOOKUP(CONCATENATE($AL125,AM$112),RUM!$X$15:$Y$203,2,0)),0,VLOOKUP(CONCATENATE($AL125,AM$112),RUM!$X$15:$Y$203,2,0)) -> 0 | AN125: =IF(ISERROR(VLOOKUP(CONCATENATE($AL125,AN$112),RUM!$X$15:$Y$203,2,0)),0,VLOOKUP(CONCATENATE($AL125,AN$112),RUM!$X$15:$Y$203,2,0)) -> 0 | AO125: =IF(ISERROR(VLOOKUP(CONCATENATE($AL125,AO$112),RUM!$X$15:$Y$203,2,0)),0,VLOOKUP(CONCATENATE($AL125,AO$112),RUM!$X$15:$Y$203,2,0)) -> 0 | AP125: =IF(ISERROR(VLOOKUP(CONCATENATE($AL125,AP$112),RUM!$X$15:$Y$203,2,0)),0,VLOOKUP(CONCATENATE($AL125,AP$112),RUM!$X$15:$Y$203,2,0)) -> 0
AK126: 14 | AL126: =IF(ISNA(VLOOKUP(AK126,CA!$A$11:$B$70,2,0)),"",VLOOKUP(AK126,CA!$A$11:$B$70,2,0)) ->  | AM126: =IF(ISERROR(VLOOKUP(CONCATENATE($AL126,AM$112),RUM!$X$15:$Y$203,2,0)),0,VLOOKUP(CONCATENATE($AL126,AM$112),RUM!$X$15:$Y$203,2,0)) -> 0 | AN126: =IF(ISERROR(VLOOKUP(CONCATENATE($AL126,AN$112),RUM!$X$15:$Y$203,2,0)),0,VLOOKUP(CONCATENATE($AL126,AN$112),RUM!$X$15:$Y$203,2,0)) -> 0 | AO126: =IF(ISERROR(VLOOKUP(CONCATENATE($AL126,AO$112),RUM!$X$15:$Y$203,2,0)),0,VLOOKUP(CONCATENATE($AL126,AO$112),RUM!$X$15:$Y$203,2,0)) -> 0 | AP126: =IF(ISERROR(VLOOKUP(CONCATENATE($AL126,AP$112),RUM!$X$15:$Y$203,2,0)),0,VLOOKUP(CONCATENATE($AL126,AP$112),RUM!$X$15:$Y$203,2,0)) -> 0
AK127: 15 | AL127: =IF(ISNA(VLOOKUP(AK127,CA!$A$11:$B$70,2,0)),"",VLOOKUP(AK127,CA!$A$11:$B$70,2,0)) ->  | AM127: =IF(ISERROR(VLOOKUP(CONCATENATE($AL127,AM$112),RUM!$X$15:$Y$203,2,0)),0,VLOOKUP(CONCATENATE($AL127,AM$112),RUM!$X$15:$Y$203,2,0)) -> 0 | AN127: =IF(ISERROR(VLOOKUP(CONCATENATE($AL127,AN$112),RUM!$X$15:$Y$203,2,0)),0,VLOOKUP(CONCATENATE($AL127,AN$112),RUM!$X$15:$Y$203,2,0)) -> 0 | AO127: =IF(ISERROR(VLOOKUP(CONCATENATE($AL127,AO$112),RUM!$X$15:$Y$203,2,0)),0,VLOOKUP(CONCATENATE($AL127,AO$112),RUM!$X$15:$Y$203,2,0)) -> 0 | AP127: =IF(ISERROR(VLOOKUP(CONCATENATE($AL127,AP$112),RUM!$X$15:$Y$203,2,0)),0,VLOOKUP(CONCATENATE($AL127,AP$112),RUM!$X$15:$Y$203,2,0)) -> 0
AK128: 16 | AL128: =IF(ISNA(VLOOKUP(AK128,CA!$A$11:$B$70,2,0)),"",VLOOKUP(AK128,CA!$A$11:$B$70,2,0)) ->  | AM128: =IF(ISERROR(VLOOKUP(CONCATENATE($AL128,AM$112),RUM!$X$15:$Y$203,2,0)),0,VLOOKUP(CONCATENATE($AL128,AM$112),RUM!$X$15:$Y$203,2,0)) -> 0 | AN128: =IF(ISERROR(VLOOKUP(CONCATENATE($AL128,AN$112),RUM!$X$15:$Y$203,2,0)),0,VLOOKUP(CONCATENATE($AL128,AN$112),RUM!$X$15:$Y$203,2,0)) -> 0 | AO128: =IF(ISERROR(VLOOKUP(CONCATENATE($AL128,AO$112),RUM!$X$15:$Y$203,2,0)),0,VLOOKUP(CONCATENATE($AL128,AO$112),RUM!$X$15:$Y$203,2,0)) -> 0 | AP128: =IF(ISERROR(VLOOKUP(CONCATENATE($AL128,AP$112),RUM!$X$15:$Y$203,2,0)),0,VLOOKUP(CONCATENATE($AL128,AP$112),RUM!$X$15:$Y$203,2,0)) -> 0
AK129: 17 | AL129: =IF(ISNA(VLOOKUP(AK129,CA!$A$11:$B$70,2,0)),"",VLOOKUP(AK129,CA!$A$11:$B$70,2,0)) ->  | AM129: =IF(ISERROR(VLOOKUP(CONCATENATE($AL129,AM$112),RUM!$X$15:$Y$203,2,0)),0,VLOOKUP(CONCATENATE($AL129,AM$112),RUM!$X$15:$Y$203,2,0)) -> 0 | AN129: =IF(ISERROR(VLOOKUP(CONCATENATE($AL129,AN$112),RUM!$X$15:$Y$203,2,0)),0,VLOOKUP(CONCATENATE($AL129,AN$112),RUM!$X$15:$Y$203,2,0)) -> 0 | AO129: =IF(ISERROR(VLOOKUP(CONCATENATE($AL129,AO$112),RUM!$X$15:$Y$203,2,0)),0,VLOOKUP(CONCATENATE($AL129,AO$112),RUM!$X$15:$Y$203,2,0)) -> 0 | AP129: =IF(ISERROR(VLOOKUP(CONCATENATE($AL129,AP$112),RUM!$X$15:$Y$203,2,0)),0,VLOOKUP(CONCATENATE($AL129,AP$112),RUM!$X$15:$Y$203,2,0)) -> 0
AK130: 18 | AL130: =IF(ISNA(VLOOKUP(AK130,CA!$A$11:$B$70,2,0)),"",VLOOKUP(AK130,CA!$A$11:$B$70,2,0)) ->  | AM130: =IF(ISERROR(VLOOKUP(CONCATENATE($AL130,AM$112),RUM!$X$15:$Y$203,2,0)),0,VLOOKUP(CONCATENATE($AL130,AM$112),RUM!$X$15:$Y$203,2,0)) -> 0 | AN130: =IF(ISERROR(VLOOKUP(CONCATENATE($AL130,AN$112),RUM!$X$15:$Y$203,2,0)),0,VLOOKUP(CONCATENATE($AL130,AN$112),RUM!$X$15:$Y$203,2,0)) -> 0 | AO130: =IF(ISERROR(VLOOKUP(CONCATENATE($AL130,AO$112),RUM!$X$15:$Y$203,2,0)),0,VLOOKUP(CONCATENATE($AL130,AO$112),RUM!$X$15:$Y$203,2,0)) -> 0 | AP130: =IF(ISERROR(VLOOKUP(CONCATENATE($AL130,AP$112),RUM!$X$15:$Y$203,2,0)),0,VLOOKUP(CONCATENATE($AL130,AP$112),RUM!$X$15:$Y$203,2,0)) -> 0
AK131: 19 | AL131: =IF(ISNA(VLOOKUP(AK131,CA!$A$11:$B$70,2,0)),"",VLOOKUP(AK131,CA!$A$11:$B$70,2,0)) ->  | AM131: =IF(ISERROR(VLOOKUP(CONCATENATE($AL131,AM$112),RUM!$X$15:$Y$203,2,0)),0,VLOOKUP(CONCATENATE($AL131,AM$112),RUM!$X$15:$Y$203,2,0)) -> 0 | AN131: =IF(ISERROR(VLOOKUP(CONCATENATE($AL131,AN$112),RUM!$X$15:$Y$203,2,0)),0,VLOOKUP(CONCATENATE($AL131,AN$112),RUM!$X$15:$Y$203,2,0)) -> 0 | AO131: =IF(ISERROR(VLOOKUP(CONCATENATE($AL131,AO$112),RUM!$X$15:$Y$203,2,0)),0,VLOOKUP(CONCATENATE($AL131,AO$112),RUM!$X$15:$Y$203,2,0)) -> 0 | AP131: =IF(ISERROR(VLOOKUP(CONCATENATE($AL131,AP$112),RUM!$X$15:$Y$203,2,0)),0,VLOOKUP(CONCATENATE($AL131,AP$112),RUM!$X$15:$Y$203,2,0)) -> 0
AK132: 20 | AL132: =IF(ISNA(VLOOKUP(AK132,CA!$A$11:$B$70,2,0)),"",VLOOKUP(AK132,CA!$A$11:$B$70,2,0)) ->  | AM132: =IF(ISERROR(VLOOKUP(CONCATENATE($AL132,AM$112),RUM!$X$15:$Y$203,2,0)),0,VLOOKUP(CONCATENATE($AL132,AM$112),RUM!$X$15:$Y$203,2,0)) -> 0 | AN132: =IF(ISERROR(VLOOKUP(CONCATENATE($AL132,AN$112),RUM!$X$15:$Y$203,2,0)),0,VLOOKUP(CONCATENATE($AL132,AN$112),RUM!$X$15:$Y$203,2,0)) -> 0 | AO132: =IF(ISERROR(VLOOKUP(CONCATENATE($AL132,AO$112),RUM!$X$15:$Y$203,2,0)),0,VLOOKUP(CONCATENATE($AL132,AO$112),RUM!$X$15:$Y$203,2,0)) -> 0 | AP132: =IF(ISERROR(VLOOKUP(CONCATENATE($AL132,AP$112),RUM!$X$15:$Y$203,2,0)),0,VLOOKUP(CONCATENATE($AL132,AP$112),RUM!$X$15:$Y$203,2,0)) -> 0

Sheet CA
B1: PENGIRAAN SASARAN GRED PURATA BAGI SPM | BJ1: 3472 | BK1: Additional Mathematics | BL1: 3472
C2: NEGERI SEMBILAN | D2: 2020 | F2: =CONCATENATE("SASARAN ",'1'!A22) -> SASARAN 2021 | K2: BEZA | M2: % BEZA | W2: SPM | AI2: UNJURAN | AU2: SEMASA | BJ2: 4561 | BK2: Additional Science | BL2: 4561
D3: 4.5 | F3: 4.4 | K3: =+D3-F3 -> 0.1 | M3: =+K3/D3*100 -> 2.222222222 | W3: CALON | X3: A+ | Y3: A | Z3: A- | AA3: B+ | AB3: B | AC3: C+ | AD3: C | AE3: D | AF3: E | AG3: F | AI3: CALON | AJ3: A+ | AK3: A | AL3: A- | AM3: B+ | AN3: B | AO3: C+ | AP3: C | AQ3: D | AR3: E | AS3: F | AU3: TH | AV3: TH | BJ3: 7302 | BK3: Akuakultur dan Haiwan Rekreasi | BL3: 7302
BJ4: 8012 | BK4: AL-ADAB WA AL-BALAGHAH | BL4: 8012
B5: =+'1'!AD22 ->  | D5: =CONCATENATE(VLOOKUP(B5,'A2'!$C$2:$D$121,2,0), " - ",'1'!B7) ->  | W5: =+V10+1 -> 22 | X5: =+W5+1 -> 23 | Y5: =+X5+1 -> 24 | Z5: 25 | AA5: 26 | AB5: 27 | AC5: 28 | AD5: 29 | AE5: 30 | AF5: 31 | AG5: 32 | AH5: 33 | AI5: 34 | AJ5: 35 | AK5: 36 | AL5: 37 | AM5: 38 | AN5: 39 | AO5: 40 | AP5: 41 | AQ5: 42 | AR5: 43 | AS5: 44 | AT5: 45 | BJ5: 8013 | BK5: AL-LUGHAH AL-ARABIAH AL-MUASIRAH | BL5: 8013
D6: CALON | E6: A+ | F6: A | G6: A- | H6: B+ | I6: B | J6: C+ | K6: C | L6: D | M6: E | N6: F | O6: GRED PURATA | P6: =+F2 -> SASARAN 2021 | R6: BEZA CALON | S6: TIDAK HADIR | BJ6: 8014 | BK6: AL-MANHAJ AL-ULUM AL-ISLAMIYAH | BL6: 8014
B7: =+KE!BL1 -> U1 | D7: =+D11+D14+D17+D20+D23+D26+D29+D32+D35+D38+D41+D44+D47+D50+D53+D56+D59+D62+D65+D68+D71+D74+D77+D80+D83+D86+D89+D92+D97+D99+D101+D103+D105+D107+D109+D111+D113+D115 -> 0 | E7: =+E11+E14+E17+E20+E23+E26+E29+E32+E35+E38+E41+E44+E47+E50+E53+E56+E59+E62+E65+E68+E71+E74+E77+E80+E83+E86+E89+E92+E97+E99+E101+E103+E105+E107+E109+E111+E113+E115 -> 0 | F7: 0 | G7: 0 | H7: 0 | I7: 0 | J7: 0 | K7: 0 | L7: 0 | M7: 0 | N7: 0 | O7: =(+E7*0+F7*1+G7*2+H7*3+I7*4+J7*5+K7*6+L7*7+M7*8+N7*9)/SUM(E7:N7) ->  | P7: =IF(+O9*$S$9/100<0,0,+O9*$S$9/100) ->  | S7: =+S11+S14+S17+S20+S23+S26+S29+S32+S35+S38+S41+S44+S47+S50+S53+S56+S59+S62+S65+S68+S71+S74+S77+S80+S83+S86+S89+S92+#REF!+#REF!+S97+S99+S101+S103 ->  | T7: =IF(O7>P7,1,0) ->  | U7: =IF(O7<=O9,1,0) ->  | V7: =SUM(T7:U7) ->  | W7: =+D9 -> 0 | X7: =+E9 -> 0 | Y7: 0 | Z7: 0 | AA7: 0 | AB7: 0 | AC7: 0 | AD7: 0 | AE7: 0 | AF7: 0 | AG7: 0 | AI7: =+D8 -> 0 | AJ7: =+E8 -> 0 | AK7: 0 | AL7: 0 | AM7: 0 | AN7: 0 | AO7: 0 | AP7: 0 | AQ7: 0 | AR7: 0 | AS7: 0 | BJ7: 8015 | BK7: AL-SYARIAH | BL7: 8015
B8: =+F2 -> SASARAN 2021 | D8: =+D12+D15+D18+D21+D24+D27+D30+D33+D36+D39+D42+D45+D48+D51+D54+D57+D60+D63+D66+D69+D72+D75+D78+D81+D84+D87+D90+D93+D98+D100+D102+D104+D106+D108+D110+D112+D114+D116 -> 0 | E8: =+E12+E15+E18+E21+E24+E27+E30+E33+E36+E39+E42+E45+E48+E51+E54+E57+E60+E63+E66+E69+E72+E75+E78+E81+E84+E87+E90+E93+E98+E100+E102+E104+E106+E108+E110+E112+E114+E116 -> 0 | F8: 0 | G8: 0 | H8: 0 | I8: 0 | J8: 0 | K8: 0 | L8: 0 | M8: 0 | N8: 0 | O8: =(+E8*0+F8*1+G8*2+H8*3+I8*4+J8*5+K8*6+L8*7+M8*8+N8*9)/SUM(E8:N8) ->  | T8: =IF(O8>P7,1,0) ->  | U8: =IF(O8<=O9,1,0) ->  | V8: =SUM(T8:U8) ->  | BJ8: 4581 | BK8: Applied Science | BL8: 4581
B9: =CONCATENATE("SPM ",D2) -> SPM 2020 | D9: =+D13+D16+D19+D22+D25+D28+D31+D34+D37+D40+D43+D46+D49+D52+D55+D58+D61+D64+D67+D70+D73+D76+D79+D82+D85+D88+D91+D94 -> 0 | E9: =+E13+E16+E19+E22+E25+E28+E31+E34+E37+E40+E43+E46+E49+E52+E55+E58+E61+E64+E67+E70+E73+E76+E79+E82+E85+E88+E91+E94 -> 0 | F9: 0 | G9: 0 | H9: 0 | I9: 0 | J9: 0 | K9: 0 | L9: 0 | M9: 0 | N9: 0 | O9: =(+E9*0+F9*1+G9*2+H9*3+I9*4+J9*5+K9*6+L9*7+M9*8+N9*9)/SUM(E9:N9) ->  | S9: =100-M3 -> 97.77777778 | AX9: 2 | AY9: 3 | AZ9: 4 | BA9: 5 | BB9: 6 | BC9: 7 | BD9: 8 | BE9: 9 | BF9: 10 | BG9: 11 | BH9: 12 | BJ9: 3768 | BK9: Asas Kelestarian | BL9: 3768 | CD9: SUBJEK SPM | CG9: =+'1'!B3 -> 0
B10: 1 | C10: =+B10+1 -> 2 | D10: =+C10+1 -> 3 | E10: 4 | F10: 5 | G10: 6 | H10: 7 | I10: 8 | J10: 9 | K10: 10 | L10: 11 | M10: 12 | N10: 13 | O10: 14 | P10: 15 | Q10: 16 | R10: 17 | S10: 18 | T10: 19 | U10: 20 | V10: 21 | BJ10: 7205 | BK10: Asuhan dan Pendidikan Awal Kanak-Kanak | BL10: 7205 | CD10: =VLOOKUP(CC10,$A$11:$CC$124,3,0) ->  | CE10: =LEN(CD10) ->  | CF10: =VLOOKUP(CC10,'D1'!$G$5:$J$120,4,0) ->  | CG10: =VLOOKUP(CF10,'D1'!$T$2:$U$134,2,0) -> 
A11: 1 | B11: 1103 | C11: =VLOOKUP(B11,'A1'!$Y$2:$Z$102,2,0) -> Bahasa Melayu | D11: =SUM(E11:N11) -> 0 | E11: =IF(ISNA(VLOOKUP($B11,'D2'!$BR$460:$CG$491,4,0)),0,VLOOKUP($B11,'D2'!$BR$460:$CG$491,4,0)) -> 0 | F11: =IF(ISNA(VLOOKUP($B11,'D2'!$BR$460:$CG$491,5,0)),0,VLOOKUP($B11,'D2'!$BR$460:$CG$491,5,0)) -> 0 | G11: =IF(ISNA(VLOOKUP($B11,'D2'!$BR$460:$CG$491,6,0)),0,VLOOKUP($B11,'D2'!$BR$460:$CG$491,6,0)) -> 0 | H11: =IF(ISNA(VLOOKUP($B11,'D2'!$BR$460:$CG$491,7,0)),0,VLOOKUP($B11,'D2'!$BR$460:$CG$491,7,0)) -> 0 | I11: =IF(ISNA(VLOOKUP($B11,'D2'!$BR$460:$CG$491,8,0)),0,VLOOKUP($B11,'D2'!$BR$460:$CG$491,8,0)) -> 0 | J11: =IF(ISNA(VLOOKUP($B11,'D2'!$BR$460:$CG$491,9,0)),0,VLOOKUP($B11,'D2'!$BR$460:$CG$491,9,0)) -> 0 | K11: =IF(ISNA(VLOOKUP($B11,'D2'!$BR$460:$CG$491,10,0)),0,VLOOKUP($B11,'D2'!$BR$460:$CG$491,10,0)) -> 0 | L11: =IF(ISNA(VLOOKUP($B11,'D2'!$BR$460:$CG$491,11,0)),0,VLOOKUP($B11,'D2'!$BR$460:$CG$491,11,0)) -> 0 | M11: =IF(ISNA(VLOOKUP($B11,'D2'!$BR$460:$CG$491,12,0)),0,VLOOKUP($B11,'D2'!$BR$460:$CG$491,12,0)) -> 0 | N11: =IF(ISNA(VLOOKUP($B11,'D2'!$BR$460:$CG$491,13,0)),0,VLOOKUP($B11,'D2'!$BR$460:$CG$491,13,0)) -> 0 | O11: =(+E11*0+F11*1+G11*2+H11*3+I11*4+J11*5+K11*6+L11*7+M11*8+N11*9)/SUM(E11:N11) ->  | P11: =IF(+O13*$S$9/100<0,0,+O13*$S$9/100) ->  | Q11: =SUM(E11:N11) -> 0 | R11: =+Q11-D11+AU11 -> 0 | S11: =IF(ISNA(VLOOKUP($B11,'D2'!$BR$460:$CG$491,14,0)),0,VLOOKUP($B11,'D2'!$BR$460:$CG$491,14,0)) -> 0 | T11: =IF(O11>P11,1,0) ->  | U11: =IF(O11<=O13,1,0) ->  | V11: =SUM(T11:U11) ->  | W11: =+D13 -> 0 | X11: =+E13 -> 0 | Y11: 0 | Z11: 0 | AA11: 0 | AB11: 0 | AC11: 0 | AD11: 0 | AE11: 0 | AF11: 0 | AG11: 0 | AI11: =+D12 -> 0 | AJ11: =+E12 -> 0 | AK11: 0 | AL11: 0 | AM11: 0 | AN11: 0 | AO11: 0 | AP11: 0 | AQ11: 0 | AR11: 0 | AS11: 0 | AU11: =+D11-SUM(E11:N11) -> 0 | AV11: =SUM(E11:M11)/SUM(E11:N11)*100 ->  | AY11: A+ | AZ11: A | BA11: A- | BB11: B+ | BC11: B | BD11: C+ | BE11: C | BF11: D | BG11: E | BH11: F | BJ11: 2361 | BK11: Bahasa Arab | BL11: 2361 | BM11: =+A11 -> 1 | BN11: =+D12 -> 0 | BO11: =+E12 -> 0 | BP11: 0 | BQ11: 0 | BR11: 0 | BS11: 0 | BT11: 0 | BU11: 0 | BV11: 0 | BW11: 0 | BX11: 0 | BY11: =+B11 -> 1103 | CC11: 1 | CD11: Bahasa Melayu | CE11: =LEN(CD11) -> 13 | CF11: MT | CG11: Additional Mathematics | CH11: =VLOOKUP(CG11,$CD$11:$CE$40,2,0) ->  | CI11: =VLOOKUP(CD11,$CG$11:$CH$40,2,0) -> 13 | CK11: 1
O12: =(+E12*0+F12*1+G12*2+H12*3+I12*4+J12*5+K12*6+L12*7+M12*8+N12*9)/SUM(E12:N12) ->  | Q12: =SUM(E12:N12) -> 0 | R12: =+Q12-D12 -> 0 | T12: =IF(O12>P11,1,0) ->  | U12: =IF(O12<=O13,1,0) ->  | BJ12: 8009 | BK12: Bahasa Arab Tinggi | BL12: 8009 | CC12: 2 | CF12: BIMA | CG12: Bahasa Inggeris | CH12: =VLOOKUP(CG12,$CD$11:$CE$40,2,0) ->  | CI12: =VLOOKUP(CD12,$CG$11:$CH$40,2,0) -> 
D13: =IF(ISNA(VLOOKUP(CONCATENATE($B$5,$B11),'A1'!$D$2:$T$3311,5,0)),0,VLOOKUP(CONCATENATE($B$5,$B11),'A1'!$D$2:$T$3311,5,0)) -> 0 | E13: =IF(ISNA(VLOOKUP(CONCATENATE($B$5,$B11),'A1'!$D$2:$T$3311,6,0)),0,VLOOKUP(CONCATENATE($B$5,$B11),'A1'!$D$2:$T$3311,6,0)) -> 0 | F13: =IF(ISNA(VLOOKUP(CONCATENATE($B$5,$B11),'A1'!$D$2:$T$3311,7,0)),0,VLOOKUP(CONCATENATE($B$5,$B11),'A1'!$D$2:$T$3311,7,0)) -> 0 | G13: =IF(ISNA(VLOOKUP(CONCATENATE($B$5,$B11),'A1'!$D$2:$T$3311,8,0)),0,VLOOKUP(CONCATENATE($B$5,$B11),'A1'!$D$2:$T$3311,8,0)) -> 0 | H13: =IF(ISNA(VLOOKUP(CONCATENATE($B$5,$B11),'A1'!$D$2:$T$3311,9,0)),0,VLOOKUP(CONCATENATE($B$5,$B11),'A1'!$D$2:$T$3311,9,0)) -> 0 | I13: =IF(ISNA(VLOOKUP(CONCATENATE($B$5,$B11),'A1'!$D$2:$T$3311,10,0)),0,VLOOKUP(CONCATENATE($B$5,$B11),'A1'!$D$2:$T$3311,10,0)) -> 0 | J13: =IF(ISNA(VLOOKUP(CONCATENATE($B$5,$B11),'A1'!$D$2:$T$3311,11,0)),0,VLOOKUP(CONCATENATE($B$5,$B11),'A1'!$D$2:$T$3311,11,0)) -> 0 | K13: =IF(ISNA(VLOOKUP(CONCATENATE($B$5,$B11),'A1'!$D$2:$T$3311,12,0)),0,VLOOKUP(CONCATENATE($B$5,$B11),'A1'!$D$2:$T$3311,12,0)) -> 0 | L13: =IF(ISNA(VLOOKUP(CONCATENATE($B$5,$B11),'A1'!$D$2:$T$3311,13,0)),0,VLOOKUP(CONCATENATE($B$5,$B11),'A1'!$D$2:$T$3311,13,0)) -> 0 | M13: =IF(ISNA(VLOOKUP(CONCATENATE($B$5,$B11),'A1'!$D$2:$T$3311,14,0)),0,VLOOKUP(CONCATENATE($B$5,$B11),'A1'!$D$2:$T$3311,14,0)) -> 0 | N13: =IF(ISNA(VLOOKUP(CONCATENATE($B$5,$B11),'A1'!$D$2:$T$3311,15,0)),0,VLOOKUP(CONCATENATE($B$5,$B11),'A1'!$D$2:$T$3311,15,0)) -> 0 | O13: =(+E13*0+F13*1+G13*2+H13*3+I13*4+J13*5+K13*6+L13*7+M13*8+N13*9)/SUM(E13:N13) ->  | BJ13: 6351 | BK13: Bahasa Cina | BL13: 6351 | CC13: 3 | CF13: BMMA | CG13: Bahasa Melayu | CH13: 13
A14: =+A11+1 -> 2 | B14: =VLOOKUP(CK14,'A1'!$W$2:$Y$102,3,0) ->  | C14: =VLOOKUP(B14,'A1'!$Y$2:$Z$102,2,0) ->  | D14: =SUM(E14:N14) -> 0 | E14: =IF(ISNA(VLOOKUP($B14,'D2'!$BR$460:$CG$491,4,0)),0,VLOOKUP($B14,'D2'!$BR$460:$CG$491,4,0)) -> 0 | F14: =IF(ISNA(VLOOKUP($B14,'D2'!$BR$460:$CG$491,5,0)),0,VLOOKUP($B14,'D2'!$BR$460:$CG$491,5,0)) -> 0 | G14: =IF(ISNA(VLOOKUP($B14,'D2'!$BR$460:$CG$491,6,0)),0,VLOOKUP($B14,'D2'!$BR$460:$CG$491,6,0)) -> 0 | H14: =IF(ISNA(VLOOKUP($B14,'D2'!$BR$460:$CG$491,7,0)),0,VLOOKUP($B14,'D2'!$BR$460:$CG$491,7,0)) -> 0 | I14: =IF(ISNA(VLOOKUP($B14,'D2'!$BR$460:$CG$491,8,0)),0,VLOOKUP($B14,'D2'!$BR$460:$CG$491,8,0)) -> 0 | J14: =IF(ISNA(VLOOKUP($B14,'D2'!$BR$460:$CG$491,9,0)),0,VLOOKUP($B14,'D2'!$BR$460:$CG$491,9,0)) -> 0 | K14: =IF(ISNA(VLOOKUP($B14,'D2'!$BR$460:$CG$491,10,0)),0,VLOOKUP($B14,'D2'!$BR$460:$CG$491,10,0)) -> 0 | L14: =IF(ISNA(VLOOKUP($B14,'D2'!$BR$460:$CG$491,11,0)),0,VLOOKUP($B14,'D2'!$BR$460:$CG$491,11,0)) -> 0 | M14: =IF(ISNA(VLOOKUP($B14,'D2'!$BR$460:$CG$491,12,0)),0,VLOOKUP($B14,'D2'!$BR$460:$CG$491,12,0)) -> 0 | N14: =IF(ISNA(VLOOKUP($B14,'D2'!$BR$460:$CG$491,13,0)),0,VLOOKUP($B14,'D2'!$BR$460:$CG$491,13,0)) -> 0 | O14: =(+E14*0+F14*1+G14*2+H14*3+I14*4+J14*5+K14*6+L14*7+M14*8+N14*9)/SUM(E14:N14) ->  | P14: =IF(+O16*$S$9/100<0,0,+O16*$S$9/100) ->  | Q14: =SUM(E14:N14) -> 0 | R14: =+Q14-D14+AU14 -> 0 | S14: =IF(ISNA(VLOOKUP($B14,'D2'!$BR$460:$CG$491,14,0)),0,VLOOKUP($B14,'D2'!$BR$460:$CG$491,14,0)) -> 0 | T14: =IF(O14>P14,1,0) ->  | U14: =IF(O14<=O16,1,0) ->  | V14: =SUM(T14:U14) ->  | W14: =+D16 -> 0 | X14: =+E16 -> 0 | Y14: 0 | Z14: 0 | AA14: 0 | AB14: 0 | AC14: 0 | AD14: 0 | AE14: 0 | AF14: 0 | AG14: 0 | AI14: =+D15 -> 0 | AJ14: 0 | AK14: 0 | AL14: 0 | AM14: 0 | AN14: 0 | AO14: 0 | AP14: 0 | AQ14: 0 | AR14: 0 | AS14: 0 | AU14: =+D14-SUM(E14:N14) -> 0 | AV14: =SUM(E14:M14)/SUM(E14:N14)*100 ->  | BJ14: 6356 | BK14: Bahasa Iban | BL14: 6356 | BM14: =+A14 -> 2 | BN14: =+D15 -> 0 | BO14: =+E15 -> 0 | BP14: 0 | BQ14: 0 | BR14: 0 | BS14: 0 | BT14: 0 | BU14: 0 | BV14: 0 | BW14: 0 | BX14: 0 | BY14: =+B14 ->  | CC14: 4 | CF14: BTMA | CG14: Bahasa Tamil | CK14: =+CK11+1 -> 2
O15: =(+E15*0+F15*1+G15*2+H15*3+I15*4+J15*5+K15*6+L15*7+M15*8+N15*9)/SUM(E15:N15) ->  | Q15: 0 | R15: =+Q15-D15 -> 0 | T15: =IF(O15>P14,1,0) ->  | U15: =IF(O15<=O16,1,0) ->  | BJ15: 1119 | BK15: Bahasa Inggeris | BL15: 1119 | CC15: 5 | CF15: BIO | CG15: Biology
D16: =IF(ISNA(VLOOKUP(CONCATENATE($B$5,$B14),'A1'!$D$2:$T$3311,5,0)),0,VLOOKUP(CONCATENATE($B$5,$B14),'A1'!$D$2:$T$3311,5,0)) -> 0 | E16: =IF(ISNA(VLOOKUP(CONCATENATE($B$5,$B14),'A1'!$D$2:$T$3311,6,0)),0,VLOOKUP(CONCATENATE($B$5,$B14),'A1'!$D$2:$T$3311,6,0)) -> 0 | F16: =IF(ISNA(VLOOKUP(CONCATENATE($B$5,$B14),'A1'!$D$2:$T$3311,7,0)),0,VLOOKUP(CONCATENATE($B$5,$B14),'A1'!$D$2:$T$3311,7,0)) -> 0 | G16: =IF(ISNA(VLOOKUP(CONCATENATE($B$5,$B14),'A1'!$D$2:$T$3311,8,0)),0,VLOOKUP(CONCATENATE($B$5,$B14),'A1'!$D$2:$T$3311,8,0)) -> 0 | H16: =IF(ISNA(VLOOKUP(CONCATENATE($B$5,$B14),'A1'!$D$2:$T$3311,9,0)),0,VLOOKUP(CONCATENATE($B$5,$B14),'A1'!$D$2:$T$3311,9,0)) -> 0 | I16: =IF(ISNA(VLOOKUP(CONCATENATE($B$5,$B14),'A1'!$D$2:$T$3311,10,0)),0,VLOOKUP(CONCATENATE($B$5,$B14),'A1'!$D$2:$T$3311,10,0)) -> 0 | J16: =IF(ISNA(VLOOKUP(CONCATENATE($B$5,$B14),'A1'!$D$2:$T$3311,11,0)),0,VLOOKUP(CONCATENATE($B$5,$B14),'A1'!$D$2:$T$3311,11,0)) -> 0 | K16: =IF(ISNA(VLOOKUP(CONCATENATE($B$5,$B14),'A1'!$D$2:$T$3311,12,0)),0,VLOOKUP(CONCATENATE($B$5,$B14),'A1'!$D$2:$T$3311,12,0)) -> 0 | L16: =IF(ISNA(VLOOKUP(CONCATENATE($B$5,$B14),'A1'!$D$2:$T$3311,13,0)),0,VLOOKUP(CONCATENATE($B$5,$B14),'A1'!$D$2:$T$3311,13,0)) -> 0 | M16: =IF(ISNA(VLOOKUP(CONCATENATE($B$5,$B14),'A1'!$D$2:$T$3311,14,0)),0,VLOOKUP(CONCATENATE($B$5,$B14),'A1'!$D$2:$T$3311,14,0)) -> 0 | N16: =IF(ISNA(VLOOKUP(CONCATENATE($B$5,$B14),'A1'!$D$2:$T$3311,15,0)),0,VLOOKUP(CONCATENATE($B$5,$B14),'A1'!$D$2:$T$3311,15,0)) -> 0 | BJ16: 1103 | BK16: Bahasa Melayu | BL16: 1103 | CC16: 6 | CF16: KIM | CG16: Chemistry
A17: =+A14+1 -> 3 | B17: =VLOOKUP(CK17,'A1'!$W$2:$Y$102,3,0) ->  | C17: =VLOOKUP(B17,'A1'!$Y$2:$Z$102,2,0) ->  | D17: =SUM(E17:N17) -> 0 | E17: =IF(ISNA(VLOOKUP($B17,'D2'!$BR$460:$CG$491,4,0)),0,VLOOKUP($B17,'D2'!$BR$460:$CG$491,4,0)) -> 0 | F17: =IF(ISNA(VLOOKUP($B17,'D2'!$BR$460:$CG$491,5,0)),0,VLOOKUP($B17,'D2'!$BR$460:$CG$491,5,0)) -> 0 | G17: =IF(ISNA(VLOOKUP($B17,'D2'!$BR$460:$CG$491,6,0)),0,VLOOKUP($B17,'D2'!$BR$460:$CG$491,6,0)) -> 0 | H17: =IF(ISNA(VLOOKUP($B17,'D2'!$BR$460:$CG$491,7,0)),0,VLOOKUP($B17,'D2'!$BR$460:$CG$491,7,0)) -> 0 | I17: =IF(ISNA(VLOOKUP($B17,'D2'!$BR$460:$CG$491,8,0)),0,VLOOKUP($B17,'D2'!$BR$460:$CG$491,8,0)) -> 0 | J17: =IF(ISNA(VLOOKUP($B17,'D2'!$BR$460:$CG$491,9,0)),0,VLOOKUP($B17,'D2'!$BR$460:$CG$491,9,0)) -> 0 | K17: =IF(ISNA(VLOOKUP($B17,'D2'!$BR$460:$CG$491,10,0)),0,VLOOKUP($B17,'D2'!$BR$460:$CG$491,10,0)) -> 0 | L17: =IF(ISNA(VLOOKUP($B17,'D2'!$BR$460:$CG$491,11,0)),0,VLOOKUP($B17,'D2'!$BR$460:$CG$491,11,0)) -> 0 | M17: =IF(ISNA(VLOOKUP($B17,'D2'!$BR$460:$CG$491,12,0)),0,VLOOKUP($B17,'D2'!$BR$460:$CG$491,12,0)) -> 0 | N17: =IF(ISNA(VLOOKUP($B17,'D2'!$BR$460:$CG$491,13,0)),0,VLOOKUP($B17,'D2'!$BR$460:$CG$491,13,0)) -> 0 | O17: =(+E17*0+F17*1+G17*2+H17*3+I17*4+J17*5+K17*6+L17*7+M17*8+N17*9)/SUM(E17:N17) ->  | P17: =IF(+O19*$S$9/100<0,0,+O19*$S$9/100) ->  | Q17: =SUM(E17:N17) -> 0 | R17: =+Q17-D17+AU17 -> 0 | S17: =IF(ISNA(VLOOKUP($B17,'D2'!$BR$460:$CG$491,14,0)),0,VLOOKUP($B17,'D2'!$BR$460:$CG$491,14,0)) -> 0 | T17: =IF(O17>P17,1,0) ->  | U17: =IF(O17<=O19,1,0) ->  | V17: =SUM(T17:U17) ->  | W17: =+D19 -> 0 | X17: =+E19 -> 0 | Y17: 0 | Z17: 0 | AA17: 0 | AB17: 0 | AC17: 0 | AD17: 0 | AE17: 0 | AF17: 0 | AG17: 0 | AI17: =+D18 -> 0 | AJ17: 0 | AK17: 0 | AL17: 0 | AM17: 0 | AN17: 0 | AO17: 0 | AP17: 0 | AQ17: 0 | AR17: 0 | AS17: 0 | AU17: =+D17-SUM(E17:N17) -> 0 | AV17: =SUM(E17:M17)/SUM(E17:N17)*100 ->  | BJ17: 9303 | BK17: Bahasa Perancis | BL17: 9303 | BM17: =+A17 -> 3 | BN17: =+D18 -> 0 | BO17: 0 | BP17: 0 | BQ17: 0 | BR17: 0 | BS17: 0 | BT17: 0 | BU17: 0 | BV17: 0 | BW17: 0 | BX17: 0 | BY17: =+B17 ->  | CC17: 7 | CF17: ECO | CG17: Ekonomi | CK17: =+CK14+1 -> 3
Q18: 0 | R18: =+Q18-D18 -> 0 | T18: =IF(O18>P17,1,0) ->  | U18: =IF(O18<=O19,1,0) ->  | BJ18: 9378 | BK18: Bahasa Punjabi | BL18: 9378 | CC18: 8 | CF18: GEOMA | CG18: Geografi
D19: =IF(ISNA(VLOOKUP(CONCATENATE($B$5,$B17),'A1'!$D$2:$T$3311,5,0)),0,VLOOKUP(CONCATENATE($B$5,$B17),'A1'!$D$2:$T$3311,5,0)) -> 0 | E19: =IF(ISNA(VLOOKUP(CONCATENATE($B$5,$B17),'A1'!$D$2:$T$3311,6,0)),0,VLOOKUP(CONCATENATE($B$5,$B17),'A1'!$D$2:$T$3311,6,0)) -> 0 | F19: =IF(ISNA(VLOOKUP(CONCATENATE($B$5,$B17),'A1'!$D$2:$T$3311,7,0)),0,VLOOKUP(CONCATENATE($B$5,$B17),'A1'!$D$2:$T$3311,7,0)) -> 0 | G19: =IF(ISNA(VLOOKUP(CONCATENATE($B$5,$B17),'A1'!$D$2:$T$3311,8,0)),0,VLOOKUP(CONCATENATE($B$5,$B17),'A1'!$D$2:$T$3311,8,0)) -> 0 | H19: =IF(ISNA(VLOOKUP(CONCATENATE($B$5,$B17),'A1'!$D$2:$T$3311,9,0)),0,VLOOKUP(CONCATENATE($B$5,$B17),'A1'!$D$2:$T$3311,9,0)) -> 0 | I19: =IF(ISNA(VLOOKUP(CONCATENATE($B$5,$B17),'A1'!$D$2:$T$3311,10,0)),0,VLOOKUP(CONCATENATE($B$5,$B17),'A1'!$D$2:$T$3311,10,0)) -> 0 | J19: =IF(ISNA(VLOOKUP(CONCATENATE($B$5,$B17),'A1'!$D$2:$T$3311,11,0)),0,VLOOKUP(CONCATENATE($B$5,$B17),'A1'!$D$2:$T$3311,11,0)) -> 0 | K19: =IF(ISNA(VLOOKUP(CONCATENATE($B$5,$B17),'A1'!$D$2:$T$3311,12,0)),0,VLOOKUP(CONCATENATE($B$5,$B17),'A1'!$D$2:$T$3311,12,0)) -> 0 | L19: =IF(ISNA(VLOOKUP(CONCATENATE($B$5,$B17),'A1'!$D$2:$T$3311,13,0)),0,VLOOKUP(CONCATENATE($B$5,$B17),'A1'!$D$2:$T$3311,13,0)) -> 0 | M19: =IF(ISNA(VLOOKUP(CONCATENATE($B$5,$B17),'A1'!$D$2:$T$3311,14,0)),0,VLOOKUP(CONCATENATE($B$5,$B17),'A1'!$D$2:$T$3311,14,0)) -> 0 | N19: =IF(ISNA(VLOOKUP(CONCATENATE($B$5,$B17),'A1'!$D$2:$T$3311,15,0)),0,VLOOKUP(CONCATENATE($B$5,$B17),'A1'!$D$2:$T$3311,15,0)) -> 0 | BJ19: 6354 | BK19: Bahasa Tamil | BL19: 6354 | CC19: 9 | CF19: GKT | CG19: Grafik Komunikasi Teknikal
A20: =+A17+1 -> 4 | B20: =VLOOKUP(CK20,'A1'!$W$2:$Y$102,3,0) ->  | C20: =VLOOKUP(B20,'A1'!$Y$2:$Z$102,2,0) ->  | D20: =SUM(E20:N20) -> 0 | E20: =IF(ISNA(VLOOKUP($B20,'D2'!$BR$460:$CG$491,4,0)),0,VLOOKUP($B20,'D2'!$BR$460:$CG$491,4,0)) -> 0 | F20: =IF(ISNA(VLOOKUP($B20,'D2'!$BR$460:$CG$491,5,0)),0,VLOOKUP($B20,'D2'!$BR$460:$CG$491,5,0)) -> 0 | G20: =IF(ISNA(VLOOKUP($B20,'D2'!$BR$460:$CG$491,6,0)),0,VLOOKUP($B20,'D2'!$BR$460:$CG$491,6,0)) -> 0 | H20: =IF(ISNA(VLOOKUP($B20,'D2'!$BR$460:$CG$491,7,0)),0,VLOOKUP($B20,'D2'!$BR$460:$CG$491,7,0)) -> 0 | I20: =IF(ISNA(VLOOKUP($B20,'D2'!$BR$460:$CG$491,8,0)),0,VLOOKUP($B20,'D2'!$BR$460:$CG$491,8,0)) -> 0 | J20: =IF(ISNA(VLOOKUP($B20,'D2'!$BR$460:$CG$491,9,0)),0,VLOOKUP($B20,'D2'!$BR$460:$CG$491,9,0)) -> 0 | K20: =IF(ISNA(VLOOKUP($B20,'D2'!$BR$460:$CG$491,10,0)),0,VLOOKUP($B20,'D2'!$BR$460:$CG$491,10,0)) -> 0 | L20: =IF(ISNA(VLOOKUP($B20,'D2'!$BR$460:$CG$491,11,0)),0,VLOOKUP($B20,'D2'!$BR$460:$CG$491,11,0)) -> 0 | M20: =IF(ISNA(VLOOKUP($B20,'D2'!$BR$460:$CG$491,12,0)),0,VLOOKUP($B20,'D2'!$BR$460:$CG$491,12,0)) -> 0 | N20: =IF(ISNA(VLOOKUP($B20,'D2'!$BR$460:$CG$491,13,0)),0,VLOOKUP($B20,'D2'!$BR$460:$CG$491,13,0)) -> 0 | O20: =(+E20*0+F20*1+G20*2+H20*3+I20*4+J20*5+K20*6+L20*7+M20*8+N20*9)/SUM(E20:N20) ->  | P20: =IF(+O22*$S$9/100<0,0,+O22*$S$9/100) ->  | Q20: =SUM(E20:N20) -> 0 | R20: =+Q20-D20+AU20 -> 0 | S20: =IF(ISNA(VLOOKUP($B20,'D2'!$BR$460:$CG$491,14,0)),0,VLOOKUP($B20,'D2'!$BR$460:$CG$491,14,0)) -> 0 | T20: =IF(O20>P20,1,0) ->  | U20: =IF(O20<=O22,1,0) ->  | V20: =SUM(T20:U20) ->  | W20: =+D22 -> 0 | X20: 0 | Y20: 0 | Z20: 0 | AA20: 0 | AB20: 0 | AC20: 0 | AD20: 0 | AE20: 0 | AF20: 0 | AG20: 0 | AI20: =+D21 -> 0 | AJ20: 0 | AK20: 0 | AL20: 0 | AM20: 0 | AN20: 0 | AO20: 0 | AP20: 0 | AQ20: 0 | AR20: 0 | AS20: 0 | AU20: =+D20-SUM(E20:N20) -> 0 | AV20: =SUM(E20:M20)/SUM(E20:N20)*100 ->  | BJ20: 9221 | BK20: Bible Knowledge | BL20: 9221 | BM20: =+A20 -> 4 | BN20: =+D21 -> 0 | BO20: 0 | BP20: 0 | BQ20: 0 | BR20: 0 | BS20: 0 | BT20: 0 | BU20: 0 | BV20: 0 | BW20: 0 | BX20: 0 | BY20: =+B20 ->  | CC20: 10 | CF20: M3MA | CG20: Mathematics | CK20: =+CK17+1 -> 4
Q21: 0 | R21: =+Q21-D21 -> 0 | T21: =IF(O21>P20,1,0) ->  | U21: =IF(O21<=O22,1,0) ->  | BJ21: 8004 | BK21: Biologi DLP | BL21: 8004 | CC21: 11 | CF21: PIMA | CG21: Pendidikan Islam
D22: =IF(ISNA(VLOOKUP(CONCATENATE($B$5,$B20),'A1'!$D$2:$T$3311,5,0)),0,VLOOKUP(CONCATENATE($B$5,$B20),'A1'!$D$2:$T$3311,5,0)) -> 0 | E22: =IF(ISNA(VLOOKUP(CONCATENATE($B$5,$B20),'A1'!$D$2:$T$3311,6,0)),0,VLOOKUP(CONCATENATE($B$5,$B20),'A1'!$D$2:$T$3311,6,0)) -> 0 | F22: =IF(ISNA(VLOOKUP(CONCATENATE($B$5,$B20),'A1'!$D$2:$T$3311,7,0)),0,VLOOKUP(CONCATENATE($B$5,$B20),'A1'!$D$2:$T$3311,7,0)) -> 0 | G22: =IF(ISNA(VLOOKUP(CONCATENATE($B$5,$B20),'A1'!$D$2:$T$3311,8,0)),0,VLOOKUP(CONCATENATE($B$5,$B20),'A1'!$D$2:$T$3311,8,0)) -> 0 | H22: =IF(ISNA(VLOOKUP(CONCATENATE($B$5,$B20),'A1'!$D$2:$T$3311,9,0)),0,VLOOKUP(CONCATENATE($B$5,$B20),'A1'!$D$2:$T$3311,9,0)) -> 0 | I22: =IF(ISNA(VLOOKUP(CONCATENATE($B$5,$B20),'A1'!$D$2:$T$3311,10,0)),0,VLOOKUP(CONCATENATE($B$5,$B20),'A1'!$D$2:$T$3311,10,0)) -> 0 | J22: =IF(ISNA(VLOOKUP(CONCATENATE($B$5,$B20),'A1'!$D$2:$T$3311,11,0)),0,VLOOKUP(CONCATENATE($B$5,$B20),'A1'!$D$2:$T$3311,11,0)) -> 0 | K22: =IF(ISNA(VLOOKUP(CONCATENATE($B$5,$B20),'A1'!$D$2:$T$3311,12,0)),0,VLOOKUP(CONCATENATE($B$5,$B20),'A1'!$D$2:$T$3311,12,0)) -> 0 | L22: =IF(ISNA(VLOOKUP(CONCATENATE($B$5,$B20),'A1'!$D$2:$T$3311,13,0)),0,VLOOKUP(CONCATENATE($B$5,$B20),'A1'!$D$2:$T$3311,13,0)) -> 0 | M22: =IF(ISNA(VLOOKUP(CONCATENATE($B$5,$B20),'A1'!$D$2:$T$3311,14,0)),0,VLOOKUP(CONCATENATE($B$5,$B20),'A1'!$D$2:$T$3311,14,0)) -> 0 | N22: =IF(ISNA(VLOOKUP(CONCATENATE($B$5,$B20),'A1'!$D$2:$T$3311,15,0)),0,VLOOKUP(CONCATENATE($B$5,$B20),'A1'!$D$2:$T$3311,15,0)) -> 0 | BJ22: 4551 | BK22: Biology | BL22: 4551 | CC22: 12 | CF22: PMMA | CG22: Pendidikan Moral
A23: =+A20+1 -> 5 | B23: =VLOOKUP(CK23,'A1'!$W$2:$Y$102,3,0) ->  | C23: =VLOOKUP(B23,'A1'!$Y$2:$Z$102,2,0) ->  | D23: =SUM(E23:N23) -> 0 | E23: =IF(ISNA(VLOOKUP($B23,'D2'!$BR$460:$CG$491,4,0)),0,VLOOKUP($B23,'D2'!$BR$460:$CG$491,4,0)) -> 0 | F23: =IF(ISNA(VLOOKUP($B23,'D2'!$BR$460:$CG$491,5,0)),0,VLOOKUP($B23,'D2'!$BR$460:$CG$491,5,0)) -> 0 | G23: =IF(ISNA(VLOOKUP($B23,'D2'!$BR$460:$CG$491,6,0)),0,VLOOKUP($B23,'D2'!$BR$460:$CG$491,6,0)) -> 0 | H23: =IF(ISNA(VLOOKUP($B23,'D2'!$BR$460:$CG$491,7,0)),0,VLOOKUP($B23,'D2'!$BR$460:$CG$491,7,0)) -> 0 | I23: =IF(ISNA(VLOOKUP($B23,'D2'!$BR$460:$CG$491,8,0)),0,VLOOKUP($B23,'D2'!$BR$460:$CG$491,8,0)) -> 0 | J23: =IF(ISNA(VLOOKUP($B23,'D2'!$BR$460:$CG$491,9,0)),0,VLOOKUP($B23,'D2'!$BR$460:$CG$491,9,0)) -> 0 | K23: =IF(ISNA(VLOOKUP($B23,'D2'!$BR$460:$CG$491,10,0)),0,VLOOKUP($B23,'D2'!$BR$460:$CG$491,10,0)) -> 0 | L23: =IF(ISNA(VLOOKUP($B23,'D2'!$BR$460:$CG$491,11,0)),0,VLOOKUP($B23,'D2'!$BR$460:$CG$491,11,0)) -> 0 | M23: =IF(ISNA(VLOOKUP($B23,'D2'!$BR$460:$CG$491,12,0)),0,VLOOKUP($B23,'D2'!$BR$460:$CG$491,12,0)) -> 0 | N23: =IF(ISNA(VLOOKUP($B23,'D2'!$BR$460:$CG$491,13,0)),0,VLOOKUP($B23,'D2'!$BR$460:$CG$491,13,0)) -> 0 | O23: =(+E23*0+F23*1+G23*2+H23*3+I23*4+J23*5+K23*6+L23*7+M23*8+N23*9)/SUM(E23:N23) ->  | P23: =IF(+O25*$S$9/100<0,0,+O25*$S$9/100) ->  | Q23: =SUM(E23:N23) -> 0 | R23: =+Q23-D23+AU23 -> 0 | S23: =IF(ISNA(VLOOKUP($B23,'D2'!$BR$460:$CG$491,14,0)),0,VLOOKUP($B23,'D2'!$BR$460:$CG$491,14,0)) -> 0 | T23: =IF(O23>P23,1,0) ->  | U23: =IF(O23<=O25,1,0) ->  | V23: =SUM(T23:U23) ->  | W23: =+D25 -> 0 | X23: 0 | Y23: 0 | Z23: 0 | AA23: 0 | AB23: 0 | AC23: 0 | AD23: 0 | AE23: 0 | AF23: 0 | AG23: 0 | AI23: =+D24 -> 0 | AJ23: 0 | AK23: 0 | AL23: 0 | AM23: 0 | AN23: 0 | AO23: 0 | AP23: 0 | AQ23: 0 | AR23: 0 | AS23: 0 | AU23: =+D23-SUM(E23:N23) -> 0 | AV23: =SUM(E23:M23)/SUM(E23:N23)*100 ->  | BJ23: 4541 | BK23: Chemistry | BL23: 4541 | BM23: =+A23 -> 5 | BN23: =+D24 -> 0 | BO23: 0 | BP23: 0 | BQ23: 0 | BR23: 0 | BS23: 0 | BT23: 0 | BU23: 0 | BV23: 0 | BW23: 0 | BX23: 0 | BY23: =+B23 ->  | CC23: 13 | CF23: PSVMA | CG23: Pendidikan Seni Visual | CK23: =+CK20+1 -> 5
Q24: 0 | R24: =+Q24-D24 -> 0 | T24: =IF(O24>P23,1,0) ->  | U24: =IF(O24<=O25,1,0) ->  | BJ24: 3767 | BK24: Ekonomi | BL24: 3767 | CC24: 14 | CF24: FIZ | CG24: Physics
D25: =IF(ISNA(VLOOKUP(CONCATENATE($B$5,$B23),'A1'!$D$2:$T$3311,5,0)),0,VLOOKUP(CONCATENATE($B$5,$B23),'A1'!$D$2:$T$3311,5,0)) -> 0 | E25: =IF(ISNA(VLOOKUP(CONCATENATE($B$5,$B23),'A1'!$D$2:$T$3311,6,0)),0,VLOOKUP(CONCATENATE($B$5,$B23),'A1'!$D$2:$T$3311,6,0)) -> 0 | F25: =IF(ISNA(VLOOKUP(CONCATENATE($B$5,$B23),'A1'!$D$2:$T$3311,7,0)),0,VLOOKUP(CONCATENATE($B$5,$B23),'A1'!$D$2:$T$3311,7,0)) -> 0 | G25: =IF(ISNA(VLOOKUP(CONCATENATE($B$5,$B23),'A1'!$D$2:$T$3311,8,0)),0,VLOOKUP(CONCATENATE($B$5,$B23),'A1'!$D$2:$T$3311,8,0)) -> 0 | H25: =IF(ISNA(VLOOKUP(CONCATENATE($B$5,$B23),'A1'!$D$2:$T$3311,9,0)),0,VLOOKUP(CONCATENATE($B$5,$B23),'A1'!$D$2:$T$3311,9,0)) -> 0 | I25: =IF(ISNA(VLOOKUP(CONCATENATE($B$5,$B23),'A1'!$D$2:$T$3311,10,0)),0,VLOOKUP(CONCATENATE($B$5,$B23),'A1'!$D$2:$T$3311,10,0)) -> 0 | J25: =IF(ISNA(VLOOKUP(CONCATENATE($B$5,$B23),'A1'!$D$2:$T$3311,11,0)),0,VLOOKUP(CONCATENATE($B$5,$B23),'A1'!$D$2:$T$3311,11,0)) -> 0 | K25: =IF(ISNA(VLOOKUP(CONCATENATE($B$5,$B23),'A1'!$D$2:$T$3311,12,0)),0,VLOOKUP(CONCATENATE($B$5,$B23),'A1'!$D$2:$T$3311,12,0)) -> 0 | L25: =IF(ISNA(VLOOKUP(CONCATENATE($B$5,$B23),'A1'!$D$2:$T$3311,13,0)),0,VLOOKUP(CONCATENATE($B$5,$B23),'A1'!$D$2:$T$3311,13,0)) -> 0 | M25: =IF(ISNA(VLOOKUP(CONCATENATE($B$5,$B23),'A1'!$D$2:$T$3311,14,0)),0,VLOOKUP(CONCATENATE($B$5,$B23),'A1'!$D$2:$T$3311,14,0)) -> 0 | N25: =IF(ISNA(VLOOKUP(CONCATENATE($B$5,$B23),'A1'!$D$2:$T$3311,15,0)),0,VLOOKUP(CONCATENATE($B$5,$B23),'A1'!$D$2:$T$3311,15,0)) -> 0 | BJ25: 6355 | BK25: English For Science and Technology | BL25: 6355 | CC25: 15 | CF25: PA | CG25: Prinsip Perakaunan
A26: =+A23+1 -> 6 | B26: =VLOOKUP(CK26,'A1'!$W$2:$Y$102,3,0) ->  | C26: =VLOOKUP(B26,'A1'!$Y$2:$Z$102,2,0) ->  | D26: =SUM(E26:N26) -> 0 | E26: =IF(ISNA(VLOOKUP($B26,'D2'!$BR$460:$CG$491,4,0)),0,VLOOKUP($B26,'D2'!$BR$460:$CG$491,4,0)) -> 0 | F26: =IF(ISNA(VLOOKUP($B26,'D2'!$BR$460:$CG$491,5,0)),0,VLOOKUP($B26,'D2'!$BR$460:$CG$491,5,0)) -> 0 | G26: =IF(ISNA(VLOOKUP($B26,'D2'!$BR$460:$CG$491,6,0)),0,VLOOKUP($B26,'D2'!$BR$460:$CG$491,6,0)) -> 0 | H26: =IF(ISNA(VLOOKUP($B26,'D2'!$BR$460:$CG$491,7,0)),0,VLOOKUP($B26,'D2'!$BR$460:$CG$491,7,0)) -> 0 | I26: =IF(ISNA(VLOOKUP($B26,'D2'!$BR$460:$CG$491,8,0)),0,VLOOKUP($B26,'D2'!$BR$460:$CG$491,8,0)) -> 0 | J26: =IF(ISNA(VLOOKUP($B26,'D2'!$BR$460:$CG$491,9,0)),0,VLOOKUP($B26,'D2'!$BR$460:$CG$491,9,0)) -> 0 | K26: =IF(ISNA(VLOOKUP($B26,'D2'!$BR$460:$CG$491,10,0)),0,VLOOKUP($B26,'D2'!$BR$460:$CG$491,10,0)) -> 0 | L26: =IF(ISNA(VLOOKUP($B26,'D2'!$BR$460:$CG$491,11,0)),0,VLOOKUP($B26,'D2'!$BR$460:$CG$491,11,0)) -> 0 | M26: =IF(ISNA(VLOOKUP($B26,'D2'!$BR$460:$CG$491,12,0)),0,VLOOKUP($B26,'D2'!$BR$460:$CG$491,12,0)) -> 0 | N26: =IF(ISNA(VLOOKUP($B26,'D2'!$BR$460:$CG$491,13,0)),0,VLOOKUP($B26,'D2'!$BR$460:$CG$491,13,0)) -> 0 | O26: =(+E26*0+F26*1+G26*2+H26*3+I26*4+J26*5+K26*6+L26*7+M26*8+N26*9)/SUM(E26:N26) ->  | P26: =IF(+O28*$S$9/100<0,0,+O28*$S$9/100) ->  | Q26: =SUM(E26:N26) -> 0 | R26: =+Q26-D26+AU26 -> 0 | S26: =IF(ISNA(VLOOKUP($B26,'D2'!$BR$460:$CG$491,14,0)),0,VLOOKUP($B26,'D2'!$BR$460:$CG$491,14,0)) -> 0 | T26: =IF(O26>P26,1,0) ->  | U26: =IF(O26<=O28,1,0) ->  | V26: =SUM(T26:U26) ->  | W26: =+D28 -> 0 | X26: 0 | Y26: 0 | Z26: 0 | AA26: 0 | AB26: 0 | AC26: 0 | AD26: 0 | AE26: 0 | AF26: 0 | AG26: 0 | AI26: =+D27 -> 0 | AJ26: 0 | AK26: 0 | AL26: 0 | AM26: 0 | AN26: 0 | AO26: 0 | AP26: 0 | AQ26: 0 | AR26: 0 | AS26: 0 | AU26: =+D26-SUM(E26:N26) -> 0 | AV26: =SUM(E26:M26)/SUM(E26:N26)*100 ->  | BJ26: 8006 | BK26: FIZIK DLP | BL26: 8006 | BM26: =+A26 -> 6 | BN26: =+D27 -> 0 | BO26: 0 | BP26: 0 | BQ26: 0 | BR26: 0 | BS26: 0 | BT26: 0 | BU26: 0 | BV26: 0 | BW26: 0 | BX26: 0 | BY26: =+B26 ->  | CC26: 16 | CF26: RC | CG26: Reka Cipta | CK26: =+CK23+1 -> 6
Q27: 0 | R27: =+Q27-D27 -> 0 | T27: =IF(O27>P26,1,0) ->  | U27: =IF(O27<=O28,1,0) ->  | BJ27: 2280 | BK27: Geografi | BL27: 2280 | CC27: 17 | CF27: SNRT | CG27: Sains Rumah Tangga
D28: =IF(ISNA(VLOOKUP(CONCATENATE($B$5,$B26),'A1'!$D$2:$T$3311,5,0)),0,VLOOKUP(CONCATENATE($B$5,$B26),'A1'!$D$2:$T$3311,5,0)) -> 0 | E28: =IF(ISNA(VLOOKUP(CONCATENATE($B$5,$B26),'A1'!$D$2:$T$3311,6,0)),0,VLOOKUP(CONCATENATE($B$5,$B26),'A1'!$D$2:$T$3311,6,0)) -> 0 | F28: =IF(ISNA(VLOOKUP(CONCATENATE($B$5,$B26),'A1'!$D$2:$T$3311,7,0)),0,VLOOKUP(CONCATENATE($B$5,$B26),'A1'!$D$2:$T$3311,7,0)) -> 0 | G28: =IF(ISNA(VLOOKUP(CONCATENATE($B$5,$B26),'A1'!$D$2:$T$3311,8,0)),0,VLOOKUP(CONCATENATE($B$5,$B26),'A1'!$D$2:$T$3311,8,0)) -> 0 | H28: =IF(ISNA(VLOOKUP(CONCATENATE($B$5,$B26),'A1'!$D$2:$T$3311,9,0)),0,VLOOKUP(CONCATENATE($B$5,$B26),'A1'!$D$2:$T$3311,9,0)) -> 0 | I28: =IF(ISNA(VLOOKUP(CONCATENATE($B$5,$B26),'A1'!$D$2:$T$3311,10,0)),0,VLOOKUP(CONCATENATE($B$5,$B26),'A1'!$D$2:$T$3311,10,0)) -> 0 | J28: =IF(ISNA(VLOOKUP(CONCATENATE($B$5,$B26),'A1'!$D$2:$T$3311,11,0)),0,VLOOKUP(CONCATENATE($B$5,$B26),'A1'!$D$2:$T$3311,11,0)) -> 0 | K28: =IF(ISNA(VLOOKUP(CONCATENATE($B$5,$B26),'A1'!$D$2:$T$3311,12,0)),0,VLOOKUP(CONCATENATE($B$5,$B26),'A1'!$D$2:$T$3311,12,0)) -> 0 | L28: =IF(ISNA(VLOOKUP(CONCATENATE($B$5,$B26),'A1'!$D$2:$T$3311,13,0)),0,VLOOKUP(CONCATENATE($B$5,$B26),'A1'!$D$2:$T$3311,13,0)) -> 0 | M28: =IF(ISNA(VLOOKUP(CONCATENATE($B$5,$B26),'A1'!$D$2:$T$3311,14,0)),0,VLOOKUP(CONCATENATE($B$5,$B26),'A1'!$D$2:$T$3311,14,0)) -> 0 | N28: =IF(ISNA(VLOOKUP(CONCATENATE($B$5,$B26),'A1'!$D$2:$T$3311,15,0)),0,VLOOKUP(CONCATENATE($B$5,$B26),'A1'!$D$2:$T$3311,15,0)) -> 0 | BJ28: 7206 | BK28: Gerontologi Asas dan Perkhidmatan Geriatrik | BL28: 7206 | CC28: 18 | CF28: SNMA | CG28: Science
A29: =+A26+1 -> 7 | B29: =VLOOKUP(CK29,'A1'!$W$2:$Y$102,3,0) ->  | C29: =VLOOKUP(B29,'A1'!$Y$2:$Z$102,2,0) ->  | D29: =SUM(E29:N29) -> 0 | E29: =IF(ISNA(VLOOKUP($B29,'D2'!$BR$460:$CG$491,4,0)),0,VLOOKUP($B29,'D2'!$BR$460:$CG$491,4,0)) -> 0 | F29: =IF(ISNA(VLOOKUP($B29,'D2'!$BR$460:$CG$491,5,0)),0,VLOOKUP($B29,'D2'!$BR$460:$CG$491,5,0)) -> 0 | G29: =IF(ISNA(VLOOKUP($B29,'D2'!$BR$460:$CG$491,6,0)),0,VLOOKUP($B29,'D2'!$BR$460:$CG$491,6,0)) -> 0 | H29: =IF(ISNA(VLOOKUP($B29,'D2'!$BR$460:$CG$491,7,0)),0,VLOOKUP($B29,'D2'!$BR$460:$CG$491,7,0)) -> 0 | I29: =IF(ISNA(VLOOKUP($B29,'D2'!$BR$460:$CG$491,8,0)),0,VLOOKUP($B29,'D2'!$BR$460:$CG$491,8,0)) -> 0 | J29: =IF(ISNA(VLOOKUP($B29,'D2'!$BR$460:$CG$491,9,0)),0,VLOOKUP($B29,'D2'!$BR$460:$CG$491,9,0)) -> 0 | K29: =IF(ISNA(VLOOKUP($B29,'D2'!$BR$460:$CG$491,10,0)),0,VLOOKUP($B29,'D2'!$BR$460:$CG$491,10,0)) -> 0 | L29: =IF(ISNA(VLOOKUP($B29,'D2'!$BR$460:$CG$491,11,0)),0,VLOOKUP($B29,'D2'!$BR$460:$CG$491,11,0)) -> 0 | M29: =IF(ISNA(VLOOKUP($B29,'D2'!$BR$460:$CG$491,12,0)),0,VLOOKUP($B29,'D2'!$BR$460:$CG$491,12,0)) -> 0 | N29: =IF(ISNA(VLOOKUP($B29,'D2'!$BR$460:$CG$491,13,0)),0,VLOOKUP($B29,'D2'!$BR$460:$CG$491,13,0)) -> 0 | O29: =(+E29*0+F29*1+G29*2+H29*3+I29*4+J29*5+K29*6+L29*7+M29*8+N29*9)/SUM(E29:N29) ->  | P29: =IF(+O31*$S$9/100<0,0,+O31*$S$9/100) ->  | Q29: =SUM(E29:N29) -> 0 | R29: =+Q29-D29+AU29 -> 0 | S29: =IF(ISNA(VLOOKUP($B29,'D2'!$BR$460:$CG$491,14,0)),0,VLOOKUP($B29,'D2'!$BR$460:$CG$491,14,0)) -> 0 | T29: =IF(O29>P29,1,0) ->  | U29: =IF(O29<=O31,1,0) ->  | V29: =SUM(T29:U29) ->  | W29: =+D31 -> 0 | X29: 0 | Y29: 0 | Z29: 0 | AA29: 0 | AB29: 0 | AC29: 0 | AD29: 0 | AE29: 0 | AF29: 0 | AG29: 0 | AI29: =+D30 -> 0 | AJ29: 0 | AK29: 0 | AL29: 0 | AM29: 0 | AN29: 0 | AO29: 0 | AP29: 0 | AQ29: 0 | AR29: 0 | AS29: 0 | AU29: =+D29-SUM(E29:N29) -> 0 | AV29: =SUM(E29:M29)/SUM(E29:N29)*100 ->  | BJ29: 7404 | BK29: Grafik Berkomputer | BL29: 7404 | BM29: =+A29 -> 7 | BN29: =+D30 -> 0 | BO29: 0 | BP29: 0 | BQ29: 0 | BR29: 0 | BS29: 0 | BT29: 0 | BU29: 0 | BV29: 0 | BW29: 0 | BX29: 0 | BY29: =+B29 ->  | CC29: 19 | CF29: SEJMA | CG29: Sejarah | CK29: =+CK26+1 -> 7
Q30: 0 | R30: =+Q30-D30 -> 0 | T30: =IF(O30>P29,1,0) ->  | U30: =IF(O30<=O31,1,0) ->  | BJ30: 3771 | BK30: Grafik Komunikasi Teknikal | BL30: 3771 | CC30: 20 | CF30: SRT | CG30: Seni Reka Tanda
D31: =IF(ISNA(VLOOKUP(CONCATENATE($B$5,$B29),'A1'!$D$2:$T$3311,5,0)),0,VLOOKUP(CONCATENATE($B$5,$B29),'A1'!$D$2:$T$3311,5,0)) -> 0 | E31: =IF(ISNA(VLOOKUP(CONCATENATE($B$5,$B29),'A1'!$D$2:$T$3311,6,0)),0,VLOOKUP(CONCATENATE($B$5,$B29),'A1'!$D$2:$T$3311,6,0)) -> 0 | F31: =IF(ISNA(VLOOKUP(CONCATENATE($B$5,$B29),'A1'!$D$2:$T$3311,7,0)),0,VLOOKUP(CONCATENATE($B$5,$B29),'A1'!$D$2:$T$3311,7,0)) -> 0 | G31: =IF(ISNA(VLOOKUP(CONCATENATE($B$5,$B29),'A1'!$D$2:$T$3311,8,0)),0,VLOOKUP(CONCATENATE($B$5,$B29),'A1'!$D$2:$T$3311,8,0)) -> 0 | H31: =IF(ISNA(VLOOKUP(CONCATENATE($B$5,$B29),'A1'!$D$2:$T$3311,9,0)),0,VLOOKUP(CONCATENATE($B$5,$B29),'A1'!$D$2:$T$3311,9,0)) -> 0 | I31: =IF(ISNA(VLOOKUP(CONCATENATE($B$5,$B29),'A1'!$D$2:$T$3311,10,0)),0,VLOOKUP(CONCATENATE($B$5,$B29),'A1'!$D$2:$T$3311,10,0)) -> 0 | J31: =IF(ISNA(VLOOKUP(CONCATENATE($B$5,$B29),'A1'!$D$2:$T$3311,11,0)),0,VLOOKUP(CONCATENATE($B$5,$B29),'A1'!$D$2:$T$3311,11,0)) -> 0 | K31: =IF(ISNA(VLOOKUP(CONCATENATE($B$5,$B29),'A1'!$D$2:$T$3311,12,0)),0,VLOOKUP(CONCATENATE($B$5,$B29),'A1'!$D$2:$T$3311,12,0)) -> 0 | L31: =IF(ISNA(VLOOKUP(CONCATENATE($B$5,$B29),'A1'!$D$2:$T$3311,13,0)),0,VLOOKUP(CONCATENATE($B$5,$B29),'A1'!$D$2:$T$3311,13,0)) -> 0 | M31: =IF(ISNA(VLOOKUP(CONCATENATE($B$5,$B29),'A1'!$D$2:$T$3311,14,0)),0,VLOOKUP(CONCATENATE($B$5,$B29),'A1'!$D$2:$T$3311,14,0)) -> 0 | N31: =IF(ISNA(VLOOKUP(CONCATENATE($B$5,$B29),'A1'!$D$2:$T$3311,15,0)),0,VLOOKUP(CONCATENATE($B$5,$B29),'A1'!$D$2:$T$3311,15,0)) -> 0 | BJ31: 7402 | BK31: Hiasan Dalaman Asas | BL31: 7402 | CC31: 21 | CF31: TWI | CG31: Tasawwur Islam
A32: =+A29+1 -> 8 | B32: =VLOOKUP(CK32,'A1'!$W$2:$Y$102,3,0) ->  | C32: =VLOOKUP(B32,'A1'!$Y$2:$Z$102,2,0) ->  | D32: =SUM(E32:N32) -> 0 | E32: =IF(ISNA(VLOOKUP($B32,'D2'!$BR$460:$CG$491,4,0)),0,VLOOKUP($B32,'D2'!$BR$460:$CG$491,4,0)) -> 0 | F32: =IF(ISNA(VLOOKUP($B32,'D2'!$BR$460:$CG$491,5,0)),0,VLOOKUP($B32,'D2'!$BR$460:$CG$491,5,0)) -> 0 | G32: =IF(ISNA(VLOOKUP($B32,'D2'!$BR$460:$CG$491,6,0)),0,VLOOKUP($B32,'D2'!$BR$460:$CG$491,6,0)) -> 0 | H32: =IF(ISNA(VLOOKUP($B32,'D2'!$BR$460:$CG$491,7,0)),0,VLOOKUP($B32,'D2'!$BR$460:$CG$491,7,0)) -> 0 | I32: =IF(ISNA(VLOOKUP($B32,'D2'!$BR$460:$CG$491,8,0)),0,VLOOKUP($B32,'D2'!$BR$460:$CG$491,8,0)) -> 0 | J32: =IF(ISNA(VLOOKUP($B32,'D2'!$BR$460:$CG$491,9,0)),0,VLOOKUP($B32,'D2'!$BR$460:$CG$491,9,0)) -> 0 | K32: =IF(ISNA(VLOOKUP($B32,'D2'!$BR$460:$CG$491,10,0)),0,VLOOKUP($B32,'D2'!$BR$460:$CG$491,10,0)) -> 0 | L32: =IF(ISNA(VLOOKUP($B32,'D2'!$BR$460:$CG$491,11,0)),0,VLOOKUP($B32,'D2'!$BR$460:$CG$491,11,0)) -> 0 | M32: =IF(ISNA(VLOOKUP($B32,'D2'!$BR$460:$CG$491,12,0)),0,VLOOKUP($B32,'D2'!$BR$460:$CG$491,12,0)) -> 0 | N32: =IF(ISNA(VLOOKUP($B32,'D2'!$BR$460:$CG$491,13,0)),0,VLOOKUP($B32,'D2'!$BR$460:$CG$491,13,0)) -> 0 | O32: =(+E32*0+F32*1+G32*2+H32*3+I32*4+J32*5+K32*6+L32*7+M32*8+N32*9)/SUM(E32:N32) ->  | P32: =IF(+O34*$S$9/100<0,0,+O34*$S$9/100) ->  | Q32: =SUM(E32:N32) -> 0 | R32: =+Q32-D32+AU32 -> 0 | S32: =IF(ISNA(VLOOKUP($B32,'D2'!$BR$460:$CG$491,14,0)),0,VLOOKUP($B32,'D2'!$BR$460:$CG$491,14,0)) -> 0 | T32: =IF(O32>P32,1,0) ->  | U32: =IF(O32<=O34,1,0) ->  | V32: =SUM(T32:U32) ->  | W32: =+D34 -> 0 | X32: 0 | Y32: 0 | Z32: 0 | AA32: 0 | AB32: 0 | AC32: 0 | AD32: 0 | AE32: 0 | AF32: 0 | AG32: 0 | AI32: =+D33 -> 0 | AJ32: 0 | AK32: 0 | AL32: 0 | AM32: 0 | AN32: 0 | AO32: 0 | AP32: 0 | AQ32: 0 | AR32: 0 | AS32: 0 | AU32: =+D32-SUM(E32:N32) -> 0 | AV32: =SUM(E32:M32)/SUM(E32:N32)*100 ->  | BJ32: 8010 | BK32: HIFZ AL-QURAN | BL32: 8010 | BM32: =+A32 -> 8 | BN32: =+D33 -> 0 | BO32: 0 | BP32: 0 | BQ32: 0 | BR32: 0 | BS32: 0 | BT32: 0 | BU32: 0 | BV32: 0 | BW32: 0 | BX32: 0 | BY32: =+B32 ->  | CC32: 22 | CK32: =+CK29+1 -> 8
Q33: 0 | R33: =+Q33-D33 -> 0 | T33: =IF(O33>P32,1,0) ->  | U33: =IF(O33<=O34,1,0) ->  | BJ33: 7202 | BK33: Katering dan Penyajian | BL33: 7202 | CC33: 23
D34: =IF(ISNA(VLOOKUP(CONCATENATE($B$5,$B32),'A1'!$D$2:$T$3311,5,0)),0,VLOOKUP(CONCATENATE($B$5,$B32),'A1'!$D$2:$T$3311,5,0)) -> 0 | E34: =IF(ISNA(VLOOKUP(CONCATENATE($B$5,$B32),'A1'!$D$2:$T$3311,6,0)),0,VLOOKUP(CONCATENATE($B$5,$B32),'A1'!$D$2:$T$3311,6,0)) -> 0 | F34: =IF(ISNA(VLOOKUP(CONCATENATE($B$5,$B32),'A1'!$D$2:$T$3311,7,0)),0,VLOOKUP(CONCATENATE($B$5,$B32),'A1'!$D$2:$T$3311,7,0)) -> 0 | G34: =IF(ISNA(VLOOKUP(CONCATENATE($B$5,$B32),'A1'!$D$2:$T$3311,8,0)),0,VLOOKUP(CONCATENATE($B$5,$B32),'A1'!$D$2:$T$3311,8,0)) -> 0 | H34: =IF(ISNA(VLOOKUP(CONCATENATE($B$5,$B32),'A1'!$D$2:$T$3311,9,0)),0,VLOOKUP(CONCATENATE($B$5,$B32),'A1'!$D$2:$T$3311,9,0)) -> 0 | I34: =IF(ISNA(VLOOKUP(CONCATENATE($B$5,$B32),'A1'!$D$2:$T$3311,10,0)),0,VLOOKUP(CONCATENATE($B$5,$B32),'A1'!$D$2:$T$3311,10,0)) -> 0 | J34: =IF(ISNA(VLOOKUP(CONCATENATE($B$5,$B32),'A1'!$D$2:$T$3311,11,0)),0,VLOOKUP(CONCATENATE($B$5,$B32),'A1'!$D$2:$T$3311,11,0)) -> 0 | K34: =IF(ISNA(VLOOKUP(CONCATENATE($B$5,$B32),'A1'!$D$2:$T$3311,12,0)),0,VLOOKUP(CONCATENATE($B$5,$B32),'A1'!$D$2:$T$3311,12,0)) -> 0 | L34: =IF(ISNA(VLOOKUP(CONCATENATE($B$5,$B32),'A1'!$D$2:$T$3311,13,0)),0,VLOOKUP(CONCATENATE($B$5,$B32),'A1'!$D$2:$T$3311,13,0)) -> 0 | M34: =IF(ISNA(VLOOKUP(CONCATENATE($B$5,$B32),'A1'!$D$2:$T$3311,14,0)),0,VLOOKUP(CONCATENATE($B$5,$B32),'A1'!$D$2:$T$3311,14,0)) -> 0 | N34: =IF(ISNA(VLOOKUP(CONCATENATE($B$5,$B32),'A1'!$D$2:$T$3311,15,0)),0,VLOOKUP(CONCATENATE($B$5,$B32),'A1'!$D$2:$T$3311,15,0)) -> 0 | BJ34: 8001 | BK34: Kemahiran Al Quran | BL34: 8001 | CC34: 24
A35: =+A32+1 -> 9 | B35: =VLOOKUP(CK35,'A1'!$W$2:$Y$102,3,0) ->  | C35: =VLOOKUP(B35,'A1'!$Y$2:$Z$102,2,0) ->  | D35: =SUM(E35:N35) -> 0 | E35: =IF(ISNA(VLOOKUP($B35,'D2'!$BR$460:$CG$491,4,0)),0,VLOOKUP($B35,'D2'!$BR$460:$CG$491,4,0)) -> 0 | F35: =IF(ISNA(VLOOKUP($B35,'D2'!$BR$460:$CG$491,5,0)),0,VLOOKUP($B35,'D2'!$BR$460:$CG$491,5,0)) -> 0 | G35: =IF(ISNA(VLOOKUP($B35,'D2'!$BR$460:$CG$491,6,0)),0,VLOOKUP($B35,'D2'!$BR$460:$CG$491,6,0)) -> 0 | H35: =IF(ISNA(VLOOKUP($B35,'D2'!$BR$460:$CG$491,7,0)),0,VLOOKUP($B35,'D2'!$BR$460:$CG$491,7,0)) -> 0 | I35: =IF(ISNA(VLOOKUP($B35,'D2'!$BR$460:$CG$491,8,0)),0,VLOOKUP($B35,'D2'!$BR$460:$CG$491,8,0)) -> 0 | J35: =IF(ISNA(VLOOKUP($B35,'D2'!$BR$460:$CG$491,9,0)),0,VLOOKUP($B35,'D2'!$BR$460:$CG$491,9,0)) -> 0 | K35: =IF(ISNA(VLOOKUP($B35,'D2'!$BR$460:$CG$491,10,0)),0,VLOOKUP($B35,'D2'!$BR$460:$CG$491,10,0)) -> 0 | L35: =IF(ISNA(VLOOKUP($B35,'D2'!$BR$460:$CG$491,11,0)),0,VLOOKUP($B35,'D2'!$BR$460:$CG$491,11,0)) -> 0 | M35: =IF(ISNA(VLOOKUP($B35,'D2'!$BR$460:$CG$491,12,0)),0,VLOOKUP($B35,'D2'!$BR$460:$CG$491,12,0)) -> 0 | N35: =IF(ISNA(VLOOKUP($B35,'D2'!$BR$460:$CG$491,13,0)),0,VLOOKUP($B35,'D2'!$BR$460:$CG$491,13,0)) -> 0 | O35: =(+E35*0+F35*1+G35*2+H35*3+I35*4+J35*5+K35*6+L35*7+M35*8+N35*9)/SUM(E35:N35) ->  | P35: =IF(+O37*$S$9/100<0,0,+O37*$S$9/100) ->  | Q35: =SUM(E35:N35) -> 0 | R35: =+Q35-D35+AU35 -> 0 | S35: =IF(ISNA(VLOOKUP($B35,'D2'!$BR$460:$CG$491,14,0)),0,VLOOKUP($B35,'D2'!$BR$460:$CG$491,14,0)) -> 0 | T35: =IF(O35>P35,1,0) ->  | U35: =IF(O35<=O37,1,0) ->  | V35: =SUM(T35:U35) ->  | W35: =+D37 -> 0 | X35: 0 | Y35: 0 | Z35: 0 | AA35: 0 | AB35: 0 | AC35: 0 | AD35: 0 | AE35: 0 | AF35: 0 | AG35: 0 | AI35: =+D36 -> 0 | AJ35: 0 | AK35: 0 | AL35: 0 | AM35: 0 | AN35: 0 | AO35: 0 | AP35: 0 | AQ35: 0 | AR35: 0 | AS35: 0 | AU35: =+D35-SUM(E35:N35) -> 0 | AV35: =SUM(E35:M35)/SUM(E35:N35)*100 ->  | BJ35: 7103 | BK35: Kerja Paip Domestik | BL35: 7103 | BM35: =+A35 -> 9 | BN35: =+D36 -> 0 | BO35: 0 | BP35: 0 | BQ35: 0 | BR35: 0 | BS35: 0 | BT35: 0 | BU35: 0 | BV35: 0 | BW35: 0 | BX35: 0 | BY35: =+B35 ->  | CC35: 25 | CK35: =+CK32+1 -> 9
Q36: 0 | R36: =+Q36-D36 -> 0 | T36: =IF(O36>P35,1,0) ->  | U36: =IF(O36<=O37,1,0) ->  | BJ36: 9216 | BK36: Kesusasteraan Cina | BL36: 9216 | CC36: 26
D37: =IF(ISNA(VLOOKUP(CONCATENATE($B$5,$B35),'A1'!$D$2:$T$3311,5,0)),0,VLOOKUP(CONCATENATE($B$5,$B35),'A1'!$D$2:$T$3311,5,0)) -> 0 | E37: =IF(ISNA(VLOOKUP(CONCATENATE($B$5,$B35),'A1'!$D$2:$T$3311,6,0)),0,VLOOKUP(CONCATENATE($B$5,$B35),'A1'!$D$2:$T$3311,6,0)) -> 0 | F37: =IF(ISNA(VLOOKUP(CONCATENATE($B$5,$B35),'A1'!$D$2:$T$3311,7,0)),0,VLOOKUP(CONCATENATE($B$5,$B35),'A1'!$D$2:$T$3311,7,0)) -> 0 | G37: =IF(ISNA(VLOOKUP(CONCATENATE($B$5,$B35),'A1'!$D$2:$T$3311,8,0)),0,VLOOKUP(CONCATENATE($B$5,$B35),'A1'!$D$2:$T$3311,8,0)) -> 0 | H37: =IF(ISNA(VLOOKUP(CONCATENATE($B$5,$B35),'A1'!$D$2:$T$3311,9,0)),0,VLOOKUP(CONCATENATE($B$5,$B35),'A1'!$D$2:$T$3311,9,0)) -> 0 | I37: =IF(ISNA(VLOOKUP(CONCATENATE($B$5,$B35),'A1'!$D$2:$T$3311,10,0)),0,VLOOKUP(CONCATENATE($B$5,$B35),'A1'!$D$2:$T$3311,10,0)) -> 0 | J37: =IF(ISNA(VLOOKUP(CONCATENATE($B$5,$B35),'A1'!$D$2:$T$3311,11,0)),0,VLOOKUP(CONCATENATE($B$5,$B35),'A1'!$D$2:$T$3311,11,0)) -> 0 | K37: =IF(ISNA(VLOOKUP(CONCATENATE($B$5,$B35),'A1'!$D$2:$T$3311,12,0)),0,VLOOKUP(CONCATENATE($B$5,$B35),'A1'!$D$2:$T$3311,12,0)) -> 0 | L37: =IF(ISNA(VLOOKUP(CONCATENATE($B$5,$B35),'A1'!$D$2:$T$3311,13,0)),0,VLOOKUP(CONCATENATE($B$5,$B35),'A1'!$D$2:$T$3311,13,0)) -> 0 | M37: =IF(ISNA(VLOOKUP(CONCATENATE($B$5,$B35),'A1'!$D$2:$T$3311,14,0)),0,VLOOKUP(CONCATENATE($B$5,$B35),'A1'!$D$2:$T$3311,14,0)) -> 0 | N37: =IF(ISNA(VLOOKUP(CONCATENATE($B$5,$B35),'A1'!$D$2:$T$3311,15,0)),0,VLOOKUP(CONCATENATE($B$5,$B35),'A1'!$D$2:$T$3311,15,0)) -> 0 | BJ37: 2215 | BK37: Kesusasteraan Melayu | BL37: 2215 | CC37: 27
A38: =IF(ISNA(B38),A35,A35+1) -> 9 | B38: =VLOOKUP(CK38,'A1'!$W$2:$Y$102,3,0) ->  | C38: =VLOOKUP(B38,'A1'!$Y$2:$Z$102,2,0) ->  | D38: =SUM(E38:N38) -> 0 | E38: =IF(ISNA(VLOOKUP($B38,'D2'!$BR$460:$CG$491,4,0)),0,VLOOKUP($B38,'D2'!$BR$460:$CG$491,4,0)) -> 0 | F38: =IF(ISNA(VLOOKUP($B38,'D2'!$BR$460:$CG$491,5,0)),0,VLOOKUP($B38,'D2'!$BR$460:$CG$491,5,0)) -> 0 | G38: =IF(ISNA(VLOOKUP($B38,'D2'!$BR$460:$CG$491,6,0)),0,VLOOKUP($B38,'D2'!$BR$460:$CG$491,6,0)) -> 0 | H38: =IF(ISNA(VLOOKUP($B38,'D2'!$BR$460:$CG$491,7,0)),0,VLOOKUP($B38,'D2'!$BR$460:$CG$491,7,0)) -> 0 | I38: =IF(ISNA(VLOOKUP($B38,'D2'!$BR$460:$CG$491,8,0)),0,VLOOKUP($B38,'D2'!$BR$460:$CG$491,8,0)) -> 0 | J38: =IF(ISNA(VLOOKUP($B38,'D2'!$BR$460:$CG$491,9,0)),0,VLOOKUP($B38,'D2'!$BR$460:$CG$491,9,0)) -> 0 | K38: =IF(ISNA(VLOOKUP($B38,'D2'!$BR$460:$CG$491,10,0)),0,VLOOKUP($B38,'D2'!$BR$460:$CG$491,10,0)) -> 0 | L38: =IF(ISNA(VLOOKUP($B38,'D2'!$BR$460:$CG$491,11,0)),0,VLOOKUP($B38,'D2'!$BR$460:$CG$491,11,0)) -> 0 | M38: =IF(ISNA(VLOOKUP($B38,'D2'!$BR$460:$CG$491,12,0)),0,VLOOKUP($B38,'D2'!$BR$460:$CG$491,12,0)) -> 0 | N38: =IF(ISNA(VLOOKUP($B38,'D2'!$BR$460:$CG$491,13,0)),0,VLOOKUP($B38,'D2'!$BR$460:$CG$491,13,0)) -> 0 | O38: =(+E38*0+F38*1+G38*2+H38*3+I38*4+J38*5+K38*6+L38*7+M38*8+N38*9)/SUM(E38:N38) ->  | P38: =IF(+O40*$S$9/100<0,0,+O40*$S$9/100) ->  | Q38: =SUM(E38:N38) -> 0 | R38: =+Q38-D38+AU38 -> 0 | S38: =IF(ISNA(VLOOKUP($B38,'D2'!$BR$460:$CG$491,14,0)),0,VLOOKUP($B38,'D2'!$BR$460:$CG$491,14,0)) -> 0 | T38: =IF(O38>P38,1,0) ->  | U38: =IF(O38<=O40,1,0) ->  | V38: =SUM(T38:U38) ->  | W38: =+D40 -> 0 | X38: 0 | Y38: 0 | Z38: 0 | AA38: 0 | AB38: 0 | AC38: 0 | AD38: 0 | AE38: 0 | AF38: 0 | AG38: 0 | AI38: =+D39 -> 0 | AJ38: 0 | AK38: 0 | AL38: 0 | AM38: 0 | AN38: 0 | AO38: 0 | AP38: 0 | AQ38: 0 | AR38: 0 | AS38: 0 | AU38: =+D38-SUM(E38:N38) -> 0 | AV38: =SUM(E38:M38)/SUM(E38:N38)*100 ->  | BJ38: 9217 | BK38: Kesusasteraan Tamil | BL38: 9217 | BM38: =+A38 -> 9 | BN38: =+D39 -> 0 | BO38: 0 | BP38: 0 | BQ38: 0 | BR38: 0 | BS38: 0 | BT38: 0 | BU38: 0 | BV38: 0 | BW38: 0 | BX38: 0 | BY38: =+B38 ->  | CC38: 28 | CK38: =+CK35+1 -> 10
Q39: 0 | R39: =+Q39-D39 -> 0 | T39: =IF(O39>P38,1,0) ->  | U39: =IF(O39<=O40,1,0) ->  | BJ39: 8005 | BK39: KIMIA DLP | BL39: 8005 | CC39: 29
D40: =IF(ISNA(VLOOKUP(CONCATENATE($B$5,$B38),'A1'!$D$2:$T$3311,5,0)),0,VLOOKUP(CONCATENATE($B$5,$B38),'A1'!$D$2:$T$3311,5,0)) -> 0 | E40: =IF(ISNA(VLOOKUP(CONCATENATE($B$5,$B38),'A1'!$D$2:$T$3311,6,0)),0,VLOOKUP(CONCATENATE($B$5,$B38),'A1'!$D$2:$T$3311,6,0)) -> 0 | F40: =IF(ISNA(VLOOKUP(CONCATENATE($B$5,$B38),'A1'!$D$2:$T$3311,7,0)),0,VLOOKUP(CONCATENATE($B$5,$B38),'A1'!$D$2:$T$3311,7,0)) -> 0 | G40: =IF(ISNA(VLOOKUP(CONCATENATE($B$5,$B38),'A1'!$D$2:$T$3311,8,0)),0,VLOOKUP(CONCATENATE($B$5,$B38),'A1'!$D$2:$T$3311,8,0)) -> 0 | H40: =IF(ISNA(VLOOKUP(CONCATENATE($B$5,$B38),'A1'!$D$2:$T$3311,9,0)),0,VLOOKUP(CONCATENATE($B$5,$B38),'A1'!$D$2:$T$3311,9,0)) -> 0 | I40: =IF(ISNA(VLOOKUP(CONCATENATE($B$5,$B38),'A1'!$D$2:$T$3311,10,0)),0,VLOOKUP(CONCATENATE($B$5,$B38),'A1'!$D$2:$T$3311,10,0)) -> 0 | J40: =IF(ISNA(VLOOKUP(CONCATENATE($B$5,$B38),'A1'!$D$2:$T$3311,11,0)),0,VLOOKUP(CONCATENATE($B$5,$B38),'A1'!$D$2:$T$3311,11,0)) -> 0 | K40: =IF(ISNA(VLOOKUP(CONCATENATE($B$5,$B38),'A1'!$D$2:$T$3311,12,0)),0,VLOOKUP(CONCATENATE($B$5,$B38),'A1'!$D$2:$T$3311,12,0)) -> 0 | L40: =IF(ISNA(VLOOKUP(CONCATENATE($B$5,$B38),'A1'!$D$2:$T$3311,13,0)),0,VLOOKUP(CONCATENATE($B$5,$B38),'A1'!$D$2:$T$3311,13,0)) -> 0 | M40: =IF(ISNA(VLOOKUP(CONCATENATE($B$5,$B38),'A1'!$D$2:$T$3311,14,0)),0,VLOOKUP(CONCATENATE($B$5,$B38),'A1'!$D$2:$T$3311,14,0)) -> 0 | N40: =IF(ISNA(VLOOKUP(CONCATENATE($B$5,$B38),'A1'!$D$2:$T$3311,15,0)),0,VLOOKUP(CONCATENATE($B$5,$B38),'A1'!$D$2:$T$3311,15,0)) -> 0 | BJ40: 7105 | BK40: Kimpalan Arka dan Gas | BL40: 7105 | CC40: 30
A41: =IF(ISNA(B41),A38,A38+1) -> 9 | B41: =VLOOKUP(CK41,'A1'!$W$2:$Y$102,3,0) ->  | C41: =VLOOKUP(B41,'A1'!$Y$2:$Z$102,2,0) ->  | D41: =SUM(E41:N41) -> 0 | E41: =IF(ISNA(VLOOKUP($B41,'D2'!$BR$460:$CG$491,4,0)),0,VLOOKUP($B41,'D2'!$BR$460:$CG$491,4,0)) -> 0 | F41: =IF(ISNA(VLOOKUP($B41,'D2'!$BR$460:$CG$491,5,0)),0,VLOOKUP($B41,'D2'!$BR$460:$CG$491,5,0)) -> 0 | G41: =IF(ISNA(VLOOKUP($B41,'D2'!$BR$460:$CG$491,6,0)),0,VLOOKUP($B41,'D2'!$BR$460:$CG$491,6,0)) -> 0 | H41: =IF(ISNA(VLOOKUP($B41,'D2'!$BR$460:$CG$491,7,0)),0,VLOOKUP($B41,'D2'!$BR$460:$CG$491,7,0)) -> 0 | I41: =IF(ISNA(VLOOKUP($B41,'D2'!$BR$460:$CG$491,8,0)),0,VLOOKUP($B41,'D2'!$BR$460:$CG$491,8,0)) -> 0 | J41: =IF(ISNA(VLOOKUP($B41,'D2'!$BR$460:$CG$491,9,0)),0,VLOOKUP($B41,'D2'!$BR$460:$CG$491,9,0)) -> 0 | K41: =IF(ISNA(VLOOKUP($B41,'D2'!$BR$460:$CG$491,10,0)),0,VLOOKUP($B41,'D2'!$BR$460:$CG$491,10,0)) -> 0 | L41: =IF(ISNA(VLOOKUP($B41,'D2'!$BR$460:$CG$491,11,0)),0,VLOOKUP($B41,'D2'!$BR$460:$CG$491,11,0)) -> 0 | M41: =IF(ISNA(VLOOKUP($B41,'D2'!$BR$460:$CG$491,12,0)),0,VLOOKUP($B41,'D2'!$BR$460:$CG$491,12,0)) -> 0 | N41: =IF(ISNA(VLOOKUP($B41,'D2'!$BR$460:$CG$491,13,0)),0,VLOOKUP($B41,'D2'!$BR$460:$CG$491,13,0)) -> 0 | O41: =(+E41*0+F41*1+G41*2+H41*3+I41*4+J41*5+K41*6+L41*7+M41*8+N41*9)/SUM(E41:N41) ->  | P41: =IF(+O43*$S$9/100<0,0,+O43*$S$9/100) ->  | Q41: =SUM(E41:N41) -> 0 | R41: =+Q41-D41+AU41 -> 0 | S41: =IF(ISNA(VLOOKUP($B41,'D2'!$BR$460:$CG$491,14,0)),0,VLOOKUP($B41,'D2'!$BR$460:$CG$491,14,0)) -> 0 | T41: =IF(O41>P41,1,0) ->  | U41: =IF(O41<=O43,1,0) ->  | V41: =SUM(T41:U41) ->  | W41: =+D43 -> 0 | X41: 0 | Y41: 0 | Z41: 0 | AA41: 0 | AB41: 0 | AC41: 0 | AD41: 0 | AE41: 0 | AF41: 0 | AG41: 0 | AI41: =+D42 -> 0 | AJ41: 0 | AK41: 0 | AL41: 0 | AM41: 0 | AN41: 0 | AO41: 0 | AP41: 0 | AQ41: 0 | AR41: 0 | AS41: 0 | AU41: =+D41-SUM(E41:N41) -> 0 | AV41: =SUM(E41:M41)/SUM(E41:N41)*100 ->  | BJ41: 7301 | BK41: Lanskap dan Nurseri | BL41: 7301 | BM41: =+A41 -> 9 | BN41: =+D42 -> 0 | BO41: 0 | BP41: 0 | BQ41: 0 | BR41: 0 | BS41: 0 | BT41: 0 | BU41: 0 | BV41: 0 | BW41: 0 | BX41: 0 | BY41: =+B41 ->  | CK41: =+CK38+1 -> 11
Q42: 0 | R42: =+Q42-D42 -> 0 | T42: =IF(O42>P41,1,0) ->  | U42: =IF(O42<=O43,1,0) ->  | BJ42: 2205 | BK42: Literature in English | BL42: 2205
D43: =IF(ISNA(VLOOKUP(CONCATENATE($B$5,$B41),'A1'!$D$2:$T$3311,5,0)),0,VLOOKUP(CONCATENATE($B$5,$B41),'A1'!$D$2:$T$3311,5,0)) -> 0 | E43: =IF(ISNA(VLOOKUP(CONCATENATE($B$5,$B41),'A1'!$D$2:$T$3311,6,0)),0,VLOOKUP(CONCATENATE($B$5,$B41),'A1'!$D$2:$T$3311,6,0)) -> 0 | F43: =IF(ISNA(VLOOKUP(CONCATENATE($B$5,$B41),'A1'!$D$2:$T$3311,7,0)),0,VLOOKUP(CONCATENATE($B$5,$B41),'A1'!$D$2:$T$3311,7,0)) -> 0 | G43: =IF(ISNA(VLOOKUP(CONCATENATE($B$5,$B41),'A1'!$D$2:$T$3311,8,0)),0,VLOOKUP(CONCATENATE($B$5,$B41),'A1'!$D$2:$T$3311,8,0)) -> 0 | H43: =IF(ISNA(VLOOKUP(CONCATENATE($B$5,$B41),'A1'!$D$2:$T$3311,9,0)),0,VLOOKUP(CONCATENATE($B$5,$B41),'A1'!$D$2:$T$3311,9,0)) -> 0 | I43: =IF(ISNA(VLOOKUP(CONCATENATE($B$5,$B41),'A1'!$D$2:$T$3311,10,0)),0,VLOOKUP(CONCATENATE($B$5,$B41),'A1'!$D$2:$T$3311,10,0)) -> 0 | J43: =IF(ISNA(VLOOKUP(CONCATENATE($B$5,$B41),'A1'!$D$2:$T$3311,11,0)),0,VLOOKUP(CONCATENATE($B$5,$B41),'A1'!$D$2:$T$3311,11,0)) -> 0 | K43: =IF(ISNA(VLOOKUP(CONCATENATE($B$5,$B41),'A1'!$D$2:$T$3311,12,0)),0,VLOOKUP(CONCATENATE($B$5,$B41),'A1'!$D$2:$T$3311,12,0)) -> 0 | L43: =IF(ISNA(VLOOKUP(CONCATENATE($B$5,$B41),'A1'!$D$2:$T$3311,13,0)),0,VLOOKUP(CONCATENATE($B$5,$B41),'A1'!$D$2:$T$3311,13,0)) -> 0 | M43: =IF(ISNA(VLOOKUP(CONCATENATE($B$5,$B41),'A1'!$D$2:$T$3311,14,0)),0,VLOOKUP(CONCATENATE($B$5,$B41),'A1'!$D$2:$T$3311,14,0)) -> 0 | N43: =IF(ISNA(VLOOKUP(CONCATENATE($B$5,$B41),'A1'!$D$2:$T$3311,15,0)),0,VLOOKUP(CONCATENATE($B$5,$B41),'A1'!$D$2:$T$3311,15,0)) -> 0 | BJ43: 3759 | BK43: Lukisan Kejuruteraan | BL43: 3759
A44: =IF(ISNA(B44),A41,A41+1) -> 9 | B44: =VLOOKUP(CK44,'A1'!$W$2:$Y$102,3,0) ->  | C44: =VLOOKUP(B44,'A1'!$Y$2:$Z$102,2,0) ->  | D44: =SUM(E44:N44) -> 0 | E44: =IF(ISNA(VLOOKUP($B44,'D2'!$BR$460:$CG$491,4,0)),0,VLOOKUP($B44,'D2'!$BR$460:$CG$491,4,0)) -> 0 | F44: =IF(ISNA(VLOOKUP($B44,'D2'!$BR$460:$CG$491,5,0)),0,VLOOKUP($B44,'D2'!$BR$460:$CG$491,5,0)) -> 0 | G44: =IF(ISNA(VLOOKUP($B44,'D2'!$BR$460:$CG$491,6,0)),0,VLOOKUP($B44,'D2'!$BR$460:$CG$491,6,0)) -> 0 | H44: =IF(ISNA(VLOOKUP($B44,'D2'!$BR$460:$CG$491,7,0)),0,VLOOKUP($B44,'D2'!$BR$460:$CG$491,7,0)) -> 0 | I44: =IF(ISNA(VLOOKUP($B44,'D2'!$BR$460:$CG$491,8,0)),0,VLOOKUP($B44,'D2'!$BR$460:$CG$491,8,0)) -> 0 | J44: =IF(ISNA(VLOOKUP($B44,'D2'!$BR$460:$CG$491,9,0)),0,VLOOKUP($B44,'D2'!$BR$460:$CG$491,9,0)) -> 0 | K44: =IF(ISNA(VLOOKUP($B44,'D2'!$BR$460:$CG$491,10,0)),0,VLOOKUP($B44,'D2'!$BR$460:$CG$491,10,0)) -> 0 | L44: =IF(ISNA(VLOOKUP($B44,'D2'!$BR$460:$CG$491,11,0)),0,VLOOKUP($B44,'D2'!$BR$460:$CG$491,11,0)) -> 0 | M44: =IF(ISNA(VLOOKUP($B44,'D2'!$BR$460:$CG$491,12,0)),0,VLOOKUP($B44,'D2'!$BR$460:$CG$491,12,0)) -> 0 | N44: =IF(ISNA(VLOOKUP($B44,'D2'!$BR$460:$CG$491,13,0)),0,VLOOKUP($B44,'D2'!$BR$460:$CG$491,13,0)) -> 0 | O44: =(+E44*0+F44*1+G44*2+H44*3+I44*4+J44*5+K44*6+L44*7+M44*8+N44*9)/SUM(E44:N44) ->  | P44: =IF(+O46*$S$9/100<0,0,+O46*$S$9/100) ->  | Q44: =SUM(E44:N44) -> 0 | R44: =+Q44-D44+AU44 -> 0 | S44: =IF(ISNA(VLOOKUP($B44,'D2'!$BR$460:$CG$491,14,0)),0,VLOOKUP($B44,'D2'!$BR$460:$CG$491,14,0)) -> 0 | T44: =IF(O44>P44,1,0) ->  | U44: =IF(O44<=O46,1,0) ->  | V44: =SUM(T44:U44) ->  | W44: =+D46 -> 0 | X44: 0 | Y44: 0 | Z44: 0 | AA44: 0 | AB44: 0 | AC44: 0 | AD44: 0 | AE44: 0 | AF44: 0 | AG44: 0 | AI44: =+D45 -> 0 | AJ44: 0 | AK44: 0 | AL44: 0 | AM44: 0 | AN44: 0 | AO44: 0 | AP44: 0 | AQ44: 0 | AR44: 0 | AS44: 0 | AU44: =+D44-SUM(E44:N44) -> 0 | AV44: =SUM(E44:M44)/SUM(E44:N44)*100 ->  | BJ44: 8011 | BK44: MAHARAT AL-QURAN | BL44: 8011 | BM44: =+A44 -> 9 | BN44: =+D45 -> 0 | BO44: 0 | BP44: 0 | BQ44: 0 | BR44: 0 | BS44: 0 | BT44: 0 | BU44: 0 | BV44: 0 | BW44: 0 | BX44: 0 | BY44: =+B44 ->  | CK44: =+CK41+1 -> 12
Q45: 0 | R45: =+Q45-D45 -> 0 | T45: =IF(O45>P44,1,0) ->  | U45: =IF(O45<=O46,1,0) ->  | BJ45: 8003 | BK45: Matematik DLP | BL45: 8003
D46: =IF(ISNA(VLOOKUP(CONCATENATE($B$5,$B44),'A1'!$D$2:$T$3311,5,0)),0,VLOOKUP(CONCATENATE($B$5,$B44),'A1'!$D$2:$T$3311,5,0)) -> 0 | E46: =IF(ISNA(VLOOKUP(CONCATENATE($B$5,$B44),'A1'!$D$2:$T$3311,6,0)),0,VLOOKUP(CONCATENATE($B$5,$B44),'A1'!$D$2:$T$3311,6,0)) -> 0 | F46: =IF(ISNA(VLOOKUP(CONCATENATE($B$5,$B44),'A1'!$D$2:$T$3311,7,0)),0,VLOOKUP(CONCATENATE($B$5,$B44),'A1'!$D$2:$T$3311,7,0)) -> 0 | G46: =IF(ISNA(VLOOKUP(CONCATENATE($B$5,$B44),'A1'!$D$2:$T$3311,8,0)),0,VLOOKUP(CONCATENATE($B$5,$B44),'A1'!$D$2:$T$3311,8,0)) -> 0 | H46: =IF(ISNA(VLOOKUP(CONCATENATE($B$5,$B44),'A1'!$D$2:$T$3311,9,0)),0,VLOOKUP(CONCATENATE($B$5,$B44),'A1'!$D$2:$T$3311,9,0)) -> 0 | I46: =IF(ISNA(VLOOKUP(CONCATENATE($B$5,$B44),'A1'!$D$2:$T$3311,10,0)),0,VLOOKUP(CONCATENATE($B$5,$B44),'A1'!$D$2:$T$3311,10,0)) -> 0 | J46: =IF(ISNA(VLOOKUP(CONCATENATE($B$5,$B44),'A1'!$D$2:$T$3311,11,0)),0,VLOOKUP(CONCATENATE($B$5,$B44),'A1'!$D$2:$T$3311,11,0)) -> 0 | K46: =IF(ISNA(VLOOKUP(CONCATENATE($B$5,$B44),'A1'!$D$2:$T$3311,12,0)),0,VLOOKUP(CONCATENATE($B$5,$B44),'A1'!$D$2:$T$3311,12,0)) -> 0 | L46: =IF(ISNA(VLOOKUP(CONCATENATE($B$5,$B44),'A1'!$D$2:$T$3311,13,0)),0,VLOOKUP(CONCATENATE($B$5,$B44),'A1'!$D$2:$T$3311,13,0)) -> 0 | M46: =IF(ISNA(VLOOKUP(CONCATENATE($B$5,$B44),'A1'!$D$2:$T$3311,14,0)),0,VLOOKUP(CONCATENATE($B$5,$B44),'A1'!$D$2:$T$3311,14,0)) -> 0 | N46: =IF(ISNA(VLOOKUP(CONCATENATE($B$5,$B44),'A1'!$D$2:$T$3311,15,0)),0,VLOOKUP(CONCATENATE($B$5,$B44),'A1'!$D$2:$T$3311,15,0)) -> 0 | BJ46: 8002 | BK46: Matematik Tambahan DLP | BL46: 8002
A47: =IF(ISNA(B47),A44,A44+1) -> 9 | B47: =VLOOKUP(CK47,'A1'!$W$2:$Y$102,3,0) ->  | C47: =VLOOKUP(B47,'A1'!$Y$2:$Z$102,2,0) ->  | D47: =SUM(E47:N47) -> 0 | E47: =IF(ISNA(VLOOKUP($B47,'D2'!$BR$460:$CG$491,4,0)),0,VLOOKUP($B47,'D2'!$BR$460:$CG$491,4,0)) -> 0 | F47: =IF(ISNA(VLOOKUP($B47,'D2'!$BR$460:$CG$491,5,0)),0,VLOOKUP($B47,'D2'!$BR$460:$CG$491,5,0)) -> 0 | G47: =IF(ISNA(VLOOKUP($B47,'D2'!$BR$460:$CG$491,6,0)),0,VLOOKUP($B47,'D2'!$BR$460:$CG$491,6,0)) -> 0 | H47: =IF(ISNA(VLOOKUP($B47,'D2'!$BR$460:$CG$491,7,0)),0,VLOOKUP($B47,'D2'!$BR$460:$CG$491,7,0)) -> 0 | I47: =IF(ISNA(VLOOKUP($B47,'D2'!$BR$460:$CG$491,8,0)),0,VLOOKUP($B47,'D2'!$BR$460:$CG$491,8,0)) -> 0 | J47: =IF(ISNA(VLOOKUP($B47,'D2'!$BR$460:$CG$491,9,0)),0,VLOOKUP($B47,'D2'!$BR$460:$CG$491,9,0)) -> 0 | K47: =IF(ISNA(VLOOKUP($B47,'D2'!$BR$460:$CG$491,10,0)),0,VLOOKUP($B47,'D2'!$BR$460:$CG$491,10,0)) -> 0 | L47: =IF(ISNA(VLOOKUP($B47,'D2'!$BR$460:$CG$491,11,0)),0,VLOOKUP($B47,'D2'!$BR$460:$CG$491,11,0)) -> 0 | M47: =IF(ISNA(VLOOKUP($B47,'D2'!$BR$460:$CG$491,12,0)),0,VLOOKUP($B47,'D2'!$BR$460:$CG$491,12,0)) -> 0 | N47: =IF(ISNA(VLOOKUP($B47,'D2'!$BR$460:$CG$491,13,0)),0,VLOOKUP($B47,'D2'!$BR$460:$CG$491,13,0)) -> 0 | O47: =(+E47*0+F47*1+G47*2+H47*3+I47*4+J47*5+K47*6+L47*7+M47*8+N47*9)/SUM(E47:N47) ->  | P47: =IF(+O49*$S$9/100<0,0,+O49*$S$9/100) ->  | Q47: =SUM(E47:N47) -> 0 | R47: =+Q47-D47+AU47 -> 0 | S47: =IF(ISNA(VLOOKUP($B47,'D2'!$BR$460:$CG$491,14,0)),0,VLOOKUP($B47,'D2'!$BR$460:$CG$491,14,0)) -> 0 | T47: =IF(O47>P47,1,0) ->  | U47: =IF(O47<=O49,1,0) ->  | V47: =SUM(T47:U47) ->  | W47: =+D49 -> 0 | X47: 0 | Y47: 0 | Z47: 0 | AA47: 0 | AB47: 0 | AC47: 0 | AD47: 0 | AE47: 0 | AF47: 0 | AG47: 0 | AI47: =+D48 -> 0 | AJ47: 0 | AK47: 0 | AL47: 0 | AM47: 0 | AN47: 0 | AO47: 0 | AP47: 0 | AQ47: 0 | AR47: 0 | AS47: 0 | AU47: =+D47-SUM(E47:N47) -> 0 | AV47: =SUM(E47:M47)/SUM(E47:N47)*100 ->  | BJ47: 1449 | BK47: Mathematics | BL47: 1449 | BM47: =+A47 -> 9 | BN47: =+D48 -> 0 | BO47: 0 | BP47: 0 | BQ47: 0 | BR47: 0 | BS47: 0 | BT47: 0 | BU47: 0 | BV47: 0 | BW47: 0 | BX47: 0 | BY47: =+B47 ->  | CK47: =+CK44+1 -> 13
Q48: 0 | R48: =+Q48-D48 -> 0 | T48: =IF(O48>P47,1,0) ->  | U48: =IF(O48<=O49,1,0) ->  | BJ48: 7102 | BK48: Membuat Perabot | BL48: 7102
D49: =IF(ISNA(VLOOKUP(CONCATENATE($B$5,$B47),'A1'!$D$2:$T$3311,5,0)),0,VLOOKUP(CONCATENATE($B$5,$B47),'A1'!$D$2:$T$3311,5,0)) -> 0 | E49: =IF(ISNA(VLOOKUP(CONCATENATE($B$5,$B47),'A1'!$D$2:$T$3311,6,0)),0,VLOOKUP(CONCATENATE($B$5,$B47),'A1'!$D$2:$T$3311,6,0)) -> 0 | F49: =IF(ISNA(VLOOKUP(CONCATENATE($B$5,$B47),'A1'!$D$2:$T$3311,7,0)),0,VLOOKUP(CONCATENATE($B$5,$B47),'A1'!$D$2:$T$3311,7,0)) -> 0 | G49: =IF(ISNA(VLOOKUP(CONCATENATE($B$5,$B47),'A1'!$D$2:$T$3311,8,0)),0,VLOOKUP(CONCATENATE($B$5,$B47),'A1'!$D$2:$T$3311,8,0)) -> 0 | H49: =IF(ISNA(VLOOKUP(CONCATENATE($B$5,$B47),'A1'!$D$2:$T$3311,9,0)),0,VLOOKUP(CONCATENATE($B$5,$B47),'A1'!$D$2:$T$3311,9,0)) -> 0 | I49: =IF(ISNA(VLOOKUP(CONCATENATE($B$5,$B47),'A1'!$D$2:$T$3311,10,0)),0,VLOOKUP(CONCATENATE($B$5,$B47),'A1'!$D$2:$T$3311,10,0)) -> 0 | J49: =IF(ISNA(VLOOKUP(CONCATENATE($B$5,$B47),'A1'!$D$2:$T$3311,11,0)),0,VLOOKUP(CONCATENATE($B$5,$B47),'A1'!$D$2:$T$3311,11,0)) -> 0 | K49: =IF(ISNA(VLOOKUP(CONCATENATE($B$5,$B47),'A1'!$D$2:$T$3311,12,0)),0,VLOOKUP(CONCATENATE($B$5,$B47),'A1'!$D$2:$T$3311,12,0)) -> 0 | L49: =IF(ISNA(VLOOKUP(CONCATENATE($B$5,$B47),'A1'!$D$2:$T$3311,13,0)),0,VLOOKUP(CONCATENATE($B$5,$B47),'A1'!$D$2:$T$3311,13,0)) -> 0 | M49: =IF(ISNA(VLOOKUP(CONCATENATE($B$5,$B47),'A1'!$D$2:$T$3311,14,0)),0,VLOOKUP(CONCATENATE($B$5,$B47),'A1'!$D$2:$T$3311,14,0)) -> 0 | N49: =IF(ISNA(VLOOKUP(CONCATENATE($B$5,$B47),'A1'!$D$2:$T$3311,15,0)),0,VLOOKUP(CONCATENATE($B$5,$B47),'A1'!$D$2:$T$3311,15,0)) -> 0 | BJ49: 7106 | BK49: Menservis Automobil | BL49: 7106
A50: =IF(ISNA(B50),A47,A47+1) -> 9 | B50: =VLOOKUP(CK50,'A1'!$W$2:$Y$102,3,0) ->  | C50: =VLOOKUP(B50,'A1'!$Y$2:$Z$102,2,0) ->  | D50: =SUM(E50:N50) -> 0 | E50: =IF(ISNA(VLOOKUP($B50,'D2'!$BR$460:$CG$491,4,0)),0,VLOOKUP($B50,'D2'!$BR$460:$CG$491,4,0)) -> 0 | F50: =IF(ISNA(VLOOKUP($B50,'D2'!$BR$460:$CG$491,5,0)),0,VLOOKUP($B50,'D2'!$BR$460:$CG$491,5,0)) -> 0 | G50: =IF(ISNA(VLOOKUP($B50,'D2'!$BR$460:$CG$491,6,0)),0,VLOOKUP($B50,'D2'!$BR$460:$CG$491,6,0)) -> 0 | H50: =IF(ISNA(VLOOKUP($B50,'D2'!$BR$460:$CG$491,7,0)),0,VLOOKUP($B50,'D2'!$BR$460:$CG$491,7,0)) -> 0 | I50: =IF(ISNA(VLOOKUP($B50,'D2'!$BR$460:$CG$491,8,0)),0,VLOOKUP($B50,'D2'!$BR$460:$CG$491,8,0)) -> 0 | J50: =IF(ISNA(VLOOKUP($B50,'D2'!$BR$460:$CG$491,9,0)),0,VLOOKUP($B50,'D2'!$BR$460:$CG$491,9,0)) -> 0 | K50: =IF(ISNA(VLOOKUP($B50,'D2'!$BR$460:$CG$491,10,0)),0,VLOOKUP($B50,'D2'!$BR$460:$CG$491,10,0)) -> 0 | L50: =IF(ISNA(VLOOKUP($B50,'D2'!$BR$460:$CG$491,11,0)),0,VLOOKUP($B50,'D2'!$BR$460:$CG$491,11,0)) -> 0 | M50: =IF(ISNA(VLOOKUP($B50,'D2'!$BR$460:$CG$491,12,0)),0,VLOOKUP($B50,'D2'!$BR$460:$CG$491,12,0)) -> 0 | N50: =IF(ISNA(VLOOKUP($B50,'D2'!$BR$460:$CG$491,13,0)),0,VLOOKUP($B50,'D2'!$BR$460:$CG$491,13,0)) -> 0 | O50: =(+E50*0+F50*1+G50*2+H50*3+I50*4+J50*5+K50*6+L50*7+M50*8+N50*9)/SUM(E50:N50) ->  | P50: =IF(+O52*$S$9/100<0,0,+O52*$S$9/100) ->  | Q50: =SUM(E50:N50) -> 0 | R50: =+Q50-D50+AU50 -> 0 | S50: =IF(ISNA(VLOOKUP($B50,'D2'!$BR$460:$CG$491,14,0)),0,VLOOKUP($B50,'D2'!$BR$460:$CG$491,14,0)) -> 0 | T50: =IF(O50>P50,1,0) ->  | U50: =IF(O50<=O52,1,0) ->  | V50: =SUM(T50:U50) ->  | W50: =+D52 -> 0 | X50: 0 | Y50: 0 | Z50: 0 | AA50: 0 | AB50: 0 | AC50: 0 | AD50: 0 | AE50: 0 | AF50: 0 | AG50: 0 | AI50: =+D51 -> 0 | AJ50: 0 | AK50: 0 | AL50: 0 | AM50: 0 | AN50: 0 | AO50: 0 | AP50: 0 | AQ50: 0 | AR50: 0 | AS50: 0 | AU50: =+D50-SUM(E50:N50) -> 0 | AV50: =SUM(E50:M50)/SUM(E50:N50)*100 ->  | BJ50: 7107 | BK50: Menservis Motosikal | BL50: 7107 | BM50: =+A50 -> 9 | BN50: =+D51 -> 0 | BO50: 0 | BP50: 0 | BQ50: 0 | BR50: 0 | BS50: 0 | BT50: 0 | BU50: 0 | BV50: 0 | BW50: 0 | BX50: 0 | BY50: =+B50 ->  | CK50: =+CK47+1 -> 14
Q51: 0 | R51: =+Q51-D51 -> 0 | T51: =IF(O51>P50,1,0) ->  | U51: =IF(O51<=O52,1,0) ->  | BJ51: 7109 | BK51: Menservis Peralatan Elektrik Domestik | BL51: 7109
D52: =IF(ISNA(VLOOKUP(CONCATENATE($B$5,$B50),'A1'!$D$2:$T$3311,5,0)),0,VLOOKUP(CONCATENATE($B$5,$B50),'A1'!$D$2:$T$3311,5,0)) -> 0 | E52: =IF(ISNA(VLOOKUP(CONCATENATE($B$5,$B50),'A1'!$D$2:$T$3311,6,0)),0,VLOOKUP(CONCATENATE($B$5,$B50),'A1'!$D$2:$T$3311,6,0)) -> 0 | F52: =IF(ISNA(VLOOKUP(CONCATENATE($B$5,$B50),'A1'!$D$2:$T$3311,7,0)),0,VLOOKUP(CONCATENATE($B$5,$B50),'A1'!$D$2:$T$3311,7,0)) -> 0 | G52: =IF(ISNA(VLOOKUP(CONCATENATE($B$5,$B50),'A1'!$D$2:$T$3311,8,0)),0,VLOOKUP(CONCATENATE($B$5,$B50),'A1'!$D$2:$T$3311,8,0)) -> 0 | H52: =IF(ISNA(VLOOKUP(CONCATENATE($B$5,$B50),'A1'!$D$2:$T$3311,9,0)),0,VLOOKUP(CONCATENATE($B$5,$B50),'A1'!$D$2:$T$3311,9,0)) -> 0 | I52: =IF(ISNA(VLOOKUP(CONCATENATE($B$5,$B50),'A1'!$D$2:$T$3311,10,0)),0,VLOOKUP(CONCATENATE($B$5,$B50),'A1'!$D$2:$T$3311,10,0)) -> 0 | J52: =IF(ISNA(VLOOKUP(CONCATENATE($B$5,$B50),'A1'!$D$2:$T$3311,11,0)),0,VLOOKUP(CONCATENATE($B$5,$B50),'A1'!$D$2:$T$3311,11,0)) -> 0 | K52: =IF(ISNA(VLOOKUP(CONCATENATE($B$5,$B50),'A1'!$D$2:$T$3311,12,0)),0,VLOOKUP(CONCATENATE($B$5,$B50),'A1'!$D$2:$T$3311,12,0)) -> 0 | L52: =IF(ISNA(VLOOKUP(CONCATENATE($B$5,$B50),'A1'!$D$2:$T$3311,13,0)),0,VLOOKUP(CONCATENATE($B$5,$B50),'A1'!$D$2:$T$3311,13,0)) -> 0 | M52: =IF(ISNA(VLOOKUP(CONCATENATE($B$5,$B50),'A1'!$D$2:$T$3311,14,0)),0,VLOOKUP(CONCATENATE($B$5,$B50),'A1'!$D$2:$T$3311,14,0)) -> 0 | N52: =IF(ISNA(VLOOKUP(CONCATENATE($B$5,$B50),'A1'!$D$2:$T$3311,15,0)),0,VLOOKUP(CONCATENATE($B$5,$B50),'A1'!$D$2:$T$3311,15,0)) -> 0 | BJ52: 7108 | BK52: Menservis Peralatan Penyejuk dan Penyamanan Udara | BL52: 7108
A53: =IF(ISNA(B53),A50,A50+1) -> 9 | B53: =VLOOKUP(CK53,'A1'!$W$2:$Y$102,3,0) ->  | C53: =VLOOKUP(B53,'A1'!$Y$2:$Z$102,2,0) ->  | D53: =SUM(E53:N53) -> 0 | E53: =IF(ISNA(VLOOKUP($B53,'D2'!$BR$460:$CG$491,4,0)),0,VLOOKUP($B53,'D2'!$BR$460:$CG$491,4,0)) -> 0 | F53: =IF(ISNA(VLOOKUP($B53,'D2'!$BR$460:$CG$491,5,0)),0,VLOOKUP($B53,'D2'!$BR$460:$CG$491,5,0)) -> 0 | G53: =IF(ISNA(VLOOKUP($B53,'D2'!$BR$460:$CG$491,6,0)),0,VLOOKUP($B53,'D2'!$BR$460:$CG$491,6,0)) -> 0 | H53: =IF(ISNA(VLOOKUP($B53,'D2'!$BR$460:$CG$491,7,0)),0,VLOOKUP($B53,'D2'!$BR$460:$CG$491,7,0)) -> 0 | I53: =IF(ISNA(VLOOKUP($B53,'D2'!$BR$460:$CG$491,8,0)),0,VLOOKUP($B53,'D2'!$BR$460:$CG$491,8,0)) -> 0 | J53: =IF(ISNA(VLOOKUP($B53,'D2'!$BR$460:$CG$491,9,0)),0,VLOOKUP($B53,'D2'!$BR$460:$CG$491,9,0)) -> 0 | K53: =IF(ISNA(VLOOKUP($B53,'D2'!$BR$460:$CG$491,10,0)),0,VLOOKUP($B53,'D2'!$BR$460:$CG$491,10,0)) -> 0 | L53: =IF(ISNA(VLOOKUP($B53,'D2'!$BR$460:$CG$491,11,0)),0,VLOOKUP($B53,'D2'!$BR$460:$CG$491,11,0)) -> 0 | M53: =IF(ISNA(VLOOKUP($B53,'D2'!$BR$460:$CG$491,12,0)),0,VLOOKUP($B53,'D2'!$BR$460:$CG$491,12,0)) -> 0 | N53: =IF(ISNA(VLOOKUP($B53,'D2'!$BR$460:$CG$491,13,0)),0,VLOOKUP($B53,'D2'!$BR$460:$CG$491,13,0)) -> 0 | O53: =(+E53*0+F53*1+G53*2+H53*3+I53*4+J53*5+K53*6+L53*7+M53*8+N53*9)/SUM(E53:N53) ->  | P53: =IF(+O55*$S$9/100<0,0,+O55*$S$9/100) ->  | Q53: =SUM(E53:N53) -> 0 | R53: =+Q53-D53+AU53 -> 0 | S53: =IF(ISNA(VLOOKUP($B53,'D2'!$BR$460:$CG$491,14,0)),0,VLOOKUP($B53,'D2'!$BR$460:$CG$491,14,0)) -> 0 | T53: =IF(O53>P53,1,0) ->  | U53: =IF(O53<=O55,1,0) ->  | V53: =SUM(T53:U53) ->  | W53: =+D55 -> 0 | X53: 0 | Y53: 0 | Z53: 0 | AA53: 0 | AB53: 0 | AC53: 0 | AD53: 0 | AE53: 0 | AF53: 0 | AG53: 0 | AI53: =+D54 -> 0 | AJ53: 0 | AK53: 0 | AL53: 0 | AM53: 0 | AN53: 0 | AO53: 0 | AP53: 0 | AQ53: 0 | AR53: 0 | AS53: 0 | AU53: =+D53-SUM(E53:N53) -> 0 | AV53: =SUM(E53:M53)/SUM(E53:N53)*100 ->  | BJ53: 7101 | BK53: Pembinaan Domestik | BL53: 7101 | BM53: =+A53 -> 9 | BN53: =+D54 -> 0 | BO53: 0 | BP53: 0 | BQ53: 0 | BR53: 0 | BS53: 0 | BT53: 0 | BU53: 0 | BV53: 0 | BW53: 0 | BX53: 0 | BY53: =+B53 ->  | CK53: =+CK50+1 -> 15
Q54: 0 | R54: =+Q54-D54 -> 0 | T54: =IF(O54>P53,1,0) ->  | U54: =IF(O54<=O55,1,0) ->  | BJ54: 7203 | BK54: Pemprosesan Makanan | BL54: 7203
D55: =IF(ISNA(VLOOKUP(CONCATENATE($B$5,$B53),'A1'!$D$2:$T$3311,5,0)),0,VLOOKUP(CONCATENATE($B$5,$B53),'A1'!$D$2:$T$3311,5,0)) -> 0 | E55: =IF(ISNA(VLOOKUP(CONCATENATE($B$5,$B53),'A1'!$D$2:$T$3311,6,0)),0,VLOOKUP(CONCATENATE($B$5,$B53),'A1'!$D$2:$T$3311,6,0)) -> 0 | F55: =IF(ISNA(VLOOKUP(CONCATENATE($B$5,$B53),'A1'!$D$2:$T$3311,7,0)),0,VLOOKUP(CONCATENATE($B$5,$B53),'A1'!$D$2:$T$3311,7,0)) -> 0 | G55: =IF(ISNA(VLOOKUP(CONCATENATE($B$5,$B53),'A1'!$D$2:$T$3311,8,0)),0,VLOOKUP(CONCATENATE($B$5,$B53),'A1'!$D$2:$T$3311,8,0)) -> 0 | H55: =IF(ISNA(VLOOKUP(CONCATENATE($B$5,$B53),'A1'!$D$2:$T$3311,9,0)),0,VLOOKUP(CONCATENATE($B$5,$B53),'A1'!$D$2:$T$3311,9,0)) -> 0 | I55: =IF(ISNA(VLOOKUP(CONCATENATE($B$5,$B53),'A1'!$D$2:$T$3311,10,0)),0,VLOOKUP(CONCATENATE($B$5,$B53),'A1'!$D$2:$T$3311,10,0)) -> 0 | J55: =IF(ISNA(VLOOKUP(CONCATENATE($B$5,$B53),'A1'!$D$2:$T$3311,11,0)),0,VLOOKUP(CONCATENATE($B$5,$B53),'A1'!$D$2:$T$3311,11,0)) -> 0 | K55: =IF(ISNA(VLOOKUP(CONCATENATE($B$5,$B53),'A1'!$D$2:$T$3311,12,0)),0,VLOOKUP(CONCATENATE($B$5,$B53),'A1'!$D$2:$T$3311,12,0)) -> 0 | L55: =IF(ISNA(VLOOKUP(CONCATENATE($B$5,$B53),'A1'!$D$2:$T$3311,13,0)),0,VLOOKUP(CONCATENATE($B$5,$B53),'A1'!$D$2:$T$3311,13,0)) -> 0 | M55: =IF(ISNA(VLOOKUP(CONCATENATE($B$5,$B53),'A1'!$D$2:$T$3311,14,0)),0,VLOOKUP(CONCATENATE($B$5,$B53),'A1'!$D$2:$T$3311,14,0)) -> 0 | N55: =IF(ISNA(VLOOKUP(CONCATENATE($B$5,$B53),'A1'!$D$2:$T$3311,15,0)),0,VLOOKUP(CONCATENATE($B$5,$B53),'A1'!$D$2:$T$3311,15,0)) -> 0 | BJ55: 7104 | BK55: Pendawaian Domestik | BL55: 7104
A56: =IF(ISNA(B56),A53,A53+1) -> 9 | B56: =VLOOKUP(CK56,'A1'!$W$2:$Y$102,3,0) ->  | C56: =VLOOKUP(B56,'A1'!$Y$2:$Z$102,2,0) ->  | D56: =SUM(E56:N56) -> 0 | E56: =IF(ISNA(VLOOKUP($B56,'D2'!$BR$460:$CG$491,4,0)),0,VLOOKUP($B56,'D2'!$BR$460:$CG$491,4,0)) -> 0 | F56: =IF(ISNA(VLOOKUP($B56,'D2'!$BR$460:$CG$491,5,0)),0,VLOOKUP($B56,'D2'!$BR$460:$CG$491,5,0)) -> 0 | G56: =IF(ISNA(VLOOKUP($B56,'D2'!$BR$460:$CG$491,6,0)),0,VLOOKUP($B56,'D2'!$BR$460:$CG$491,6,0)) -> 0 | H56: =IF(ISNA(VLOOKUP($B56,'D2'!$BR$460:$CG$491,7,0)),0,VLOOKUP($B56,'D2'!$BR$460:$CG$491,7,0)) -> 0 | I56: =IF(ISNA(VLOOKUP($B56,'D2'!$BR$460:$CG$491,8,0)),0,VLOOKUP($B56,'D2'!$BR$460:$CG$491,8,0)) -> 0 | J56: =IF(ISNA(VLOOKUP($B56,'D2'!$BR$460:$CG$491,9,0)),0,VLOOKUP($B56,'D2'!$BR$460:$CG$491,9,0)) -> 0 | K56: =IF(ISNA(VLOOKUP($B56,'D2'!$BR$460:$CG$491,10,0)),0,VLOOKUP($B56,'D2'!$BR$460:$CG$491,10,0)) -> 0 | L56: =IF(ISNA(VLOOKUP($B56,'D2'!$BR$460:$CG$491,11,0)),0,VLOOKUP($B56,'D2'!$BR$460:$CG$491,11,0)) -> 0 | M56: =IF(ISNA(VLOOKUP($B56,'D2'!$BR$460:$CG$491,12,0)),0,VLOOKUP($B56,'D2'!$BR$460:$CG$491,12,0)) -> 0 | N56: =IF(ISNA(VLOOKUP($B56,'D2'!$BR$460:$CG$491,13,0)),0,VLOOKUP($B56,'D2'!$BR$460:$CG$491,13,0)) -> 0 | O56: =(+E56*0+F56*1+G56*2+H56*3+I56*4+J56*5+K56*6+L56*7+M56*8+N56*9)/SUM(E56:N56) ->  | P56: =IF(+O58*$S$9/100<0,0,+O58*$S$9/100) ->  | Q56: =SUM(E56:N56) -> 0 | R56: =+Q56-D56+AU56 -> 0 | S56: =IF(ISNA(VLOOKUP($B56,'D2'!$BR$460:$CG$491,14,0)),0,VLOOKUP($B56,'D2'!$BR$460:$CG$491,14,0)) -> 0 | T56: =IF(O56>P56,1,0) ->  | U56: =IF(O56<=O58,1,0) ->  | V56: =SUM(T56:U56) ->  | W56: =+D58 -> 0 | X56: 0 | Y56: 0 | Z56: 0 | AA56: 0 | AB56: 0 | AC56: 0 | AD56: 0 | AE56: 0 | AF56: 0 | AG56: 0 | AI56: =+D57 -> 0 | AJ56: 0 | AK56: 0 | AL56: 0 | AM56: 0 | AN56: 0 | AO56: 0 | AP56: 0 | AQ56: 0 | AR56: 0 | AS56: 0 | AU56: =+D56-SUM(E56:N56) -> 0 | AV56: =SUM(E56:M56)/SUM(E56:N56)*100 ->  | BJ56: 5227 | BK56: Pendidikan Al-Quran & As-Sunnah | BL56: 5227 | BM56: =+A56 -> 9 | BN56: =+D57 -> 0 | BO56: 0 | BP56: 0 | BQ56: 0 | BR56: 0 | BS56: 0 | BT56: 0 | BU56: 0 | BV56: 0 | BW56: 0 | BX56: 0 | BY56: =+B56 ->  | CK56: =+CK53+1 -> 16
Q57: 0 | R57: =+Q57-D57 -> 0 | T57: =IF(O57>P56,1,0) ->  | U57: =IF(O57<=O58,1,0) ->  | BJ57: 1223 | BK57: Pendidikan Islam | BL57: 1223
D58: =IF(ISNA(VLOOKUP(CONCATENATE($B$5,$B56),'A1'!$D$2:$T$3311,5,0)),0,VLOOKUP(CONCATENATE($B$5,$B56),'A1'!$D$2:$T$3311,5,0)) -> 0 | E58: =IF(ISNA(VLOOKUP(CONCATENATE($B$5,$B56),'A1'!$D$2:$T$3311,6,0)),0,VLOOKUP(CONCATENATE($B$5,$B56),'A1'!$D$2:$T$3311,6,0)) -> 0 | F58: =IF(ISNA(VLOOKUP(CONCATENATE($B$5,$B56),'A1'!$D$2:$T$3311,7,0)),0,VLOOKUP(CONCATENATE($B$5,$B56),'A1'!$D$2:$T$3311,7,0)) -> 0 | G58: =IF(ISNA(VLOOKUP(CONCATENATE($B$5,$B56),'A1'!$D$2:$T$3311,8,0)),0,VLOOKUP(CONCATENATE($B$5,$B56),'A1'!$D$2:$T$3311,8,0)) -> 0 | H58: =IF(ISNA(VLOOKUP(CONCATENATE($B$5,$B56),'A1'!$D$2:$T$3311,9,0)),0,VLOOKUP(CONCATENATE($B$5,$B56),'A1'!$D$2:$T$3311,9,0)) -> 0 | I58: =IF(ISNA(VLOOKUP(CONCATENATE($B$5,$B56),'A1'!$D$2:$T$3311,10,0)),0,VLOOKUP(CONCATENATE($B$5,$B56),'A1'!$D$2:$T$3311,10,0)) -> 0 | J58: =IF(ISNA(VLOOKUP(CONCATENATE($B$5,$B56),'A1'!$D$2:$T$3311,11,0)),0,VLOOKUP(CONCATENATE($B$5,$B56),'A1'!$D$2:$T$3311,11,0)) -> 0 | K58: =IF(ISNA(VLOOKUP(CONCATENATE($B$5,$B56),'A1'!$D$2:$T$3311,12,0)),0,VLOOKUP(CONCATENATE($B$5,$B56),'A1'!$D$2:$T$3311,12,0)) -> 0 | L58: =IF(ISNA(VLOOKUP(CONCATENATE($B$5,$B56),'A1'!$D$2:$T$3311,13,0)),0,VLOOKUP(CONCATENATE($B$5,$B56),'A1'!$D$2:$T$3311,13,0)) -> 0 | M58: =IF(ISNA(VLOOKUP(CONCATENATE($B$5,$B56),'A1'!$D$2:$T$3311,14,0)),0,VLOOKUP(CONCATENATE($B$5,$B56),'A1'!$D$2:$T$3311,14,0)) -> 0 | N58: =IF(ISNA(VLOOKUP(CONCATENATE($B$5,$B56),'A1'!$D$2:$T$3311,15,0)),0,VLOOKUP(CONCATENATE($B$5,$B56),'A1'!$D$2:$T$3311,15,0)) -> 0 | BJ58: 1225 | BK58: Pendidikan Moral | BL58: 1225
A59: =IF(ISNA(B59),A56,A56+1) -> 9 | B59: =VLOOKUP(CK59,'A1'!$W$2:$Y$102,3,0) ->  | C59: =VLOOKUP(B59,'A1'!$Y$2:$Z$102,2,0) ->  | D59: =SUM(E59:N59) -> 0 | E59: =IF(ISNA(VLOOKUP($B59,'D2'!$BR$460:$CG$491,4,0)),0,VLOOKUP($B59,'D2'!$BR$460:$CG$491,4,0)) -> 0 | F59: =IF(ISNA(VLOOKUP($B59,'D2'!$BR$460:$CG$491,5,0)),0,VLOOKUP($B59,'D2'!$BR$460:$CG$491,5,0)) -> 0 | G59: =IF(ISNA(VLOOKUP($B59,'D2'!$BR$460:$CG$491,6,0)),0,VLOOKUP($B59,'D2'!$BR$460:$CG$491,6,0)) -> 0 | H59: =IF(ISNA(VLOOKUP($B59,'D2'!$BR$460:$CG$491,7,0)),0,VLOOKUP($B59,'D2'!$BR$460:$CG$491,7,0)) -> 0 | I59: =IF(ISNA(VLOOKUP($B59,'D2'!$BR$460:$CG$491,8,0)),0,VLOOKUP($B59,'D2'!$BR$460:$CG$491,8,0)) -> 0 | J59: =IF(ISNA(VLOOKUP($B59,'D2'!$BR$460:$CG$491,9,0)),0,VLOOKUP($B59,'D2'!$BR$460:$CG$491,9,0)) -> 0 | K59: =IF(ISNA(VLOOKUP($B59,'D2'!$BR$460:$CG$491,10,0)),0,VLOOKUP($B59,'D2'!$BR$460:$CG$491,10,0)) -> 0 | L59: =IF(ISNA(VLOOKUP($B59,'D2'!$BR$460:$CG$491,11,0)),0,VLOOKUP($B59,'D2'!$BR$460:$CG$491,11,0)) -> 0 | M59: =IF(ISNA(VLOOKUP($B59,'D2'!$BR$460:$CG$491,12,0)),0,VLOOKUP($B59,'D2'!$BR$460:$CG$491,12,0)) -> 0 | N59: =IF(ISNA(VLOOKUP($B59,'D2'!$BR$460:$CG$491,13,0)),0,VLOOKUP($B59,'D2'!$BR$460:$CG$491,13,0)) -> 0 | O59: =(+E59*0+F59*1+G59*2+H59*3+I59*4+J59*5+K59*6+L59*7+M59*8+N59*9)/SUM(E59:N59) ->  | P59: =IF(+O61*$S$9/100<0,0,+O61*$S$9/100) ->  | Q59: =SUM(E59:N59) -> 0 | R59: =+Q59-D59+AU59 -> 0 | S59: =IF(ISNA(VLOOKUP($B59,'D2'!$BR$460:$CG$491,14,0)),0,VLOOKUP($B59,'D2'!$BR$460:$CG$491,14,0)) -> 0 | T59: =IF(O59>P59,1,0) ->  | U59: =IF(O59<=O61,1,0) ->  | V59: =SUM(T59:U59) ->  | W59: =+D61 -> 0 | X59: 0 | Y59: 0 | Z59: 0 | AA59: 0 | AB59: 0 | AC59: 0 | AD59: 0 | AE59: 0 | AF59: 0 | AG59: 0 | AI59: =+D60 -> 0 | AJ59: 0 | AK59: 0 | AL59: 0 | AM59: 0 | AN59: 0 | AO59: 0 | AP59: 0 | AQ59: 0 | AR59: 0 | AS59: 0 | AU59: =+D59-SUM(E59:N59) -> 0 | AV59: =SUM(E59:M59)/SUM(E59:N59)*100 ->  | BJ59: 2621 | BK59: Pendidikan Muzik | BL59: 2621 | BM59: =+A59 -> 9 | BN59: =+D60 -> 0 | BO59: 0 | BP59: 0 | BQ59: 0 | BR59: 0 | BS59: 0 | BT59: 0 | BU59: 0 | BV59: 0 | BW59: 0 | BX59: 0 | BY59: =+B59 ->  | CK59: =+CK56+1 -> 17
Q60: 0 | R60: =+Q60-D60 -> 0 | T60: =IF(O60>P59,1,0) ->  | U60: =IF(O60<=O61,1,0) ->  | BJ60: 2611 | BK60: Pendidikan Seni Visual | BL60: 2611
D61: =IF(ISNA(VLOOKUP(CONCATENATE($B$5,$B59),'A1'!$D$2:$T$3311,5,0)),0,VLOOKUP(CONCATENATE($B$5,$B59),'A1'!$D$2:$T$3311,5,0)) -> 0 | E61: =IF(ISNA(VLOOKUP(CONCATENATE($B$5,$B59),'A1'!$D$2:$T$3311,6,0)),0,VLOOKUP(CONCATENATE($B$5,$B59),'A1'!$D$2:$T$3311,6,0)) -> 0 | F61: =IF(ISNA(VLOOKUP(CONCATENATE($B$5,$B59),'A1'!$D$2:$T$3311,7,0)),0,VLOOKUP(CONCATENATE($B$5,$B59),'A1'!$D$2:$T$3311,7,0)) -> 0 | G61: =IF(ISNA(VLOOKUP(CONCATENATE($B$5,$B59),'A1'!$D$2:$T$3311,8,0)),0,VLOOKUP(CONCATENATE($B$5,$B59),'A1'!$D$2:$T$3311,8,0)) -> 0 | H61: =IF(ISNA(VLOOKUP(CONCATENATE($B$5,$B59),'A1'!$D$2:$T$3311,9,0)),0,VLOOKUP(CONCATENATE($B$5,$B59),'A1'!$D$2:$T$3311,9,0)) -> 0 | I61: =IF(ISNA(VLOOKUP(CONCATENATE($B$5,$B59),'A1'!$D$2:$T$3311,10,0)),0,VLOOKUP(CONCATENATE($B$5,$B59),'A1'!$D$2:$T$3311,10,0)) -> 0 | J61: =IF(ISNA(VLOOKUP(CONCATENATE($B$5,$B59),'A1'!$D$2:$T$3311,11,0)),0,VLOOKUP(CONCATENATE($B$5,$B59),'A1'!$D$2:$T$3311,11,0)) -> 0 | K61: =IF(ISNA(VLOOKUP(CONCATENATE($B$5,$B59),'A1'!$D$2:$T$3311,12,0)),0,VLOOKUP(CONCATENATE($B$5,$B59),'A1'!$D$2:$T$3311,12,0)) -> 0 | L61: =IF(ISNA(VLOOKUP(CONCATENATE($B$5,$B59),'A1'!$D$2:$T$3311,13,0)),0,VLOOKUP(CONCATENATE($B$5,$B59),'A1'!$D$2:$T$3311,13,0)) -> 0 | M61: =IF(ISNA(VLOOKUP(CONCATENATE($B$5,$B59),'A1'!$D$2:$T$3311,14,0)),0,VLOOKUP(CONCATENATE($B$5,$B59),'A1'!$D$2:$T$3311,14,0)) -> 0 | N61: =IF(ISNA(VLOOKUP(CONCATENATE($B$5,$B59),'A1'!$D$2:$T$3311,15,0)),0,VLOOKUP(CONCATENATE($B$5,$B59),'A1'!$D$2:$T$3311,15,0)) -> 0 | BJ61: 5228 | BK61: Pendidikan Syariah Islamiah | BL61: 5228
A62: =IF(ISNA(B62),A59,A59+1) -> 9 | B62: =VLOOKUP(CK62,'A1'!$W$2:$Y$102,3,0) ->  | C62: =VLOOKUP(B62,'A1'!$Y$2:$Z$102,2,0) ->  | D62: =SUM(E62:N62) -> 0 | E62: =IF(ISNA(VLOOKUP($B62,'D2'!$BR$460:$CG$491,4,0)),0,VLOOKUP($B62,'D2'!$BR$460:$CG$491,4,0)) -> 0 | F62: =IF(ISNA(VLOOKUP($B62,'D2'!$BR$460:$CG$491,5,0)),0,VLOOKUP($B62,'D2'!$BR$460:$CG$491,5,0)) -> 0 | G62: =IF(ISNA(VLOOKUP($B62,'D2'!$BR$460:$CG$491,6,0)),0,VLOOKUP($B62,'D2'!$BR$460:$CG$491,6,0)) -> 0 | H62: =IF(ISNA(VLOOKUP($B62,'D2'!$BR$460:$CG$491,7,0)),0,VLOOKUP($B62,'D2'!$BR$460:$CG$491,7,0)) -> 0 | I62: =IF(ISNA(VLOOKUP($B62,'D2'!$BR$460:$CG$491,8,0)),0,VLOOKUP($B62,'D2'!$BR$460:$CG$491,8,0)) -> 0 | J62: =IF(ISNA(VLOOKUP($B62,'D2'!$BR$460:$CG$491,9,0)),0,VLOOKUP($B62,'D2'!$BR$460:$CG$491,9,0)) -> 0 | K62: =IF(ISNA(VLOOKUP($B62,'D2'!$BR$460:$CG$491,10,0)),0,VLOOKUP($B62,'D2'!$BR$460:$CG$491,10,0)) -> 0 | L62: =IF(ISNA(VLOOKUP($B62,'D2'!$BR$460:$CG$491,11,0)),0,VLOOKUP($B62,'D2'!$BR$460:$CG$491,11,0)) -> 0 | M62: =IF(ISNA(VLOOKUP($B62,'D2'!$BR$460:$CG$491,12,0)),0,VLOOKUP($B62,'D2'!$BR$460:$CG$491,12,0)) -> 0 | N62: =IF(ISNA(VLOOKUP($B62,'D2'!$BR$460:$CG$491,13,0)),0,VLOOKUP($B62,'D2'!$BR$460:$CG$491,13,0)) -> 0 | O62: =(+E62*0+F62*1+G62*2+H62*3+I62*4+J62*5+K62*6+L62*7+M62*8+N62*9)/SUM(E62:N62) ->  | P62: =IF(+O64*$S$9/100<0,0,+O64*$S$9/100) ->  | Q62: =SUM(E62:N62) -> 0 | R62: =+Q62-D62+AU62 -> 0 | S62: =IF(ISNA(VLOOKUP($B62,'D2'!$BR$460:$CG$491,14,0)),0,VLOOKUP($B62,'D2'!$BR$460:$CG$491,14,0)) -> 0 | T62: =IF(O62>P62,1,0) ->  | U62: =IF(O62<=O64,1,0) ->  | V62: =SUM(T62:U62) ->  | W62: =+D64 -> 0 | X62: 0 | Y62: 0 | Z62: 0 | AA62: 0 | AB62: 0 | AC62: 0 | AD62: 0 | AE62: 0 | AF62: 0 | AG62: 0 | AI62: =+D63 -> 0 | AJ62: 0 | AK62: 0 | AL62: 0 | AM62: 0 | AN62: 0 | AO62: 0 | AP62: 0 | AQ62: 0 | AR62: 0 | AS62: 0 | AU62: =+D62-SUM(E62:N62) -> 0 | AV62: =SUM(E62:M62)/SUM(E62:N62)*100 ->  | BJ62: 3529 | BK62: Pengajian Agroteknologi | BL62: 3529 | BM62: =+A62 -> 9 | BN62: =+D63 -> 0 | BO62: 0 | BP62: 0 | BQ62: 0 | BR62: 0 | BS62: 0 | BT62: 0 | BU62: 0 | BV62: 0 | BW62: 0 | BX62: 0 | BY62: =+B62 ->  | CK62: =+CK59+1 -> 18
Q63: 0 | R63: =+Q63-D63 -> 0 | T63: =IF(O63>P62,1,0) ->  | U63: =IF(O63<=O64,1,0) ->  | BJ63: 3761 | BK63: Pengajian Kejuruteraan Awam | BL63: 3761
D64: =IF(ISNA(VLOOKUP(CONCATENATE($B$5,$B62),'A1'!$D$2:$T$3311,5,0)),0,VLOOKUP(CONCATENATE($B$5,$B62),'A1'!$D$2:$T$3311,5,0)) -> 0 | E64: =IF(ISNA(VLOOKUP(CONCATENATE($B$5,$B62),'A1'!$D$2:$T$3311,6,0)),0,VLOOKUP(CONCATENATE($B$5,$B62),'A1'!$D$2:$T$3311,6,0)) -> 0 | F64: =IF(ISNA(VLOOKUP(CONCATENATE($B$5,$B62),'A1'!$D$2:$T$3311,7,0)),0,VLOOKUP(CONCATENATE($B$5,$B62),'A1'!$D$2:$T$3311,7,0)) -> 0 | G64: =IF(ISNA(VLOOKUP(CONCATENATE($B$5,$B62),'A1'!$D$2:$T$3311,8,0)),0,VLOOKUP(CONCATENATE($B$5,$B62),'A1'!$D$2:$T$3311,8,0)) -> 0 | H64: =IF(ISNA(VLOOKUP(CONCATENATE($B$5,$B62),'A1'!$D$2:$T$3311,9,0)),0,VLOOKUP(CONCATENATE($B$5,$B62),'A1'!$D$2:$T$3311,9,0)) -> 0 | I64: =IF(ISNA(VLOOKUP(CONCATENATE($B$5,$B62),'A1'!$D$2:$T$3311,10,0)),0,VLOOKUP(CONCATENATE($B$5,$B62),'A1'!$D$2:$T$3311,10,0)) -> 0 | J64: =IF(ISNA(VLOOKUP(CONCATENATE($B$5,$B62),'A1'!$D$2:$T$3311,11,0)),0,VLOOKUP(CONCATENATE($B$5,$B62),'A1'!$D$2:$T$3311,11,0)) -> 0 | K64: =IF(ISNA(VLOOKUP(CONCATENATE($B$5,$B62),'A1'!$D$2:$T$3311,12,0)),0,VLOOKUP(CONCATENATE($B$5,$B62),'A1'!$D$2:$T$3311,12,0)) -> 0 | L64: =IF(ISNA(VLOOKUP(CONCATENATE($B$5,$B62),'A1'!$D$2:$T$3311,13,0)),0,VLOOKUP(CONCATENATE($B$5,$B62),'A1'!$D$2:$T$3311,13,0)) -> 0 | M64: =IF(ISNA(VLOOKUP(CONCATENATE($B$5,$B62),'A1'!$D$2:$T$3311,14,0)),0,VLOOKUP(CONCATENATE($B$5,$B62),'A1'!$D$2:$T$3311,14,0)) -> 0 | N64: =IF(ISNA(VLOOKUP(CONCATENATE($B$5,$B62),'A1'!$D$2:$T$3311,15,0)),0,VLOOKUP(CONCATENATE($B$5,$B62),'A1'!$D$2:$T$3311,15,0)) -> 0 | BJ64: 3762 | BK64: Pengajian Kejuruteraan Elektrik & Elektronik | BL64: 3762
A65: =IF(ISNA(B65),A62,A62+1) -> 9 | B65: =VLOOKUP(CK65,'A1'!$W$2:$Y$102,3,0) ->  | C65: =VLOOKUP(B65,'A1'!$Y$2:$Z$102,2,0) ->  | D65: =SUM(E65:N65) -> 0 | E65: =IF(ISNA(VLOOKUP($B65,'D2'!$BR$460:$CG$491,4,0)),0,VLOOKUP($B65,'D2'!$BR$460:$CG$491,4,0)) -> 0 | F65: =IF(ISNA(VLOOKUP($B65,'D2'!$BR$460:$CG$491,5,0)),0,VLOOKUP($B65,'D2'!$BR$460:$CG$491,5,0)) -> 0 | G65: =IF(ISNA(VLOOKUP($B65,'D2'!$BR$460:$CG$491,6,0)),0,VLOOKUP($B65,'D2'!$BR$460:$CG$491,6,0)) -> 0 | H65: =IF(ISNA(VLOOKUP($B65,'D2'!$BR$460:$CG$491,7,0)),0,VLOOKUP($B65,'D2'!$BR$460:$CG$491,7,0)) -> 0 | I65: =IF(ISNA(VLOOKUP($B65,'D2'!$BR$460:$CG$491,8,0)),0,VLOOKUP($B65,'D2'!$BR$460:$CG$491,8,0)) -> 0 | J65: =IF(ISNA(VLOOKUP($B65,'D2'!$BR$460:$CG$491,9,0)),0,VLOOKUP($B65,'D2'!$BR$460:$CG$491,9,0)) -> 0 | K65: =IF(ISNA(VLOOKUP($B65,'D2'!$BR$460:$CG$491,10,0)),0,VLOOKUP($B65,'D2'!$BR$460:$CG$491,10,0)) -> 0 | L65: =IF(ISNA(VLOOKUP($B65,'D2'!$BR$460:$CG$491,11,0)),0,VLOOKUP($B65,'D2'!$BR$460:$CG$491,11,0)) -> 0 | M65: =IF(ISNA(VLOOKUP($B65,'D2'!$BR$460:$CG$491,12,0)),0,VLOOKUP($B65,'D2'!$BR$460:$CG$491,12,0)) -> 0 | N65: =IF(ISNA(VLOOKUP($B65,'D2'!$BR$460:$CG$491,13,0)),0,VLOOKUP($B65,'D2'!$BR$460:$CG$491,13,0)) -> 0 | O65: =(+E65*0+F65*1+G65*2+H65*3+I65*4+J65*5+K65*6+L65*7+M65*8+N65*9)/SUM(E65:N65) ->  | P65: =IF(+O67*$S$9/100<0,0,+O67*$S$9/100) ->  | Q65: =SUM(E65:N65) -> 0 | R65: =+Q65-D65+AU65 -> 0 | S65: =IF(ISNA(VLOOKUP($B65,'D2'!$BR$460:$CG$491,14,0)),0,VLOOKUP($B65,'D2'!$BR$460:$CG$491,14,0)) -> 0 | T65: =IF(O65>P65,1,0) ->  | U65: =IF(O65<=O67,1,0) ->  | V65: =SUM(T65:U65) ->  | W65: =+D67 -> 0 | X65: 0 | Y65: 0 | Z65: 0 | AA65: 0 | AB65: 0 | AC65: 0 | AD65: 0 | AE65: 0 | AF65: 0 | AG65: 0 | AI65: =+D66 -> 0 | AJ65: 0 | AK65: 0 | AL65: 0 | AM65: 0 | AN65: 0 | AO65: 0 | AP65: 0 | AQ65: 0 | AR65: 0 | AS65: 0 | AU65: =+D65-SUM(E65:N65) -> 0 | AV65: =SUM(E65:M65)/SUM(E65:N65)*100 ->  | BJ65: 3760 | BK65: Pengajian Kejuruteraan Mekanikal | BL65: 3760 | BM65: =+A65 -> 9 | BN65: =+D66 -> 0 | BO65: 0 | BP65: 0 | BQ65: 0 | BR65: 0 | BS65: 0 | BT65: 0 | BU65: 0 | BV65: 0 | BW65: 0 | BX65: 0 | BY65: =+B65 ->  | CK65: =+CK62+1 -> 19
Q66: 0 | R66: =+Q66-D66 -> 0 | T66: =IF(O66>P65,1,0) ->  | U66: =IF(O66<=O67,1,0) ->  | BJ66: 3754 | BK66: Pengajian Keusahawanan | BL66: 3754
D67: =IF(ISNA(VLOOKUP(CONCATENATE($B$5,$B65),'A1'!$D$2:$T$3311,5,0)),0,VLOOKUP(CONCATENATE($B$5,$B65),'A1'!$D$2:$T$3311,5,0)) -> 0 | E67: =IF(ISNA(VLOOKUP(CONCATENATE($B$5,$B65),'A1'!$D$2:$T$3311,6,0)),0,VLOOKUP(CONCATENATE($B$5,$B65),'A1'!$D$2:$T$3311,6,0)) -> 0 | F67: =IF(ISNA(VLOOKUP(CONCATENATE($B$5,$B65),'A1'!$D$2:$T$3311,7,0)),0,VLOOKUP(CONCATENATE($B$5,$B65),'A1'!$D$2:$T$3311,7,0)) -> 0 | G67: =IF(ISNA(VLOOKUP(CONCATENATE($B$5,$B65),'A1'!$D$2:$T$3311,8,0)),0,VLOOKUP(CONCATENATE($B$5,$B65),'A1'!$D$2:$T$3311,8,0)) -> 0 | H67: =IF(ISNA(VLOOKUP(CONCATENATE($B$5,$B65),'A1'!$D$2:$T$3311,9,0)),0,VLOOKUP(CONCATENATE($B$5,$B65),'A1'!$D$2:$T$3311,9,0)) -> 0 | I67: =IF(ISNA(VLOOKUP(CONCATENATE($B$5,$B65),'A1'!$D$2:$T$3311,10,0)),0,VLOOKUP(CONCATENATE($B$5,$B65),'A1'!$D$2:$T$3311,10,0)) -> 0 | J67: =IF(ISNA(VLOOKUP(CONCATENATE($B$5,$B65),'A1'!$D$2:$T$3311,11,0)),0,VLOOKUP(CONCATENATE($B$5,$B65),'A1'!$D$2:$T$3311,11,0)) -> 0 | K67: =IF(ISNA(VLOOKUP(CONCATENATE($B$5,$B65),'A1'!$D$2:$T$3311,12,0)),0,VLOOKUP(CONCATENATE($B$5,$B65),'A1'!$D$2:$T$3311,12,0)) -> 0 | L67: =IF(ISNA(VLOOKUP(CONCATENATE($B$5,$B65),'A1'!$D$2:$T$3311,13,0)),0,VLOOKUP(CONCATENATE($B$5,$B65),'A1'!$D$2:$T$3311,13,0)) -> 0 | M67: =IF(ISNA(VLOOKUP(CONCATENATE($B$5,$B65),'A1'!$D$2:$T$3311,14,0)),0,VLOOKUP(CONCATENATE($B$5,$B65),'A1'!$D$2:$T$3311,14,0)) -> 0 | N67: =IF(ISNA(VLOOKUP(CONCATENATE($B$5,$B65),'A1'!$D$2:$T$3311,15,0)),0,VLOOKUP(CONCATENATE($B$5,$B65),'A1'!$D$2:$T$3311,15,0)) -> 0 | BJ67: 7204 | BK67: Penjagaan Muka dan Dandanan Rambut | BL67: 7204
A68: =IF(ISNA(B68),A65,A65+1) -> 9 | B68: =VLOOKUP(CK68,'A1'!$W$2:$Y$102,3,0) ->  | C68: =VLOOKUP(B68,'A1'!$Y$2:$Z$102,2,0) ->  | D68: =SUM(E68:N68) -> 0 | E68: =IF(ISNA(VLOOKUP($B68,'D2'!$BR$460:$CG$491,4,0)),0,VLOOKUP($B68,'D2'!$BR$460:$CG$491,4,0)) -> 0 | F68: =IF(ISNA(VLOOKUP($B68,'D2'!$BR$460:$CG$491,5,0)),0,VLOOKUP($B68,'D2'!$BR$460:$CG$491,5,0)) -> 0 | G68: =IF(ISNA(VLOOKUP($B68,'D2'!$BR$460:$CG$491,6,0)),0,VLOOKUP($B68,'D2'!$BR$460:$CG$491,6,0)) -> 0 | H68: =IF(ISNA(VLOOKUP($B68,'D2'!$BR$460:$CG$491,7,0)),0,VLOOKUP($B68,'D2'!$BR$460:$CG$491,7,0)) -> 0 | I68: =IF(ISNA(VLOOKUP($B68,'D2'!$BR$460:$CG$491,8,0)),0,VLOOKUP($B68,'D2'!$BR$460:$CG$491,8,0)) -> 0 | J68: =IF(ISNA(VLOOKUP($B68,'D2'!$BR$460:$CG$491,9,0)),0,VLOOKUP($B68,'D2'!$BR$460:$CG$491,9,0)) -> 0 | K68: =IF(ISNA(VLOOKUP($B68,'D2'!$BR$460:$CG$491,10,0)),0,VLOOKUP($B68,'D2'!$BR$460:$CG$491,10,0)) -> 0 | L68: =IF(ISNA(VLOOKUP($B68,'D2'!$BR$460:$CG$491,11,0)),0,VLOOKUP($B68,'D2'!$BR$460:$CG$491,11,0)) -> 0 | M68: =IF(ISNA(VLOOKUP($B68,'D2'!$BR$460:$CG$491,12,0)),0,VLOOKUP($B68,'D2'!$BR$460:$CG$491,12,0)) -> 0 | N68: =IF(ISNA(VLOOKUP($B68,'D2'!$BR$460:$CG$491,13,0)),0,VLOOKUP($B68,'D2'!$BR$460:$CG$491,13,0)) -> 0 | O68: =(+E68*0+F68*1+G68*2+H68*3+I68*4+J68*5+K68*6+L68*7+M68*8+N68*9)/SUM(E68:N68) ->  | P68: =IF(+O70*$S$9/100<0,0,+O70*$S$9/100) ->  | Q68: =SUM(E68:N68) -> 0 | R68: =+Q68-D68+AU68 -> 0 | S68: =IF(ISNA(VLOOKUP($B68,'D2'!$BR$460:$CG$491,14,0)),0,VLOOKUP($B68,'D2'!$BR$460:$CG$491,14,0)) -> 0 | T68: =IF(O68>P68,1,0) ->  | U68: =IF(O68<=O70,1,0) ->  | V68: =SUM(T68:U68) ->  | W68: =+D70 -> 0 | X68: 0 | Y68: 0 | Z68: 0 | AA68: 0 | AB68: 0 | AC68: 0 | AD68: 0 | AE68: 0 | AF68: 0 | AG68: 0 | AI68: =+D69 -> 0 | AJ68: 0 | AK68: 0 | AL68: 0 | AM68: 0 | AN68: 0 | AO68: 0 | AP68: 0 | AQ68: 0 | AR68: 0 | AS68: 0 | AU68: =+D68-SUM(E68:N68) -> 0 | AV68: =SUM(E68:M68)/SUM(E68:N68)*100 ->  | BJ68: 3766 | BK68: Perniagaan | BL68: 3766 | BM68: =+A68 -> 9 | BN68: =+D69 -> 0 | BO68: 0 | BP68: 0 | BQ68: 0 | BR68: 0 | BS68: 0 | BT68: 0 | BU68: 0 | BV68: 0 | BW68: 0 | BX68: 0 | BY68: =+B68 ->  | CK68: =+CK65+1 -> 20
Q69: 0 | R69: =+Q69-D69 -> 0 | T69: =IF(O69>P68,1,0) ->  | U69: =IF(O69<=O70,1,0) ->  | BJ69: 8521 | BK69: Persolekan | BL69: 8521
D70: =IF(ISNA(VLOOKUP(CONCATENATE($B$5,$B68),'A1'!$D$2:$T$3311,5,0)),0,VLOOKUP(CONCATENATE($B$5,$B68),'A1'!$D$2:$T$3311,5,0)) -> 0 | E70: =IF(ISNA(VLOOKUP(CONCATENATE($B$5,$B68),'A1'!$D$2:$T$3311,6,0)),0,VLOOKUP(CONCATENATE($B$5,$B68),'A1'!$D$2:$T$3311,6,0)) -> 0 | F70: =IF(ISNA(VLOOKUP(CONCATENATE($B$5,$B68),'A1'!$D$2:$T$3311,7,0)),0,VLOOKUP(CONCATENATE($B$5,$B68),'A1'!$D$2:$T$3311,7,0)) -> 0 | G70: =IF(ISNA(VLOOKUP(CONCATENATE($B$5,$B68),'A1'!$D$2:$T$3311,8,0)),0,VLOOKUP(CONCATENATE($B$5,$B68),'A1'!$D$2:$T$3311,8,0)) -> 0 | H70: =IF(ISNA(VLOOKUP(CONCATENATE($B$5,$B68),'A1'!$D$2:$T$3311,9,0)),0,VLOOKUP(CONCATENATE($B$5,$B68),'A1'!$D$2:$T$3311,9,0)) -> 0 | I70: =IF(ISNA(VLOOKUP(CONCATENATE($B$5,$B68),'A1'!$D$2:$T$3311,10,0)),0,VLOOKUP(CONCATENATE($B$5,$B68),'A1'!$D$2:$T$3311,10,0)) -> 0 | J70: =IF(ISNA(VLOOKUP(CONCATENATE($B$5,$B68),'A1'!$D$2:$T$3311,11,0)),0,VLOOKUP(CONCATENATE($B$5,$B68),'A1'!$D$2:$T$3311,11,0)) -> 0 | K70: =IF(ISNA(VLOOKUP(CONCATENATE($B$5,$B68),'A1'!$D$2:$T$3311,12,0)),0,VLOOKUP(CONCATENATE($B$5,$B68),'A1'!$D$2:$T$3311,12,0)) -> 0 | L70: =IF(ISNA(VLOOKUP(CONCATENATE($B$5,$B68),'A1'!$D$2:$T$3311,13,0)),0,VLOOKUP(CONCATENATE($B$5,$B68),'A1'!$D$2:$T$3311,13,0)) -> 0 | M70: =IF(ISNA(VLOOKUP(CONCATENATE($B$5,$B68),'A1'!$D$2:$T$3311,14,0)),0,VLOOKUP(CONCATENATE($B$5,$B68),'A1'!$D$2:$T$3311,14,0)) -> 0 | N70: =IF(ISNA(VLOOKUP(CONCATENATE($B$5,$B68),'A1'!$D$2:$T$3311,15,0)),0,VLOOKUP(CONCATENATE($B$5,$B68),'A1'!$D$2:$T$3311,15,0)) -> 0 | BJ70: 3729 | BK70: Pertanian | BL70: 3729
A71: =IF(ISNA(B71),A68,A68+1) -> 9 | B71: =VLOOKUP(CK71,'A1'!$W$2:$Y$102,3,0) ->  | C71: =VLOOKUP(B71,'A1'!$Y$2:$Z$102,2,0) ->  | D71: =SUM(E71:N71) -> 0 | E71: =IF(ISNA(VLOOKUP($B71,'D2'!$BR$460:$CG$491,4,0)),0,VLOOKUP($B71,'D2'!$BR$460:$CG$491,4,0)) -> 0 | F71: =IF(ISNA(VLOOKUP($B71,'D2'!$BR$460:$CG$491,5,0)),0,VLOOKUP($B71,'D2'!$BR$460:$CG$491,5,0)) -> 0 | G71: =IF(ISNA(VLOOKUP($B71,'D2'!$BR$460:$CG$491,6,0)),0,VLOOKUP($B71,'D2'!$BR$460:$CG$491,6,0)) -> 0 | H71: =IF(ISNA(VLOOKUP($B71,'D2'!$BR$460:$CG$491,7,0)),0,VLOOKUP($B71,'D2'!$BR$460:$CG$491,7,0)) -> 0 | I71: =IF(ISNA(VLOOKUP($B71,'D2'!$BR$460:$CG$491,8,0)),0,VLOOKUP($B71,'D2'!$BR$460:$CG$491,8,0)) -> 0 | J71: =IF(ISNA(VLOOKUP($B71,'D2'!$BR$460:$CG$491,9,0)),0,VLOOKUP($B71,'D2'!$BR$460:$CG$491,9,0)) -> 0 | K71: =IF(ISNA(VLOOKUP($B71,'D2'!$BR$460:$CG$491,10,0)),0,VLOOKUP($B71,'D2'!$BR$460:$CG$491,10,0)) -> 0 | L71: =IF(ISNA(VLOOKUP($B71,'D2'!$BR$460:$CG$491,11,0)),0,VLOOKUP($B71,'D2'!$BR$460:$CG$491,11,0)) -> 0 | M71: =IF(ISNA(VLOOKUP($B71,'D2'!$BR$460:$CG$491,12,0)),0,VLOOKUP($B71,'D2'!$BR$460:$CG$491,12,0)) -> 0 | N71: =IF(ISNA(VLOOKUP($B71,'D2'!$BR$460:$CG$491,13,0)),0,VLOOKUP($B71,'D2'!$BR$460:$CG$491,13,0)) -> 0 | O71: =(+E71*0+F71*1+G71*2+H71*3+I71*4+J71*5+K71*6+L71*7+M71*8+N71*9)/SUM(E71:N71) ->  | P71: =IF(+O73*$S$9/100<0,0,+O73*$S$9/100) ->  | Q71: =SUM(E71:N71) -> 0 | R71: =+Q71-D71+AU71 -> 0 | S71: =IF(ISNA(VLOOKUP($B71,'D2'!$BR$460:$CG$491,14,0)),0,VLOOKUP($B71,'D2'!$BR$460:$CG$491,14,0)) -> 0 | T71: =IF(O71>P71,1,0) ->  | U71: =IF(O71<=O73,1,0) ->  | V71: =SUM(T71:U71) ->  | W71: =+D73 -> 0 | X71: =+E73 -> 0 | Y71: 0 | Z71: 0 | AA71: 0 | AB71: 0 | AC71: 0 | AD71: 0 | AE71: 0 | AF71: 0 | AG71: 0 | AI71: =+D72 -> 0 | AJ71: 0 | AK71: 0 | AL71: 0 | AM71: 0 | AN71: 0 | AO71: 0 | AP71: 0 | AQ71: 0 | AR71: 0 | AS71: 0 | AU71: =+D71-SUM(E71:N71) -> 0 | AV71: =SUM(E71:M71)/SUM(E71:N71)*100 ->  | BJ71: 3729 | BK71: Pertanian | BL71: 3729 | BM71: =+A71 -> 9 | BN71: =+D72 -> 0 | BO71: 0 | BP71: 0 | BQ71: 0 | BR71: 0 | BS71: 0 | BT71: 0 | BU71: 0 | BV71: 0 | BW71: 0 | BX71: 0 | BY71: =+B71 ->  | CK71: =+CK68+1 -> 21
Q72: 0 | R72: =+Q72-D72 -> 0 | T72: =IF(O72>P71,1,0) ->  | U72: =IF(O72<=O73,1,0) ->  | BJ72: 4531 | BK72: Physics | BL72: 4531
D73: =IF(ISNA(VLOOKUP(CONCATENATE($B$5,$B71),'A1'!$D$2:$T$3311,5,0)),0,VLOOKUP(CONCATENATE($B$5,$B71),'A1'!$D$2:$T$3311,5,0)) -> 0 | E73: =IF(ISNA(VLOOKUP(CONCATENATE($B$5,$B71),'A1'!$D$2:$T$3311,6,0)),0,VLOOKUP(CONCATENATE($B$5,$B71),'A1'!$D$2:$T$3311,6,0)) -> 0 | F73: =IF(ISNA(VLOOKUP(CONCATENATE($B$5,$B71),'A1'!$D$2:$T$3311,7,0)),0,VLOOKUP(CONCATENATE($B$5,$B71),'A1'!$D$2:$T$3311,7,0)) -> 0 | G73: =IF(ISNA(VLOOKUP(CONCATENATE($B$5,$B71),'A1'!$D$2:$T$3311,8,0)),0,VLOOKUP(CONCATENATE($B$5,$B71),'A1'!$D$2:$T$3311,8,0)) -> 0 | H73: =IF(ISNA(VLOOKUP(CONCATENATE($B$5,$B71),'A1'!$D$2:$T$3311,9,0)),0,VLOOKUP(CONCATENATE($B$5,$B71),'A1'!$D$2:$T$3311,9,0)) -> 0 | I73: =IF(ISNA(VLOOKUP(CONCATENATE($B$5,$B71),'A1'!$D$2:$T$3311,10,0)),0,VLOOKUP(CONCATENATE($B$5,$B71),'A1'!$D$2:$T$3311,10,0)) -> 0 | J73: =IF(ISNA(VLOOKUP(CONCATENATE($B$5,$B71),'A1'!$D$2:$T$3311,11,0)),0,VLOOKUP(CONCATENATE($B$5,$B71),'A1'!$D$2:$T$3311,11,0)) -> 0 | K73: =IF(ISNA(VLOOKUP(CONCATENATE($B$5,$B71),'A1'!$D$2:$T$3311,12,0)),0,VLOOKUP(CONCATENATE($B$5,$B71),'A1'!$D$2:$T$3311,12,0)) -> 0 | L73: =IF(ISNA(VLOOKUP(CONCATENATE($B$5,$B71),'A1'!$D$2:$T$3311,13,0)),0,VLOOKUP(CONCATENATE($B$5,$B71),'A1'!$D$2:$T$3311,13,0)) -> 0 | M73: =IF(ISNA(VLOOKUP(CONCATENATE($B$5,$B71),'A1'!$D$2:$T$3311,14,0)),0,VLOOKUP(CONCATENATE($B$5,$B71),'A1'!$D$2:$T$3311,14,0)) -> 0 | N73: =IF(ISNA(VLOOKUP(CONCATENATE($B$5,$B71),'A1'!$D$2:$T$3311,15,0)),0,VLOOKUP(CONCATENATE($B$5,$B71),'A1'!$D$2:$T$3311,15,0)) -> 0 | BJ73: 4531 | BK73: Physics | BL73: 4531
A74: =IF(ISNA(B74),A71,A71+1) -> 9 | B74: =VLOOKUP(CK74,'A1'!$W$2:$Y$102,3,0) ->  | C74: =VLOOKUP(B74,'A1'!$Y$2:$Z$102,2,0) ->  | D74: =SUM(E74:N74) -> 0 | E74: =IF(ISNA(VLOOKUP($B74,'D2'!$BR$460:$CG$491,4,0)),0,VLOOKUP($B74,'D2'!$BR$460:$CG$491,4,0)) -> 0 | F74: =IF(ISNA(VLOOKUP($B74,'D2'!$BR$460:$CG$491,5,0)),0,VLOOKUP($B74,'D2'!$BR$460:$CG$491,5,0)) -> 0 | G74: =IF(ISNA(VLOOKUP($B74,'D2'!$BR$460:$CG$491,6,0)),0,VLOOKUP($B74,'D2'!$BR$460:$CG$491,6,0)) -> 0 | H74: =IF(ISNA(VLOOKUP($B74,'D2'!$BR$460:$CG$491,7,0)),0,VLOOKUP($B74,'D2'!$BR$460:$CG$491,7,0)) -> 0 | I74: =IF(ISNA(VLOOKUP($B74,'D2'!$BR$460:$CG$491,8,0)),0,VLOOKUP($B74,'D2'!$BR$460:$CG$491,8,0)) -> 0 | J74: =IF(ISNA(VLOOKUP($B74,'D2'!$BR$460:$CG$491,9,0)),0,VLOOKUP($B74,'D2'!$BR$460:$CG$491,9,0)) -> 0 | K74: =IF(ISNA(VLOOKUP($B74,'D2'!$BR$460:$CG$491,10,0)),0,VLOOKUP($B74,'D2'!$BR$460:$CG$491,10,0)) -> 0 | L74: =IF(ISNA(VLOOKUP($B74,'D2'!$BR$460:$CG$491,11,0)),0,VLOOKUP($B74,'D2'!$BR$460:$CG$491,11,0)) -> 0 | M74: =IF(ISNA(VLOOKUP($B74,'D2'!$BR$460:$CG$491,12,0)),0,VLOOKUP($B74,'D2'!$BR$460:$CG$491,12,0)) -> 0 | N74: =IF(ISNA(VLOOKUP($B74,'D2'!$BR$460:$CG$491,13,0)),0,VLOOKUP($B74,'D2'!$BR$460:$CG$491,13,0)) -> 0 | O74: =(+E74*0+F74*1+G74*2+H74*3+I74*4+J74*5+K74*6+L74*7+M74*8+N74*9)/SUM(E74:N74) ->  | P74: =IF(+O76*$S$9/100<0,0,+O76*$S$9/100) ->  | Q74: =SUM(E74:N74) -> 0 | R74: =+Q74-D74+AU74 -> 0 | S74: =IF(ISNA(VLOOKUP($B74,'D2'!$BR$460:$CG$491,14,0)),0,VLOOKUP($B74,'D2'!$BR$460:$CG$491,14,0)) -> 0 | T74: =IF(O74>P74,1,0) ->  | U74: =IF(O74<=O76,1,0) ->  | V74: =SUM(T74:U74) ->  | W74: =+D76 -> 0 | X74: =+E76 -> 0 | Y74: 0 | Z74: 0 | AA74: 0 | AB74: 0 | AC74: 0 | AD74: 0 | AE74: 0 | AF74: 0 | AG74: 0 | AI74: =+D75 -> 0 | AJ74: 0 | AK74: 0 | AL74: 0 | AM74: 0 | AN74: 0 | AO74: 0 | AP74: 0 | AQ74: 0 | AR74: 0 | AS74: 0 | AU74: =+D74-SUM(E74:N74) -> 0 | AV74: =SUM(E74:M74)/SUM(E74:N74)*100 ->  | BJ74: 8502 | BK74: Pola Pakaian | BL74: 8502 | BM74: =+A74 -> 9 | BN74: =+D75 -> 0 | BO74: 0 | BP74: 0 | BQ74: 0 | BR74: 0 | BS74: 0 | BT74: 0 | BU74: 0 | BV74: 0 | BW74: 0 | BX74: 0 | BY74: =+B74 ->  | CK74: =+CK71+1 -> 22
Q75: 0 | R75: =+Q75-D75 -> 0 | T75: =IF(O75>P74,1,0) ->  | U75: =IF(O75<=O76,1,0) ->  | BJ75: 8201 | BK75: Prinsip Elektrik Dan Elektronik | BL75: 8201
D76: =IF(ISNA(VLOOKUP(CONCATENATE($B$5,$B74),'A1'!$D$2:$T$3311,5,0)),0,VLOOKUP(CONCATENATE($B$5,$B74),'A1'!$D$2:$T$3311,5,0)) -> 0 | E76: =IF(ISNA(VLOOKUP(CONCATENATE($B$5,$B74),'A1'!$D$2:$T$3311,6,0)),0,VLOOKUP(CONCATENATE($B$5,$B74),'A1'!$D$2:$T$3311,6,0)) -> 0 | F76: =IF(ISNA(VLOOKUP(CONCATENATE($B$5,$B74),'A1'!$D$2:$T$3311,7,0)),0,VLOOKUP(CONCATENATE($B$5,$B74),'A1'!$D$2:$T$3311,7,0)) -> 0 | G76: =IF(ISNA(VLOOKUP(CONCATENATE($B$5,$B74),'A1'!$D$2:$T$3311,8,0)),0,VLOOKUP(CONCATENATE($B$5,$B74),'A1'!$D$2:$T$3311,8,0)) -> 0 | H76: =IF(ISNA(VLOOKUP(CONCATENATE($B$5,$B74),'A1'!$D$2:$T$3311,9,0)),0,VLOOKUP(CONCATENATE($B$5,$B74),'A1'!$D$2:$T$3311,9,0)) -> 0 | I76: =IF(ISNA(VLOOKUP(CONCATENATE($B$5,$B74),'A1'!$D$2:$T$3311,10,0)),0,VLOOKUP(CONCATENATE($B$5,$B74),'A1'!$D$2:$T$3311,10,0)) -> 0 | J76: =IF(ISNA(VLOOKUP(CONCATENATE($B$5,$B74),'A1'!$D$2:$T$3311,11,0)),0,VLOOKUP(CONCATENATE($B$5,$B74),'A1'!$D$2:$T$3311,11,0)) -> 0 | K76: =IF(ISNA(VLOOKUP(CONCATENATE($B$5,$B74),'A1'!$D$2:$T$3311,12,0)),0,VLOOKUP(CONCATENATE($B$5,$B74),'A1'!$D$2:$T$3311,12,0)) -> 0 | L76: =IF(ISNA(VLOOKUP(CONCATENATE($B$5,$B74),'A1'!$D$2:$T$3311,13,0)),0,VLOOKUP(CONCATENATE($B$5,$B74),'A1'!$D$2:$T$3311,13,0)) -> 0 | M76: =IF(ISNA(VLOOKUP(CONCATENATE($B$5,$B74),'A1'!$D$2:$T$3311,14,0)),0,VLOOKUP(CONCATENATE($B$5,$B74),'A1'!$D$2:$T$3311,14,0)) -> 0 | N76: =IF(ISNA(VLOOKUP(CONCATENATE($B$5,$B74),'A1'!$D$2:$T$3311,15,0)),0,VLOOKUP(CONCATENATE($B$5,$B74),'A1'!$D$2:$T$3311,15,0)) -> 0 | BJ76: 3756 | BK76: Prinsip Perakaunan | BL76: 3756
A77: =IF(ISNA(B77),A74,A74+1) -> 9 | B77: =VLOOKUP(CK77,'A1'!$W$2:$Y$102,3,0) ->  | C77: =VLOOKUP(B77,'A1'!$Y$2:$Z$102,2,0) ->  | D77: =SUM(E77:N77) -> 0 | E77: =IF(ISNA(VLOOKUP($B77,'D2'!$BR$460:$CG$491,4,0)),0,VLOOKUP($B77,'D2'!$BR$460:$CG$491,4,0)) -> 0 | F77: =IF(ISNA(VLOOKUP($B77,'D2'!$BR$460:$CG$491,5,0)),0,VLOOKUP($B77,'D2'!$BR$460:$CG$491,5,0)) -> 0 | G77: =IF(ISNA(VLOOKUP($B77,'D2'!$BR$460:$CG$491,6,0)),0,VLOOKUP($B77,'D2'!$BR$460:$CG$491,6,0)) -> 0 | H77: =IF(ISNA(VLOOKUP($B77,'D2'!$BR$460:$CG$491,7,0)),0,VLOOKUP($B77,'D2'!$BR$460:$CG$491,7,0)) -> 0 | I77: =IF(ISNA(VLOOKUP($B77,'D2'!$BR$460:$CG$491,8,0)),0,VLOOKUP($B77,'D2'!$BR$460:$CG$491,8,0)) -> 0 | J77: =IF(ISNA(VLOOKUP($B77,'D2'!$BR$460:$CG$491,9,0)),0,VLOOKUP($B77,'D2'!$BR$460:$CG$491,9,0)) -> 0 | K77: =IF(ISNA(VLOOKUP($B77,'D2'!$BR$460:$CG$491,10,0)),0,VLOOKUP($B77,'D2'!$BR$460:$CG$491,10,0)) -> 0 | L77: =IF(ISNA(VLOOKUP($B77,'D2'!$BR$460:$CG$491,11,0)),0,VLOOKUP($B77,'D2'!$BR$460:$CG$491,11,0)) -> 0 | M77: =IF(ISNA(VLOOKUP($B77,'D2'!$BR$460:$CG$491,12,0)),0,VLOOKUP($B77,'D2'!$BR$460:$CG$491,12,0)) -> 0 | N77: =IF(ISNA(VLOOKUP($B77,'D2'!$BR$460:$CG$491,13,0)),0,VLOOKUP($B77,'D2'!$BR$460:$CG$491,13,0)) -> 0 | O77: =(+E77*0+F77*1+G77*2+H77*3+I77*4+J77*5+K77*6+L77*7+M77*8+N77*9)/SUM(E77:N77) ->  | P77: =IF(+O79*$S$9/100<0,0,+O79*$S$9/100) ->  | Q77: =SUM(E77:N77) -> 0 | R77: =+Q77-D77+AU77 -> 0 | S77: =IF(ISNA(VLOOKUP($B77,'D2'!$BR$460:$CG$491,14,0)),0,VLOOKUP($B77,'D2'!$BR$460:$CG$491,14,0)) -> 0 | T77: =IF(O77>P77,1,0) ->  | U77: =IF(O77<=O79,1,0) ->  | V77: =SUM(T77:U77) ->  | W77: =+D79 -> 0 | X77: =+E79 -> 0 | Y77: 0 | Z77: 0 | AA77: 0 | AB77: 0 | AC77: 0 | AD77: 0 | AE77: 0 | AF77: 0 | AG77: 0 | AI77: =+D78 -> 0 | AJ77: 0 | AK77: 0 | AL77: 0 | AM77: 0 | AN77: 0 | AO77: 0 | AP77: 0 | AQ77: 0 | AR77: 0 | AS77: 0 | AU77: =+D77-SUM(E77:N77) -> 0 | AV77: =SUM(E77:M77)/SUM(E77:N77)*100 ->  | BJ77: 3756 | BK77: Prinsip Perakaunan | BL77: 3756 | BM77: =+A77 -> 9 | BN77: =+D78 -> 0 | BO77: 0 | BP77: 0 | BQ77: 0 | BR77: 0 | BS77: 0 | BT77: 0 | BU77: 0 | BV77: 0 | BW77: 0 | BX77: 0 | BY77: =+B77 ->  | CK77: =+CK74+1 -> 23
Q78: 0 | R78: =+Q78-D78 -> 0 | T78: =IF(O78>P77,1,0) ->  | U78: =IF(O78<=O79,1,0) ->  | BJ78: 7403 | BK78: Produksi Multimedia | BL78: 7403
D79: =IF(ISNA(VLOOKUP(CONCATENATE($B$5,$B77),'A1'!$D$2:$T$3311,5,0)),0,VLOOKUP(CONCATENATE($B$5,$B77),'A1'!$D$2:$T$3311,5,0)) -> 0 | E79: =IF(ISNA(VLOOKUP(CONCATENATE($B$5,$B77),'A1'!$D$2:$T$3311,6,0)),0,VLOOKUP(CONCATENATE($B$5,$B77),'A1'!$D$2:$T$3311,6,0)) -> 0 | F79: =IF(ISNA(VLOOKUP(CONCATENATE($B$5,$B77),'A1'!$D$2:$T$3311,7,0)),0,VLOOKUP(CONCATENATE($B$5,$B77),'A1'!$D$2:$T$3311,7,0)) -> 0 | G79: =IF(ISNA(VLOOKUP(CONCATENATE($B$5,$B77),'A1'!$D$2:$T$3311,8,0)),0,VLOOKUP(CONCATENATE($B$5,$B77),'A1'!$D$2:$T$3311,8,0)) -> 0 | H79: =IF(ISNA(VLOOKUP(CONCATENATE($B$5,$B77),'A1'!$D$2:$T$3311,9,0)),0,VLOOKUP(CONCATENATE($B$5,$B77),'A1'!$D$2:$T$3311,9,0)) -> 0 | I79: =IF(ISNA(VLOOKUP(CONCATENATE($B$5,$B77),'A1'!$D$2:$T$3311,10,0)),0,VLOOKUP(CONCATENATE($B$5,$B77),'A1'!$D$2:$T$3311,10,0)) -> 0 | J79: =IF(ISNA(VLOOKUP(CONCATENATE($B$5,$B77),'A1'!$D$2:$T$3311,11,0)),0,VLOOKUP(CONCATENATE($B$5,$B77),'A1'!$D$2:$T$3311,11,0)) -> 0 | K79: =IF(ISNA(VLOOKUP(CONCATENATE($B$5,$B77),'A1'!$D$2:$T$3311,12,0)),0,VLOOKUP(CONCATENATE($B$5,$B77),'A1'!$D$2:$T$3311,12,0)) -> 0 | L79: =IF(ISNA(VLOOKUP(CONCATENATE($B$5,$B77),'A1'!$D$2:$T$3311,13,0)),0,VLOOKUP(CONCATENATE($B$5,$B77),'A1'!$D$2:$T$3311,13,0)) -> 0 | M79: =IF(ISNA(VLOOKUP(CONCATENATE($B$5,$B77),'A1'!$D$2:$T$3311,14,0)),0,VLOOKUP(CONCATENATE($B$5,$B77),'A1'!$D$2:$T$3311,14,0)) -> 0 | N79: =IF(ISNA(VLOOKUP(CONCATENATE($B$5,$B77),'A1'!$D$2:$T$3311,15,0)),0,VLOOKUP(CONCATENATE($B$5,$B77),'A1'!$D$2:$T$3311,15,0)) -> 0 | BJ79: 7403 | BK79: Produksi Multimedia | BL79: 7403
A80: =IF(ISNA(B80),A77,A77+1) -> 9 | B80: =VLOOKUP(CK80,'A1'!$W$2:$Y$102,3,0) ->  | C80: =VLOOKUP(B80,'A1'!$Y$2:$Z$102,2,0) ->  | D80: =SUM(E80:N80) -> 0 | E80: =IF(ISNA(VLOOKUP($B80,'D2'!$BR$460:$CG$491,4,0)),0,VLOOKUP($B80,'D2'!$BR$460:$CG$491,4,0)) -> 0 | F80: =IF(ISNA(VLOOKUP($B80,'D2'!$BR$460:$CG$491,5,0)),0,VLOOKUP($B80,'D2'!$BR$460:$CG$491,5,0)) -> 0 | G80: =IF(ISNA(VLOOKUP($B80,'D2'!$BR$460:$CG$491,6,0)),0,VLOOKUP($B80,'D2'!$BR$460:$CG$491,6,0)) -> 0 | H80: =IF(ISNA(VLOOKUP($B80,'D2'!$BR$460:$CG$491,7,0)),0,VLOOKUP($B80,'D2'!$BR$460:$CG$491,7,0)) -> 0 | I80: =IF(ISNA(VLOOKUP($B80,'D2'!$BR$460:$CG$491,8,0)),0,VLOOKUP($B80,'D2'!$BR$460:$CG$491,8,0)) -> 0 | J80: =IF(ISNA(VLOOKUP($B80,'D2'!$BR$460:$CG$491,9,0)),0,VLOOKUP($B80,'D2'!$BR$460:$CG$491,9,0)) -> 0 | K80: =IF(ISNA(VLOOKUP($B80,'D2'!$BR$460:$CG$491,10,0)),0,VLOOKUP($B80,'D2'!$BR$460:$CG$491,10,0)) -> 0 | L80: =IF(ISNA(VLOOKUP($B80,'D2'!$BR$460:$CG$491,11,0)),0,VLOOKUP($B80,'D2'!$BR$460:$CG$491,11,0)) -> 0 | M80: =IF(ISNA(VLOOKUP($B80,'D2'!$BR$460:$CG$491,12,0)),0,VLOOKUP($B80,'D2'!$BR$460:$CG$491,12,0)) -> 0 | N80: =IF(ISNA(VLOOKUP($B80,'D2'!$BR$460:$CG$491,13,0)),0,VLOOKUP($B80,'D2'!$BR$460:$CG$491,13,0)) -> 0 | O80: =(+E80*0+F80*1+G80*2+H80*3+I80*4+J80*5+K80*6+L80*7+M80*8+N80*9)/SUM(E80:N80) ->  | P80: =IF(+O82*$S$9/100<0,0,+O82*$S$9/100) ->  | Q80: =SUM(E80:N80) -> 0 | R80: =+Q80-D80+AU80 -> 0 | S80: =IF(ISNA(VLOOKUP($B80,'D2'!$BR$460:$CG$491,14,0)),0,VLOOKUP($B80,'D2'!$BR$460:$CG$491,14,0)) -> 0 | T80: =IF(O80>P80,1,0) ->  | U80: =IF(O80<=O82,1,0) ->  | V80: =SUM(T80:U80) ->  | W80: =+D82 -> 0 | X80: =+E82 -> 0 | Y80: 0 | Z80: 0 | AA80: 0 | AB80: 0 | AC80: 0 | AD80: 0 | AE80: 0 | AF80: 0 | AG80: 0 | AI80: =+D81 -> 0 | AJ80: 0 | AK80: 0 | AL80: 0 | AM80: 0 | AN80: 0 | AO80: 0 | AP80: 0 | AQ80: 0 | AR80: 0 | AS80: 0 | AU80: =+D80-SUM(E80:N80) -> 0 | AV80: =SUM(E80:M80)/SUM(E80:N80)*100 ->  | BJ80: 8402 | BK80: Programming And Development Tools | BL80: 8402 | BM80: =+A80 -> 9 | BN80: =+D81 -> 0 | BO80: 0 | BP80: 0 | BQ80: 0 | BR80: 0 | BS80: 0 | BT80: 0 | BU80: 0 | BV80: 0 | BW80: 0 | BX80: 0 | BY80: =+B80 ->  | CK80: =+CK77+1 -> 24
Q81: 0 | R81: =+Q81-D81 -> 0 | T81: =IF(O81>P80,1,0) ->  | U81: =IF(O81<=O82,1,0) ->  | BJ81: 3763 | BK81: Reka Cipta | BL81: 3763
D82: =IF(ISNA(VLOOKUP(CONCATENATE($B$5,$B80),'A1'!$D$2:$T$3311,5,0)),0,VLOOKUP(CONCATENATE($B$5,$B80),'A1'!$D$2:$T$3311,5,0)) -> 0 | E82: =IF(ISNA(VLOOKUP(CONCATENATE($B$5,$B80),'A1'!$D$2:$T$3311,6,0)),0,VLOOKUP(CONCATENATE($B$5,$B80),'A1'!$D$2:$T$3311,6,0)) -> 0 | F82: =IF(ISNA(VLOOKUP(CONCATENATE($B$5,$B80),'A1'!$D$2:$T$3311,7,0)),0,VLOOKUP(CONCATENATE($B$5,$B80),'A1'!$D$2:$T$3311,7,0)) -> 0 | G82: =IF(ISNA(VLOOKUP(CONCATENATE($B$5,$B80),'A1'!$D$2:$T$3311,8,0)),0,VLOOKUP(CONCATENATE($B$5,$B80),'A1'!$D$2:$T$3311,8,0)) -> 0 | H82: =IF(ISNA(VLOOKUP(CONCATENATE($B$5,$B80),'A1'!$D$2:$T$3311,9,0)),0,VLOOKUP(CONCATENATE($B$5,$B80),'A1'!$D$2:$T$3311,9,0)) -> 0 | I82: =IF(ISNA(VLOOKUP(CONCATENATE($B$5,$B80),'A1'!$D$2:$T$3311,10,0)),0,VLOOKUP(CONCATENATE($B$5,$B80),'A1'!$D$2:$T$3311,10,0)) -> 0 | J82: =IF(ISNA(VLOOKUP(CONCATENATE($B$5,$B80),'A1'!$D$2:$T$3311,11,0)),0,VLOOKUP(CONCATENATE($B$5,$B80),'A1'!$D$2:$T$3311,11,0)) -> 0 | K82: =IF(ISNA(VLOOKUP(CONCATENATE($B$5,$B80),'A1'!$D$2:$T$3311,12,0)),0,VLOOKUP(CONCATENATE($B$5,$B80),'A1'!$D$2:$T$3311,12,0)) -> 0 | L82: =IF(ISNA(VLOOKUP(CONCATENATE($B$5,$B80),'A1'!$D$2:$T$3311,13,0)),0,VLOOKUP(CONCATENATE($B$5,$B80),'A1'!$D$2:$T$3311,13,0)) -> 0 | M82: =IF(ISNA(VLOOKUP(CONCATENATE($B$5,$B80),'A1'!$D$2:$T$3311,14,0)),0,VLOOKUP(CONCATENATE($B$5,$B80),'A1'!$D$2:$T$3311,14,0)) -> 0 | N82: =IF(ISNA(VLOOKUP(CONCATENATE($B$5,$B80),'A1'!$D$2:$T$3311,15,0)),0,VLOOKUP(CONCATENATE($B$5,$B80),'A1'!$D$2:$T$3311,15,0)) -> 0 | BJ82: 3763 | BK82: Reka Cipta | BL82: 3763
A83: =IF(ISNA(B83),A80,A80+1) -> 9 | B83: =VLOOKUP(CK83,'A1'!$W$2:$Y$102,3,0) ->  | C83: =VLOOKUP(B83,'A1'!$Y$2:$Z$102,2,0) ->  | D83: =SUM(E83:N83) -> 0 | E83: =IF(ISNA(VLOOKUP($B83,'D2'!$BR$460:$CG$491,4,0)),0,VLOOKUP($B83,'D2'!$BR$460:$CG$491,4,0)) -> 0 | F83: =IF(ISNA(VLOOKUP($B83,'D2'!$BR$460:$CG$491,5,0)),0,VLOOKUP($B83,'D2'!$BR$460:$CG$491,5,0)) -> 0 | G83: =IF(ISNA(VLOOKUP($B83,'D2'!$BR$460:$CG$491,6,0)),0,VLOOKUP($B83,'D2'!$BR$460:$CG$491,6,0)) -> 0 | H83: =IF(ISNA(VLOOKUP($B83,'D2'!$BR$460:$CG$491,7,0)),0,VLOOKUP($B83,'D2'!$BR$460:$CG$491,7,0)) -> 0 | I83: =IF(ISNA(VLOOKUP($B83,'D2'!$BR$460:$CG$491,8,0)),0,VLOOKUP($B83,'D2'!$BR$460:$CG$491,8,0)) -> 0 | J83: =IF(ISNA(VLOOKUP($B83,'D2'!$BR$460:$CG$491,9,0)),0,VLOOKUP($B83,'D2'!$BR$460:$CG$491,9,0)) -> 0 | K83: =IF(ISNA(VLOOKUP($B83,'D2'!$BR$460:$CG$491,10,0)),0,VLOOKUP($B83,'D2'!$BR$460:$CG$491,10,0)) -> 0 | L83: =IF(ISNA(VLOOKUP($B83,'D2'!$BR$460:$CG$491,11,0)),0,VLOOKUP($B83,'D2'!$BR$460:$CG$491,11,0)) -> 0 | M83: =IF(ISNA(VLOOKUP($B83,'D2'!$BR$460:$CG$491,12,0)),0,VLOOKUP($B83,'D2'!$BR$460:$CG$491,12,0)) -> 0 | N83: =IF(ISNA(VLOOKUP($B83,'D2'!$BR$460:$CG$491,13,0)),0,VLOOKUP($B83,'D2'!$BR$460:$CG$491,13,0)) -> 0 | O83: =(+E83*0+F83*1+G83*2+H83*3+I83*4+J83*5+K83*6+L83*7+M83*8+N83*9)/SUM(E83:N83) ->  | P83: =IF(+O85*$S$9/100<0,0,+O85*$S$9/100) ->  | Q83: =SUM(E83:N83) -> 0 | R83: =+Q83-D83+AU83 -> 0 | S83: =IF(ISNA(VLOOKUP($B83,'D2'!$BR$460:$CG$491,14,0)),0,VLOOKUP($B83,'D2'!$BR$460:$CG$491,14,0)) -> 0 | T83: =IF(O83>P83,1,0) ->  | U83: =IF(O83<=O85,1,0) ->  | V83: =SUM(T83:U83) ->  | W83: =+D85 -> 0 | X83: =+E85 -> 0 | Y83: 0 | Z83: 0 | AA83: 0 | AB83: 0 | AC83: 0 | AD83: 0 | AE83: 0 | AF83: 0 | AG83: 0 | AI83: =+D84 -> 0 | AJ83: 0 | AK83: 0 | AL83: 0 | AM83: 0 | AN83: 0 | AO83: 0 | AP83: 0 | AQ83: 0 | AR83: 0 | AS83: 0 | AU83: =+D83-SUM(E83:N83) -> 0 | AV83: =SUM(E83:M83)/SUM(E83:N83)*100 ->  | BJ83: 7201 | BK83: Rekaan dan Jahitan Pakaian | BL83: 7201 | BM83: =+A83 -> 9 | BN83: =+D84 -> 0 | BO83: 0 | BP83: 0 | BQ83: 0 | BR83: 0 | BS83: 0 | BT83: 0 | BU83: 0 | BV83: 0 | BW83: 0 | BX83: 0 | BY83: =+B83 ->  | CK83: =+CK80+1 -> 25
Q84: 0 | R84: =+Q84-D84 -> 0 | T84: =IF(O84>P83,1,0) ->  | U84: =IF(O84<=O85,1,0) ->  | BJ84: 7201 | BK84: Rekaan dan Jahitan Pakaian | BL84: 7201
D85: =IF(ISNA(VLOOKUP(CONCATENATE($B$5,$B83),'A1'!$D$2:$T$3311,5,0)),0,VLOOKUP(CONCATENATE($B$5,$B83),'A1'!$D$2:$T$3311,5,0)) -> 0 | E85: =IF(ISNA(VLOOKUP(CONCATENATE($B$5,$B83),'A1'!$D$2:$T$3311,6,0)),0,VLOOKUP(CONCATENATE($B$5,$B83),'A1'!$D$2:$T$3311,6,0)) -> 0 | F85: =IF(ISNA(VLOOKUP(CONCATENATE($B$5,$B83),'A1'!$D$2:$T$3311,7,0)),0,VLOOKUP(CONCATENATE($B$5,$B83),'A1'!$D$2:$T$3311,7,0)) -> 0 | G85: =IF(ISNA(VLOOKUP(CONCATENATE($B$5,$B83),'A1'!$D$2:$T$3311,8,0)),0,VLOOKUP(CONCATENATE($B$5,$B83),'A1'!$D$2:$T$3311,8,0)) -> 0 | H85: =IF(ISNA(VLOOKUP(CONCATENATE($B$5,$B83),'A1'!$D$2:$T$3311,9,0)),0,VLOOKUP(CONCATENATE($B$5,$B83),'A1'!$D$2:$T$3311,9,0)) -> 0 | I85: =IF(ISNA(VLOOKUP(CONCATENATE($B$5,$B83),'A1'!$D$2:$T$3311,10,0)),0,VLOOKUP(CONCATENATE($B$5,$B83),'A1'!$D$2:$T$3311,10,0)) -> 0 | J85: =IF(ISNA(VLOOKUP(CONCATENATE($B$5,$B83),'A1'!$D$2:$T$3311,11,0)),0,VLOOKUP(CONCATENATE($B$5,$B83),'A1'!$D$2:$T$3311,11,0)) -> 0 | K85: =IF(ISNA(VLOOKUP(CONCATENATE($B$5,$B83),'A1'!$D$2:$T$3311,12,0)),0,VLOOKUP(CONCATENATE($B$5,$B83),'A1'!$D$2:$T$3311,12,0)) -> 0 | L85: =IF(ISNA(VLOOKUP(CONCATENATE($B$5,$B83),'A1'!$D$2:$T$3311,13,0)),0,VLOOKUP(CONCATENATE($B$5,$B83),'A1'!$D$2:$T$3311,13,0)) -> 0 | M85: =IF(ISNA(VLOOKUP(CONCATENATE($B$5,$B83),'A1'!$D$2:$T$3311,14,0)),0,VLOOKUP(CONCATENATE($B$5,$B83),'A1'!$D$2:$T$3311,14,0)) -> 0 | N85: =IF(ISNA(VLOOKUP(CONCATENATE($B$5,$B83),'A1'!$D$2:$T$3311,15,0)),0,VLOOKUP(CONCATENATE($B$5,$B83),'A1'!$D$2:$T$3311,15,0)) -> 0 | BJ85: 8008 | BK85: Sains DLP | BL85: 8008
A86: =IF(ISNA(B86),A83,A83+1) -> 9 | B86: =VLOOKUP(CK86,'A1'!$W$2:$Y$102,3,0) ->  | C86: =VLOOKUP(B86,'A1'!$Y$2:$Z$102,2,0) ->  | D86: =SUM(E86:N86) -> 0 | E86: =IF(ISNA(VLOOKUP($B86,'D2'!$BR$460:$CG$491,4,0)),0,VLOOKUP($B86,'D2'!$BR$460:$CG$491,4,0)) -> 0 | F86: =IF(ISNA(VLOOKUP($B86,'D2'!$BR$460:$CG$491,5,0)),0,VLOOKUP($B86,'D2'!$BR$460:$CG$491,5,0)) -> 0 | G86: =IF(ISNA(VLOOKUP($B86,'D2'!$BR$460:$CG$491,6,0)),0,VLOOKUP($B86,'D2'!$BR$460:$CG$491,6,0)) -> 0 | H86: =IF(ISNA(VLOOKUP($B86,'D2'!$BR$460:$CG$491,7,0)),0,VLOOKUP($B86,'D2'!$BR$460:$CG$491,7,0)) -> 0 | I86: =IF(ISNA(VLOOKUP($B86,'D2'!$BR$460:$CG$491,8,0)),0,VLOOKUP($B86,'D2'!$BR$460:$CG$491,8,0)) -> 0 | J86: =IF(ISNA(VLOOKUP($B86,'D2'!$BR$460:$CG$491,9,0)),0,VLOOKUP($B86,'D2'!$BR$460:$CG$491,9,0)) -> 0 | K86: =IF(ISNA(VLOOKUP($B86,'D2'!$BR$460:$CG$491,10,0)),0,VLOOKUP($B86,'D2'!$BR$460:$CG$491,10,0)) -> 0 | L86: =IF(ISNA(VLOOKUP($B86,'D2'!$BR$460:$CG$491,11,0)),0,VLOOKUP($B86,'D2'!$BR$460:$CG$491,11,0)) -> 0 | M86: =IF(ISNA(VLOOKUP($B86,'D2'!$BR$460:$CG$491,12,0)),0,VLOOKUP($B86,'D2'!$BR$460:$CG$491,12,0)) -> 0 | N86: =IF(ISNA(VLOOKUP($B86,'D2'!$BR$460:$CG$491,13,0)),0,VLOOKUP($B86,'D2'!$BR$460:$CG$491,13,0)) -> 0 | O86: =(+E86*0+F86*1+G86*2+H86*3+I86*4+J86*5+K86*6+L86*7+M86*8+N86*9)/SUM(E86:N86) ->  | P86: =IF(+O88*$S$9/100<0,0,+O88*$S$9/100) ->  | Q86: =SUM(E86:N86) -> 0 | R86: =+Q86-D86+AU86 -> 0 | S86: =IF(ISNA(VLOOKUP($B86,'D2'!$BR$460:$CG$491,14,0)),0,VLOOKUP($B86,'D2'!$BR$460:$CG$491,14,0)) -> 0 | T86: =IF(O86>P86,1,0) ->  | U86: =IF(O86<=O88,1,0) ->  | V86: =SUM(T86:U86) ->  | W86: =+D88 -> 0 | X86: =+E88 -> 0 | Y86: 0 | Z86: 0 | AA86: 0 | AB86: 0 | AC86: 0 | AD86: 0 | AE86: 0 | AF86: 0 | AG86: 0 | AI86: =+D87 -> 0 | AJ86: 0 | AK86: 0 | AL86: 0 | AM86: 0 | AN86: 0 | AO86: 0 | AP86: 0 | AQ86: 0 | AR86: 0 | AS86: 0 | AU86: =+D86-SUM(E86:N86) -> 0 | AV86: =SUM(E86:M86)/SUM(E86:N86)*100 ->  | BJ86: 3770 | BK86: Sains Komputer | BL86: 3770 | BM86: =IF(ISNA(B86),BM83,A86) -> 9 | BN86: =+D87 -> 0 | BO86: 0 | BP86: 0 | BQ86: 0 | BR86: 0 | BS86: 0 | BT86: 0 | BU86: 0 | BV86: 0 | BW86: 0 | BX86: 0 | BY86: =+B86 ->  | CK86: =+CK83+1 -> 26
Q87: 0 | R87: =+Q87-D87 -> 0 | T87: =IF(O87>P86,1,0) ->  | U87: =IF(O87<=O88,1,0) ->  | BJ87: 3770 | BK87: Sains Komputer | BL87: 3770
D88: =IF(ISNA(VLOOKUP(CONCATENATE($B$5,$B86),'A1'!$D$2:$T$3311,5,0)),0,VLOOKUP(CONCATENATE($B$5,$B86),'A1'!$D$2:$T$3311,5,0)) -> 0 | E88: =IF(ISNA(VLOOKUP(CONCATENATE($B$5,$B86),'A1'!$D$2:$T$3311,6,0)),0,VLOOKUP(CONCATENATE($B$5,$B86),'A1'!$D$2:$T$3311,6,0)) -> 0 | F88: =IF(ISNA(VLOOKUP(CONCATENATE($B$5,$B86),'A1'!$D$2:$T$3311,7,0)),0,VLOOKUP(CONCATENATE($B$5,$B86),'A1'!$D$2:$T$3311,7,0)) -> 0 | G88: =IF(ISNA(VLOOKUP(CONCATENATE($B$5,$B86),'A1'!$D$2:$T$3311,8,0)),0,VLOOKUP(CONCATENATE($B$5,$B86),'A1'!$D$2:$T$3311,8,0)) -> 0 | H88: =IF(ISNA(VLOOKUP(CONCATENATE($B$5,$B86),'A1'!$D$2:$T$3311,9,0)),0,VLOOKUP(CONCATENATE($B$5,$B86),'A1'!$D$2:$T$3311,9,0)) -> 0 | I88: =IF(ISNA(VLOOKUP(CONCATENATE($B$5,$B86),'A1'!$D$2:$T$3311,10,0)),0,VLOOKUP(CONCATENATE($B$5,$B86),'A1'!$D$2:$T$3311,10,0)) -> 0 | J88: =IF(ISNA(VLOOKUP(CONCATENATE($B$5,$B86),'A1'!$D$2:$T$3311,11,0)),0,VLOOKUP(CONCATENATE($B$5,$B86),'A1'!$D$2:$T$3311,11,0)) -> 0 | K88: =IF(ISNA(VLOOKUP(CONCATENATE($B$5,$B86),'A1'!$D$2:$T$3311,12,0)),0,VLOOKUP(CONCATENATE($B$5,$B86),'A1'!$D$2:$T$3311,12,0)) -> 0 | L88: =IF(ISNA(VLOOKUP(CONCATENATE($B$5,$B86),'A1'!$D$2:$T$3311,13,0)),0,VLOOKUP(CONCATENATE($B$5,$B86),'A1'!$D$2:$T$3311,13,0)) -> 0 | M88: =IF(ISNA(VLOOKUP(CONCATENATE($B$5,$B86),'A1'!$D$2:$T$3311,14,0)),0,VLOOKUP(CONCATENATE($B$5,$B86),'A1'!$D$2:$T$3311,14,0)) -> 0 | N88: =IF(ISNA(VLOOKUP(CONCATENATE($B$5,$B86),'A1'!$D$2:$T$3311,15,0)),0,VLOOKUP(CONCATENATE($B$5,$B86),'A1'!$D$2:$T$3311,15,0)) -> 0 | BJ88: 3769 | BK88: Sains Rumah Tangga | BL88: 3769
A89: =IF(ISNA(B89),A86,A86+1) -> 9 | B89: =VLOOKUP(CK89,'A1'!$W$2:$Y$102,3,0) ->  | C89: =VLOOKUP(B89,'A1'!$Y$2:$Z$102,2,0) ->  | D89: =SUM(E89:N89) -> 0 | E89: =IF(ISNA(VLOOKUP($B89,'D2'!$BR$460:$CG$491,4,0)),0,VLOOKUP($B89,'D2'!$BR$460:$CG$491,4,0)) -> 0 | F89: =IF(ISNA(VLOOKUP($B89,'D2'!$BR$460:$CG$491,5,0)),0,VLOOKUP($B89,'D2'!$BR$460:$CG$491,5,0)) -> 0 | G89: =IF(ISNA(VLOOKUP($B89,'D2'!$BR$460:$CG$491,6,0)),0,VLOOKUP($B89,'D2'!$BR$460:$CG$491,6,0)) -> 0 | H89: =IF(ISNA(VLOOKUP($B89,'D2'!$BR$460:$CG$491,7,0)),0,VLOOKUP($B89,'D2'!$BR$460:$CG$491,7,0)) -> 0 | I89: =IF(ISNA(VLOOKUP($B89,'D2'!$BR$460:$CG$491,8,0)),0,VLOOKUP($B89,'D2'!$BR$460:$CG$491,8,0)) -> 0 | J89: =IF(ISNA(VLOOKUP($B89,'D2'!$BR$460:$CG$491,9,0)),0,VLOOKUP($B89,'D2'!$BR$460:$CG$491,9,0)) -> 0 | K89: =IF(ISNA(VLOOKUP($B89,'D2'!$BR$460:$CG$491,10,0)),0,VLOOKUP($B89,'D2'!$BR$460:$CG$491,10,0)) -> 0 | L89: =IF(ISNA(VLOOKUP($B89,'D2'!$BR$460:$CG$491,11,0)),0,VLOOKUP($B89,'D2'!$BR$460:$CG$491,11,0)) -> 0 | M89: =IF(ISNA(VLOOKUP($B89,'D2'!$BR$460:$CG$491,12,0)),0,VLOOKUP($B89,'D2'!$BR$460:$CG$491,12,0)) -> 0 | N89: =IF(ISNA(VLOOKUP($B89,'D2'!$BR$460:$CG$491,13,0)),0,VLOOKUP($B89,'D2'!$BR$460:$CG$491,13,0)) -> 0 | O89: =(+E89*0+F89*1+G89*2+H89*3+I89*4+J89*5+K89*6+L89*7+M89*8+N89*9)/SUM(E89:N89) ->  | P89: =IF(+O91*$S$9/100<0,0,+O91*$S$9/100) ->  | Q89: =SUM(E89:N89) -> 0 | R89: =+Q89-D89+AU89 -> 0 | S89: =IF(ISNA(VLOOKUP($B89,'D2'!$BR$460:$CG$491,14,0)),0,VLOOKUP($B89,'D2'!$BR$460:$CG$491,14,0)) -> 0 | T89: =IF(O89>P89,1,0) ->  | U89: =IF(O89<=O91,1,0) ->  | V89: =SUM(T89:U89) ->  | W89: =+D91 -> 0 | X89: 0 | Y89: 0 | Z89: 0 | AA89: 0 | AB89: 0 | AC89: 0 | AD89: 0 | AE89: 0 | AF89: 0 | AG89: 0 | AI89: =+D90 -> 0 | AJ89: 0 | AK89: 0 | AL89: 0 | AM89: 0 | AN89: 0 | AO89: 0 | AP89: 0 | AQ89: 0 | AR89: 0 | AS89: 0 | AU89: =+D89-SUM(E89:N89) -> 0 | AV89: =SUM(E89:M89)/SUM(E89:N89)*100 ->  | BJ89: 3769 | BK89: Sains Rumah Tangga | BL89: 3769 | BM89: =IF(ISNA(B89),BM86,A89) -> 9 | BN89: =+D90 -> 0 | BO89: 0 | BP89: 0 | BQ89: 0 | BR89: 0 | BS89: 0 | BT89: 0 | BU89: 0 | BV89: 0 | BW89: 0 | BX89: 0 | BY89: =+B89 ->  | CK89: =+CK86+1 -> 27
Q90: 0 | R90: =+Q90-D90 -> 0 | T90: =IF(O90>P89,1,0) ->  | U90: =IF(O90<=O91,1,0) ->  | BJ90: 4571 | BK90: Sains Sukan | BL90: 4571
D91: =IF(ISNA(VLOOKUP(CONCATENATE($B$5,$B89),'A1'!$D$2:$T$3311,5,0)),0,VLOOKUP(CONCATENATE($B$5,$B89),'A1'!$D$2:$T$3311,5,0)) -> 0 | E91: =IF(ISNA(VLOOKUP(CONCATENATE($B$5,$B89),'A1'!$D$2:$T$3311,6,0)),0,VLOOKUP(CONCATENATE($B$5,$B89),'A1'!$D$2:$T$3311,6,0)) -> 0 | F91: =IF(ISNA(VLOOKUP(CONCATENATE($B$5,$B89),'A1'!$D$2:$T$3311,7,0)),0,VLOOKUP(CONCATENATE($B$5,$B89),'A1'!$D$2:$T$3311,7,0)) -> 0 | G91: =IF(ISNA(VLOOKUP(CONCATENATE($B$5,$B89),'A1'!$D$2:$T$3311,8,0)),0,VLOOKUP(CONCATENATE($B$5,$B89),'A1'!$D$2:$T$3311,8,0)) -> 0 | H91: =IF(ISNA(VLOOKUP(CONCATENATE($B$5,$B89),'A1'!$D$2:$T$3311,9,0)),0,VLOOKUP(CONCATENATE($B$5,$B89),'A1'!$D$2:$T$3311,9,0)) -> 0 | I91: =IF(ISNA(VLOOKUP(CONCATENATE($B$5,$B89),'A1'!$D$2:$T$3311,10,0)),0,VLOOKUP(CONCATENATE($B$5,$B89),'A1'!$D$2:$T$3311,10,0)) -> 0 | J91: =IF(ISNA(VLOOKUP(CONCATENATE($B$5,$B89),'A1'!$D$2:$T$3311,11,0)),0,VLOOKUP(CONCATENATE($B$5,$B89),'A1'!$D$2:$T$3311,11,0)) -> 0 | K91: =IF(ISNA(VLOOKUP(CONCATENATE($B$5,$B89),'A1'!$D$2:$T$3311,12,0)),0,VLOOKUP(CONCATENATE($B$5,$B89),'A1'!$D$2:$T$3311,12,0)) -> 0 | L91: =IF(ISNA(VLOOKUP(CONCATENATE($B$5,$B89),'A1'!$D$2:$T$3311,13,0)),0,VLOOKUP(CONCATENATE($B$5,$B89),'A1'!$D$2:$T$3311,13,0)) -> 0 | M91: =IF(ISNA(VLOOKUP(CONCATENATE($B$5,$B89),'A1'!$D$2:$T$3311,14,0)),0,VLOOKUP(CONCATENATE($B$5,$B89),'A1'!$D$2:$T$3311,14,0)) -> 0 | N91: =IF(ISNA(VLOOKUP(CONCATENATE($B$5,$B89),'A1'!$D$2:$T$3311,15,0)),0,VLOOKUP(CONCATENATE($B$5,$B89),'A1'!$D$2:$T$3311,15,0)) -> 0 | BJ91: 4571 | BK91: Sains Sukan | BL91: 4571
A92: =IF(ISNA(B92),A89,A89+1) -> 9 | B92: =VLOOKUP(CK92,'A1'!$W$2:$Y$102,3,0) ->  | C92: =VLOOKUP(B92,'A1'!$Y$2:$Z$102,2,0) ->  | D92: =SUM(E92:N92) -> 0 | E92: =IF(ISNA(VLOOKUP($B92,'D2'!$BR$460:$CG$491,4,0)),0,VLOOKUP($B92,'D2'!$BR$460:$CG$491,4,0)) -> 0 | F92: =IF(ISNA(VLOOKUP($B92,'D2'!$BR$460:$CG$491,5,0)),0,VLOOKUP($B92,'D2'!$BR$460:$CG$491,5,0)) -> 0 | G92: =IF(ISNA(VLOOKUP($B92,'D2'!$BR$460:$CG$491,6,0)),0,VLOOKUP($B92,'D2'!$BR$460:$CG$491,6,0)) -> 0 | H92: =IF(ISNA(VLOOKUP($B92,'D2'!$BR$460:$CG$491,7,0)),0,VLOOKUP($B92,'D2'!$BR$460:$CG$491,7,0)) -> 0 | I92: =IF(ISNA(VLOOKUP($B92,'D2'!$BR$460:$CG$491,8,0)),0,VLOOKUP($B92,'D2'!$BR$460:$CG$491,8,0)) -> 0 | J92: =IF(ISNA(VLOOKUP($B92,'D2'!$BR$460:$CG$491,9,0)),0,VLOOKUP($B92,'D2'!$BR$460:$CG$491,9,0)) -> 0 | K92: =IF(ISNA(VLOOKUP($B92,'D2'!$BR$460:$CG$491,10,0)),0,VLOOKUP($B92,'D2'!$BR$460:$CG$491,10,0)) -> 0 | L92: =IF(ISNA(VLOOKUP($B92,'D2'!$BR$460:$CG$491,11,0)),0,VLOOKUP($B92,'D2'!$BR$460:$CG$491,11,0)) -> 0 | M92: =IF(ISNA(VLOOKUP($B92,'D2'!$BR$460:$CG$491,12,0)),0,VLOOKUP($B92,'D2'!$BR$460:$CG$491,12,0)) -> 0 | N92: =IF(ISNA(VLOOKUP($B92,'D2'!$BR$460:$CG$491,13,0)),0,VLOOKUP($B92,'D2'!$BR$460:$CG$491,13,0)) -> 0 | O92: =(+E92*0+F92*1+G92*2+H92*3+I92*4+J92*5+K92*6+L92*7+M92*8+N92*9)/SUM(E92:N92) ->  | P92: =IF(+O94*$S$9/100<0,0,+O94*$S$9/100) ->  | Q92: =SUM(E92:N92) -> 0 | R92: =+Q92-D92+AU92 -> 0 | S92: =IF(ISNA(VLOOKUP($B92,'D2'!$BR$460:$CG$491,14,0)),0,VLOOKUP($B92,'D2'!$BR$460:$CG$491,14,0)) -> 0 | T92: =IF(O92>P92,1,0) ->  | U92: =IF(O92<=O94,1,0) ->  | V92: =SUM(T92:U92) ->  | W92: =+D94 -> 0 | X92: 0 | Y92: 0 | Z92: 0 | AA92: 0 | AB92: 0 | AC92: 0 | AD92: 0 | AE92: 0 | AF92: 0 | AG92: 0 | AI92: =+D93 -> 0 | AJ92: 0 | AK92: 0 | AL92: 0 | AM92: 0 | AN92: 0 | AO92: 0 | AP92: 0 | AQ92: 0 | AR92: 0 | AS92: 0 | AU92: =+D92-SUM(E92:N92) -> 0 | AV92: =SUM(E92:M92)/SUM(E92:N92)*100 ->  | BJ92: 8007 | BK92: Sains Tambahan DLP | BL92: 8007 | BM92: =IF(ISNA(B92),BM89,A92) -> 9 | BN92: =+D93 -> 0 | BO92: 0 | BP92: 0 | BQ92: 0 | BR92: 0 | BS92: 0 | BT92: 0 | BU92: 0 | BV92: 0 | BW92: 0 | BX92: 0 | BY92: =+B92 ->  | CK92: =+CK89+1 -> 28
Q93: 0 | R93: =+Q93-D93 -> 0 | T93: =IF(O93>P92,1,0) ->  | U93: =IF(O93<=O94,1,0) ->  | BJ93: 1511 | BK93: Science | BL93: 1511
D94: =IF(ISNA(VLOOKUP(CONCATENATE($B$5,$B92),'A1'!$D$2:$T$3311,5,0)),0,VLOOKUP(CONCATENATE($B$5,$B92),'A1'!$D$2:$T$3311,5,0)) -> 0 | E94: =IF(ISNA(VLOOKUP(CONCATENATE($B$5,$B92),'A1'!$D$2:$T$3311,6,0)),0,VLOOKUP(CONCATENATE($B$5,$B92),'A1'!$D$2:$T$3311,6,0)) -> 0 | F94: =IF(ISNA(VLOOKUP(CONCATENATE($B$5,$B92),'A1'!$D$2:$T$3311,7,0)),0,VLOOKUP(CONCATENATE($B$5,$B92),'A1'!$D$2:$T$3311,7,0)) -> 0 | G94: =IF(ISNA(VLOOKUP(CONCATENATE($B$5,$B92),'A1'!$D$2:$T$3311,8,0)),0,VLOOKUP(CONCATENATE($B$5,$B92),'A1'!$D$2:$T$3311,8,0)) -> 0 | H94: =IF(ISNA(VLOOKUP(CONCATENATE($B$5,$B92),'A1'!$D$2:$T$3311,9,0)),0,VLOOKUP(CONCATENATE($B$5,$B92),'A1'!$D$2:$T$3311,9,0)) -> 0 | I94: =IF(ISNA(VLOOKUP(CONCATENATE($B$5,$B92),'A1'!$D$2:$T$3311,10,0)),0,VLOOKUP(CONCATENATE($B$5,$B92),'A1'!$D$2:$T$3311,10,0)) -> 0 | J94: =IF(ISNA(VLOOKUP(CONCATENATE($B$5,$B92),'A1'!$D$2:$T$3311,11,0)),0,VLOOKUP(CONCATENATE($B$5,$B92),'A1'!$D$2:$T$3311,11,0)) -> 0 | K94: =IF(ISNA(VLOOKUP(CONCATENATE($B$5,$B92),'A1'!$D$2:$T$3311,12,0)),0,VLOOKUP(CONCATENATE($B$5,$B92),'A1'!$D$2:$T$3311,12,0)) -> 0 | L94: =IF(ISNA(VLOOKUP(CONCATENATE($B$5,$B92),'A1'!$D$2:$T$3311,13,0)),0,VLOOKUP(CONCATENATE($B$5,$B92),'A1'!$D$2:$T$3311,13,0)) -> 0 | M94: =IF(ISNA(VLOOKUP(CONCATENATE($B$5,$B92),'A1'!$D$2:$T$3311,14,0)),0,VLOOKUP(CONCATENATE($B$5,$B92),'A1'!$D$2:$T$3311,14,0)) -> 0 | N94: =IF(ISNA(VLOOKUP(CONCATENATE($B$5,$B92),'A1'!$D$2:$T$3311,15,0)),0,VLOOKUP(CONCATENATE($B$5,$B92),'A1'!$D$2:$T$3311,15,0)) -> 0 | BJ94: 1511 | BK94: Science | BL94: 1511
A95: MATA PELAJARAN TAMBAHAN | BJ95: 1249 | BK95: Sejarah | BL95: 1249
O96: GRED PURATA | P96: SASARAN 2015 | R96: BEZA CALON | BJ96: 1249 | BK96: Sejarah | BL96: 1249
A97: =IF(ISNA(B97),A92,A92+1) -> 9 | B97: =VLOOKUP(C97,$BK$1:$BL$118,2,0) ->  | D97: =SUM(E97:N97) -> 0 | E97: =IF(ISNA(VLOOKUP($B97,'D2'!$BR$460:$CG$491,4,0)),0,VLOOKUP($B97,'D2'!$BR$460:$CG$491,4,0)) -> 0 | F97: =IF(ISNA(VLOOKUP($B97,'D2'!$BR$460:$CG$491,5,0)),0,VLOOKUP($B97,'D2'!$BR$460:$CG$491,5,0)) -> 0 | G97: =IF(ISNA(VLOOKUP($B97,'D2'!$BR$460:$CG$491,6,0)),0,VLOOKUP($B97,'D2'!$BR$460:$CG$491,6,0)) -> 0 | H97: =IF(ISNA(VLOOKUP($B97,'D2'!$BR$460:$CG$491,7,0)),0,VLOOKUP($B97,'D2'!$BR$460:$CG$491,7,0)) -> 0 | I97: =IF(ISNA(VLOOKUP($B97,'D2'!$BR$460:$CG$491,8,0)),0,VLOOKUP($B97,'D2'!$BR$460:$CG$491,8,0)) -> 0 | J97: =IF(ISNA(VLOOKUP($B97,'D2'!$BR$460:$CG$491,9,0)),0,VLOOKUP($B97,'D2'!$BR$460:$CG$491,9,0)) -> 0 | K97: =IF(ISNA(VLOOKUP($B97,'D2'!$BR$460:$CG$491,10,0)),0,VLOOKUP($B97,'D2'!$BR$460:$CG$491,10,0)) -> 0 | L97: =IF(ISNA(VLOOKUP($B97,'D2'!$BR$460:$CG$491,11,0)),0,VLOOKUP($B97,'D2'!$BR$460:$CG$491,11,0)) -> 0 | M97: =IF(ISNA(VLOOKUP($B97,'D2'!$BR$460:$CG$491,12,0)),0,VLOOKUP($B97,'D2'!$BR$460:$CG$491,12,0)) -> 0 | N97: =IF(ISNA(VLOOKUP($B97,'D2'!$BR$460:$CG$491,13,0)),0,VLOOKUP($B97,'D2'!$BR$460:$CG$491,13,0)) -> 0 | O97: =(+E97*0+F97*1+G97*2+H97*3+I97*4+J97*5+K97*6+L97*7+M97*8+N97*9)/SUM(E97:N97) ->  | P97: =(+E98*0+F98*1+G98*2+H98*3+I98*4+J98*5+K98*6+L98*7+M98*8+N98*9)/SUM(E98:N98) ->  | Q97: =SUM(E97:N97) -> 0 | R97: =+Q97-D97 -> 0 | S97: =IF(ISNA(VLOOKUP($B97,'D2'!$BR$460:$CG$491,14,0)),0,VLOOKUP($B97,'D2'!$BR$460:$CG$491,14,0)) -> 0 | W97: =+D97 -> 0 | X97: =+E97 -> 0 | Y97: 0 | Z97: 0 | AA97: 0 | AB97: 0 | AC97: 0 | AD97: 0 | AE97: 0 | AF97: 0 | AG97: 0 | AI97: =+D98 -> 0 | AJ97: 0 | AK97: 0 | AL97: 0 | AM97: 0 | AN97: 0 | AO97: 0 | AP97: 0 | AQ97: 0 | AR97: 0 | AS97: 0 | AT97: =+P97 ->  | AU97: =+D97-SUM(E97:N97) -> 0 | AV97: =SUM(E97:M97)/SUM(E97:N97)*100 ->  | BJ97: 7401 | BK97: Seni Reka Tanda | BL97: 7401 | BM97: =IF(ISNA(B97),#REF!,A97) ->  | BN97: =+D98 -> 0 | BO97: 0 | BP97: 0 | BQ97: 0 | BR97: 0 | BS97: 0 | BT97: 0 | BU97: 0 | BV97: 0 | BW97: 0 | BX97: 0 | BY97: =+B97 -> 
B98: =+B97 ->  | Q98: =SUM(E98:N98) -> 0 | R98: 0 | BJ98: 7401 | BK98: Seni Reka Tanda | BL98: 7401
A99: =IF(ISNA(B99),A97,A97+1) -> 9 | B99: =VLOOKUP(C99,$BK$1:$BL$118,2,0) ->  | O99: =(+E99*0+F99*1+G99*2+H99*3+I99*4+J99*5+K99*6+L99*7+M99*8+N99*9)/SUM(E99:N99) ->  | P99: =(+E100*0+F100*1+G100*2+H100*3+I100*4+J100*5+K100*6+L100*7+M100*8+N100*9)/SUM(E100:N100) ->  | Q99: 0 | R99: 0 | S99: =IF(ISNA(VLOOKUP($B99,'D2'!$BR$460:$CG$491,14,0)),0,VLOOKUP($B99,'D2'!$BR$460:$CG$491,14,0)) -> 0 | W99: =+D99 -> 0 | X99: =+E99 -> 0 | Y99: 0 | Z99: 0 | AA99: 0 | AB99: 0 | AC99: 0 | AD99: 0 | AE99: 0 | AF99: 0 | AG99: 0 | AI99: =+D100 -> 0 | AJ99: 0 | AK99: 0 | AL99: 0 | AM99: 0 | AN99: 0 | AO99: 0 | AP99: 0 | AQ99: 0 | AR99: 0 | AS99: 0 | AT99: =+P99 ->  | AU99: =+D99-SUM(E99:N99) -> 0 | BJ99: 7303 | BK99: Tanaman Makanan | BL99: 7303 | BM99: =IF(ISNA(B99),BM97,A99) ->  | BN99: =+D100 -> 0 | BO99: 0 | BP99: 0 | BQ99: 0 | BR99: 0 | BS99: 0 | BT99: 0 | BU99: 0 | BV99: 0 | BW99: 0 | BX99: 0 | BY99: =+B99 -> 
B100: =+B99 ->  | Q100: 0 | R100: 0 | BJ100: 5226 | BK100: Tasawwur Islam | BL100: 5226
A101: =IF(ISNA(B101),A99,A99+1) -> 9 | B101: =VLOOKUP(C101,$BK$1:$BL$118,2,0) ->  | D101: =SUM(E101:N101) -> 0 | E101: =IF(ISNA(VLOOKUP($B101,'D2'!$BR$460:$CG$491,4,0)),0,VLOOKUP($B101,'D2'!$BR$460:$CG$491,4,0)) -> 0 | F101: =IF(ISNA(VLOOKUP($B101,'D2'!$BR$460:$CG$491,5,0)),0,VLOOKUP($B101,'D2'!$BR$460:$CG$491,5,0)) -> 0 | G101: =IF(ISNA(VLOOKUP($B101,'D2'!$BR$460:$CG$491,6,0)),0,VLOOKUP($B101,'D2'!$BR$460:$CG$491,6,0)) -> 0 | H101: =IF(ISNA(VLOOKUP($B101,'D2'!$BR$460:$CG$491,7,0)),0,VLOOKUP($B101,'D2'!$BR$460:$CG$491,7,0)) -> 0 | I101: =IF(ISNA(VLOOKUP($B101,'D2'!$BR$460:$CG$491,8,0)),0,VLOOKUP($B101,'D2'!$BR$460:$CG$491,8,0)) -> 0 | J101: =IF(ISNA(VLOOKUP($B101,'D2'!$BR$460:$CG$491,9,0)),0,VLOOKUP($B101,'D2'!$BR$460:$CG$491,9,0)) -> 0 | K101: =IF(ISNA(VLOOKUP($B101,'D2'!$BR$460:$CG$491,10,0)),0,VLOOKUP($B101,'D2'!$BR$460:$CG$491,10,0)) -> 0 | L101: =IF(ISNA(VLOOKUP($B101,'D2'!$BR$460:$CG$491,11,0)),0,VLOOKUP($B101,'D2'!$BR$460:$CG$491,11,0)) -> 0 | M101: =IF(ISNA(VLOOKUP($B101,'D2'!$BR$460:$CG$491,12,0)),0,VLOOKUP($B101,'D2'!$BR$460:$CG$491,12,0)) -> 0 | N101: =IF(ISNA(VLOOKUP($B101,'D2'!$BR$460:$CG$491,13,0)),0,VLOOKUP($B101,'D2'!$BR$460:$CG$491,13,0)) -> 0 | O101: =(+E101*0+F101*1+G101*2+H101*3+I101*4+J101*5+K101*6+L101*7+M101*8+N101*9)/SUM(E101:N101) ->  | P101: =(+E102*0+F102*1+G102*2+H102*3+I102*4+J102*5+K102*6+L102*7+M102*8+N102*9)/SUM(E102:N102) ->  | Q101: 0 | R101: 0 | S101: =IF(ISNA(VLOOKUP($B101,'D2'!$BR$460:$CG$491,14,0)),0,VLOOKUP($B101,'D2'!$BR$460:$CG$491,14,0)) -> 0 | W101: =+D101 -> 0 | X101: =+E101 -> 0 | Y101: 0 | Z101: 0 | AA101: 0 | AB101: 0 | AC101: 0 | AD101: 0 | AE101: 0 | AF101: 0 | AG101: 0 | AI101: =+D102 -> 0 | AJ101: 0 | AK101: 0 | AL101: 0 | AM101: 0 | AN101: 0 | AO101: 0 | AP101: 0 | AQ101: 0 | AR101: 0 | AS101: 0 | AT101: =+P101 ->  | AU101: =+D101-SUM(E101:N101) -> 0 | BJ101: 8016 | BK101: USUL AL-DIN | BL101: 8016 | BM101: =IF(ISNA(B101),BM99,A101) ->  | BN101: =+D102 -> 0 | BO101: 0 | BP101: 0 | BQ101: 0 | BR101: 0 | BS101: 0 | BT101: 0 | BU101: 0 | BV101: 0 | BW101: 0 | BX101: 0 | BY101: =+B101 -> 
B102: =+B101 ->  | Q102: =SUM(E102:N102) -> 0 | R102: 0 | BJ102: 3999 | BK102: ZZZZ | BL102: 3999
A103: =IF(ISNA(B103),A101,A101+1) -> 9 | B103: =VLOOKUP(C103,$BK$1:$BL$118,2,0) ->  | D103: =SUM(E103:N103) -> 0 | E103: =IF(ISNA(VLOOKUP($B103,'D2'!$BR$460:$CG$491,4,0)),0,VLOOKUP($B103,'D2'!$BR$460:$CG$491,4,0)) -> 0 | F103: =IF(ISNA(VLOOKUP($B103,'D2'!$BR$460:$CG$491,5,0)),0,VLOOKUP($B103,'D2'!$BR$460:$CG$491,5,0)) -> 0 | G103: =IF(ISNA(VLOOKUP($B103,'D2'!$BR$460:$CG$491,6,0)),0,VLOOKUP($B103,'D2'!$BR$460:$CG$491,6,0)) -> 0 | H103: =IF(ISNA(VLOOKUP($B103,'D2'!$BR$460:$CG$491,7,0)),0,VLOOKUP($B103,'D2'!$BR$460:$CG$491,7,0)) -> 0 | I103: =IF(ISNA(VLOOKUP($B103,'D2'!$BR$460:$CG$491,8,0)),0,VLOOKUP($B103,'D2'!$BR$460:$CG$491,8,0)) -> 0 | J103: =IF(ISNA(VLOOKUP($B103,'D2'!$BR$460:$CG$491,9,0)),0,VLOOKUP($B103,'D2'!$BR$460:$CG$491,9,0)) -> 0 | K103: =IF(ISNA(VLOOKUP($B103,'D2'!$BR$460:$CG$491,10,0)),0,VLOOKUP($B103,'D2'!$BR$460:$CG$491,10,0)) -> 0 | L103: =IF(ISNA(VLOOKUP($B103,'D2'!$BR$460:$CG$491,11,0)),0,VLOOKUP($B103,'D2'!$BR$460:$CG$491,11,0)) -> 0 | M103: =IF(ISNA(VLOOKUP($B103,'D2'!$BR$460:$CG$491,12,0)),0,VLOOKUP($B103,'D2'!$BR$460:$CG$491,12,0)) -> 0 | N103: =IF(ISNA(VLOOKUP($B103,'D2'!$BR$460:$CG$491,13,0)),0,VLOOKUP($B103,'D2'!$BR$460:$CG$491,13,0)) -> 0 | O103: =(+E103*0+F103*1+G103*2+H103*3+I103*4+J103*5+K103*6+L103*7+M103*8+N103*9)/SUM(E103:N103) ->  | P103: =(+E104*0+F104*1+G104*2+H104*3+I104*4+J104*5+K104*6+L104*7+M104*8+N104*9)/SUM(E104:N104) ->  | Q103: 0 | R103: 0 | S103: =IF(ISNA(VLOOKUP($B103,'D2'!$BR$460:$CG$491,14,0)),0,VLOOKUP($B103,'D2'!$BR$460:$CG$491,14,0)) -> 0 | W103: =+D103 -> 0 | X103: 0 | Y103: 0 | Z103: 0 | AA103: 0 | AB103: 0 | AC103: 0 | AD103: 0 | AE103: 0 | AF103: 0 | AG103: 0 | AI103: =+D104 -> 0 | AJ103: 0 | AK103: 0 | AL103: 0 | AM103: 0 | AN103: 0 | AO103: 0 | AP103: 0 | AQ103: 0 | AR103: 0 | AS103: 0 | AT103: =+P103 ->  | AU103: =+D103-SUM(E103:N103) -> 0 | BM103: =IF(ISNA(B103),BM101,A103) ->  | BN103: =+D104 -> 0 | BO103: 0 | BP103: 0 | BQ103: 0 | BR103: 0 | BS103: 0 | BT103: 0 | BU103: 0 | BV103: 0 | BW103: 0 | BX103: 0 | BY103: =+B103 -> 
B104: =+B103 ->  | Q104: 0 | R104: 0
A105: =IF(ISNA(B105),A103,A103+1) -> 9 | B105: =VLOOKUP(C105,$BK$1:$BL$118,2,0) ->  | D105: =SUM(E105:N105) -> 0 | E105: =IF(ISNA(VLOOKUP($B105,'D2'!$BR$460:$CG$491,4,0)),0,VLOOKUP($B105,'D2'!$BR$460:$CG$491,4,0)) -> 0 | F105: =IF(ISNA(VLOOKUP($B105,'D2'!$BR$460:$CG$491,5,0)),0,VLOOKUP($B105,'D2'!$BR$460:$CG$491,5,0)) -> 0 | G105: =IF(ISNA(VLOOKUP($B105,'D2'!$BR$460:$CG$491,6,0)),0,VLOOKUP($B105,'D2'!$BR$460:$CG$491,6,0)) -> 0 | H105: =IF(ISNA(VLOOKUP($B105,'D2'!$BR$460:$CG$491,7,0)),0,VLOOKUP($B105,'D2'!$BR$460:$CG$491,7,0)) -> 0 | I105: =IF(ISNA(VLOOKUP($B105,'D2'!$BR$460:$CG$491,8,0)),0,VLOOKUP($B105,'D2'!$BR$460:$CG$491,8,0)) -> 0 | J105: =IF(ISNA(VLOOKUP($B105,'D2'!$BR$460:$CG$491,9,0)),0,VLOOKUP($B105,'D2'!$BR$460:$CG$491,9,0)) -> 0 | K105: =IF(ISNA(VLOOKUP($B105,'D2'!$BR$460:$CG$491,10,0)),0,VLOOKUP($B105,'D2'!$BR$460:$CG$491,10,0)) -> 0 | L105: =IF(ISNA(VLOOKUP($B105,'D2'!$BR$460:$CG$491,11,0)),0,VLOOKUP($B105,'D2'!$BR$460:$CG$491,11,0)) -> 0 | M105: =IF(ISNA(VLOOKUP($B105,'D2'!$BR$460:$CG$491,12,0)),0,VLOOKUP($B105,'D2'!$BR$460:$CG$491,12,0)) -> 0 | N105: =IF(ISNA(VLOOKUP($B105,'D2'!$BR$460:$CG$491,13,0)),0,VLOOKUP($B105,'D2'!$BR$460:$CG$491,13,0)) -> 0 | O105: =(+E105*0+F105*1+G105*2+H105*3+I105*4+J105*5+K105*6+L105*7+M105*8+N105*9)/SUM(E105:N105) ->  | P105: =(+E106*0+F106*1+G106*2+H106*3+I106*4+J106*5+K106*6+L106*7+M106*8+N106*9)/SUM(E106:N106) ->  | Q105: =SUM(E105:N105) -> 0 | R105: =+Q105-D105 -> 0 | S105: =IF(ISNA(VLOOKUP($B105,'D2'!$BR$460:$CG$491,14,0)),0,VLOOKUP($B105,'D2'!$BR$460:$CG$491,14,0)) -> 0 | W105: =+D105 -> 0 | X105: =+E105 -> 0 | Y105: =+F105 -> 0 | Z105: =+G105 -> 0 | AA105: =+H105 -> 0 | AB105: =+I105 -> 0 | AC105: =+J105 -> 0 | AD105: =+K105 -> 0 | AE105: =+L105 -> 0 | AF105: =+M105 -> 0 | AG105: =+N105 -> 0 | AH105: =+O105 ->  | AI105: =+D106 -> 0 | AJ105: =+E106 -> 0 | AK105: =+F106 -> 0 | AL105: =+G106 -> 0 | AM105: =+H106 -> 0 | AN105: =+I106 -> 0 | AO105: =+J106 -> 0 | AP105: =+K106 -> 0 | AQ105: =+L106 -> 0 | AR105: =+M106 -> 0 | AS105: =+N106 -> 0 | AT105: =+P105 ->  | AU105: =+D105-SUM(E105:N105) -> 0 | AV105: =SUM(E105:M105)/SUM(E105:N105)*100 ->  | BM105: =IF(ISNA(B105),BM103,A105) ->  | BN105: =+D106 -> 0 | BO105: =+E106 -> 0 | BP105: =+F106 -> 0 | BQ105: =+G106 -> 0 | BR105: =+H106 -> 0 | BS105: =+I106 -> 0 | BT105: =+J106 -> 0 | BU105: =+K106 -> 0 | BV105: =+L106 -> 0 | BW105: =+M106 -> 0 | BX105: =+N106 -> 0 | BY105: =+B105 -> 
B106: =+B105 ->  | Q106: 0 | R106: 0
A107: =IF(ISNA(B107),A105,A105+1) -> 9 | B107: =VLOOKUP(C107,$BK$1:$BL$118,2,0) ->  | D107: =SUM(E107:N107) -> 0 | E107: =IF(ISNA(VLOOKUP($B107,'D2'!$BR$460:$CG$491,4,0)),0,VLOOKUP($B107,'D2'!$BR$460:$CG$491,4,0)) -> 0 | F107: =IF(ISNA(VLOOKUP($B107,'D2'!$BR$460:$CG$491,5,0)),0,VLOOKUP($B107,'D2'!$BR$460:$CG$491,5,0)) -> 0 | G107: =IF(ISNA(VLOOKUP($B107,'D2'!$BR$460:$CG$491,6,0)),0,VLOOKUP($B107,'D2'!$BR$460:$CG$491,6,0)) -> 0 | H107: =IF(ISNA(VLOOKUP($B107,'D2'!$BR$460:$CG$491,7,0)),0,VLOOKUP($B107,'D2'!$BR$460:$CG$491,7,0)) -> 0 | I107: =IF(ISNA(VLOOKUP($B107,'D2'!$BR$460:$CG$491,8,0)),0,VLOOKUP($B107,'D2'!$BR$460:$CG$491,8,0)) -> 0 | J107: =IF(ISNA(VLOOKUP($B107,'D2'!$BR$460:$CG$491,9,0)),0,VLOOKUP($B107,'D2'!$BR$460:$CG$491,9,0)) -> 0 | K107: =IF(ISNA(VLOOKUP($B107,'D2'!$BR$460:$CG$491,10,0)),0,VLOOKUP($B107,'D2'!$BR$460:$CG$491,10,0)) -> 0 | L107: =IF(ISNA(VLOOKUP($B107,'D2'!$BR$460:$CG$491,11,0)),0,VLOOKUP($B107,'D2'!$BR$460:$CG$491,11,0)) -> 0 | M107: =IF(ISNA(VLOOKUP($B107,'D2'!$BR$460:$CG$491,12,0)),0,VLOOKUP($B107,'D2'!$BR$460:$CG$491,12,0)) -> 0 | N107: =IF(ISNA(VLOOKUP($B107,'D2'!$BR$460:$CG$491,13,0)),0,VLOOKUP($B107,'D2'!$BR$460:$CG$491,13,0)) -> 0 | O107: =(+E107*0+F107*1+G107*2+H107*3+I107*4+J107*5+K107*6+L107*7+M107*8+N107*9)/SUM(E107:N107) ->  | P107: =(+E108*0+F108*1+G108*2+H108*3+I108*4+J108*5+K108*6+L108*7+M108*8+N108*9)/SUM(E108:N108) ->  | Q107: =SUM(E107:N107) -> 0 | R107: 0 | S107: =IF(ISNA(VLOOKUP($B107,'D2'!$BR$460:$CG$491,14,0)),0,VLOOKUP($B107,'D2'!$BR$460:$CG$491,14,0)) -> 0 | W107: =+D107 -> 0 | X107: =+E107 -> 0 | Y107: =+F107 -> 0 | Z107: =+G107 -> 0 | AA107: =+H107 -> 0 | AB107: =+I107 -> 0 | AC107: =+J107 -> 0 | AD107: =+K107 -> 0 | AE107: =+L107 -> 0 | AF107: =+M107 -> 0 | AG107: =+N107 -> 0 | AH107: =+O107 ->  | AI107: =+D108 -> 0 | AJ107: =+E108 -> 0 | AK107: =+F108 -> 0 | AL107: =+G108 -> 0 | AM107: =+H108 -> 0 | AN107: =+I108 -> 0 | AO107: =+J108 -> 0 | AP107: =+K108 -> 0 | AQ107: =+L108 -> 0 | AR107: =+M108 -> 0 | AS107: =+N108 -> 0 | AT107: =+P107 ->  | AU107: =+D107-SUM(E107:N107) -> 0 | AV107: =SUM(E107:M107)/SUM(E107:N107)*100 ->  | BM107: =IF(ISNA(B107),BM105,A107) ->  | BN107: =+D108 -> 0 | BO107: =+E108 -> 0 | BP107: =+F108 -> 0 | BQ107: =+G108 -> 0 | BR107: =+H108 -> 0 | BS107: =+I108 -> 0 | BT107: =+J108 -> 0 | BU107: =+K108 -> 0 | BV107: =+L108 -> 0 | BW107: =+M108 -> 0 | BX107: =+N108 -> 0 | BY107: =+B107 -> 
B108: =+B107 ->  | Q108: =SUM(E108:N108) -> 0 | R108: 0
A109: =IF(ISNA(B109),A107,A107+1) -> 9 | B109: =VLOOKUP(C109,$BK$1:$BL$118,2,0) ->  | D109: =SUM(E109:N109) -> 0 | E109: =IF(ISNA(VLOOKUP($B109,'D2'!$BR$460:$CG$491,4,0)),0,VLOOKUP($B109,'D2'!$BR$460:$CG$491,4,0)) -> 0 | F109: =IF(ISNA(VLOOKUP($B109,'D2'!$BR$460:$CG$491,5,0)),0,VLOOKUP($B109,'D2'!$BR$460:$CG$491,5,0)) -> 0 | G109: =IF(ISNA(VLOOKUP($B109,'D2'!$BR$460:$CG$491,6,0)),0,VLOOKUP($B109,'D2'!$BR$460:$CG$491,6,0)) -> 0 | H109: =IF(ISNA(VLOOKUP($B109,'D2'!$BR$460:$CG$491,7,0)),0,VLOOKUP($B109,'D2'!$BR$460:$CG$491,7,0)) -> 0 | I109: =IF(ISNA(VLOOKUP($B109,'D2'!$BR$460:$CG$491,8,0)),0,VLOOKUP($B109,'D2'!$BR$460:$CG$491,8,0)) -> 0 | J109: =IF(ISNA(VLOOKUP($B109,'D2'!$BR$460:$CG$491,9,0)),0,VLOOKUP($B109,'D2'!$BR$460:$CG$491,9,0)) -> 0 | K109: =IF(ISNA(VLOOKUP($B109,'D2'!$BR$460:$CG$491,10,0)),0,VLOOKUP($B109,'D2'!$BR$460:$CG$491,10,0)) -> 0 | L109: =IF(ISNA(VLOOKUP($B109,'D2'!$BR$460:$CG$491,11,0)),0,VLOOKUP($B109,'D2'!$BR$460:$CG$491,11,0)) -> 0 | M109: =IF(ISNA(VLOOKUP($B109,'D2'!$BR$460:$CG$491,12,0)),0,VLOOKUP($B109,'D2'!$BR$460:$CG$491,12,0)) -> 0 | N109: =IF(ISNA(VLOOKUP($B109,'D2'!$BR$460:$CG$491,13,0)),0,VLOOKUP($B109,'D2'!$BR$460:$CG$491,13,0)) -> 0 | O109: =(+E109*0+F109*1+G109*2+H109*3+I109*4+J109*5+K109*6+L109*7+M109*8+N109*9)/SUM(E109:N109) ->  | P109: =(+E110*0+F110*1+G110*2+H110*3+I110*4+J110*5+K110*6+L110*7+M110*8+N110*9)/SUM(E110:N110) ->  | Q109: 0 | R109: 0 | S109: =IF(ISNA(VLOOKUP($B109,'D2'!$BR$460:$CG$491,14,0)),0,VLOOKUP($B109,'D2'!$BR$460:$CG$491,14,0)) -> 0 | W109: =+D109 -> 0 | X109: =+E109 -> 0 | Y109: =+F109 -> 0 | Z109: =+G109 -> 0 | AA109: =+H109 -> 0 | AB109: =+I109 -> 0 | AC109: =+J109 -> 0 | AD109: =+K109 -> 0 | AE109: =+L109 -> 0 | AF109: =+M109 -> 0 | AG109: =+N109 -> 0 | AH109: =+O109 ->  | AI109: =+D110 -> 0 | AJ109: =+E110 -> 0 | AK109: =+F110 -> 0 | AL109: =+G110 -> 0 | AM109: =+H110 -> 0 | AN109: =+I110 -> 0 | AO109: =+J110 -> 0 | AP109: =+K110 -> 0 | AQ109: =+L110 -> 0 | AR109: =+M110 -> 0 | AS109: =+N110 -> 0 | AT109: =+P109 ->  | AU109: =+D109-SUM(E109:N109) -> 0 | AV109: =SUM(E109:M109)/SUM(E109:N109)*100 ->  | BM109: =IF(ISNA(B109),BM107,A109) ->  | BN109: =+D110 -> 0 | BO109: =+E110 -> 0 | BP109: =+F110 -> 0 | BQ109: =+G110 -> 0 | BR109: =+H110 -> 0 | BS109: =+I110 -> 0 | BT109: =+J110 -> 0 | BU109: =+K110 -> 0 | BV109: =+L110 -> 0 | BW109: =+M110 -> 0 | BX109: =+N110 -> 0 | BY109: =+B109 -> 
B110: =+B109 ->  | Q110: 0 | R110: 0
A111: =IF(ISNA(B111),A109,A109+1) -> 9 | B111: =VLOOKUP(C111,$BK$1:$BL$118,2,0) ->  | D111: =SUM(E111:N111) -> 0 | E111: =IF(ISNA(VLOOKUP($B111,'D2'!$BR$460:$CG$491,4,0)),0,VLOOKUP($B111,'D2'!$BR$460:$CG$491,4,0)) -> 0 | F111: =IF(ISNA(VLOOKUP($B111,'D2'!$BR$460:$CG$491,5,0)),0,VLOOKUP($B111,'D2'!$BR$460:$CG$491,5,0)) -> 0 | G111: =IF(ISNA(VLOOKUP($B111,'D2'!$BR$460:$CG$491,6,0)),0,VLOOKUP($B111,'D2'!$BR$460:$CG$491,6,0)) -> 0 | H111: =IF(ISNA(VLOOKUP($B111,'D2'!$BR$460:$CG$491,7,0)),0,VLOOKUP($B111,'D2'!$BR$460:$CG$491,7,0)) -> 0 | I111: =IF(ISNA(VLOOKUP($B111,'D2'!$BR$460:$CG$491,8,0)),0,VLOOKUP($B111,'D2'!$BR$460:$CG$491,8,0)) -> 0 | J111: =IF(ISNA(VLOOKUP($B111,'D2'!$BR$460:$CG$491,9,0)),0,VLOOKUP($B111,'D2'!$BR$460:$CG$491,9,0)) -> 0 | K111: =IF(ISNA(VLOOKUP($B111,'D2'!$BR$460:$CG$491,10,0)),0,VLOOKUP($B111,'D2'!$BR$460:$CG$491,10,0)) -> 0 | L111: =IF(ISNA(VLOOKUP($B111,'D2'!$BR$460:$CG$491,11,0)),0,VLOOKUP($B111,'D2'!$BR$460:$CG$491,11,0)) -> 0 | M111: =IF(ISNA(VLOOKUP($B111,'D2'!$BR$460:$CG$491,12,0)),0,VLOOKUP($B111,'D2'!$BR$460:$CG$491,12,0)) -> 0 | N111: =IF(ISNA(VLOOKUP($B111,'D2'!$BR$460:$CG$491,13,0)),0,VLOOKUP($B111,'D2'!$BR$460:$CG$491,13,0)) -> 0 | O111: =(+E111*0+F111*1+G111*2+H111*3+I111*4+J111*5+K111*6+L111*7+M111*8+N111*9)/SUM(E111:N111) ->  | P111: =(+E112*0+F112*1+G112*2+H112*3+I112*4+J112*5+K112*6+L112*7+M112*8+N112*9)/SUM(E112:N112) ->  | Q111: =SUM(E111:N111) -> 0 | R111: =+Q111-D111 -> 0 | S111: =IF(ISNA(VLOOKUP($B111,'D2'!$BR$460:$CG$491,14,0)),0,VLOOKUP($B111,'D2'!$BR$460:$CG$491,14,0)) -> 0 | W111: =+D111 -> 0 | X111: =+E111 -> 0 | Y111: =+F111 -> 0 | Z111: =+G111 -> 0 | AA111: =+H111 -> 0 | AB111: =+I111 -> 0 | AC111: =+J111 -> 0 | AD111: =+K111 -> 0 | AE111: =+L111 -> 0 | AF111: =+M111 -> 0 | AG111: =+N111 -> 0 | AH111: =+O111 ->  | AI111: =+D112 -> 0 | AJ111: =+E112 -> 0 | AK111: =+F112 -> 0 | AL111: =+G112 -> 0 | AM111: =+H112 -> 0 | AN111: =+I112 -> 0 | AO111: =+J112 -> 0 | AP111: =+K112 -> 0 | AQ111: =+L112 -> 0 | AR111: =+M112 -> 0 | AS111: =+N112 -> 0 | AT111: =+P111 ->  | AU111: =+D111-SUM(E111:N111) -> 0 | AV111: =SUM(E111:M111)/SUM(E111:N111)*100 ->  | BM111: =IF(ISNA(B111),BM109,A111) ->  | BN111: =+D112 -> 0 | BO111: =+E112 -> 0 | BP111: =+F112 -> 0 | BQ111: =+G112 -> 0 | BR111: =+H112 -> 0 | BS111: =+I112 -> 0 | BT111: =+J112 -> 0 | BU111: =+K112 -> 0 | BV111: =+L112 -> 0 | BW111: =+M112 -> 0 | BX111: =+N112 -> 0 | BY111: =+B111 -> 
B112: =+B111 ->  | Q112: 0 | R112: 0
A113: =IF(ISNA(B113),A111,A111+1) -> 9 | B113: =VLOOKUP(C113,$BK$1:$BL$118,2,0) ->  | D113: =SUM(E113:N113) -> 0 | E113: =IF(ISNA(VLOOKUP($B113,'D2'!$BR$460:$CG$491,4,0)),0,VLOOKUP($B113,'D2'!$BR$460:$CG$491,4,0)) -> 0 | F113: =IF(ISNA(VLOOKUP($B113,'D2'!$BR$460:$CG$491,5,0)),0,VLOOKUP($B113,'D2'!$BR$460:$CG$491,5,0)) -> 0 | G113: =IF(ISNA(VLOOKUP($B113,'D2'!$BR$460:$CG$491,6,0)),0,VLOOKUP($B113,'D2'!$BR$460:$CG$491,6,0)) -> 0 | H113: =IF(ISNA(VLOOKUP($B113,'D2'!$BR$460:$CG$491,7,0)),0,VLOOKUP($B113,'D2'!$BR$460:$CG$491,7,0)) -> 0 | I113: =IF(ISNA(VLOOKUP($B113,'D2'!$BR$460:$CG$491,8,0)),0,VLOOKUP($B113,'D2'!$BR$460:$CG$491,8,0)) -> 0 | J113: =IF(ISNA(VLOOKUP($B113,'D2'!$BR$460:$CG$491,9,0)),0,VLOOKUP($B113,'D2'!$BR$460:$CG$491,9,0)) -> 0 | K113: =IF(ISNA(VLOOKUP($B113,'D2'!$BR$460:$CG$491,10,0)),0,VLOOKUP($B113,'D2'!$BR$460:$CG$491,10,0)) -> 0 | L113: =IF(ISNA(VLOOKUP($B113,'D2'!$BR$460:$CG$491,11,0)),0,VLOOKUP($B113,'D2'!$BR$460:$CG$491,11,0)) -> 0 | M113: =IF(ISNA(VLOOKUP($B113,'D2'!$BR$460:$CG$491,12,0)),0,VLOOKUP($B113,'D2'!$BR$460:$CG$491,12,0)) -> 0 | N113: =IF(ISNA(VLOOKUP($B113,'D2'!$BR$460:$CG$491,13,0)),0,VLOOKUP($B113,'D2'!$BR$460:$CG$491,13,0)) -> 0 | O113: =(+E113*0+F113*1+G113*2+H113*3+I113*4+J113*5+K113*6+L113*7+M113*8+N113*9)/SUM(E113:N113) ->  | P113: =(+E114*0+F114*1+G114*2+H114*3+I114*4+J114*5+K114*6+L114*7+M114*8+N114*9)/SUM(E114:N114) ->  | Q113: =SUM(E113:N113) -> 0 | R113: 0 | S113: =IF(ISNA(VLOOKUP($B113,'D2'!$BR$460:$CG$491,14,0)),0,VLOOKUP($B113,'D2'!$BR$460:$CG$491,14,0)) -> 0 | W113: =+D113 -> 0 | X113: =+E113 -> 0 | Y113: =+F113 -> 0 | Z113: =+G113 -> 0 | AA113: =+H113 -> 0 | AB113: =+I113 -> 0 | AC113: =+J113 -> 0 | AD113: =+K113 -> 0 | AE113: =+L113 -> 0 | AF113: =+M113 -> 0 | AG113: =+N113 -> 0 | AH113: =+O113 ->  | AI113: =+D114 -> 0 | AJ113: =+E114 -> 0 | AK113: =+F114 -> 0 | AL113: =+G114 -> 0 | AM113: =+H114 -> 0 | AN113: =+I114 -> 0 | AO113: =+J114 -> 0 | AP113: =+K114 -> 0 | AQ113: =+L114 -> 0 | AR113: =+M114 -> 0 | AS113: =+N114 -> 0 | AT113: =+P113 ->  | AU113: =+D113-SUM(E113:N113) -> 0 | AV113: =SUM(E113:M113)/SUM(E113:N113)*100 ->  | BM113: =IF(ISNA(B113),BM111,A113) ->  | BN113: =+D114 -> 0 | BO113: =+E114 -> 0 | BP113: =+F114 -> 0 | BQ113: =+G114 -> 0 | BR113: =+H114 -> 0 | BS113: =+I114 -> 0 | BT113: =+J114 -> 0 | BU113: =+K114 -> 0 | BV113: =+L114 -> 0 | BW113: =+M114 -> 0 | BX113: =+N114 -> 0 | BY113: =+B113 -> 
B114: =+B113 ->  | Q114: 0 | R114: 0
A115: =IF(ISNA(B115),A113,A113+1) -> 9 | B115: =VLOOKUP(C115,$BK$1:$BL$118,2,0) ->  | D115: =SUM(E115:N115) -> 0 | E115: =IF(ISNA(VLOOKUP($B115,'D2'!$BR$460:$CG$491,4,0)),0,VLOOKUP($B115,'D2'!$BR$460:$CG$491,4,0)) -> 0 | F115: =IF(ISNA(VLOOKUP($B115,'D2'!$BR$460:$CG$491,5,0)),0,VLOOKUP($B115,'D2'!$BR$460:$CG$491,5,0)) -> 0 | G115: =IF(ISNA(VLOOKUP($B115,'D2'!$BR$460:$CG$491,6,0)),0,VLOOKUP($B115,'D2'!$BR$460:$CG$491,6,0)) -> 0 | H115: =IF(ISNA(VLOOKUP($B115,'D2'!$BR$460:$CG$491,7,0)),0,VLOOKUP($B115,'D2'!$BR$460:$CG$491,7,0)) -> 0 | I115: =IF(ISNA(VLOOKUP($B115,'D2'!$BR$460:$CG$491,8,0)),0,VLOOKUP($B115,'D2'!$BR$460:$CG$491,8,0)) -> 0 | J115: =IF(ISNA(VLOOKUP($B115,'D2'!$BR$460:$CG$491,9,0)),0,VLOOKUP($B115,'D2'!$BR$460:$CG$491,9,0)) -> 0 | K115: =IF(ISNA(VLOOKUP($B115,'D2'!$BR$460:$CG$491,10,0)),0,VLOOKUP($B115,'D2'!$BR$460:$CG$491,10,0)) -> 0 | L115: =IF(ISNA(VLOOKUP($B115,'D2'!$BR$460:$CG$491,11,0)),0,VLOOKUP($B115,'D2'!$BR$460:$CG$491,11,0)) -> 0 | M115: =IF(ISNA(VLOOKUP($B115,'D2'!$BR$460:$CG$491,12,0)),0,VLOOKUP($B115,'D2'!$BR$460:$CG$491,12,0)) -> 0 | N115: =IF(ISNA(VLOOKUP($B115,'D2'!$BR$460:$CG$491,13,0)),0,VLOOKUP($B115,'D2'!$BR$460:$CG$491,13,0)) -> 0 | O115: =(+E115*0+F115*1+G115*2+H115*3+I115*4+J115*5+K115*6+L115*7+M115*8+N115*9)/SUM(E115:N115) ->  | P115: =(+E116*0+F116*1+G116*2+H116*3+I116*4+J116*5+K116*6+L116*7+M116*8+N116*9)/SUM(E116:N116) ->  | Q115: =SUM(E115:N115) -> 0 | R115: =+Q115-D115 -> 0 | S115: =IF(ISNA(VLOOKUP($B115,'D2'!$BR$460:$CG$491,14,0)),0,VLOOKUP($B115,'D2'!$BR$460:$CG$491,14,0)) -> 0 | W115: =+D115 -> 0 | X115: =+E115 -> 0 | Y115: =+F115 -> 0 | Z115: =+G115 -> 0 | AA115: =+H115 -> 0 | AB115: =+I115 -> 0 | AC115: =+J115 -> 0 | AD115: =+K115 -> 0 | AE115: =+L115 -> 0 | AF115: =+M115 -> 0 | AG115: =+N115 -> 0 | AH115: =+O115 ->  | AI115: =+D116 -> 0 | AJ115: =+E116 -> 0 | AK115: =+F116 -> 0 | AL115: =+G116 -> 0 | AM115: =+H116 -> 0 | AN115: =+I116 -> 0 | AO115: =+J116 -> 0 | AP115: =+K116 -> 0 | AQ115: =+L116 -> 0 | AR115: =+M116 -> 0 | AS115: =+N116 -> 0 | AT115: =+P115 ->  | AU115: =+D115-SUM(E115:N115) -> 0 | AV115: =SUM(E115:M115)/SUM(E115:N115)*100 ->  | BM115: =IF(ISNA(B115),BM113,A115) ->  | BN115: =+D116 -> 0 | BO115: =+E116 -> 0 | BP115: =+F116 -> 0 | BQ115: =+G116 -> 0 | BR115: =+H116 -> 0 | BS115: =+I116 -> 0 | BT115: =+J116 -> 0 | BU115: =+K116 -> 0 | BV115: =+L116 -> 0 | BW115: =+M116 -> 0 | BX115: =+N116 -> 0 | BY115: =+B115 -> 
B116: =+B115 ->  | Q116: 0 | R116: 0
B119: 1 | D119: =+C119+1 -> 1 | E119: 2 | F119: 3 | G119: 4 | H119: 5 | I119: 6 | J119: 7 | K119: 8 | L119: 9 | M119: 10 | N119: 11 | O119: 12 | P119: 13 | Q119: 14 | R119: 15 | S119: 16 | T119: 17 | U119: 18 | V119: 19 | W119: 20 | X119: 21 | Y119: 22 | Z119: 23 | AA119: 24 | AB119: 25 | AC119: 26 | AD119: 27 | AE119: 28 | AF119: 29 | AG119: 30 | AH119: 31 | AI119: 32 | AJ119: 33 | AK119: 34 | AL119: 35 | AM119: 36 | AN119: 37 | AO119: 38 | AP119: 39 | AQ119: 40 | AR119: 41 | AS119: 42 | AT119: 43 | AU119: 44 | AV119: 45 | AW119: 46 | AX119: 47 | AY119: 48 | AZ119: 49 | BA119: 50 | BB119: 51 | BC119: 52 | BD119: 53 | BE119: 54 | BF119: 55 | BG119: 56

Sheet DATA
C1: =+CA!D5 ->  | M1: =IF(C2="PEPERIKSAAN AKHIR TAHUN",1,0) -> 0 | U1: MASUK DATA - BHG TOV - BHG PERTENGAHAN TAHUN | V1: =HLOOKUP(V2,'D2'!$ET$8:$FU$9,2,0)-142 ->  | W1: KEDUDUKAN PADA ETR | AA1: JENIS PEPERIKSAAN | AB1: =VLOOKUP(C2,$AA$2:$AB$5,2,0) ->  | AC1: =IF(AB1=1,0,1) ->  | AF1: TOV | AI1: ETR | BF1: 1 | BG1: 1 | BH1: =VLOOKUP(BG1,$X$8:$Y$35,2,0) -> Bahasa Inggeris
C2: =+'1'!B3 -> 0 | V2: =VLOOKUP(D3,$Y$8:$AA$43,3,0) ->  | W2: =VLOOKUP(V2,$AC$8:$AG$128,4,0) ->  | Y2: =VLOOKUP(D3,$Y$8:$Z$35,2,0) ->  | AA2: =+'D1'!$B$30 -> U1 | AB2: 1 | AF2: MARKAH | AG2: GRED | AI2: MARKAH | AJ2: GRED | BG2: =+X35 -> 21
C3: SUBJEK | M3: =VLOOKUP(V2,'D2'!$ES$6:$FU$6,V1+1,0) ->  | N3: A+ | O3: =IF(ISNA(VLOOKUP($Y$2,'D2'!$BR$460:$CG$491,4,0)),0,VLOOKUP($Y$2,'D2'!$BR$460:$CG$491,4,0)) -> 0 | P3: =COUNTIF($H$8:$H$550,BN3) -> 0 | Q3: =VLOOKUP(VLOOKUP(VLOOKUP($D$3,$Y$8:$AA$43,3,0),$AC$8:$AD$121,2,0),CA!$B$11:$AT$485,35,0) ->  | R3: =COUNTIF($J$8:$J$357,N3) -> 0 | V3: =IF(ISNA(HLOOKUP(V2,'D2'!$J$7:$BN$9,3,0)),HLOOKUP(W2,'D2'!$J$7:$BN$9,3,0),HLOOKUP(V2,'D2'!$J$7:$BN$9,3,0)) ->  | W3: KEDUDUKAN BI DALAM TOV | AA3: =+'D1'!$B$31 -> U2 | AB3: 2 | AF3: =HLOOKUP(V2,'D2'!$C$2005:$AD$2006,2,0) ->  | AG3: =HLOOKUP(V2,'D2'!$BN$2005:$CO$2006,2,0) ->  | AI3: =HLOOKUP(V2,'D2'!$CR$2005:$DS$2006,2,0) ->  | AJ3: =HLOOKUP(V2,'D2'!$FC$2005:$GD$2006,2,0) ->  | AP3: =IF(Q3>0,1,0) ->  | AQ3: A | AR3: 90 | AS3: 100 | AT3: 100 | AU3: A+ | BN3: A+ | BO3: 100 | BP3: A+
V4: =VLOOKUP(V2,$W$8:$X$35,2,0) ->  | W4: KEDUDUKAN DALAM ETR U1 | AA4: =+'D1'!$B$32 -> U3 | AB4: 3 | AT4: =+AT3-1 -> 99 | AU4: =+AU3 -> A+ | BO4: =+BO3-1 -> 99 | BP4: =+BP3 -> A+
A5: Bil | C5: Nama Pelajar | D5: Kelas | E5: =+'1'!$F$40 -> U1 | I5: ETR | N5: A | O5: =IF(ISNA(VLOOKUP($Y$2,'D2'!$BR$460:$CG$491,5,0)),0,VLOOKUP($Y$2,'D2'!$BR$460:$CG$491,5,0)) -> 0 | P5: =COUNTIF($H$8:$H$550,BN5) -> 0 | Q5: =VLOOKUP(VLOOKUP(VLOOKUP($D$3,$Y$8:$AA$43,3,0),$AC$8:$AD$121,2,0),CA!$B$11:$AT$485,36,0) ->  | R5: =COUNTIF($J$8:$J$357,N5) -> 0 | S5: SUBJEK | T5: ETR | U5: SEMULA | V5: =IF($C$2="UJIAN 1",AY6,IF($C$2="UJIAN 2",BA6,BC6)) ->  | W5: KEDUDUKAN DALAM U1 ATAU2 ATAU 3 | AA5: =+'D1'!$B$33 -> U4 | AB5: 4 | AH5: ETR | AP5: =+Q3+1 ->  | AQ5: B | AR5: 80 | AS5: 89 | AT5: 98 | AU5: A+ | BI5: =HLOOKUP($V$2,'D2'!$C$2005:$AD$2006,2,0) ->  | BN5: A | BO5: 98 | BP5: A+
E6: M | F6: G | G6: M | H6: G | I6: M | J6: G | AI6: =HLOOKUP($V$2,'D2'!$CR$2005:$DS$2006,2,0) ->  | AT6: 97 | AU6: A+ | AV6: PEPERIKSAAN AKHIR TAHUN | AW6: =HLOOKUP($V$2,'D2'!$J$7:$BR$9,3,0) ->  | AX6: UJIAN 1 | AY6: =HLOOKUP($V$2,'D2'!$K$1007:$BR$1009,3,0) ->  | AZ6: PEPERIKSAAN PERTENGAHAN TAHUN | BA6: =HLOOKUP($V$2,'D2'!$CN$1007:$EU$1009,3,0) ->  | BB6: PEPERIKSAAN PERCUBAAN SPM | BC6: =HLOOKUP($V$2,'D2'!$FM$1007:$HT$1009,3,0) ->  | BD6: TOV | BF6: ETR | BM6: =SUM(BM8:BM507) -> 500 | BO6: 97 | BP6: A+
A7: a | B7: =IF($C$2=KE!$BL$1,VLOOKUP(A7,'D2'!$A$11:$H$611,8,0),IF($C$2=KE!$BL$2,VLOOKUP(A7,'D2'!$A$1009:$I$1611,9,0),IF($C$2=KE!$BL$3,VLOOKUP(A7,'D2'!$A$3009:$I$3611,9,0),IF($C$2=KE!$BL$4,VLOOKUP(A7,'D2'!$A$4009:$I$4611,9,0),"")))) ->  | C7: =VLOOKUP(B7,'D1'!$G$206:$I$806,3,0) ->  | D7: =VLOOKUP(B7,'D1'!$G$206:$Z$806,2,0) ->  | E7: =IF($AB$1=1,IF(BI7=0,BK7,IF(BI7=-100,BK7,BI7)),IF(ISNA(VLOOKUP($B7,'D2'!$A$2011:$HD$2550,DATA!$AF$3,0)),"",VLOOKUP($B7,'D2'!$A$2011:$HD$2550,DATA!$AF$3,0))) ->  | F7: =VLOOKUP(E7,$AT$111:$AU$213,2,0) ->  | I7: =IF($AB$1=1,IF(B7="","",IF(E7=-100,"",+AH7)),VLOOKUP($B7,'D2'!$A$2011:$GW$2611,DATA!$AI$3,0)) ->  | J7: =VLOOKUP(I7,$AT$3:$AU$104,2,0) ->  | AH7: =IF(AI7=0,AJ7,IF(AI7="",AJ7,IF(AI7=AJ7,AJ7,AI7))) ->  | AI7: =VLOOKUP(B7,'D2'!$A$2011:$GD$2611,DATA!$AI$6,0) ->  | AJ7: =IF(AK7>AO7,AO7,AK7) ->  | AK7: =IF(E7<AN7,AN7,IF(E7>=AN7,E7+5,IF(E7=AO7,AO7,""))) ->  | AL7: =IF(A7<$AP$5,"A",IF(A7<$AP$8,"B",IF(A7<$AP$10,"C",IF(A7<$AP$12,"D",IF(A7<$AP$14,"E",IF(A7<$AP$16,"F",IF(A7<$AP$18,"G",IF(A7<$AP$20,"H",IF(A7<$AP$22,"I",IF(A7<$AP$24,"j","K")))))))))) ->  | AM7: =+AO7-E7 ->  | AN7: =VLOOKUP(AL7,$AQ$3:$AS$22,2,0) ->  | AO7: =VLOOKUP(AL7,$AQ$3:$AS$22,3,0) ->  | AT7: 96 | AU7: A+ | AV7: =IF(ISNA(IF(VLOOKUP($B7,'D2'!$H$11:$JZ$611,$AW$6,0)="",-100,VLOOKUP($B7,'D2'!$H$11:$JZ$611,$AW$6,0))),-100,IF(VLOOKUP($B7,'D2'!$H$11:$JZ$611,$AW$6,0)="",-100,VLOOKUP($B7,'D2'!$H$11:$JZ$611,$AW$6,0))) -> -100 | AW7: =IF($G7="","",VLOOKUP(AV7,$AT$3:$AU$104,2,0)) ->  | AX7: =IF(ISNA(IF(VLOOKUP($B7,'D2'!$I$1011:$IK$1611,$AY$6,0)="",-100,VLOOKUP($B7,'D2'!$I$1011:$IK$1611,$AY$6,0))),-100,IF(VLOOKUP($B7,'D2'!$I$1011:$IK$1611,$AY$6,0)="",-100,VLOOKUP($B7,'D2'!$I$1011:$IK$1611,$AY$6,0))) -> -100 | AY7: =IF($G7="","",VLOOKUP(AX7,$BO$3:$BP$104,2,0)) ->  | AZ7: =IF(ISNA(IF(VLOOKUP($B7,'D2'!$I$3011:$IK$3611,$AY$6,0)="",-100,VLOOKUP($B7,'D2'!$I$3011:$IK$3611,$AY$6,0))),-100,IF(VLOOKUP($B7,'D2'!$I$3011:$IK$3611,$AY$6,0)="",-100,VLOOKUP($B7,'D2'!$I$3011:$IK$3611,$AY$6,0))) -> -100 | BA7: =IF($G7="","",VLOOKUP(AZ7,$AT$3:$AU$104,2,0)) ->  | BB7: =IF(ISNA(IF(VLOOKUP($B7,'D2'!$I$4011:$IK$4611,$AY$6,0)="",-100,VLOOKUP($B7,'D2'!$I$4011:$IK$4611,$AY$6,0))),-100,IF(VLOOKUP($B7,'D2'!$I$4011:$IK$4611,$AY$6,0)="",-100,VLOOKUP($B7,'D2'!$I$4011:$IK$4611,$AY$6,0))) -> -100 | BC7: =IF($G7="","",VLOOKUP(BB7,$AT$3:$AU$104,2,0)) ->  | BI7: =IF(ISNA(IF(VLOOKUP($B7,'D2'!$A$2011:$BQ$2550,$BI$5,0)="",-100,VLOOKUP($B7,'D2'!$A$2011:$BQ$2550,$BI$5,0))),-100,IF(VLOOKUP($B7,'D2'!$A$2011:$BQ$2550,$BI$5,0)="",-100,VLOOKUP($B7,'D2'!$A$2011:$BQ$2550,$BI$5,0))) -> -100 | BJ7: =IF(BI7="","",VLOOKUP($B7,'D2'!$A$2011:$JJ$2550,$BI$5+63,0)) ->  | BK7: =IF(ISNA(IF(VLOOKUP($B7,'D2'!$A$2011:$BQ$2550,$V$3,0)="",-100,VLOOKUP($B7,'D2'!$A$2011:$BQ$2550,$V$3,0))),-100,IF(VLOOKUP($B7,'D2'!$A$2011:$BQ$2550,$V$3,0)="",-100,VLOOKUP($B7,'D2'!$A$2011:$BQ$2550,$V$3,0))) -> -100 | BL7: =IF(BK7="","",VLOOKUP($B7,'D2'!$A$2011:$BQ$2550,$V$3+63,0)) ->  | BO7: 96 | BP7: A+
A8: 1 | N8: A- | O8: =IF(ISNA(VLOOKUP($Y$2,'D2'!$BR$460:$CG$491,6,0)),0,VLOOKUP($Y$2,'D2'!$BR$460:$CG$491,6,0)) -> 0 | P8: =COUNTIF($H$8:$H$550,BN8) -> 0 | Q8: =VLOOKUP(VLOOKUP(VLOOKUP($D$3,$Y$8:$AA$43,3,0),$AC$8:$AD$121,2,0),CA!$B$11:$AT$485,37,0) ->  | R8: =COUNTIF($J$8:$J$357,N8) -> 0 | S8: =+Y8 -> Bahasa Inggeris | T8: =HLOOKUP(W8,'D2'!$ET$4:$FU$5,2,0) -> 0 | U8: =+'D2'!C$2003 -> 0 | V8: 1 | W8: ='D2'!$BT10 -> BIMA | X8: =+V8 -> 1 | Y8: =IF(W8="","",VLOOKUP(W8,$AC$8:$AE$119,3,0)) -> Bahasa Inggeris | Z8: =IF(W8="","",VLOOKUP(W8,$AC$8:$AE$119,2,0)) -> 1119 | AA8: =+W8 -> BIMA | AB8: 1 | AC8: BMMA | AD8: 1103 | AE8: Bahasa Melayu | AF8: BMMA | AG8: A | AH8: 89 | AI8: 0 | AJ8: 89 | AK8: 92 | AL8: B | AM8: 2 | AN8: 80 | AO8: 89 | AP8: =+Q5+Q3+1 ->  | AQ8: C | AR8: 70 | AS8: 79 | AT8: 95 | AU8: A+ | AV8: =IF(ISNA(IF(VLOOKUP($B8,'D2'!$H$11:$JZ$500,$AW$6,0)="",-100,VLOOKUP($B8,'D2'!$H$11:$JZ$550,$AW$6,0))),-100,IF(VLOOKUP($B8,'D2'!$H$11:$JZ$550,$AW$6,0)="",-100,VLOOKUP($B8,'D2'!$H$11:$JZ$550,$AW$6,0))) -> -100 | AW8: =IF($G8="","",VLOOKUP(AV8,$AT$3:$AU$104,2,0)) ->  | AX8: =IF(ISNA(IF(VLOOKUP($B8,'D2'!$I$1011:$IK$1550,$AY$6,0)="",-100,VLOOKUP($B8,'D2'!$I$1011:$IK$1550,$AY$6,0))),-100,IF(VLOOKUP($B8,'D2'!$I$1011:$IK$1550,$AY$6,0)="",-100,VLOOKUP($B8,'D2'!$I$1011:$IK$1550,$AY$6,0))) -> -100 | AY8: =IF($G8="","",VLOOKUP(AX8,$BO$3:$BP$104,2,0)) ->  | AZ8: =IF(ISNA(IF(VLOOKUP($B8,'D2'!$I$3011:$IK$3550,$AY$6,0)="",-100,VLOOKUP($B8,'D2'!$I$3011:$IK$3550,$AY$6,0))),-100,IF(VLOOKUP($B8,'D2'!$I$3011:$IK$3550,$AY$6,0)="",-100,VLOOKUP($B8,'D2'!$I$3011:$IK$3550,$AY$6,0))) -> -100 | BA8: =IF($G8="","",RIGHT(VLOOKUP($B8,'D2'!$I$3011:$IK$3550,$AY$6+1,0),2)) ->  | BB8: =IF(ISNA(IF(VLOOKUP($B8,'D2'!$I$4011:$IK$4550,$AY$6,0)="",-100,VLOOKUP($B8,'D2'!$I$4011:$IK$4550,$AY$6,0))),-100,IF(VLOOKUP($B8,'D2'!$I$4011:$IK$4550,$AY$6,0)="",-100,VLOOKUP($B8,'D2'!$I$4011:$IK$4550,$AY$6,0))) -> -100 | BC8: =IF($G8="","",RIGHT(VLOOKUP($B8,'D2'!$I$4011:$IK$4611,$AY$6+1,0),2)) ->  | BD8: =IF(L8="",E8,L8) -> 0 | BE8: =VLOOKUP(BD8,$AT$3:$AU$102,2,0) ->  | BF8: =IF(#REF!="",I8,#REF!) ->  | BG8: =VLOOKUP(BF8,$AT$3:$AU$102,2,0) ->  | BI8: =IF(ISNA(IF(VLOOKUP($B8,'D2'!$A$2011:$BQ$2611,$BI$5,0)="",-100,VLOOKUP($B8,'D2'!$A$2011:$BQ$2611,$BI$5,0))),-100,IF(VLOOKUP($B8,'D2'!$A$2011:$BQ$2611,$BI$5,0)="",-100,VLOOKUP($B8,'D2'!$A$2011:$BQ$2611,$BI$5,0))) -> -100 | BJ8: =IF(BI8="","",VLOOKUP($B8,'D2'!$A$2011:$JJ$2550,$BI$5+63,0)) ->  | BK8: =IF(ISNA(IF(VLOOKUP($B8,'D2'!$H$11:$BQ$611,$V$3,0)="",-100,VLOOKUP($B8,'D2'!$H$11:$BQ$611,$V$3,0))),-100,IF(VLOOKUP($B8,'D2'!$H$11:$BQ$611,$V$3,0)="",-100,VLOOKUP($B8,'D2'!$H$11:$BQ$611,$V$3,0))) -> -100 | BL8: =IF(BK8="","",RIGHT(VLOOKUP($B8,'D2'!$H$11:$JJ$550,$V$3+1,0),2)) ->  | BM8: =IF(ISNA(D8),0,1) -> 1 | BN8: A- | BO8: 95 | BP8: A+ | BR8: =FIND("[",D8) ->  | BS8: =IF(BR8=1,MID(D8,BR8+1,LEN(D8)-(BR8+1))) -> 
A9: 2 | S9: Biology | T9: =HLOOKUP(W9,'D2'!$ET$4:$FU$5,2,0) -> 0 | U9: =+'D2'!D$2003 -> 0 | V9: 2 | W9: ='D2'!$BT11 -> BIO | X9: 2 | Y9: Biology | Z9: 4551 | AA9: BIO | AB9: =IF(ISNA(VLOOKUP(AC9,$AT$5:$AU$36,2,0)),AB8,AB8+1) -> 1 | AC9: BIMA | AD9: 1119 | AE9: Bahasa Inggeris | AF9: BIMA | AG9: A | AH9: 89 | AI9: 0 | AJ9: 89 | AK9: 90 | AL9: B | AM9: 4 | AN9: 80 | AO9: 89 | AT9: 94 | AU9: A+ | AV9: =IF(ISNA(IF(VLOOKUP($B9,'D2'!$H$11:$JZ$500,$AW$6,0)="",-100,VLOOKUP($B9,'D2'!$H$11:$JZ$550,$AW$6,0))),-100,IF(VLOOKUP($B9,'D2'!$H$11:$JZ$550,$AW$6,0)="",-100,VLOOKUP($B9,'D2'!$H$11:$JZ$550,$AW$6,0))) -> -100 | AW9: =IF($G9="","",RIGHT(VLOOKUP($B9,'D2'!$H$11:$JZ$550,$AW$6+1,0),2)) ->  | AX9: =IF(ISNA(IF(VLOOKUP($B9,'D2'!$I$1011:$IK$1550,$AY$6,0)="",-100,VLOOKUP($B9,'D2'!$I$1011:$IK$1550,$AY$6,0))),-100,IF(VLOOKUP($B9,'D2'!$I$1011:$IK$1550,$AY$6,0)="",-100,VLOOKUP($B9,'D2'!$I$1011:$IK$1550,$AY$6,0))) -> -100 | AZ9: =IF(ISNA(IF(VLOOKUP($B9,'D2'!$I$3011:$IK$3550,$AY$6,0)="",-100,VLOOKUP($B9,'D2'!$I$3011:$IK$3550,$AY$6,0))),-100,IF(VLOOKUP($B9,'D2'!$I$3011:$IK$3550,$AY$6,0)="",-100,VLOOKUP($B9,'D2'!$I$3011:$IK$3550,$AY$6,0))) -> -100 | BA9: =IF($G9="","",RIGHT(VLOOKUP($B9,'D2'!$I$3011:$IK$3550,$AY$6+1,0),2)) ->  | BB9: =IF(ISNA(IF(VLOOKUP($B9,'D2'!$I$4011:$IK$4550,$AY$6,0)="",-100,VLOOKUP($B9,'D2'!$I$4011:$IK$4550,$AY$6,0))),-100,IF(VLOOKUP($B9,'D2'!$I$4011:$IK$4550,$AY$6,0)="",-100,VLOOKUP($B9,'D2'!$I$4011:$IK$4550,$AY$6,0))) -> -100 | BC9: =IF($G9="","",RIGHT(VLOOKUP($B9,'D2'!$I$4011:$IK$4550,$AY$6+1,0),2)) ->  | BD9: =IF(L9="",E9,L9) -> 0 | BE9: =VLOOKUP(BD9,$AT$3:$AU$102,2,0) ->  | BF9: =IF(#REF!="",I9,#REF!) ->  | BG9: =VLOOKUP(BF9,$AT$3:$AU$102,2,0) ->  | BI9: =IF(ISNA(IF(VLOOKUP($B9,'D2'!$A$2011:$BQ$2611,$BI$5,0)="",-100,VLOOKUP($B9,'D2'!$A$2011:$BQ$2611,$BI$5,0))),-100,IF(VLOOKUP($B9,'D2'!$A$2011:$BQ$2611,$BI$5,0)="",-100,VLOOKUP($B9,'D2'!$A$2011:$BQ$2611,$BI$5,0))) -> -100 | BJ9: =IF(BI9="","",VLOOKUP($B9,'D2'!$A$2011:$JJ$2550,$BI$5+63,0)) ->  | BK9: =IF(ISNA(IF(VLOOKUP($B9,'D2'!$H$11:$BQ$611,$V$3,0)="",-100,VLOOKUP($B9,'D2'!$H$11:$BQ$611,$V$3,0))),-100,IF(VLOOKUP($B9,'D2'!$H$11:$BQ$611,$V$3,0)="",-100,VLOOKUP($B9,'D2'!$H$11:$BQ$611,$V$3,0))) -> -100 | BL9: =IF(BK9="","",RIGHT(VLOOKUP($B9,'D2'!$H$11:$JJ$550,$V$3+1,0),2)) ->  | BM9: =IF(ISNA(D9),0,1) -> 1 | BO9: 94 | BP9: A+ | BR9: =FIND("[",D9) ->  | BS9: =IF(BR9=1,MID(D9,BR9+1,LEN(D9)-(BR9+1))) -> 
A10: 3 | N10: B+ | O10: =IF(ISNA(VLOOKUP($Y$2,'D2'!$BR$460:$CG$491,7,0)),0,VLOOKUP($Y$2,'D2'!$BR$460:$CG$491,7,0)) -> 0 | P10: =COUNTIF($H$8:$H$550,BN10) -> 0 | Q10: =VLOOKUP(VLOOKUP(VLOOKUP($D$3,$Y$8:$AA$43,3,0),$AC$8:$AD$121,2,0),CA!$B$11:$AT$485,38,0) ->  | R10: =COUNTIF($J$8:$J$357,N10) -> 0 | S10: Bahasa Melayu | T10: =HLOOKUP(W10,'D2'!$ET$4:$FU$5,2,0) -> 0 | U10: =+'D2'!E$2003 -> 0 | V10: 3 | W10: ='D2'!$BT12 -> BMMA | X10: 3 | Y10: Bahasa Melayu | Z10: 1103 | AA10: BMMA | AB10: 1 | AC10: PIMA | AD10: 1223 | AE10: Pendidikan Islam | AF10: PIMA | AG10: A | AH10: 79 | AI10: 0 | AJ10: 79 | AK10: 87 | AL10: C | AM10: -3 | AN10: 70 | AO10: 79 | AP10: =+Q8+Q5+Q3+1 ->  | AQ10: D | AR10: 65 | AS10: 69 | AT10: 93 | AU10: A+ | AV10: =IF(ISNA(IF(VLOOKUP($B10,'D2'!$H$11:$JZ$500,$AW$6,0)="",-100,VLOOKUP($B10,'D2'!$H$11:$JZ$550,$AW$6,0))),-100,IF(VLOOKUP($B10,'D2'!$H$11:$JZ$550,$AW$6,0)="",-100,VLOOKUP($B10,'D2'!$H$11:$JZ$550,$AW$6,0))) -> -100 | AW10: =IF($G10="","",RIGHT(VLOOKUP($B10,'D2'!$H$11:$JZ$550,$AW$6+1,0),2)) ->  | AX10: =IF(ISNA(IF(VLOOKUP($B10,'D2'!$I$1011:$IK$1550,$AY$6,0)="",-100,VLOOKUP($B10,'D2'!$I$1011:$IK$1550,$AY$6,0))),-100,IF(VLOOKUP($B10,'D2'!$I$1011:$IK$1550,$AY$6,0)="",-100,VLOOKUP($B10,'D2'!$I$1011:$IK$1550,$AY$6,0))) -> -100 | AZ10: =IF(ISNA(IF(VLOOKUP($B10,'D2'!$I$3011:$IK$3550,$AY$6,0)="",-100,VLOOKUP($B10,'D2'!$I$3011:$IK$3550,$AY$6,0))),-100,IF(VLOOKUP($B10,'D2'!$I$3011:$IK$3550,$AY$6,0)="",-100,VLOOKUP($B10,'D2'!$I$3011:$IK$3550,$AY$6,0))) -> -100 | BA10: =IF($G10="","",RIGHT(VLOOKUP($B10,'D2'!$I$3011:$IK$3550,$AY$6+1,0),2)) ->  | BB10: =IF(ISNA(IF(VLOOKUP($B10,'D2'!$I$4011:$IK$4550,$AY$6,0)="",-100,VLOOKUP($B10,'D2'!$I$4011:$IK$4550,$AY$6,0))),-100,IF(VLOOKUP($B10,'D2'!$I$4011:$IK$4550,$AY$6,0)="",-100,VLOOKUP($B10,'D2'!$I$4011:$IK$4550,$AY$6,0))) -> -100 | BC10: =IF($G10="","",RIGHT(VLOOKUP($B10,'D2'!$I$4011:$IK$4550,$AY$6+1,0),2)) ->  | BD10: 0 | BF10: =IF(#REF!="",I10,#REF!) ->  | BI10: =IF(ISNA(IF(VLOOKUP($B10,'D2'!$A$2011:$BQ$2611,$BI$5,0)="",-100,VLOOKUP($B10,'D2'!$A$2011:$BQ$2611,$BI$5,0))),-100,IF(VLOOKUP($B10,'D2'!$A$2011:$BQ$2611,$BI$5,0)="",-100,VLOOKUP($B10,'D2'!$A$2011:$BQ$2611,$BI$5,0))) -> -100 | BJ10: =IF(BI10="","",VLOOKUP($B10,'D2'!$A$2011:$JJ$2550,$BI$5+63,0)) ->  | BK10: =IF(ISNA(IF(VLOOKUP($B10,'D2'!$H$11:$BQ$611,$V$3,0)="",-100,VLOOKUP($B10,'D2'!$H$11:$BQ$611,$V$3,0))),-100,IF(VLOOKUP($B10,'D2'!$H$11:$BQ$611,$V$3,0)="",-100,VLOOKUP($B10,'D2'!$H$11:$BQ$611,$V$3,0))) -> -100 | BL10: =IF(BK10="","",RIGHT(VLOOKUP($B10,'D2'!$H$11:$JJ$550,$V$3+1,0),2)) ->  | BM10: 1 | BN10: B+ | BO10: 93 | BP10: A+
A11: 4 | S11: Bahasa Tamil | T11: =HLOOKUP(W11,'D2'!$ET$4:$FU$5,2,0) -> 0 | U11: =+'D2'!F$2003 -> 0 | V11: 4 | W11: ='D2'!$BT13 -> BTMA | X11: =IF(Y11="",X10,X10+1) -> 4 | Y11: Bahasa Tamil | Z11: 6354 | AA11: BTMA | AB11: 1 | AC11: PMMA | AD11: 1225 | AE11: Pendidikan Moral | AF11: PMMA | AG11: A | AH11: 79 | AI11: 0 | AJ11: 79 | AK11: 87 | AL11: C | AM11: -3 | AN11: 70 | AO11: 79 | AT11: 92 | AU11: A+ | AV11: =IF(ISNA(IF(VLOOKUP($B11,'D2'!$H$11:$JZ$500,$AW$6,0)="",-100,VLOOKUP($B11,'D2'!$H$11:$JZ$550,$AW$6,0))),-100,IF(VLOOKUP($B11,'D2'!$H$11:$JZ$550,$AW$6,0)="",-100,VLOOKUP($B11,'D2'!$H$11:$JZ$550,$AW$6,0))) -> -100 | AW11: =IF($G11="","",RIGHT(VLOOKUP($B11,'D2'!$H$11:$JZ$550,$AW$6+1,0),2)) ->  | AX11: =IF(ISNA(IF(VLOOKUP($B11,'D2'!$I$1011:$IK$1550,$AY$6,0)="",-100,VLOOKUP($B11,'D2'!$I$1011:$IK$1550,$AY$6,0))),-100,IF(VLOOKUP($B11,'D2'!$I$1011:$IK$1550,$AY$6,0)="",-100,VLOOKUP($B11,'D2'!$I$1011:$IK$1550,$AY$6,0))) -> -100 | AZ11: =IF(ISNA(IF(VLOOKUP($B11,'D2'!$I$3011:$IK$3550,$AY$6,0)="",-100,VLOOKUP($B11,'D2'!$I$3011:$IK$3550,$AY$6,0))),-100,IF(VLOOKUP($B11,'D2'!$I$3011:$IK$3550,$AY$6,0)="",-100,VLOOKUP($B11,'D2'!$I$3011:$IK$3550,$AY$6,0))) -> -100 | BA11: =IF($G11="","",RIGHT(VLOOKUP($B11,'D2'!$I$3011:$IK$3550,$AY$6+1,0),2)) ->  | BB11: =IF(ISNA(IF(VLOOKUP($B11,'D2'!$I$4011:$IK$4550,$AY$6,0)="",-100,VLOOKUP($B11,'D2'!$I$4011:$IK$4550,$AY$6,0))),-100,IF(VLOOKUP($B11,'D2'!$I$4011:$IK$4550,$AY$6,0)="",-100,VLOOKUP($B11,'D2'!$I$4011:$IK$4550,$AY$6,0))) -> -100 | BC11: =IF($G11="","",RIGHT(VLOOKUP($B11,'D2'!$I$4011:$IK$4550,$AY$6+1,0),2)) ->  | BD11: 0 | BF11: =IF(#REF!="",I11,#REF!) ->  | BI11: =IF(ISNA(IF(VLOOKUP($B11,'D2'!$A$2011:$BQ$2611,$BI$5,0)="",-100,VLOOKUP($B11,'D2'!$A$2011:$BQ$2611,$BI$5,0))),-100,IF(VLOOKUP($B11,'D2'!$A$2011:$BQ$2611,$BI$5,0)="",-100,VLOOKUP($B11,'D2'!$A$2011:$BQ$2611,$BI$5,0))) -> -100 | BJ11: =IF(BI11="","",VLOOKUP($B11,'D2'!$A$2011:$JJ$2550,$BI$5+63,0)) ->  | BK11: =IF(ISNA(IF(VLOOKUP($B11,'D2'!$H$11:$BQ$611,$V$3,0)="",-100,VLOOKUP($B11,'D2'!$H$11:$BQ$611,$V$3,0))),-100,IF(VLOOKUP($B11,'D2'!$H$11:$BQ$611,$V$3,0)="",-100,VLOOKUP($B11,'D2'!$H$11:$BQ$611,$V$3,0))) -> -100 | BL11: =IF(BK11="","",RIGHT(VLOOKUP($B11,'D2'!$H$11:$JJ$550,$V$3+1,0),2)) ->  | BM11: 1 | BO11: 92 | BP11: A+
A12: 5 | N12: B | O12: =IF(ISNA(VLOOKUP($Y$2,'D2'!$BR$460:$CG$491,8,0)),0,VLOOKUP($Y$2,'D2'!$BR$460:$CG$491,8,0)) -> 0 | P12: =COUNTIF($H$8:$H$550,BN12) -> 0 | Q12: =VLOOKUP(VLOOKUP(VLOOKUP($D$3,$Y$8:$AA$43,3,0),$AC$8:$AD$121,2,0),CA!$B$11:$AT$485,39,0) ->  | R12: =COUNTIF($J$8:$J$357,N12) -> 0 | S12: Ekonomi | T12: =HLOOKUP(W12,'D2'!$ET$4:$FU$5,2,0) -> 0 | U12: =+'D2'!G$2003 -> 0 | V12: 5 | W12: ='D2'!$BT14 -> ECO | X12: 5 | Y12: Ekonomi | Z12: 3767 | AA12: ECO | AB12: 1 | AC12: SEJMA | AD12: 1249 | AE12: Sejarah | AF12: SEJMA | AG12: A | AH12: 79 | AI12: 0 | AJ12: 79 | AK12: 87 | AL12: C | AM12: -3 | AN12: 70 | AO12: 79 | AP12: =+Q10+Q8+Q5+Q3+1 ->  | AQ12: E | AR12: 60 | AS12: 64 | AT12: 91 | AU12: A+ | AV12: =IF(ISNA(IF(VLOOKUP($B12,'D2'!$H$11:$JZ$500,$AW$6,0)="",-100,VLOOKUP($B12,'D2'!$H$11:$JZ$550,$AW$6,0))),-100,IF(VLOOKUP($B12,'D2'!$H$11:$JZ$550,$AW$6,0)="",-100,VLOOKUP($B12,'D2'!$H$11:$JZ$550,$AW$6,0))) -> -100 | AW12: =IF($G12="","",RIGHT(VLOOKUP($B12,'D2'!$H$11:$JZ$550,$AW$6+1,0),2)) ->  | AX12: =IF(ISNA(IF(VLOOKUP($B12,'D2'!$I$1011:$IK$1550,$AY$6,0)="",-100,VLOOKUP($B12,'D2'!$I$1011:$IK$1550,$AY$6,0))),-100,IF(VLOOKUP($B12,'D2'!$I$1011:$IK$1550,$AY$6,0)="",-100,VLOOKUP($B12,'D2'!$I$1011:$IK$1550,$AY$6,0))) -> -100 | AZ12: =IF(ISNA(IF(VLOOKUP($B12,'D2'!$I$3011:$IK$3550,$AY$6,0)="",-100,VLOOKUP($B12,'D2'!$I$3011:$IK$3550,$AY$6,0))),-100,IF(VLOOKUP($B12,'D2'!$I$3011:$IK$3550,$AY$6,0)="",-100,VLOOKUP($B12,'D2'!$I$3011:$IK$3550,$AY$6,0))) -> -100 | BA12: =IF($G12="","",RIGHT(VLOOKUP($B12,'D2'!$I$3011:$IK$3550,$AY$6+1,0),2)) ->  | BB12: =IF(ISNA(IF(VLOOKUP($B12,'D2'!$I$4011:$IK$4550,$AY$6,0)="",-100,VLOOKUP($B12,'D2'!$I$4011:$IK$4550,$AY$6,0))),-100,IF(VLOOKUP($B12,'D2'!$I$4011:$IK$4550,$AY$6,0)="",-100,VLOOKUP($B12,'D2'!$I$4011:$IK$4550,$AY$6,0))) -> -100 | BC12: =IF($G12="","",RIGHT(VLOOKUP($B12,'D2'!$I$4011:$IK$4550,$AY$6+1,0),2)) ->  | BD12: 0 | BF12: =IF(#REF!="",I12,#REF!) ->  | BI12: =IF(ISNA(IF(VLOOKUP($B12,'D2'!$A$2011:$BQ$2611,$BI$5,0)="",-100,VLOOKUP($B12,'D2'!$A$2011:$BQ$2611,$BI$5,0))),-100,IF(VLOOKUP($B12,'D2'!$A$2011:$BQ$2611,$BI$5,0)="",-100,VLOOKUP($B12,'D2'!$A$2011:$BQ$2611,$BI$5,0))) -> -100 | BJ12: =IF(BI12="","",VLOOKUP($B12,'D2'!$A$2011:$JJ$2550,$BI$5+63,0)) ->  | BK12: =IF(ISNA(IF(VLOOKUP($B12,'D2'!$H$11:$BQ$611,$V$3,0)="",-100,VLOOKUP($B12,'D2'!$H$11:$BQ$611,$V$3,0))),-100,IF(VLOOKUP($B12,'D2'!$H$11:$BQ$611,$V$3,0)="",-100,VLOOKUP($B12,'D2'!$H$11:$BQ$611,$V$3,0))) -> -100 | BL12: =IF(BK12="","",RIGHT(VLOOKUP($B12,'D2'!$H$11:$JJ$550,$V$3+1,0),2)) ->  | BM12: 1 | BN12: B | BO12: 91 | BP12: A+
A13: 6 | S13: Physics | T13: =HLOOKUP(W13,'D2'!$ET$4:$FU$5,2,0) -> 0 | U13: =+'D2'!H$2003 -> 0 | V13: 6 | W13: ='D2'!$BT15 -> FIZ | X13: 6 | Y13: Physics | Z13: 4531 | AA13: FIZ | AB13: 1 | AC13: M3MA | AD13: 1449 | AE13: Mathematics | AF13: M3MA | AG13: A | AH13: 79 | AI13: 0 | AJ13: 79 | AK13: 86 | AL13: C | AM13: -2 | AN13: 70 | AO13: 79 | AT13: 90 | AU13: A+ | AV13: =IF(ISNA(IF(VLOOKUP($B13,'D2'!$H$11:$JZ$500,$AW$6,0)="",-100,VLOOKUP($B13,'D2'!$H$11:$JZ$550,$AW$6,0))),-100,IF(VLOOKUP($B13,'D2'!$H$11:$JZ$550,$AW$6,0)="",-100,VLOOKUP($B13,'D2'!$H$11:$JZ$550,$AW$6,0))) -> -100 | AW13: =IF($G13="","",RIGHT(VLOOKUP($B13,'D2'!$H$11:$JZ$550,$AW$6+1,0),2)) ->  | AX13: =IF(ISNA(IF(VLOOKUP($B13,'D2'!$I$1011:$IK$1550,$AY$6,0)="",-100,VLOOKUP($B13,'D2'!$I$1011:$IK$1550,$AY$6,0))),-100,IF(VLOOKUP($B13,'D2'!$I$1011:$IK$1550,$AY$6,0)="",-100,VLOOKUP($B13,'D2'!$I$1011:$IK$1550,$AY$6,0))) -> -100 | AZ13: =IF(ISNA(IF(VLOOKUP($B13,'D2'!$I$3011:$IK$3550,$AY$6,0)="",-100,VLOOKUP($B13,'D2'!$I$3011:$IK$3550,$AY$6,0))),-100,IF(VLOOKUP($B13,'D2'!$I$3011:$IK$3550,$AY$6,0)="",-100,VLOOKUP($B13,'D2'!$I$3011:$IK$3550,$AY$6,0))) -> -100 | BA13: =IF($G13="","",RIGHT(VLOOKUP($B13,'D2'!$I$3011:$IK$3550,$AY$6+1,0),2)) ->  | BB13: =IF(ISNA(IF(VLOOKUP($B13,'D2'!$I$4011:$IK$4550,$AY$6,0)="",-100,VLOOKUP($B13,'D2'!$I$4011:$IK$4550,$AY$6,0))),-100,IF(VLOOKUP($B13,'D2'!$I$4011:$IK$4550,$AY$6,0)="",-100,VLOOKUP($B13,'D2'!$I$4011:$IK$4550,$AY$6,0))) -> -100 | BC13: =IF($G13="","",RIGHT(VLOOKUP($B13,'D2'!$I$4011:$IK$4550,$AY$6+1,0),2)) ->  | BD13: 0 | BF13: =IF(#REF!="",I13,#REF!) ->  | BI13: =IF(ISNA(IF(VLOOKUP($B13,'D2'!$A$2011:$BQ$2611,$BI$5,0)="",-100,VLOOKUP($B13,'D2'!$A$2011:$BQ$2611,$BI$5,0))),-100,IF(VLOOKUP($B13,'D2'!$A$2011:$BQ$2611,$BI$5,0)="",-100,VLOOKUP($B13,'D2'!$A$2011:$BQ$2611,$BI$5,0))) -> -100 | BJ13: =IF(BI13="","",VLOOKUP($B13,'D2'!$A$2011:$JJ$2550,$BI$5+63,0)) ->  | BK13: =IF(ISNA(IF(VLOOKUP($B13,'D2'!$H$11:$BQ$611,$V$3,0)="",-100,VLOOKUP($B13,'D2'!$H$11:$BQ$611,$V$3,0))),-100,IF(VLOOKUP($B13,'D2'!$H$11:$BQ$611,$V$3,0)="",-100,VLOOKUP($B13,'D2'!$H$11:$BQ$611,$V$3,0))) -> -100 | BL13: =IF(BK13="","",RIGHT(VLOOKUP($B13,'D2'!$H$11:$JJ$550,$V$3+1,0),2)) ->  | BM13: 1 | BO13: 90 | BP13: A+
A14: 7 | M14: =VLOOKUP(V2,'D2'!$FW$6:$GY$6,V1+1,0) ->  | N14: C+ | O14: =IF(ISNA(VLOOKUP($Y$2,'D2'!$BR$460:$CG$491,9,0)),0,VLOOKUP($Y$2,'D2'!$BR$460:$CG$491,9,0)) -> 0 | P14: =COUNTIF($H$8:$H$550,BN14) -> 0 | Q14: =VLOOKUP(VLOOKUP(VLOOKUP($D$3,$Y$8:$AA$43,3,0),$AC$8:$AD$121,2,0),CA!$B$11:$AT$485,40,0) ->  | R14: =COUNTIF($J$8:$J$357,N14) -> 0 | S14: Geografi | T14: =HLOOKUP(W14,'D2'!$ET$4:$FU$5,2,0) -> 0 | U14: =+'D2'!I$2003 -> 0 | V14: 7 | W14: ='D2'!$BT16 -> GEOMA | X14: 7 | Y14: Geografi | Z14: 2280 | AA14: GEOMA | AB14: 1 | AC14: SNMA | AD14: 1511 | AE14: Science | AF14: SNMA | AG14: A | AH14: 79 | AI14: 0 | AJ14: 79 | AK14: 86 | AL14: C | AM14: -2 | AN14: 70 | AO14: 79 | AP14: =+Q12+Q10+Q8+Q5+Q3+1 ->  | AQ14: F | AR14: 55 | AS14: 59 | AT14: 89 | AU14: A | AV14: =IF(ISNA(IF(VLOOKUP($B14,'D2'!$H$11:$JZ$500,$AW$6,0)="",-100,VLOOKUP($B14,'D2'!$H$11:$JZ$550,$AW$6,0))),-100,IF(VLOOKUP($B14,'D2'!$H$11:$JZ$550,$AW$6,0)="",-100,VLOOKUP($B14,'D2'!$H$11:$JZ$550,$AW$6,0))) -> -100 | AW14: =IF($G14="","",RIGHT(VLOOKUP($B14,'D2'!$H$11:$JZ$550,$AW$6+1,0),2)) ->  | AX14: =IF(ISNA(IF(VLOOKUP($B14,'D2'!$I$1011:$IK$1550,$AY$6,0)="",-100,VLOOKUP($B14,'D2'!$I$1011:$IK$1550,$AY$6,0))),-100,IF(VLOOKUP($B14,'D2'!$I$1011:$IK$1550,$AY$6,0)="",-100,VLOOKUP($B14,'D2'!$I$1011:$IK$1550,$AY$6,0))) -> -100 | AZ14: =IF(ISNA(IF(VLOOKUP($B14,'D2'!$I$3011:$IK$3550,$AY$6,0)="",-100,VLOOKUP($B14,'D2'!$I$3011:$IK$3550,$AY$6,0))),-100,IF(VLOOKUP($B14,'D2'!$I$3011:$IK$3550,$AY$6,0)="",-100,VLOOKUP($B14,'D2'!$I$3011:$IK$3550,$AY$6,0))) -> -100 | BA14: =IF($G14="","",RIGHT(VLOOKUP($B14,'D2'!$I$3011:$IK$3550,$AY$6+1,0),2)) ->  | BB14: =IF(ISNA(IF(VLOOKUP($B14,'D2'!$I$4011:$IK$4550,$AY$6,0)="",-100,VLOOKUP($B14,'D2'!$I$4011:$IK$4550,$AY$6,0))),-100,IF(VLOOKUP($B14,'D2'!$I$4011:$IK$4550,$AY$6,0)="",-100,VLOOKUP($B14,'D2'!$I$4011:$IK$4550,$AY$6,0))) -> -100 | BC14: =IF($G14="","",RIGHT(VLOOKUP($B14,'D2'!$I$4011:$IK$4550,$AY$6+1,0),2)) ->  | BD14: 0 | BF14: =IF(#REF!="",I14,#REF!) ->  | BI14: =IF(ISNA(IF(VLOOKUP($B14,'D2'!$A$2011:$BQ$2611,$BI$5,0)="",-100,VLOOKUP($B14,'D2'!$A$2011:$BQ$2611,$BI$5,0))),-100,IF(VLOOKUP($B14,'D2'!$A$2011:$BQ$2611,$BI$5,0)="",-100,VLOOKUP($B14,'D2'!$A$2011:$BQ$2611,$BI$5,0))) -> -100 | BJ14: =IF(BI14="","",VLOOKUP($B14,'D2'!$A$2011:$JJ$2550,$BI$5+63,0)) ->  | BK14: =IF(ISNA(IF(VLOOKUP($B14,'D2'!$H$11:$BQ$611,$V$3,0)="",-100,VLOOKUP($B14,'D2'!$H$11:$BQ$611,$V$3,0))),-100,IF(VLOOKUP($B14,'D2'!$H$11:$BQ$611,$V$3,0)="",-100,VLOOKUP($B14,'D2'!$H$11:$BQ$611,$V$3,0))) -> -100 | BL14: =IF(BK14="","",RIGHT(VLOOKUP($B14,'D2'!$H$11:$JJ$550,$V$3+1,0),2)) ->  | BM14: 1 | BN14: C+ | BO14: 89 | BP14: A
A15: 8 | S15: Grafik Komunikasi Teknikal | T15: =HLOOKUP(W15,'D2'!$ET$4:$FU$5,2,0) -> 0 | U15: =+'D2'!J$2003 -> 0 | V15: 8 | W15: ='D2'!$BT17 -> GKT | X15: 8 | Y15: Grafik Komunikasi Teknikal | Z15: 3771 | AA15: GKT | AB15: 1 | AC15: Z | AD15: 2205 | AE15: Literature in English | AF15: Z | AH15: 79 | AI15: 0 | AJ15: 79 | AK15: 86 | AL15: C | AM15: -2 | AN15: 70 | AO15: 79 | AT15: 88 | AU15: =+AU14 -> A | AV15: =IF(ISNA(IF(VLOOKUP($B15,'D2'!$H$11:$JZ$500,$AW$6,0)="",-100,VLOOKUP($B15,'D2'!$H$11:$JZ$550,$AW$6,0))),-100,IF(VLOOKUP($B15,'D2'!$H$11:$JZ$550,$AW$6,0)="",-100,VLOOKUP($B15,'D2'!$H$11:$JZ$550,$AW$6,0))) -> -100 | AW15: =IF($G15="","",RIGHT(VLOOKUP($B15,'D2'!$H$11:$JZ$550,$AW$6+1,0),2)) ->  | AX15: =IF(ISNA(IF(VLOOKUP($B15,'D2'!$I$1011:$IK$1550,$AY$6,0)="",-100,VLOOKUP($B15,'D2'!$I$1011:$IK$1550,$AY$6,0))),-100,IF(VLOOKUP($B15,'D2'!$I$1011:$IK$1550,$AY$6,0)="",-100,VLOOKUP($B15,'D2'!$I$1011:$IK$1550,$AY$6,0))) -> -100 | AZ15: =IF(ISNA(IF(VLOOKUP($B15,'D2'!$I$3011:$IK$3550,$AY$6,0)="",-100,VLOOKUP($B15,'D2'!$I$3011:$IK$3550,$AY$6,0))),-100,IF(VLOOKUP($B15,'D2'!$I$3011:$IK$3550,$AY$6,0)="",-100,VLOOKUP($B15,'D2'!$I$3011:$IK$3550,$AY$6,0))) -> -100 | BA15: =IF($G15="","",RIGHT(VLOOKUP($B15,'D2'!$I$3011:$IK$3550,$AY$6+1,0),2)) ->  | BB15: =IF(ISNA(IF(VLOOKUP($B15,'D2'!$I$4011:$IK$4550,$AY$6,0)="",-100,VLOOKUP($B15,'D2'!$I$4011:$IK$4550,$AY$6,0))),-100,IF(VLOOKUP($B15,'D2'!$I$4011:$IK$4550,$AY$6,0)="",-100,VLOOKUP($B15,'D2'!$I$4011:$IK$4550,$AY$6,0))) -> -100 | BC15: =IF($G15="","",RIGHT(VLOOKUP($B15,'D2'!$I$4011:$IK$4550,$AY$6+1,0),2)) ->  | BD15: 0 | BF15: =IF(#REF!="",I15,#REF!) ->  | BI15: =IF(ISNA(IF(VLOOKUP($B15,'D2'!$A$2011:$BQ$2611,$BI$5,0)="",-100,VLOOKUP($B15,'D2'!$A$2011:$BQ$2611,$BI$5,0))),-100,IF(VLOOKUP($B15,'D2'!$A$2011:$BQ$2611,$BI$5,0)="",-100,VLOOKUP($B15,'D2'!$A$2011:$BQ$2611,$BI$5,0))) -> -100 | BJ15: =IF(BI15="","",VLOOKUP($B15,'D2'!$A$2011:$JJ$2550,$BI$5+63,0)) ->  | BK15: =IF(ISNA(IF(VLOOKUP($B15,'D2'!$H$11:$BQ$611,$V$3,0)="",-100,VLOOKUP($B15,'D2'!$H$11:$BQ$611,$V$3,0))),-100,IF(VLOOKUP($B15,'D2'!$H$11:$BQ$611,$V$3,0)="",-100,VLOOKUP($B15,'D2'!$H$11:$BQ$611,$V$3,0))) -> -100 | BL15: =IF(BK15="","",RIGHT(VLOOKUP($B15,'D2'!$H$11:$JJ$550,$V$3+1,0),2)) ->  | BM15: 1 | BO15: 88 | BP15: =+BP14 -> A
A16: 9 | N16: C | O16: =IF(ISNA(VLOOKUP($Y$2,'D2'!$BR$460:$CG$491,10,0)),0,VLOOKUP($Y$2,'D2'!$BR$460:$CG$491,10,0)) -> 0 | P16: =COUNTIF($H$8:$H$550,BN16) -> 0 | Q16: =VLOOKUP(VLOOKUP(VLOOKUP($D$3,$Y$8:$AA$43,3,0),$AC$8:$AD$121,2,0),CA!$B$11:$AT$485,41,0) ->  | R16: =COUNTIF($J$8:$J$357,N16) -> 0 | S16: Chemistry | T16: =HLOOKUP(W16,'D2'!$ET$4:$FU$5,2,0) -> 0 | U16: =+'D2'!K$2003 -> 0 | V16: 9 | W16: ='D2'!$BT18 -> KIM | X16: 9 | Y16: Chemistry | Z16: 4541 | AA16: KIM | AB16: 1 | AC16: KM | AD16: 2215 | AE16: Kesusasteraan Melayu | AF16: KM | AG16: A | AH16: 79 | AI16: 0 | AJ16: 79 | AK16: 83 | AL16: C | AM16: 1 | AN16: 70 | AO16: 79 | AP16: =+Q14+Q12+Q10+Q8+Q5+Q3+1 ->  | AQ16: G | AR16: 50 | AS16: 54 | AT16: 87 | AU16: A | AV16: =IF(ISNA(IF(VLOOKUP($B16,'D2'!$H$11:$JZ$500,$AW$6,0)="",-100,VLOOKUP($B16,'D2'!$H$11:$JZ$550,$AW$6,0))),-100,IF(VLOOKUP($B16,'D2'!$H$11:$JZ$550,$AW$6,0)="",-100,VLOOKUP($B16,'D2'!$H$11:$JZ$550,$AW$6,0))) -> -100 | AW16: =IF($G16="","",RIGHT(VLOOKUP($B16,'D2'!$H$11:$JZ$550,$AW$6+1,0),2)) ->  | AX16: =IF(ISNA(IF(VLOOKUP($B16,'D2'!$I$1011:$IK$1550,$AY$6,0)="",-100,VLOOKUP($B16,'D2'!$I$1011:$IK$1550,$AY$6,0))),-100,IF(VLOOKUP($B16,'D2'!$I$1011:$IK$1550,$AY$6,0)="",-100,VLOOKUP($B16,'D2'!$I$1011:$IK$1550,$AY$6,0))) -> -100 | AZ16: =IF(ISNA(IF(VLOOKUP($B16,'D2'!$I$3011:$IK$3550,$AY$6,0)="",-100,VLOOKUP($B16,'D2'!$I$3011:$IK$3550,$AY$6,0))),-100,IF(VLOOKUP($B16,'D2'!$I$3011:$IK$3550,$AY$6,0)="",-100,VLOOKUP($B16,'D2'!$I$3011:$IK$3550,$AY$6,0))) -> -100 | BA16: =IF($G16="","",RIGHT(VLOOKUP($B16,'D2'!$I$3011:$IK$3550,$AY$6+1,0),2)) ->  | BB16: =IF(ISNA(IF(VLOOKUP($B16,'D2'!$I$4011:$IK$4550,$AY$6,0)="",-100,VLOOKUP($B16,'D2'!$I$4011:$IK$4550,$AY$6,0))),-100,IF(VLOOKUP($B16,'D2'!$I$4011:$IK$4550,$AY$6,0)="",-100,VLOOKUP($B16,'D2'!$I$4011:$IK$4550,$AY$6,0))) -> -100 | BC16: =IF($G16="","",RIGHT(VLOOKUP($B16,'D2'!$I$4011:$IK$4550,$AY$6+1,0),2)) ->  | BD16: 0 | BF16: =IF(#REF!="",I16,#REF!) ->  | BI16: =IF(ISNA(IF(VLOOKUP($B16,'D2'!$A$2011:$BQ$2611,$BI$5,0)="",-100,VLOOKUP($B16,'D2'!$A$2011:$BQ$2611,$BI$5,0))),-100,IF(VLOOKUP($B16,'D2'!$A$2011:$BQ$2611,$BI$5,0)="",-100,VLOOKUP($B16,'D2'!$A$2011:$BQ$2611,$BI$5,0))) -> -100 | BJ16: =IF(BI16="","",VLOOKUP($B16,'D2'!$A$2011:$JJ$2550,$BI$5+63,0)) ->  | BK16: =IF(ISNA(IF(VLOOKUP($B16,'D2'!$H$11:$BQ$611,$V$3,0)="",-100,VLOOKUP($B16,'D2'!$H$11:$BQ$611,$V$3,0))),-100,IF(VLOOKUP($B16,'D2'!$H$11:$BQ$611,$V$3,0)="",-100,VLOOKUP($B16,'D2'!$H$11:$BQ$611,$V$3,0))) -> -100 | BL16: =IF(BK16="","",RIGHT(VLOOKUP($B16,'D2'!$H$11:$JJ$550,$V$3+1,0),2)) ->  | BM16: 1 | BN16: C | BO16: 87 | BP16: A
A17: 10 | S17: Mathematics | T17: =HLOOKUP(W17,'D2'!$ET$4:$FU$5,2,0) -> 0 | U17: =+'D2'!L$2003 -> 0 | V17: 10 | W17: ='D2'!$BT19 -> M3MA | X17: 10 | Y17: Mathematics | Z17: 1449 | AA17: M3MA | AB17: 1 | AC17: GEOMA | AD17: 2280 | AE17: Geografi | AF17: GEOMA | AG17: A | AH17: 79 | AI17: 0 | AJ17: 79 | AK17: 83 | AL17: C | AM17: 1 | AN17: 70 | AO17: 79 | AT17: 86 | AU17: A | AV17: =IF(ISNA(IF(VLOOKUP($B17,'D2'!$H$11:$JZ$500,$AW$6,0)="",-100,VLOOKUP($B17,'D2'!$H$11:$JZ$550,$AW$6,0))),-100,IF(VLOOKUP($B17,'D2'!$H$11:$JZ$550,$AW$6,0)="",-100,VLOOKUP($B17,'D2'!$H$11:$JZ$550,$AW$6,0))) -> -100 | AW17: =IF($G17="","",RIGHT(VLOOKUP($B17,'D2'!$H$11:$JZ$550,$AW$6+1,0),2)) ->  | AX17: =IF(ISNA(IF(VLOOKUP($B17,'D2'!$I$1011:$IK$1550,$AY$6,0)="",-100,VLOOKUP($B17,'D2'!$I$1011:$IK$1550,$AY$6,0))),-100,IF(VLOOKUP($B17,'D2'!$I$1011:$IK$1550,$AY$6,0)="",-100,VLOOKUP($B17,'D2'!$I$1011:$IK$1550,$AY$6,0))) -> -100 | AZ17: =IF(ISNA(IF(VLOOKUP($B17,'D2'!$I$3011:$IK$3550,$AY$6,0)="",-100,VLOOKUP($B17,'D2'!$I$3011:$IK$3550,$AY$6,0))),-100,IF(VLOOKUP($B17,'D2'!$I$3011:$IK$3550,$AY$6,0)="",-100,VLOOKUP($B17,'D2'!$I$3011:$IK$3550,$AY$6,0))) -> -100 | BA17: =IF($G17="","",RIGHT(VLOOKUP($B17,'D2'!$I$3011:$IK$3550,$AY$6+1,0),2)) ->  | BB17: =IF(ISNA(IF(VLOOKUP($B17,'D2'!$I$4011:$IK$4550,$AY$6,0)="",-100,VLOOKUP($B17,'D2'!$I$4011:$IK$4550,$AY$6,0))),-100,IF(VLOOKUP($B17,'D2'!$I$4011:$IK$4550,$AY$6,0)="",-100,VLOOKUP($B17,'D2'!$I$4011:$IK$4550,$AY$6,0))) -> -100 | BC17: =IF($G17="","",RIGHT(VLOOKUP($B17,'D2'!$I$4011:$IK$4550,$AY$6+1,0),2)) ->  | BD17: 0 | BF17: =IF(#REF!="",I17,#REF!) ->  | BI17: =IF(ISNA(IF(VLOOKUP($B17,'D2'!$A$2011:$BQ$2611,$BI$5,0)="",-100,VLOOKUP($B17,'D2'!$A$2011:$BQ$2611,$BI$5,0))),-100,IF(VLOOKUP($B17,'D2'!$A$2011:$BQ$2611,$BI$5,0)="",-100,VLOOKUP($B17,'D2'!$A$2011:$BQ$2611,$BI$5,0))) -> -100 | BJ17: =IF(BI17="","",VLOOKUP($B17,'D2'!$A$2011:$JJ$2550,$BI$5+63,0)) ->  | BK17: =IF(ISNA(IF(VLOOKUP($B17,'D2'!$H$11:$BQ$611,$V$3,0)="",-100,VLOOKUP($B17,'D2'!$H$11:$BQ$611,$V$3,0))),-100,IF(VLOOKUP($B17,'D2'!$H$11:$BQ$611,$V$3,0)="",-100,VLOOKUP($B17,'D2'!$H$11:$BQ$611,$V$3,0))) -> -100 | BL17: =IF(BK17="","",RIGHT(VLOOKUP($B17,'D2'!$H$11:$JJ$550,$V$3+1,0),2)) ->  | BM17: 1 | BO17: 86 | BP17: A
A18: 11 | N18: D | O18: =IF(ISNA(VLOOKUP($Y$2,'D2'!$BR$460:$CG$491,11,0)),0,VLOOKUP($Y$2,'D2'!$BR$460:$CG$491,11,0)) -> 0 | P18: =COUNTIF($H$8:$H$550,BN18) -> 0 | Q18: =VLOOKUP(VLOOKUP(VLOOKUP($D$3,$Y$8:$AA$43,3,0),$AC$8:$AD$121,2,0),CA!$B$11:$AT$485,42,0) ->  | R18: =COUNTIF($J$8:$J$357,N18) -> 0 | S18: Additional Mathematics | T18: =HLOOKUP(W18,'D2'!$ET$4:$FU$5,2,0) -> 0 | U18: =+'D2'!M$2003 -> 0 | V18: 11 | W18: ='D2'!$BT20 -> MT | X18: 11 | Y18: Additional Mathematics | Z18: 3472 | AA18: MT | AB18: 1 | AC18: BAMA | AD18: 2361 | AE18: Bahasa Arab | AF18: BAMA | AG18: A | AH18: 79 | AI18: 0 | AJ18: 79 | AK18: 82 | AL18: C | AM18: 2 | AN18: 70 | AO18: 79 | AP18: =+Q16+Q14+Q12+Q10+Q8+Q5+Q3+1 ->  | AQ18: H | AR18: 45 | AS18: 49 | AT18: 85 | AU18: A | AV18: =IF(ISNA(IF(VLOOKUP($B18,'D2'!$H$11:$JZ$500,$AW$6,0)="",-100,VLOOKUP($B18,'D2'!$H$11:$JZ$550,$AW$6,0))),-100,IF(VLOOKUP($B18,'D2'!$H$11:$JZ$550,$AW$6,0)="",-100,VLOOKUP($B18,'D2'!$H$11:$JZ$550,$AW$6,0))) -> -100 | AW18: =IF($G18="","",RIGHT(VLOOKUP($B18,'D2'!$H$11:$JZ$550,$AW$6+1,0),2)) ->  | AX18: =IF(ISNA(IF(VLOOKUP($B18,'D2'!$I$1011:$IK$1550,$AY$6,0)="",-100,VLOOKUP($B18,'D2'!$I$1011:$IK$1550,$AY$6,0))),-100,IF(VLOOKUP($B18,'D2'!$I$1011:$IK$1550,$AY$6,0)="",-100,VLOOKUP($B18,'D2'!$I$1011:$IK$1550,$AY$6,0))) -> -100 | AZ18: =IF(ISNA(IF(VLOOKUP($B18,'D2'!$I$3011:$IK$3550,$AY$6,0)="",-100,VLOOKUP($B18,'D2'!$I$3011:$IK$3550,$AY$6,0))),-100,IF(VLOOKUP($B18,'D2'!$I$3011:$IK$3550,$AY$6,0)="",-100,VLOOKUP($B18,'D2'!$I$3011:$IK$3550,$AY$6,0))) -> -100 | BA18: =IF($G18="","",RIGHT(VLOOKUP($B18,'D2'!$I$3011:$IK$3550,$AY$6+1,0),2)) ->  | BB18: =IF(ISNA(IF(VLOOKUP($B18,'D2'!$I$4011:$IK$4550,$AY$6,0)="",-100,VLOOKUP($B18,'D2'!$I$4011:$IK$4550,$AY$6,0))),-100,IF(VLOOKUP($B18,'D2'!$I$4011:$IK$4550,$AY$6,0)="",-100,VLOOKUP($B18,'D2'!$I$4011:$IK$4550,$AY$6,0))) -> -100 | BC18: =IF($G18="","",RIGHT(VLOOKUP($B18,'D2'!$I$4011:$IK$4550,$AY$6+1,0),2)) ->  | BD18: 0 | BF18: =IF(#REF!="",I18,#REF!) ->  | BI18: =IF(ISNA(IF(VLOOKUP($B18,'D2'!$A$2011:$BQ$2611,$BI$5,0)="",-100,VLOOKUP($B18,'D2'!$A$2011:$BQ$2611,$BI$5,0))),-100,IF(VLOOKUP($B18,'D2'!$A$2011:$BQ$2611,$BI$5,0)="",-100,VLOOKUP($B18,'D2'!$A$2011:$BQ$2611,$BI$5,0))) -> -100 | BJ18: =IF(BI18="","",VLOOKUP($B18,'D2'!$A$2011:$JJ$2550,$BI$5+63,0)) ->  | BK18: =IF(ISNA(IF(VLOOKUP($B18,'D2'!$H$11:$BQ$611,$V$3,0)="",-100,VLOOKUP($B18,'D2'!$H$11:$BQ$611,$V$3,0))),-100,IF(VLOOKUP($B18,'D2'!$H$11:$BQ$611,$V$3,0)="",-100,VLOOKUP($B18,'D2'!$H$11:$BQ$611,$V$3,0))) -> -100 | BL18: =IF(BK18="","",RIGHT(VLOOKUP($B18,'D2'!$H$11:$JJ$550,$V$3+1,0),2)) ->  | BM18: 1 | BN18: D | BO18: 85 | BP18: A
A19: 12 | S19: Prinsip Perakaunan | T19: =HLOOKUP(W19,'D2'!$ET$4:$FU$5,2,0) -> 0 | U19: =+'D2'!N$2003 -> 0 | V19: 12 | W19: ='D2'!$BT21 -> PA | X19: 12 | Y19: Prinsip Perakaunan | Z19: 3756 | AA19: PA | AB19: 1 | AC19: PSVMA | AD19: 2611 | AE19: Pendidikan Seni Visual | AF19: PSVMA | AG19: A | AH19: 79 | AI19: 0 | AJ19: 79 | AK19: 80 | AL19: C | AM19: 4 | AN19: 70 | AO19: 79 | AT19: 84 | AU19: A | AV19: =IF(ISNA(IF(VLOOKUP($B19,'D2'!$H$11:$JZ$500,$AW$6,0)="",-100,VLOOKUP($B19,'D2'!$H$11:$JZ$550,$AW$6,0))),-100,IF(VLOOKUP($B19,'D2'!$H$11:$JZ$550,$AW$6,0)="",-100,VLOOKUP($B19,'D2'!$H$11:$JZ$550,$AW$6,0))) -> -100 | AW19: =IF($G19="","",RIGHT(VLOOKUP($B19,'D2'!$H$11:$JZ$550,$AW$6+1,0),2)) ->  | AX19: =IF(ISNA(IF(VLOOKUP($B19,'D2'!$I$1011:$IK$1550,$AY$6,0)="",-100,VLOOKUP($B19,'D2'!$I$1011:$IK$1550,$AY$6,0))),-100,IF(VLOOKUP($B19,'D2'!$I$1011:$IK$1550,$AY$6,0)="",-100,VLOOKUP($B19,'D2'!$I$1011:$IK$1550,$AY$6,0))) -> -100 | AZ19: =IF(ISNA(IF(VLOOKUP($B19,'D2'!$I$3011:$IK$3550,$AY$6,0)="",-100,VLOOKUP($B19,'D2'!$I$3011:$IK$3550,$AY$6,0))),-100,IF(VLOOKUP($B19,'D2'!$I$3011:$IK$3550,$AY$6,0)="",-100,VLOOKUP($B19,'D2'!$I$3011:$IK$3550,$AY$6,0))) -> -100 | BA19: =IF($G19="","",RIGHT(VLOOKUP($B19,'D2'!$I$3011:$IK$3550,$AY$6+1,0),2)) ->  | BB19: =IF(ISNA(IF(VLOOKUP($B19,'D2'!$I$4011:$IK$4550,$AY$6,0)="",-100,VLOOKUP($B19,'D2'!$I$4011:$IK$4550,$AY$6,0))),-100,IF(VLOOKUP($B19,'D2'!$I$4011:$IK$4550,$AY$6,0)="",-100,VLOOKUP($B19,'D2'!$I$4011:$IK$4550,$AY$6,0))) -> -100 | BC19: =IF($G19="","",RIGHT(VLOOKUP($B19,'D2'!$I$4011:$IK$4550,$AY$6+1,0),2)) ->  | BD19: 0 | BF19: =IF(#REF!="",I19,#REF!) ->  | BI19: =IF(ISNA(IF(VLOOKUP($B19,'D2'!$A$2011:$BQ$2611,$BI$5,0)="",-100,VLOOKUP($B19,'D2'!$A$2011:$BQ$2611,$BI$5,0))),-100,IF(VLOOKUP($B19,'D2'!$A$2011:$BQ$2611,$BI$5,0)="",-100,VLOOKUP($B19,'D2'!$A$2011:$BQ$2611,$BI$5,0))) -> -100 | BJ19: =IF(BI19="","",VLOOKUP($B19,'D2'!$A$2011:$JJ$2550,$BI$5+63,0)) ->  | BK19: =IF(ISNA(IF(VLOOKUP($B19,'D2'!$H$11:$BQ$611,$V$3,0)="",-100,VLOOKUP($B19,'D2'!$H$11:$BQ$611,$V$3,0))),-100,IF(VLOOKUP($B19,'D2'!$H$11:$BQ$611,$V$3,0)="",-100,VLOOKUP($B19,'D2'!$H$11:$BQ$611,$V$3,0))) -> -100 | BL19: =IF(BK19="","",RIGHT(VLOOKUP($B19,'D2'!$H$11:$JJ$550,$V$3+1,0),2)) ->  | BM19: 1 | BO19: 84 | BP19: A
A20: 13 | N20: E | O20: =IF(ISNA(VLOOKUP($Y$2,'D2'!$BR$460:$CG$491,12,0)),0,VLOOKUP($Y$2,'D2'!$BR$460:$CG$491,12,0)) -> 0 | P20: =COUNTIF($H$8:$H$550,BN20) -> 0 | Q20: =VLOOKUP(VLOOKUP(VLOOKUP($D$3,$Y$8:$AA$43,3,0),$AC$8:$AD$121,2,0),CA!$B$11:$AT$485,43,0) ->  | R20: =COUNTIF($J$8:$J$357,N20) -> 0 | S20: Pendidikan Islam | T20: =HLOOKUP(W20,'D2'!$ET$4:$FU$5,2,0) -> 0 | U20: =+'D2'!O$2003 -> 0 | V20: 13 | W20: ='D2'!$BT22 -> PIMA | X20: 13 | Y20: Pendidikan Islam | Z20: 1223 | AA20: PIMA | AB20: 1 | AC20: Z | AD20: 2621 | AE20: Pendidikan Muzik | AF20: Z | AH20: 79 | AI20: 0 | AJ20: 79 | AK20: 79 | AL20: C | AM20: 5 | AN20: 70 | AO20: 79 | AP20: =+Q18+Q16+Q14+Q12+Q10+Q8+Q5+Q3+1 ->  | AQ20: I | AR20: 40 | AS20: 44 | AT20: 83 | AU20: A | AV20: =IF(ISNA(IF(VLOOKUP($B20,'D2'!$H$11:$JZ$500,$AW$6,0)="",-100,VLOOKUP($B20,'D2'!$H$11:$JZ$550,$AW$6,0))),-100,IF(VLOOKUP($B20,'D2'!$H$11:$JZ$550,$AW$6,0)="",-100,VLOOKUP($B20,'D2'!$H$11:$JZ$550,$AW$6,0))) -> -100 | AW20: =IF($G20="","",RIGHT(VLOOKUP($B20,'D2'!$H$11:$JZ$550,$AW$6+1,0),2)) ->  | AX20: =IF(ISNA(IF(VLOOKUP($B20,'D2'!$I$1011:$IK$1550,$AY$6,0)="",-100,VLOOKUP($B20,'D2'!$I$1011:$IK$1550,$AY$6,0))),-100,IF(VLOOKUP($B20,'D2'!$I$1011:$IK$1550,$AY$6,0)="",-100,VLOOKUP($B20,'D2'!$I$1011:$IK$1550,$AY$6,0))) -> -100 | AZ20: =IF(ISNA(IF(VLOOKUP($B20,'D2'!$I$3011:$IK$3550,$AY$6,0)="",-100,VLOOKUP($B20,'D2'!$I$3011:$IK$3550,$AY$6,0))),-100,IF(VLOOKUP($B20,'D2'!$I$3011:$IK$3550,$AY$6,0)="",-100,VLOOKUP($B20,'D2'!$I$3011:$IK$3550,$AY$6,0))) -> -100 | BA20: =IF($G20="","",RIGHT(VLOOKUP($B20,'D2'!$I$3011:$IK$3550,$AY$6+1,0),2)) ->  | BB20: =IF(ISNA(IF(VLOOKUP($B20,'D2'!$I$4011:$IK$4550,$AY$6,0)="",-100,VLOOKUP($B20,'D2'!$I$4011:$IK$4550,$AY$6,0))),-100,IF(VLOOKUP($B20,'D2'!$I$4011:$IK$4550,$AY$6,0)="",-100,VLOOKUP($B20,'D2'!$I$4011:$IK$4550,$AY$6,0))) -> -100 | BC20: =IF($G20="","",RIGHT(VLOOKUP($B20,'D2'!$I$4011:$IK$4550,$AY$6+1,0),2)) ->  | BD20: 0 | BF20: =IF(#REF!="",I20,#REF!) ->  | BI20: =IF(ISNA(IF(VLOOKUP($B20,'D2'!$A$2011:$BQ$2611,$BI$5,0)="",-100,VLOOKUP($B20,'D2'!$A$2011:$BQ$2611,$BI$5,0))),-100,IF(VLOOKUP($B20,'D2'!$A$2011:$BQ$2611,$BI$5,0)="",-100,VLOOKUP($B20,'D2'!$A$2011:$BQ$2611,$BI$5,0))) -> -100 | BJ20: =IF(BI20="","",VLOOKUP($B20,'D2'!$A$2011:$JJ$2550,$BI$5+63,0)) ->  | BK20: =IF(ISNA(IF(VLOOKUP($B20,'D2'!$H$11:$BQ$611,$V$3,0)="",-100,VLOOKUP($B20,'D2'!$H$11:$BQ$611,$V$3,0))),-100,IF(VLOOKUP($B20,'D2'!$H$11:$BQ$611,$V$3,0)="",-100,VLOOKUP($B20,'D2'!$H$11:$BQ$611,$V$3,0))) -> -100 | BL20: =IF(BK20="","",RIGHT(VLOOKUP($B20,'D2'!$H$11:$JJ$550,$V$3+1,0),2)) ->  | BM20: 1 | BN20: E | BO20: 83 | BP20: A
A21: 14 | S21: Pendidikan Moral | T21: =HLOOKUP(W21,'D2'!$ET$4:$FU$5,2,0) -> 0 | U21: =+'D2'!P$2003 -> 0 | V21: 14 | W21: ='D2'!$BT23 -> PMMA | X21: 14 | Y21: Pendidikan Moral | Z21: 1225 | AA21: PMMA | AB21: 1 | AC21: MT | AD21: 3472 | AE21: Additional Mathematics | AF21: MT | AG21: A | AH21: 78 | AI21: 0 | AJ21: 78 | AK21: 78 | AL21: C | AM21: 6 | AN21: 70 | AO21: 79 | AT21: 82 | AU21: A | BD21: 0 | BF21: =IF(#REF!="",I21,#REF!) ->  | BI21: =IF(ISNA(IF(VLOOKUP($B21,'D2'!$A$2011:$BQ$2611,$BI$5,0)="",-100,VLOOKUP($B21,'D2'!$A$2011:$BQ$2611,$BI$5,0))),-100,IF(VLOOKUP($B21,'D2'!$A$2011:$BQ$2611,$BI$5,0)="",-100,VLOOKUP($B21,'D2'!$A$2011:$BQ$2611,$BI$5,0))) -> -100 | BJ21: =IF(BI21="","",VLOOKUP($B21,'D2'!$A$2011:$JJ$2550,$BI$5+63,0)) ->  | BK21: =IF(ISNA(IF(VLOOKUP($B21,'D2'!$H$11:$BQ$611,$V$3,0)="",-100,VLOOKUP($B21,'D2'!$H$11:$BQ$611,$V$3,0))),-100,IF(VLOOKUP($B21,'D2'!$H$11:$BQ$611,$V$3,0)="",-100,VLOOKUP($B21,'D2'!$H$11:$BQ$611,$V$3,0))) -> -100 | BL21: =IF(BK21="","",RIGHT(VLOOKUP($B21,'D2'!$H$11:$JJ$550,$V$3+1,0),2)) ->  | BM21: 1 | BO21: 82 | BP21: A
A22: 15 | N22: G | O22: =IF(ISNA(VLOOKUP($Y$2,'D2'!$BR$460:$CG$491,13,0)),0,VLOOKUP($Y$2,'D2'!$BR$460:$CG$491,13,0)) -> 0 | P22: =COUNTIF($H$8:$H$550,BN22) -> 0 | Q22: =VLOOKUP(VLOOKUP(VLOOKUP($D$3,$Y$8:$AA$43,3,0),$AC$8:$AD$121,2,0),CA!$B$11:$AT$485,44,0) ->  | R22: =COUNTIF($J$8:$J$357,N22) -> 0 | S22: Pendidikan Seni Visual | T22: =HLOOKUP(W22,'D2'!$ET$4:$FU$5,2,0) -> 0 | U22: =+'D2'!Q$2003 -> 0 | V22: 15 | W22: ='D2'!$BT24 -> PSVMA | X22: 15 | Y22: Pendidikan Seni Visual | Z22: 2611 | AA22: PSVMA | AB22: 1 | AC22: PAT | AD22: 3529 | AE22: Pengajian Agroteknologi | AF22: PAT | AG22: A | AH22: 76 | AI22: 0 | AJ22: 76 | AK22: 76 | AL22: C | AM22: 8 | AN22: 70 | AO22: 79 | AP22: =+Q20+Q18+Q16+Q14+Q12+Q10+Q8+Q5+Q3+1 ->  | AQ22: J | AR22: 1 | AS22: 39 | AT22: 81 | AU22: A | BD22: 0 | BF22: =IF(#REF!="",I22,#REF!) ->  | BI22: =IF(ISNA(IF(VLOOKUP($B22,'D2'!$A$2011:$BQ$2611,$BI$5,0)="",-100,VLOOKUP($B22,'D2'!$A$2011:$BQ$2611,$BI$5,0))),-100,IF(VLOOKUP($B22,'D2'!$A$2011:$BQ$2611,$BI$5,0)="",-100,VLOOKUP($B22,'D2'!$A$2011:$BQ$2611,$BI$5,0))) -> -100 | BJ22: =IF(BI22="","",VLOOKUP($B22,'D2'!$A$2011:$JJ$2550,$BI$5+63,0)) ->  | BK22: =IF(ISNA(IF(VLOOKUP($B22,'D2'!$H$11:$BQ$611,$V$3,0)="",-100,VLOOKUP($B22,'D2'!$H$11:$BQ$611,$V$3,0))),-100,IF(VLOOKUP($B22,'D2'!$H$11:$BQ$611,$V$3,0)="",-100,VLOOKUP($B22,'D2'!$H$11:$BQ$611,$V$3,0))) -> -100 | BL22: =IF(BK22="","",RIGHT(VLOOKUP($B22,'D2'!$H$11:$JJ$550,$V$3+1,0),2)) ->  | BM22: 1 | BN22: G | BO22: 81 | BP22: A
A23: 16 | S23: Reka Cipta | T23: =HLOOKUP(W23,'D2'!$ET$4:$FU$5,2,0) -> 0 | U23: =+'D2'!R$2003 -> 0 | V23: 16 | W23: ='D2'!$BT25 -> RC | X23: 16 | Y23: Reka Cipta | Z23: 3763 | AA23: RC | AB23: 1 | AC23: PERT | AD23: 3729 | AE23: Pertanian | AF23: PERT | AG23: A | AH23: 75 | AI23: 0 | AJ23: 75 | AK23: 75 | AL23: C | AM23: 9 | AN23: 70 | AO23: 79 | AT23: 80 | AU23: A | BD23: 0 | BF23: =IF(#REF!="",I23,#REF!) ->  | BI23: =IF(ISNA(IF(VLOOKUP($B23,'D2'!$A$2011:$BQ$2611,$BI$5,0)="",-100,VLOOKUP($B23,'D2'!$A$2011:$BQ$2611,$BI$5,0))),-100,IF(VLOOKUP($B23,'D2'!$A$2011:$BQ$2611,$BI$5,0)="",-100,VLOOKUP($B23,'D2'!$A$2011:$BQ$2611,$BI$5,0))) -> -100 | BJ23: =IF(BI23="","",VLOOKUP($B23,'D2'!$A$2011:$JJ$2550,$BI$5+63,0)) ->  | BK23: =IF(ISNA(IF(VLOOKUP($B23,'D2'!$H$11:$BQ$611,$V$3,0)="",-100,VLOOKUP($B23,'D2'!$H$11:$BQ$611,$V$3,0))),-100,IF(VLOOKUP($B23,'D2'!$H$11:$BQ$611,$V$3,0)="",-100,VLOOKUP($B23,'D2'!$H$11:$BQ$611,$V$3,0))) -> -100 | BL23: =IF(BK23="","",RIGHT(VLOOKUP($B23,'D2'!$H$11:$JJ$550,$V$3+1,0),2)) ->  | BM23: 1 | BO23: 80 | BP23: A
A24: 17 | N24: TH | O24: =COUNTIF($F$8:$F$550,N24) -> 0 | Q24: =COUNTIF($F$8:$F$357,P24) -> 0 | R24: =COUNTIF($F$8:$F$357,Q24) -> 0 | S24: Sejarah | T24: =HLOOKUP(W24,'D2'!$ET$4:$FU$5,2,0) -> 0 | U24: =+'D2'!S$2003 -> 0 | V24: 17 | W24: ='D2'!$BT26 -> SEJMA | X24: 17 | Y24: Sejarah | Z24: 1249 | AA24: SEJMA | AB24: 1 | AC24: PKU | AD24: 3754 | AE24: Pengajian Keusahawanan | AF24: PKU | AG24: A | AH24: 75 | AI24: 0 | AJ24: 75 | AK24: 75 | AL24: C | AM24: 9 | AN24: 70 | AO24: 79 | AP24: =+Q22+Q20+Q18+Q16+Q14+Q12+Q10+Q8+Q5+Q3+1 ->  | AQ24: K | AR24: 0 | AS24: 39 | AT24: 79 | AU24: A- | BD24: 0 | BF24: =IF(#REF!="",I24,#REF!) ->  | BI24: =IF(ISNA(IF(VLOOKUP($B24,'D2'!$A$2011:$BQ$2611,$BI$5,0)="",-100,VLOOKUP($B24,'D2'!$A$2011:$BQ$2611,$BI$5,0))),-100,IF(VLOOKUP($B24,'D2'!$A$2011:$BQ$2611,$BI$5,0)="",-100,VLOOKUP($B24,'D2'!$A$2011:$BQ$2611,$BI$5,0))) -> -100 | BJ24: =IF(BI24="","",VLOOKUP($B24,'D2'!$A$2011:$JJ$2550,$BI$5+63,0)) ->  | BK24: =IF(ISNA(IF(VLOOKUP($B24,'D2'!$H$11:$BQ$611,$V$3,0)="",-100,VLOOKUP($B24,'D2'!$H$11:$BQ$611,$V$3,0))),-100,IF(VLOOKUP($B24,'D2'!$H$11:$BQ$611,$V$3,0)="",-100,VLOOKUP($B24,'D2'!$H$11:$BQ$611,$V$3,0))) -> -100 | BL24: =IF(BK24="","",RIGHT(VLOOKUP($B24,'D2'!$H$11:$JJ$550,$V$3+1,0),2)) ->  | BM24: 1 | BO24: 79 | BP24: A-
A25: 18 | S25: Science | T25: =HLOOKUP(W25,'D2'!$ET$4:$FU$5,2,0) -> 0 | U25: =+'D2'!T$2003 -> 0 | V25: 18 | W25: ='D2'!$BT27 -> SNMA | X25: 18 | Y25: Science | Z25: 1511 | AA25: SNMA | AB25: 1 | AC25: PA | AD25: 3756 | AE25: Prinsip Perakaunan | AF25: PA | AG25: A | AH25: 70 | AI25: 0 | AJ25: 70 | AK25: 70 | AL25: C | AM25: 11 | AN25: 70 | AO25: 79 | AT25: 78 | AU25: =+AU24 -> A- | BD25: 0 | BF25: =IF(#REF!="",I25,#REF!) ->  | BI25: =IF(ISNA(IF(VLOOKUP($B25,'D2'!$A$2011:$BQ$2611,$BI$5,0)="",-100,VLOOKUP($B25,'D2'!$A$2011:$BQ$2611,$BI$5,0))),-100,IF(VLOOKUP($B25,'D2'!$A$2011:$BQ$2611,$BI$5,0)="",-100,VLOOKUP($B25,'D2'!$A$2011:$BQ$2611,$BI$5,0))) -> -100 | BJ25: =IF(BI25="","",VLOOKUP($B25,'D2'!$A$2011:$JJ$2550,$BI$5+63,0)) ->  | BK25: =IF(ISNA(IF(VLOOKUP($B25,'D2'!$H$11:$BQ$611,$V$3,0)="",-100,VLOOKUP($B25,'D2'!$H$11:$BQ$611,$V$3,0))),-100,IF(VLOOKUP($B25,'D2'!$H$11:$BQ$611,$V$3,0)="",-100,VLOOKUP($B25,'D2'!$H$11:$BQ$611,$V$3,0))) -> -100 | BL25: =IF(BK25="","",RIGHT(VLOOKUP($B25,'D2'!$H$11:$JJ$550,$V$3+1,0),2)) ->  | BM25: 1 | BO25: 78 | BP25: =+BP24 -> A-
A26: 19 | N26: JUMLAH | O26: =SUM(O3:O25) -> 0 | P26: =SUM(P3:P25) -> 0 | Q26: =SUM(Q3:Q25) ->  | R26: =SUM(R3:R25) -> 0 | S26: Sains Rumah Tangga | T26: =HLOOKUP(W26,'D2'!$ET$4:$FU$5,2,0) -> 0 | U26: =+'D2'!U$2003 -> 0 | V26: 19 | W26: ='D2'!$BT28 -> SNRT | X26: 19 | Y26: Sains Rumah Tangga | Z26: 3769 | AA26: SNRT | AB26: 1 | AC26: LK | AD26: 3759 | AE26: Lukisan Kejuruteraan | AF26: LK | AG26: A | AH26: 70 | AI26: 0 | AJ26: 70 | AK26: 70 | AL26: C | AM26: 11 | AN26: 70 | AO26: 79 | AP26: =+Q24+Q22+Q20+Q18+Q16+Q14+Q12+Q10+Q8+Q5+1 ->  | AT26: 77 | AU26: =+AU25 -> A- | BD26: 0 | BF26: =IF(#REF!="",I26,#REF!) ->  | BI26: =IF(ISNA(IF(VLOOKUP($B26,'D2'!$A$2011:$BQ$2611,$BI$5,0)="",-100,VLOOKUP($B26,'D2'!$A$2011:$BQ$2611,$BI$5,0))),-100,IF(VLOOKUP($B26,'D2'!$A$2011:$BQ$2611,$BI$5,0)="",-100,VLOOKUP($B26,'D2'!$A$2011:$BQ$2611,$BI$5,0))) -> -100 | BJ26: =IF(BI26="","",VLOOKUP($B26,'D2'!$A$2011:$JJ$2550,$BI$5+63,0)) ->  | BK26: =IF(ISNA(IF(VLOOKUP($B26,'D2'!$H$11:$BQ$611,$V$3,0)="",-100,VLOOKUP($B26,'D2'!$H$11:$BQ$611,$V$3,0))),-100,IF(VLOOKUP($B26,'D2'!$H$11:$BQ$611,$V$3,0)="",-100,VLOOKUP($B26,'D2'!$H$11:$BQ$611,$V$3,0))) -> -100 | BL26: =IF(BK26="","",RIGHT(VLOOKUP($B26,'D2'!$H$11:$JJ$550,$V$3+1,0),2)) ->  | BM26: 1 | BO26: 77 | BP26: =+BP25 -> A-
A27: 20 | S27: Seni Reka Tanda | T27: =HLOOKUP(W27,'D2'!$ET$4:$FU$5,2,0) -> 0 | U27: =+'D2'!V$2003 -> 0 | V27: 20 | W27: ='D2'!$BT29 -> SRT | X27: =IF(Y27="",X26,X26+1) -> 20 | Y27: Seni Reka Tanda | Z27: 7401 | AA27: SRT | AB27: 1 | AC27: PKM | AD27: 3760 | AE27: Pengajian Kejuruteraan Mekanikal | AF27: PKM | AG27: A | AH27: 70 | AI27: 0 | AJ27: 70 | AK27: 70 | AL27: C | AM27: 11 | AN27: 70 | AO27: 79 | AT27: 76 | AU27: =+AU26 -> A- | BD27: 0 | BF27: =IF(#REF!="",I27,#REF!) ->  | BI27: =IF(ISNA(IF(VLOOKUP($B27,'D2'!$A$2011:$BQ$2611,$BI$5,0)="",-100,VLOOKUP($B27,'D2'!$A$2011:$BQ$2611,$BI$5,0))),-100,IF(VLOOKUP($B27,'D2'!$A$2011:$BQ$2611,$BI$5,0)="",-100,VLOOKUP($B27,'D2'!$A$2011:$BQ$2611,$BI$5,0))) -> -100 | BJ27: =IF(BI27="","",VLOOKUP($B27,'D2'!$A$2011:$JJ$2550,$BI$5+63,0)) ->  | BK27: =IF(ISNA(IF(VLOOKUP($B27,'D2'!$H$11:$BQ$611,$V$3,0)="",-100,VLOOKUP($B27,'D2'!$H$11:$BQ$611,$V$3,0))),-100,IF(VLOOKUP($B27,'D2'!$H$11:$BQ$611,$V$3,0)="",-100,VLOOKUP($B27,'D2'!$H$11:$BQ$611,$V$3,0))) -> -100 | BL27: =IF(BK27="","",RIGHT(VLOOKUP($B27,'D2'!$H$11:$JJ$550,$V$3+1,0),2)) ->  | BM27: 1 | BO27: 76 | BP27: =+BP26 -> A-
A28: 21 | S28: Tasawwur Islam | T28: =HLOOKUP(W28,'D2'!$ET$4:$FU$5,2,0) -> 0 | U28: =+'D2'!W$2003 -> 0 | V28: 21 | W28: ='D2'!$BT30 -> TWI | X28: =IF(Y28="",X27,X27+1) -> 21 | Y28: Tasawwur Islam | Z28: 5226 | AA28: TWI | AB28: 1 | AC28: PKA | AD28: 3761 | AE28: Pengajian Kejuruteraan Awam | AF28: PKA | AG28: A | AH28: 70 | AI28: 0 | AJ28: 70 | AK28: 70 | AL28: C | AM28: 11 | AN28: 70 | AO28: 79 | AT28: 75 | AU28: =+AU27 -> A- | BD28: 0 | BF28: =IF(#REF!="",I28,#REF!) ->  | BI28: =IF(ISNA(IF(VLOOKUP($B28,'D2'!$A$2011:$BQ$2611,$BI$5,0)="",-100,VLOOKUP($B28,'D2'!$A$2011:$BQ$2611,$BI$5,0))),-100,IF(VLOOKUP($B28,'D2'!$A$2011:$BQ$2611,$BI$5,0)="",-100,VLOOKUP($B28,'D2'!$A$2011:$BQ$2611,$BI$5,0))) -> -100 | BJ28: =IF(BI28="","",VLOOKUP($B28,'D2'!$A$2011:$JJ$2550,$BI$5+63,0)) ->  | BK28: =IF(ISNA(IF(VLOOKUP($B28,'D2'!$H$11:$BQ$611,$V$3,0)="",-100,VLOOKUP($B28,'D2'!$H$11:$BQ$611,$V$3,0))),-100,IF(VLOOKUP($B28,'D2'!$H$11:$BQ$611,$V$3,0)="",-100,VLOOKUP($B28,'D2'!$H$11:$BQ$611,$V$3,0))) -> -100 | BL28: =IF(BK28="","",RIGHT(VLOOKUP($B28,'D2'!$H$11:$JJ$550,$V$3+1,0),2)) ->  | BM28: 1 | BO28: 75 | BP28: =+BP27 -> A-
A29: 22 | N29: MATA PELAJARAN | P29: =28-COUNTIF($AA$8:$AA$35,"") -> 21 | T29: =HLOOKUP(W29,'D2'!$ET$4:$FU$5,2,0) -> 0 | U29: =+'D2'!X$2003 -> 0 | V29: 22 | W29: ='D2'!$BT31 ->  | X29: 21 | AB29: 1 | AC29: PKE | AD29: 3762 | AE29: Pengajian Kejuruteraan Elektrik & Elektronik | AF29: PKE | AG29: A | AH29: 70 | AI29: 0 | AJ29: 70 | AK29: 70 | AL29: C | AM29: 12 | AN29: 70 | AO29: 79 | AT29: 74 | AU29: =+AU28 -> A- | BD29: 0 | BF29: =IF(#REF!="",I29,#REF!) ->  | BI29: =IF(ISNA(IF(VLOOKUP($B29,'D2'!$A$2011:$BQ$2611,$BI$5,0)="",-100,VLOOKUP($B29,'D2'!$A$2011:$BQ$2611,$BI$5,0))),-100,IF(VLOOKUP($B29,'D2'!$A$2011:$BQ$2611,$BI$5,0)="",-100,VLOOKUP($B29,'D2'!$A$2011:$BQ$2611,$BI$5,0))) -> -100 | BJ29: =IF(BI29="","",VLOOKUP($B29,'D2'!$A$2011:$JJ$2550,$BI$5+63,0)) ->  | BK29: =IF(ISNA(IF(VLOOKUP($B29,'D2'!$H$11:$BQ$611,$V$3,0)="",-100,VLOOKUP($B29,'D2'!$H$11:$BQ$611,$V$3,0))),-100,IF(VLOOKUP($B29,'D2'!$H$11:$BQ$611,$V$3,0)="",-100,VLOOKUP($B29,'D2'!$H$11:$BQ$611,$V$3,0))) -> -100 | BL29: =IF(BK29="","",RIGHT(VLOOKUP($B29,'D2'!$H$11:$JJ$550,$V$3+1,0),2)) ->  | BM29: 1 | BO29: 74 | BP29: =+BP28 -> A-
A30: 23 | T30: =HLOOKUP(W30,'D2'!$ET$4:$FU$5,2,0) -> 0 | U30: =+'D2'!Y$2003 -> 0 | V30: 23 | W30: ='D2'!$BT32 ->  | X30: 21 | AB30: 1 | AC30: RC | AD30: 3763 | AE30: Reka Cipta | AF30: RC | AG30: A | AH30: 70 | AI30: 0 | AJ30: 70 | AK30: 70 | AL30: C | AM30: 12 | AN30: 70 | AO30: 79 | AT30: 73 | AU30: A- | BD30: 0 | BF30: =IF(#REF!="",I30,#REF!) ->  | BI30: =IF(ISNA(IF(VLOOKUP($B30,'D2'!$A$2011:$BQ$2611,$BI$5,0)="",-100,VLOOKUP($B30,'D2'!$A$2011:$BQ$2611,$BI$5,0))),-100,IF(VLOOKUP($B30,'D2'!$A$2011:$BQ$2611,$BI$5,0)="",-100,VLOOKUP($B30,'D2'!$A$2011:$BQ$2611,$BI$5,0))) -> -100 | BJ30: =IF(BI30="","",VLOOKUP($B30,'D2'!$A$2011:$JJ$2550,$BI$5+63,0)) ->  | BK30: =IF(ISNA(IF(VLOOKUP($B30,'D2'!$H$11:$BQ$611,$V$3,0)="",-100,VLOOKUP($B30,'D2'!$H$11:$BQ$611,$V$3,0))),-100,IF(VLOOKUP($B30,'D2'!$H$11:$BQ$611,$V$3,0)="",-100,VLOOKUP($B30,'D2'!$H$11:$BQ$611,$V$3,0))) -> -100 | BL30: =IF(BK30="","",RIGHT(VLOOKUP($B30,'D2'!$H$11:$JJ$550,$V$3+1,0),2)) ->  | BM30: 1 | BO30: 73 | BP30: A-
A31: 24 | N31: ETR | P31: =SUM('D2'!$ET$5:$FU$5) -> 0 | T31: =HLOOKUP(W31,'D2'!$ET$4:$FU$5,2,0) -> 0 | U31: =+'D2'!Z$2003 -> 0 | V31: 24 | W31: ='D2'!$BT33 ->  | X31: 21 | AB31: 1 | AC31: PNG | AD31: 3766 | AE31: Perniagaan | AF31: PNG | AG31: A | AH31: 70 | AI31: 0 | AJ31: 70 | AK31: 70 | AL31: C | AM31: 13 | AN31: 70 | AO31: 79 | AT31: 72 | AU31: A- | BD31: 0 | BF31: =IF(#REF!="",I31,#REF!) ->  | BI31: =IF(ISNA(IF(VLOOKUP($B31,'D2'!$A$2011:$BQ$2611,$BI$5,0)="",-100,VLOOKUP($B31,'D2'!$A$2011:$BQ$2611,$BI$5,0))),-100,IF(VLOOKUP($B31,'D2'!$A$2011:$BQ$2611,$BI$5,0)="",-100,VLOOKUP($B31,'D2'!$A$2011:$BQ$2611,$BI$5,0))) -> -100 | BJ31: =IF(BI31="","",VLOOKUP($B31,'D2'!$A$2011:$JJ$2550,$BI$5+63,0)) ->  | BK31: =IF(ISNA(IF(VLOOKUP($B31,'D2'!$H$11:$BQ$611,$V$3,0)="",-100,VLOOKUP($B31,'D2'!$H$11:$BQ$611,$V$3,0))),-100,IF(VLOOKUP($B31,'D2'!$H$11:$BQ$611,$V$3,0)="",-100,VLOOKUP($B31,'D2'!$H$11:$BQ$611,$V$3,0))) -> -100 | BL31: =IF(BK31="","",RIGHT(VLOOKUP($B31,'D2'!$H$11:$JJ$550,$V$3+1,0),2)) ->  | BM31: 1 | BO31: 72 | BP31: A-
A32: 25 | T32: =HLOOKUP(W32,'D2'!$ET$4:$FU$5,2,0) -> 0 | U32: =+'D2'!AA$2003 -> 0 | V32: 25 | W32: ='D2'!$BT34 ->  | X32: 21 | AB32: 1 | AC32: ECO | AD32: 3767 | AE32: Ekonomi | AF32: ECO | AG32: A | AI32: 0 | AL32: K | AT32: 71 | AU32: A- | BD32: 0 | BF32: =IF(#REF!="",I32,#REF!) ->  | BI32: =IF(ISNA(IF(VLOOKUP($B32,'D2'!$A$2011:$BQ$2611,$BI$5,0)="",-100,VLOOKUP($B32,'D2'!$A$2011:$BQ$2611,$BI$5,0))),-100,IF(VLOOKUP($B32,'D2'!$A$2011:$BQ$2611,$BI$5,0)="",-100,VLOOKUP($B32,'D2'!$A$2011:$BQ$2611,$BI$5,0))) -> -100 | BJ32: =IF(BI32="","",VLOOKUP($B32,'D2'!$A$2011:$JJ$2550,$BI$5+63,0)) ->  | BK32: =IF(ISNA(IF(VLOOKUP($B32,'D2'!$H$11:$BQ$611,$V$3,0)="",-100,VLOOKUP($B32,'D2'!$H$11:$BQ$611,$V$3,0))),-100,IF(VLOOKUP($B32,'D2'!$H$11:$BQ$611,$V$3,0)="",-100,VLOOKUP($B32,'D2'!$H$11:$BQ$611,$V$3,0))) -> -100 | BL32: =IF(BK32="","",RIGHT(VLOOKUP($B32,'D2'!$H$11:$JJ$550,$V$3+1,0),2)) ->  | BM32: 1 | BO32: 71 | BP32: A-
A33: 26 | T33: =HLOOKUP(W33,'D2'!$ET$4:$FU$5,2,0) -> 0 | U33: =+'D2'!AB$2003 -> 0 | V33: 26 | W33: ='D2'!$BT35 ->  | X33: 21 | AB33: 1 | AC33: Z | AD33: 3999 | AE33: ZZZZ | AF33: Z | AI33: 0 | AL33: K | AT33: 70 | AU33: A- | BD33: 0 | BF33: =IF(#REF!="",I33,#REF!) ->  | BI33: =IF(ISNA(IF(VLOOKUP($B33,'D2'!$A$2011:$BQ$2611,$BI$5,0)="",-100,VLOOKUP($B33,'D2'!$A$2011:$BQ$2611,$BI$5,0))),-100,IF(VLOOKUP($B33,'D2'!$A$2011:$BQ$2611,$BI$5,0)="",-100,VLOOKUP($B33,'D2'!$A$2011:$BQ$2611,$BI$5,0))) -> -100 | BJ33: =IF(BI33="","",VLOOKUP($B33,'D2'!$A$2011:$JJ$2550,$BI$5+63,0)) ->  | BK33: =IF(ISNA(IF(VLOOKUP($B33,'D2'!$H$11:$BQ$611,$V$3,0)="",-100,VLOOKUP($B33,'D2'!$H$11:$BQ$611,$V$3,0))),-100,IF(VLOOKUP($B33,'D2'!$H$11:$BQ$611,$V$3,0)="",-100,VLOOKUP($B33,'D2'!$H$11:$BQ$611,$V$3,0))) -> -100 | BL33: =IF(BK33="","",RIGHT(VLOOKUP($B33,'D2'!$H$11:$JJ$550,$V$3+1,0),2)) ->  | BM33: 1 | BO33: 70 | BP33: A-
A34: 27 | T34: =HLOOKUP(W34,'D2'!$ET$4:$FU$5,2,0) -> 0 | U34: =+'D2'!AC$2003 -> 0 | V34: 27 | W34: ='D2'!$BT36 ->  | X34: 21 | AB34: 1 | AC34: AKSM | AD34: 3768 | AE34: Asas Kelestarian | AF34: AKSM | AG34: A | AI34: 0 | AL34: K | AT34: 69 | AU34: B+ | BD34: 0 | BF34: =IF(#REF!="",I34,#REF!) ->  | BI34: =IF(ISNA(IF(VLOOKUP($B34,'D2'!$A$2011:$BQ$2611,$BI$5,0)="",-100,VLOOKUP($B34,'D2'!$A$2011:$BQ$2611,$BI$5,0))),-100,IF(VLOOKUP($B34,'D2'!$A$2011:$BQ$2611,$BI$5,0)="",-100,VLOOKUP($B34,'D2'!$A$2011:$BQ$2611,$BI$5,0))) -> -100 | BJ34: =IF(BI34="","",VLOOKUP($B34,'D2'!$A$2011:$JJ$2550,$BI$5+63,0)) ->  | BK34: =IF(ISNA(IF(VLOOKUP($B34,'D2'!$H$11:$BQ$611,$V$3,0)="",-100,VLOOKUP($B34,'D2'!$H$11:$BQ$611,$V$3,0))),-100,IF(VLOOKUP($B34,'D2'!$H$11:$BQ$611,$V$3,0)="",-100,VLOOKUP($B34,'D2'!$H$11:$BQ$611,$V$3,0))) -> -100 | BL34: =IF(BK34="","",RIGHT(VLOOKUP($B34,'D2'!$H$11:$JJ$550,$V$3+1,0),2)) ->  | BM34: 1 | BO34: 69 | BP34: B+
A35: 28 | U35: =+'D2'!AD$2003 -> 0 | V35: 28 | W35: ='D2'!$BT37 ->  | X35: 21 | AB35: 1 | AC35: SNRT | AD35: 3769 | AE35: Sains Rumah Tangga | AF35: SNRT | AG35: A | AI35: 0 | AL35: K | AT35: 68 | AU35: =+AU34 -> B+ | BD35: 0 | BF35: =IF(#REF!="",I35,#REF!) ->  | BI35: =IF(ISNA(IF(VLOOKUP($B35,'D2'!$A$2011:$BQ$2611,$BI$5,0)="",-100,VLOOKUP($B35,'D2'!$A$2011:$BQ$2611,$BI$5,0))),-100,IF(VLOOKUP($B35,'D2'!$A$2011:$BQ$2611,$BI$5,0)="",-100,VLOOKUP($B35,'D2'!$A$2011:$BQ$2611,$BI$5,0))) -> -100 | BJ35: =IF(BI35="","",VLOOKUP($B35,'D2'!$A$2011:$JJ$2550,$BI$5+63,0)) ->  | BK35: =IF(ISNA(IF(VLOOKUP($B35,'D2'!$H$11:$BQ$611,$V$3,0)="",-100,VLOOKUP($B35,'D2'!$H$11:$BQ$611,$V$3,0))),-100,IF(VLOOKUP($B35,'D2'!$H$11:$BQ$611,$V$3,0)="",-100,VLOOKUP($B35,'D2'!$H$11:$BQ$611,$V$3,0))) -> -100 | BL35: =IF(BK35="","",RIGHT(VLOOKUP($B35,'D2'!$H$11:$JJ$550,$V$3+1,0),2)) ->  | BM35: 1 | BO35: 68 | BP35: =+BP34 -> B+
A36: 29 | AB36: 1 | AC36: SNK | AD36: 3770 | AE36: Sains Komputer | AF36: SNK | AG36: A | AI36: 0 | AL36: K | AT36: =+AT35-1 -> 67 | AU36: =+AU35 -> B+ | BD36: 0 | BF36: =IF(#REF!="",I36,#REF!) ->  | BI36: =IF(ISNA(IF(VLOOKUP($B36,'D2'!$A$2011:$BQ$2611,$BI$5,0)="",-100,VLOOKUP($B36,'D2'!$A$2011:$BQ$2611,$BI$5,0))),-100,IF(VLOOKUP($B36,'D2'!$A$2011:$BQ$2611,$BI$5,0)="",-100,VLOOKUP($B36,'D2'!$A$2011:$BQ$2611,$BI$5,0))) -> -100 | BJ36: =IF(BI36="","",VLOOKUP($B36,'D2'!$A$2011:$JJ$2550,$BI$5+63,0)) ->  | BK36: =IF(ISNA(IF(VLOOKUP($B36,'D2'!$H$11:$BQ$611,$V$3,0)="",-100,VLOOKUP($B36,'D2'!$H$11:$BQ$611,$V$3,0))),-100,IF(VLOOKUP($B36,'D2'!$H$11:$BQ$611,$V$3,0)="",-100,VLOOKUP($B36,'D2'!$H$11:$BQ$611,$V$3,0))) -> -100 | BL36: =IF(BK36="","",RIGHT(VLOOKUP($B36,'D2'!$H$11:$JJ$550,$V$3+1,0),2)) ->  | BM36: 1 | BO36: 67 | BP36: =+BP35 -> B+
A37: 30 | AB37: 1 | AC37: GKT | AD37: 3771 | AE37: Grafik Komunikasi Teknikal | AF37: GKT | AG37: A | AI37: 0 | AL37: K | AT37: 66 | AU37: =+AU36 -> B+ | BD37: 0 | BF37: =IF(#REF!="",I37,#REF!) ->  | BI37: =IF(ISNA(IF(VLOOKUP($B37,'D2'!$A$2011:$BQ$2611,$BI$5,0)="",-100,VLOOKUP($B37,'D2'!$A$2011:$BQ$2611,$BI$5,0))),-100,IF(VLOOKUP($B37,'D2'!$A$2011:$BQ$2611,$BI$5,0)="",-100,VLOOKUP($B37,'D2'!$A$2011:$BQ$2611,$BI$5,0))) -> -100 | BJ37: =IF(BI37="","",VLOOKUP($B37,'D2'!$A$2011:$JJ$2550,$BI$5+63,0)) ->  | BK37: =IF(ISNA(IF(VLOOKUP($B37,'D2'!$H$11:$BQ$611,$V$3,0)="",-100,VLOOKUP($B37,'D2'!$H$11:$BQ$611,$V$3,0))),-100,IF(VLOOKUP($B37,'D2'!$H$11:$BQ$611,$V$3,0)="",-100,VLOOKUP($B37,'D2'!$H$11:$BQ$611,$V$3,0))) -> -100 | BL37: =IF(BK37="","",RIGHT(VLOOKUP($B37,'D2'!$H$11:$JJ$550,$V$3+1,0),2)) ->  | BM37: 1 | BO37: 66 | BP37: =+BP36 -> B+
A38: 31 | AB38: 1 | AC38: FIZ | AD38: 4531 | AE38: Physics | AF38: FIZ | AG38: A | AI38: 0 | AL38: K | AT38: 65 | AU38: =+AU37 -> B+ | BD38: 0 | BF38: =IF(#REF!="",I38,#REF!) ->  | BI38: =IF(ISNA(IF(VLOOKUP($B38,'D2'!$A$2011:$BQ$2611,$BI$5,0)="",-100,VLOOKUP($B38,'D2'!$A$2011:$BQ$2611,$BI$5,0))),-100,IF(VLOOKUP($B38,'D2'!$A$2011:$BQ$2611,$BI$5,0)="",-100,VLOOKUP($B38,'D2'!$A$2011:$BQ$2611,$BI$5,0))) -> -100 | BJ38: =IF(BI38="","",VLOOKUP($B38,'D2'!$A$2011:$JJ$2550,$BI$5+63,0)) ->  | BK38: =IF(ISNA(IF(VLOOKUP($B38,'D2'!$H$11:$BQ$611,$V$3,0)="",-100,VLOOKUP($B38,'D2'!$H$11:$BQ$611,$V$3,0))),-100,IF(VLOOKUP($B38,'D2'!$H$11:$BQ$611,$V$3,0)="",-100,VLOOKUP($B38,'D2'!$H$11:$BQ$611,$V$3,0))) -> -100 | BL38: =IF(BK38="","",RIGHT(VLOOKUP($B38,'D2'!$H$11:$JJ$550,$V$3+1,0),2)) ->  | BM38: 1 | BO38: 65 | BP38: =+BP37 -> B+
A39: 32 | AB39: 1 | AC39: KIM | AD39: 4541 | AE39: Chemistry | AF39: KIM | AG39: A | AI39: 0 | AL39: K | AT39: 64 | AU39: B | BD39: 0 | BF39: =IF(#REF!="",I39,#REF!) ->  | BI39: =IF(ISNA(IF(VLOOKUP($B39,'D2'!$A$2011:$BQ$2611,$BI$5,0)="",-100,VLOOKUP($B39,'D2'!$A$2011:$BQ$2611,$BI$5,0))),-100,IF(VLOOKUP($B39,'D2'!$A$2011:$BQ$2611,$BI$5,0)="",-100,VLOOKUP($B39,'D2'!$A$2011:$BQ$2611,$BI$5,0))) -> -100 | BJ39: =IF(BI39="","",VLOOKUP($B39,'D2'!$A$2011:$JJ$2550,$BI$5+63,0)) ->  | BK39: =IF(ISNA(IF(VLOOKUP($B39,'D2'!$H$11:$BQ$611,$V$3,0)="",-100,VLOOKUP($B39,'D2'!$H$11:$BQ$611,$V$3,0))),-100,IF(VLOOKUP($B39,'D2'!$H$11:$BQ$611,$V$3,0)="",-100,VLOOKUP($B39,'D2'!$H$11:$BQ$611,$V$3,0))) -> -100 | BL39: =IF(BK39="","",RIGHT(VLOOKUP($B39,'D2'!$H$11:$JJ$550,$V$3+1,0),2)) ->  | BM39: 1 | BO39: 64 | BP39: B
A40: 33 | AB40: 1 | AC40: BIO | AD40: 4551 | AE40: Biology | AF40: BIO | AG40: A | AI40: 0 | AL40: K | AT40: 63 | AU40: =+AU39 -> B | BD40: 0 | BF40: =IF(#REF!="",I40,#REF!) ->  | BI40: =IF(ISNA(IF(VLOOKUP($B40,'D2'!$A$2011:$BQ$2611,$BI$5,0)="",-100,VLOOKUP($B40,'D2'!$A$2011:$BQ$2611,$BI$5,0))),-100,IF(VLOOKUP($B40,'D2'!$A$2011:$BQ$2611,$BI$5,0)="",-100,VLOOKUP($B40,'D2'!$A$2011:$BQ$2611,$BI$5,0))) -> -100 | BJ40: =IF(BI40="","",VLOOKUP($B40,'D2'!$A$2011:$JJ$2550,$BI$5+63,0)) ->  | BK40: =IF(ISNA(IF(VLOOKUP($B40,'D2'!$H$11:$BQ$611,$V$3,0)="",-100,VLOOKUP($B40,'D2'!$H$11:$BQ$611,$V$3,0))),-100,IF(VLOOKUP($B40,'D2'!$H$11:$BQ$611,$V$3,0)="",-100,VLOOKUP($B40,'D2'!$H$11:$BQ$611,$V$3,0))) -> -100 | BL40: =IF(BK40="","",RIGHT(VLOOKUP($B40,'D2'!$H$11:$JJ$550,$V$3+1,0),2)) ->  | BM40: 1 | BO40: 63 | BP40: =+BP39 -> B
A41: 34 | AB41: =IF(ISNA(VLOOKUP(AC41,$AT$5:$AU$36,2,0)),AB40,AB40+1) -> 1 | AC41: Z | AD41: 4561 | AE41: Additional Science | AF41: Z | AI41: 0 | AL41: K | AT41: 62 | AU41: =+AU40 -> B | BD41: 0 | BF41: =IF(#REF!="",I41,#REF!) ->  | BI41: =IF(ISNA(IF(VLOOKUP($B41,'D2'!$A$2011:$BQ$2611,$BI$5,0)="",-100,VLOOKUP($B41,'D2'!$A$2011:$BQ$2611,$BI$5,0))),-100,IF(VLOOKUP($B41,'D2'!$A$2011:$BQ$2611,$BI$5,0)="",-100,VLOOKUP($B41,'D2'!$A$2011:$BQ$2611,$BI$5,0))) -> -100 | BJ41: =IF(BI41="","",VLOOKUP($B41,'D2'!$A$2011:$JJ$2550,$BI$5+63,0)) ->  | BK41: =IF(ISNA(IF(VLOOKUP($B41,'D2'!$H$11:$BQ$611,$V$3,0)="",-100,VLOOKUP($B41,'D2'!$H$11:$BQ$611,$V$3,0))),-100,IF(VLOOKUP($B41,'D2'!$H$11:$BQ$611,$V$3,0)="",-100,VLOOKUP($B41,'D2'!$H$11:$BQ$611,$V$3,0))) -> -100 | BL41: =IF(BK41="","",RIGHT(VLOOKUP($B41,'D2'!$H$11:$JJ$550,$V$3+1,0),2)) ->  | BM41: 1 | BO41: 62 | BP41: =+BP40 -> B
A42: 35 | AB42: 1 | AC42: SNS | AD42: 4571 | AE42: Sains Sukan | AF42: SNS | AG42: A | AI42: 0 | AL42: K | AT42: 61 | AU42: =+AU41 -> B | BD42: 0 | BF42: =IF(#REF!="",I42,#REF!) ->  | BI42: =IF(ISNA(IF(VLOOKUP($B42,'D2'!$A$2011:$BQ$2611,$BI$5,0)="",-100,VLOOKUP($B42,'D2'!$A$2011:$BQ$2611,$BI$5,0))),-100,IF(VLOOKUP($B42,'D2'!$A$2011:$BQ$2611,$BI$5,0)="",-100,VLOOKUP($B42,'D2'!$A$2011:$BQ$2611,$BI$5,0))) -> -100 | BJ42: =IF(BI42="","",VLOOKUP($B42,'D2'!$A$2011:$JJ$2550,$BI$5+63,0)) ->  | BK42: =IF(ISNA(IF(VLOOKUP($B42,'D2'!$H$11:$BQ$611,$V$3,0)="",-100,VLOOKUP($B42,'D2'!$H$11:$BQ$611,$V$3,0))),-100,IF(VLOOKUP($B42,'D2'!$H$11:$BQ$611,$V$3,0)="",-100,VLOOKUP($B42,'D2'!$H$11:$BQ$611,$V$3,0))) -> -100 | BL42: =IF(BK42="","",RIGHT(VLOOKUP($B42,'D2'!$H$11:$JJ$550,$V$3+1,0),2)) ->  | BM42: 1 | BO42: 61 | BP42: =+BP41 -> B
A43: 36 | AB43: 1 | AC43: APS | AD43: 4581 | AE43: Applied Science | AF43: APS | AG43: A | AI43: 0 | AL43: K | AT43: 60 | AU43: =+AU42 -> B | BD43: 0 | BF43: =IF(#REF!="",I43,#REF!) ->  | BI43: =IF(ISNA(IF(VLOOKUP($B43,'D2'!$A$2011:$BQ$2611,$BI$5,0)="",-100,VLOOKUP($B43,'D2'!$A$2011:$BQ$2611,$BI$5,0))),-100,IF(VLOOKUP($B43,'D2'!$A$2011:$BQ$2611,$BI$5,0)="",-100,VLOOKUP($B43,'D2'!$A$2011:$BQ$2611,$BI$5,0))) -> -100 | BJ43: =IF(BI43="","",VLOOKUP($B43,'D2'!$A$2011:$JJ$2550,$BI$5+63,0)) ->  | BK43: =IF(ISNA(IF(VLOOKUP($B43,'D2'!$H$11:$BQ$611,$V$3,0)="",-100,VLOOKUP($B43,'D2'!$H$11:$BQ$611,$V$3,0))),-100,IF(VLOOKUP($B43,'D2'!$H$11:$BQ$611,$V$3,0)="",-100,VLOOKUP($B43,'D2'!$H$11:$BQ$611,$V$3,0))) -> -100 | BL43: =IF(BK43="","",RIGHT(VLOOKUP($B43,'D2'!$H$11:$JJ$550,$V$3+1,0),2)) ->  | BM43: 1 | BO43: 60 | BP43: =+BP42 -> B
A44: 37 | AB44: 1 | AC44: TWI | AD44: 5226 | AE44: Tasawwur Islam | AF44: TWI | AG44: A | AL44: K | AT44: 59 | AU44: C+ | BD44: 0 | BF44: =IF(#REF!="",I44,#REF!) ->  | BI44: =IF(ISNA(IF(VLOOKUP($B44,'D2'!$A$2011:$BQ$2611,$BI$5,0)="",-100,VLOOKUP($B44,'D2'!$A$2011:$BQ$2611,$BI$5,0))),-100,IF(VLOOKUP($B44,'D2'!$A$2011:$BQ$2611,$BI$5,0)="",-100,VLOOKUP($B44,'D2'!$A$2011:$BQ$2611,$BI$5,0))) -> -100 | BJ44: =IF(BI44="","",VLOOKUP($B44,'D2'!$A$2011:$JJ$2550,$BI$5+63,0)) ->  | BK44: =IF(ISNA(IF(VLOOKUP($B44,'D2'!$H$11:$BQ$611,$V$3,0)="",-100,VLOOKUP($B44,'D2'!$H$11:$BQ$611,$V$3,0))),-100,IF(VLOOKUP($B44,'D2'!$H$11:$BQ$611,$V$3,0)="",-100,VLOOKUP($B44,'D2'!$H$11:$BQ$611,$V$3,0))) -> -100 | BL44: =IF(BK44="","",RIGHT(VLOOKUP($B44,'D2'!$H$11:$JJ$550,$V$3+1,0),2)) ->  | BM44: 1 | BO44: 59 | BP44: C+
A45: 38 | AB45: 1 | AC45: PQS | AD45: 5227 | AE45: Pendidikan Al-Quran & As-Sunnah | AF45: PQS | AG45: A | AL45: K | AT45: 58 | AU45: =+AU44 -> C+ | BD45: 0 | BF45: =IF(#REF!="",I45,#REF!) ->  | BI45: =IF(ISNA(IF(VLOOKUP($B45,'D2'!$A$2011:$BQ$2611,$BI$5,0)="",-100,VLOOKUP($B45,'D2'!$A$2011:$BQ$2611,$BI$5,0))),-100,IF(VLOOKUP($B45,'D2'!$A$2011:$BQ$2611,$BI$5,0)="",-100,VLOOKUP($B45,'D2'!$A$2011:$BQ$2611,$BI$5,0))) -> -100 | BJ45: =IF(BI45="","",VLOOKUP($B45,'D2'!$A$2011:$JJ$2550,$BI$5+63,0)) ->  | BK45: =IF(ISNA(IF(VLOOKUP($B45,'D2'!$H$11:$BQ$611,$V$3,0)="",-100,VLOOKUP($B45,'D2'!$H$11:$BQ$611,$V$3,0))),-100,IF(VLOOKUP($B45,'D2'!$H$11:$BQ$611,$V$3,0)="",-100,VLOOKUP($B45,'D2'!$H$11:$BQ$611,$V$3,0))) -> -100 | BL45: =IF(BK45="","",RIGHT(VLOOKUP($B45,'D2'!$H$11:$JJ$550,$V$3+1,0),2)) ->  | BM45: 1 | BO45: 58 | BP45: =+BP44 -> C+
A46: 39 | AB46: 1 | AC46: PSI | AD46: 5228 | AE46: Pendidikan Syariah Islamiah | AF46: PSI | AG46: A | AL46: K | AT46: 57 | AU46: C+ | BD46: 0 | BF46: =IF(#REF!="",I46,#REF!) ->  | BI46: =IF(ISNA(IF(VLOOKUP($B46,'D2'!$A$2011:$BQ$2611,$BI$5,0)="",-100,VLOOKUP($B46,'D2'!$A$2011:$BQ$2611,$BI$5,0))),-100,IF(VLOOKUP($B46,'D2'!$A$2011:$BQ$2611,$BI$5,0)="",-100,VLOOKUP($B46,'D2'!$A$2011:$BQ$2611,$BI$5,0))) -> -100 | BJ46: =IF(BI46="","",VLOOKUP($B46,'D2'!$A$2011:$JJ$2550,$BI$5+63,0)) ->  | BK46: =IF(ISNA(IF(VLOOKUP($B46,'D2'!$H$11:$BQ$611,$V$3,0)="",-100,VLOOKUP($B46,'D2'!$H$11:$BQ$611,$V$3,0))),-100,IF(VLOOKUP($B46,'D2'!$H$11:$BQ$611,$V$3,0)="",-100,VLOOKUP($B46,'D2'!$H$11:$BQ$611,$V$3,0))) -> -100 | BL46: =IF(BK46="","",RIGHT(VLOOKUP($B46,'D2'!$H$11:$JJ$550,$V$3+1,0),2)) ->  | BM46: 1 | BO46: 57 | BP46: C+
A47: 40 | AB47: 1 | AC47: BCMA | AD47: 6351 | AE47: Bahasa Cina | AF47: BCMA | AG47: A | AL47: K | AT47: 56 | AU47: C+ | BD47: 0 | BF47: =IF(#REF!="",I47,#REF!) ->  | BI47: =IF(ISNA(IF(VLOOKUP($B47,'D2'!$A$2011:$BQ$2611,$BI$5,0)="",-100,VLOOKUP($B47,'D2'!$A$2011:$BQ$2611,$BI$5,0))),-100,IF(VLOOKUP($B47,'D2'!$A$2011:$BQ$2611,$BI$5,0)="",-100,VLOOKUP($B47,'D2'!$A$2011:$BQ$2611,$BI$5,0))) -> -100 | BJ47: =IF(BI47="","",VLOOKUP($B47,'D2'!$A$2011:$JJ$2550,$BI$5+63,0)) ->  | BK47: =IF(ISNA(IF(VLOOKUP($B47,'D2'!$H$11:$BQ$611,$V$3,0)="",-100,VLOOKUP($B47,'D2'!$H$11:$BQ$611,$V$3,0))),-100,IF(VLOOKUP($B47,'D2'!$H$11:$BQ$611,$V$3,0)="",-100,VLOOKUP($B47,'D2'!$H$11:$BQ$611,$V$3,0))) -> -100 | BL47: =IF(BK47="","",RIGHT(VLOOKUP($B47,'D2'!$H$11:$JJ$550,$V$3+1,0),2)) ->  | BM47: 1 | BO47: 56 | BP47: C+
A48: 41 | AB48: 1 | AC48: BTMA | AD48: 6354 | AE48: Bahasa Tamil | AF48: BTMA | AG48: A | AL48: K | AT48: 55 | AU48: C+ | BD48: 0 | BF48: =IF(#REF!="",I48,#REF!) ->  | BI48: =IF(ISNA(IF(VLOOKUP($B48,'D2'!$A$2011:$BQ$2611,$BI$5,0)="",-100,VLOOKUP($B48,'D2'!$A$2011:$BQ$2611,$BI$5,0))),-100,IF(VLOOKUP($B48,'D2'!$A$2011:$BQ$2611,$BI$5,0)="",-100,VLOOKUP($B48,'D2'!$A$2011:$BQ$2611,$BI$5,0))) -> -100 | BJ48: =IF(BI48="","",VLOOKUP($B48,'D2'!$A$2011:$JJ$2550,$BI$5+63,0)) ->  | BK48: =IF(ISNA(IF(VLOOKUP($B48,'D2'!$H$11:$BQ$611,$V$3,0)="",-100,VLOOKUP($B48,'D2'!$H$11:$BQ$611,$V$3,0))),-100,IF(VLOOKUP($B48,'D2'!$H$11:$BQ$611,$V$3,0)="",-100,VLOOKUP($B48,'D2'!$H$11:$BQ$611,$V$3,0))) -> -100 | BL48: =IF(BK48="","",RIGHT(VLOOKUP($B48,'D2'!$H$11:$JJ$550,$V$3+1,0),2)) ->  | BM48: 1 | BO48: 55 | BP48: C+
A49: 42 | AB49: 1 | AC49: EST | AD49: 6355 | AE49: English For Science and Technology | AF49: EST | AG49: A | AL49: K | AT49: 54 | AU49: C | BD49: 0 | BF49: =IF(#REF!="",I49,#REF!) ->  | BI49: =IF(ISNA(IF(VLOOKUP($B49,'D2'!$A$2011:$BQ$2611,$BI$5,0)="",-100,VLOOKUP($B49,'D2'!$A$2011:$BQ$2611,$BI$5,0))),-100,IF(VLOOKUP($B49,'D2'!$A$2011:$BQ$2611,$BI$5,0)="",-100,VLOOKUP($B49,'D2'!$A$2011:$BQ$2611,$BI$5,0))) -> -100 | BJ49: =IF(BI49="","",VLOOKUP($B49,'D2'!$A$2011:$JJ$2550,$BI$5+63,0)) ->  | BK49: =IF(ISNA(IF(VLOOKUP($B49,'D2'!$H$11:$BQ$611,$V$3,0)="",-100,VLOOKUP($B49,'D2'!$H$11:$BQ$611,$V$3,0))),-100,IF(VLOOKUP($B49,'D2'!$H$11:$BQ$611,$V$3,0)="",-100,VLOOKUP($B49,'D2'!$H$11:$BQ$611,$V$3,0))) -> -100 | BL49: =IF(BK49="","",RIGHT(VLOOKUP($B49,'D2'!$H$11:$JJ$550,$V$3+1,0),2)) ->  | BM49: 1 | BO49: 54 | BP49: C
A50: 43 | AB50: 1 | AC50: Z | AD50: 6356 | AE50: Bahasa Iban | AF50: Z | AL50: K | AT50: 53 | AU50: C | BD50: 0 | BF50: =IF(#REF!="",I50,#REF!) ->  | BI50: =IF(ISNA(IF(VLOOKUP($B50,'D2'!$A$2011:$BQ$2611,$BI$5,0)="",-100,VLOOKUP($B50,'D2'!$A$2011:$BQ$2611,$BI$5,0))),-100,IF(VLOOKUP($B50,'D2'!$A$2011:$BQ$2611,$BI$5,0)="",-100,VLOOKUP($B50,'D2'!$A$2011:$BQ$2611,$BI$5,0))) -> -100 | BJ50: =IF(BI50="","",VLOOKUP($B50,'D2'!$A$2011:$JJ$2550,$BI$5+63,0)) ->  | BK50: =IF(ISNA(IF(VLOOKUP($B50,'D2'!$H$11:$BQ$611,$V$3,0)="",-100,VLOOKUP($B50,'D2'!$H$11:$BQ$611,$V$3,0))),-100,IF(VLOOKUP($B50,'D2'!$H$11:$BQ$611,$V$3,0)="",-100,VLOOKUP($B50,'D2'!$H$11:$BQ$611,$V$3,0))) -> -100 | BL50: =IF(BK50="","",RIGHT(VLOOKUP($B50,'D2'!$H$11:$JJ$550,$V$3+1,0),2)) ->  | BM50: 1 | BO50: 53 | BP50: C
A51: 44 | AB51: 1 | AC51: PBD | AD51: 7101 | AE51: Pembinaan Domestik | AF51: PBD | AG51: A | AL51: K | AT51: 52 | AU51: C | BD51: 0 | BF51: =IF(#REF!="",I51,#REF!) ->  | BI51: =IF(ISNA(IF(VLOOKUP($B51,'D2'!$A$2011:$BQ$2611,$BI$5,0)="",-100,VLOOKUP($B51,'D2'!$A$2011:$BQ$2611,$BI$5,0))),-100,IF(VLOOKUP($B51,'D2'!$A$2011:$BQ$2611,$BI$5,0)="",-100,VLOOKUP($B51,'D2'!$A$2011:$BQ$2611,$BI$5,0))) -> -100 | BJ51: =IF(BI51="","",VLOOKUP($B51,'D2'!$A$2011:$JJ$2550,$BI$5+63,0)) ->  | BK51: =IF(ISNA(IF(VLOOKUP($B51,'D2'!$H$11:$BQ$611,$V$3,0)="",-100,VLOOKUP($B51,'D2'!$H$11:$BQ$611,$V$3,0))),-100,IF(VLOOKUP($B51,'D2'!$H$11:$BQ$611,$V$3,0)="",-100,VLOOKUP($B51,'D2'!$H$11:$BQ$611,$V$3,0))) -> -100 | BL51: =IF(BK51="","",RIGHT(VLOOKUP($B51,'D2'!$H$11:$JJ$550,$V$3+1,0),2)) ->  | BM51: 1 | BO51: 52 | BP51: C
A52: 45 | AB52: 1 | AC52: MPR | AD52: 7102 | AE52: Membuat Perabot | AF52: MPR | AG52: A | AL52: K | AT52: 51 | AU52: C | BD52: 0 | BF52: =IF(#REF!="",I52,#REF!) ->  | BI52: =IF(ISNA(IF(VLOOKUP($B52,'D2'!$A$2011:$BQ$2611,$BI$5,0)="",-100,VLOOKUP($B52,'D2'!$A$2011:$BQ$2611,$BI$5,0))),-100,IF(VLOOKUP($B52,'D2'!$A$2011:$BQ$2611,$BI$5,0)="",-100,VLOOKUP($B52,'D2'!$A$2011:$BQ$2611,$BI$5,0))) -> -100 | BJ52: =IF(BI52="","",VLOOKUP($B52,'D2'!$A$2011:$JJ$2550,$BI$5+63,0)) ->  | BK52: =IF(ISNA(IF(VLOOKUP($B52,'D2'!$H$11:$BQ$611,$V$3,0)="",-100,VLOOKUP($B52,'D2'!$H$11:$BQ$611,$V$3,0))),-100,IF(VLOOKUP($B52,'D2'!$H$11:$BQ$611,$V$3,0)="",-100,VLOOKUP($B52,'D2'!$H$11:$BQ$611,$V$3,0))) -> -100 | BL52: =IF(BK52="","",RIGHT(VLOOKUP($B52,'D2'!$H$11:$JJ$550,$V$3+1,0),2)) ->  | BM52: 1 | BO52: 51 | BP52: C
A53: 46 | AB53: 1 | AC53: Z | AD53: 7103 | AE53: Kerja Paip Domestik | AF53: Z | AL53: K | AT53: 50 | AU53: C | BD53: 0 | BF53: =IF(#REF!="",I53,#REF!) ->  | BI53: =IF(ISNA(IF(VLOOKUP($B53,'D2'!$A$2011:$BQ$2611,$BI$5,0)="",-100,VLOOKUP($B53,'D2'!$A$2011:$BQ$2611,$BI$5,0))),-100,IF(VLOOKUP($B53,'D2'!$A$2011:$BQ$2611,$BI$5,0)="",-100,VLOOKUP($B53,'D2'!$A$2011:$BQ$2611,$BI$5,0))) -> -100 | BJ53: =IF(BI53="","",VLOOKUP($B53,'D2'!$A$2011:$JJ$2550,$BI$5+63,0)) ->  | BK53: =IF(ISNA(IF(VLOOKUP($B53,'D2'!$H$11:$BQ$611,$V$3,0)="",-100,VLOOKUP($B53,'D2'!$H$11:$BQ$611,$V$3,0))),-100,IF(VLOOKUP($B53,'D2'!$H$11:$BQ$611,$V$3,0)="",-100,VLOOKUP($B53,'D2'!$H$11:$BQ$611,$V$3,0))) -> -100 | BL53: =IF(BK53="","",RIGHT(VLOOKUP($B53,'D2'!$H$11:$JJ$550,$V$3+1,0),2)) ->  | BM53: 1 | BO53: 50 | BP53: C
A54: 47 | AB54: 1 | AC54: PD | AD54: 7104 | AE54: Pendawaian Domestik | AF54: PD | AG54: A | AL54: K | AT54: 49 | AU54: D | BD54: 0 | BF54: =IF(#REF!="",I54,#REF!) ->  | BI54: =IF(ISNA(IF(VLOOKUP($B54,'D2'!$A$2011:$BQ$2611,$BI$5,0)="",-100,VLOOKUP($B54,'D2'!$A$2011:$BQ$2611,$BI$5,0))),-100,IF(VLOOKUP($B54,'D2'!$A$2011:$BQ$2611,$BI$5,0)="",-100,VLOOKUP($B54,'D2'!$A$2011:$BQ$2611,$BI$5,0))) -> -100 | BJ54: =IF(BI54="","",VLOOKUP($B54,'D2'!$A$2011:$JJ$2550,$BI$5+63,0)) ->  | BK54: =IF(ISNA(IF(VLOOKUP($B54,'D2'!$H$11:$BQ$611,$V$3,0)="",-100,VLOOKUP($B54,'D2'!$H$11:$BQ$611,$V$3,0))),-100,IF(VLOOKUP($B54,'D2'!$H$11:$BQ$611,$V$3,0)="",-100,VLOOKUP($B54,'D2'!$H$11:$BQ$611,$V$3,0))) -> -100 | BL54: =IF(BK54="","",RIGHT(VLOOKUP($B54,'D2'!$H$11:$JJ$550,$V$3+1,0),2)) ->  | BM54: 1 | BO54: 49 | BP54: D
A55: 48 | AB55: 1 | AC55: KA | AD55: 7105 | AE55: Kimpalan Arka dan Gas | AF55: KA | AG55: A | AL55: K | AT55: 48 | AU55: =+AU54 -> D | BD55: 0 | BF55: =IF(#REF!="",I55,#REF!) ->  | BI55: =IF(ISNA(IF(VLOOKUP($B55,'D2'!$A$2011:$BQ$2611,$BI$5,0)="",-100,VLOOKUP($B55,'D2'!$A$2011:$BQ$2611,$BI$5,0))),-100,IF(VLOOKUP($B55,'D2'!$A$2011:$BQ$2611,$BI$5,0)="",-100,VLOOKUP($B55,'D2'!$A$2011:$BQ$2611,$BI$5,0))) -> -100 | BJ55: =IF(BI55="","",VLOOKUP($B55,'D2'!$A$2011:$JJ$2550,$BI$5+63,0)) ->  | BK55: =IF(ISNA(IF(VLOOKUP($B55,'D2'!$H$11:$BQ$611,$V$3,0)="",-100,VLOOKUP($B55,'D2'!$H$11:$BQ$611,$V$3,0))),-100,IF(VLOOKUP($B55,'D2'!$H$11:$BQ$611,$V$3,0)="",-100,VLOOKUP($B55,'D2'!$H$11:$BQ$611,$V$3,0))) -> -100 | BL55: =IF(BK55="","",RIGHT(VLOOKUP($B55,'D2'!$H$11:$JJ$550,$V$3+1,0),2)) ->  | BM55: 1 | BO55: 48 | BP55: =+BP54 -> D
A56: 49 | AB56: 1 | AC56: MSAU | AD56: 7106 | AE56: Menservis Automobil | AF56: MSAU | AG56: A | AL56: K | AT56: 47 | AU56: =+AU55 -> D | BD56: 0 | BF56: =IF(#REF!="",I56,#REF!) ->  | BI56: =IF(ISNA(IF(VLOOKUP($B56,'D2'!$A$2011:$BQ$2611,$BI$5,0)="",-100,VLOOKUP($B56,'D2'!$A$2011:$BQ$2611,$BI$5,0))),-100,IF(VLOOKUP($B56,'D2'!$A$2011:$BQ$2611,$BI$5,0)="",-100,VLOOKUP($B56,'D2'!$A$2011:$BQ$2611,$BI$5,0))) -> -100 | BJ56: =IF(BI56="","",VLOOKUP($B56,'D2'!$A$2011:$JJ$2550,$BI$5+63,0)) ->  | BK56: =IF(ISNA(IF(VLOOKUP($B56,'D2'!$H$11:$BQ$611,$V$3,0)="",-100,VLOOKUP($B56,'D2'!$H$11:$BQ$611,$V$3,0))),-100,IF(VLOOKUP($B56,'D2'!$H$11:$BQ$611,$V$3,0)="",-100,VLOOKUP($B56,'D2'!$H$11:$BQ$611,$V$3,0))) -> -100 | BL56: =IF(BK56="","",RIGHT(VLOOKUP($B56,'D2'!$H$11:$JJ$550,$V$3+1,0),2)) ->  | BM56: 1 | BO56: 47 | BP56: =+BP55 -> D
A57: 50 | AB57: 1 | AC57: MMT | AD57: 7107 | AE57: Menservis Motosikal | AF57: MMT | AG57: A | AL57: K | AT57: 46 | AU57: =+AU56 -> D | BD57: 0 | BF57: =IF(#REF!="",I57,#REF!) ->  | BI57: =IF(ISNA(IF(VLOOKUP($B57,'D2'!$A$2011:$BQ$2611,$BI$5,0)="",-100,VLOOKUP($B57,'D2'!$A$2011:$BQ$2611,$BI$5,0))),-100,IF(VLOOKUP($B57,'D2'!$A$2011:$BQ$2611,$BI$5,0)="",-100,VLOOKUP($B57,'D2'!$A$2011:$BQ$2611,$BI$5,0))) -> -100 | BJ57: =IF(BI57="","",VLOOKUP($B57,'D2'!$A$2011:$JJ$2550,$BI$5+63,0)) ->  | BK57: =IF(ISNA(IF(VLOOKUP($B57,'D2'!$H$11:$BQ$611,$V$3,0)="",-100,VLOOKUP($B57,'D2'!$H$11:$BQ$611,$V$3,0))),-100,IF(VLOOKUP($B57,'D2'!$H$11:$BQ$611,$V$3,0)="",-100,VLOOKUP($B57,'D2'!$H$11:$BQ$611,$V$3,0))) -> -100 | BL57: =IF(BK57="","",RIGHT(VLOOKUP($B57,'D2'!$H$11:$JJ$550,$V$3+1,0),2)) ->  | BM57: 1 | BO57: 46 | BP57: =+BP56 -> D
A58: 51 | AB58: 1 | AC58: MPPU | AD58: 7108 | AE58: Menservis Peralatan Penyejuk dan Penyamanan Udara | AF58: MPPU | AG58: A | AL58: K | AT58: 45 | AU58: =+AU57 -> D | BD58: 0 | BF58: =IF(#REF!="",I58,#REF!) ->  | BI58: =IF(ISNA(IF(VLOOKUP($B58,'D2'!$A$2011:$BQ$2611,$BI$5,0)="",-100,VLOOKUP($B58,'D2'!$A$2011:$BQ$2611,$BI$5,0))),-100,IF(VLOOKUP($B58,'D2'!$A$2011:$BQ$2611,$BI$5,0)="",-100,VLOOKUP($B58,'D2'!$A$2011:$BQ$2611,$BI$5,0))) -> -100 | BJ58: =IF(BI58="","",VLOOKUP($B58,'D2'!$A$2011:$JJ$2550,$BI$5+63,0)) ->  | BK58: =IF(ISNA(IF(VLOOKUP($B58,'D2'!$H$11:$BQ$611,$V$3,0)="",-100,VLOOKUP($B58,'D2'!$H$11:$BQ$611,$V$3,0))),-100,IF(VLOOKUP($B58,'D2'!$H$11:$BQ$611,$V$3,0)="",-100,VLOOKUP($B58,'D2'!$H$11:$BQ$611,$V$3,0))) -> -100 | BL58: =IF(BK58="","",RIGHT(VLOOKUP($B58,'D2'!$H$11:$JJ$550,$V$3+1,0),2)) ->  | BM58: 1 | BO58: 45 | BP58: =+BP57 -> D
A59: 52 | AB59: 1 | AC59: MPED | AD59: 7109 | AE59: Menservis Peralatan Elektrik Domestik | AF59: MPED | AG59: A | AL59: K | AT59: 44 | AU59: E | BD59: 0 | BF59: =IF(#REF!="",I59,#REF!) ->  | BI59: =IF(ISNA(IF(VLOOKUP($B59,'D2'!$A$2011:$BQ$2611,$BI$5,0)="",-100,VLOOKUP($B59,'D2'!$A$2011:$BQ$2611,$BI$5,0))),-100,IF(VLOOKUP($B59,'D2'!$A$2011:$BQ$2611,$BI$5,0)="",-100,VLOOKUP($B59,'D2'!$A$2011:$BQ$2611,$BI$5,0))) -> -100 | BJ59: =IF(BI59="","",VLOOKUP($B59,'D2'!$A$2011:$JJ$2550,$BI$5+63,0)) ->  | BK59: =IF(ISNA(IF(VLOOKUP($B59,'D2'!$H$11:$BQ$611,$V$3,0)="",-100,VLOOKUP($B59,'D2'!$H$11:$BQ$611,$V$3,0))),-100,IF(VLOOKUP($B59,'D2'!$H$11:$BQ$611,$V$3,0)="",-100,VLOOKUP($B59,'D2'!$H$11:$BQ$611,$V$3,0))) -> -100 | BL59: =IF(BK59="","",RIGHT(VLOOKUP($B59,'D2'!$H$11:$JJ$550,$V$3+1,0),2)) ->  | BM59: 1 | BO59: 44 | BP59: E
A60: 53 | AB60: 1 | AC60: RJP | AD60: 7201 | AE60: Rekaan dan Jahitan Pakaian | AF60: RJP | AG60: A | AL60: K | AT60: 43 | AU60: =+AU59 -> E | BD60: 0 | BF60: =IF(#REF!="",I60,#REF!) ->  | BI60: =IF(ISNA(IF(VLOOKUP($B60,'D2'!$A$2011:$BQ$2611,$BI$5,0)="",-100,VLOOKUP($B60,'D2'!$A$2011:$BQ$2611,$BI$5,0))),-100,IF(VLOOKUP($B60,'D2'!$A$2011:$BQ$2611,$BI$5,0)="",-100,VLOOKUP($B60,'D2'!$A$2011:$BQ$2611,$BI$5,0))) -> -100 | BJ60: =IF(BI60="","",VLOOKUP($B60,'D2'!$A$2011:$JJ$2550,$BI$5+63,0)) ->  | BK60: =IF(ISNA(IF(VLOOKUP($B60,'D2'!$H$11:$BQ$611,$V$3,0)="",-100,VLOOKUP($B60,'D2'!$H$11:$BQ$611,$V$3,0))),-100,IF(VLOOKUP($B60,'D2'!$H$11:$BQ$611,$V$3,0)="",-100,VLOOKUP($B60,'D2'!$H$11:$BQ$611,$V$3,0))) -> -100 | BL60: =IF(BK60="","",RIGHT(VLOOKUP($B60,'D2'!$H$11:$JJ$550,$V$3+1,0),2)) ->  | BM60: 1 | BO60: 43 | BP60: =+BP59 -> E
A61: 54 | AB61: 1 | AC61: KDP | AD61: 7202 | AE61: Katering dan Penyajian | AF61: KDP | AG61: A | AL61: K | AT61: 42 | AU61: =+AU60 -> E | BD61: 0 | BF61: =IF(#REF!="",I61,#REF!) ->  | BI61: =IF(ISNA(IF(VLOOKUP($B61,'D2'!$A$2011:$BQ$2611,$BI$5,0)="",-100,VLOOKUP($B61,'D2'!$A$2011:$BQ$2611,$BI$5,0))),-100,IF(VLOOKUP($B61,'D2'!$A$2011:$BQ$2611,$BI$5,0)="",-100,VLOOKUP($B61,'D2'!$A$2011:$BQ$2611,$BI$5,0))) -> -100 | BJ61: =IF(BI61="","",VLOOKUP($B61,'D2'!$A$2011:$JJ$2550,$BI$5+63,0)) ->  | BK61: =IF(ISNA(IF(VLOOKUP($B61,'D2'!$H$11:$BQ$611,$V$3,0)="",-100,VLOOKUP($B61,'D2'!$H$11:$BQ$611,$V$3,0))),-100,IF(VLOOKUP($B61,'D2'!$H$11:$BQ$611,$V$3,0)="",-100,VLOOKUP($B61,'D2'!$H$11:$BQ$611,$V$3,0))) -> -100 | BL61: =IF(BK61="","",RIGHT(VLOOKUP($B61,'D2'!$H$11:$JJ$550,$V$3+1,0),2)) ->  | BM61: 1 | BO61: 42 | BP61: =+BP60 -> E
A62: 55 | AB62: 1 | AC62: PMKN | AD62: 7203 | AE62: Pemprosesan Makanan | AF62: PMKN | AG62: A | AL62: K | AT62: 41 | AU62: =+AU61 -> E | BD62: 0 | BF62: =IF(#REF!="",I62,#REF!) ->  | BI62: =IF(ISNA(IF(VLOOKUP($B62,'D2'!$A$2011:$BQ$2611,$BI$5,0)="",-100,VLOOKUP($B62,'D2'!$A$2011:$BQ$2611,$BI$5,0))),-100,IF(VLOOKUP($B62,'D2'!$A$2011:$BQ$2611,$BI$5,0)="",-100,VLOOKUP($B62,'D2'!$A$2011:$BQ$2611,$BI$5,0))) -> -100 | BJ62: =IF(BI62="","",VLOOKUP($B62,'D2'!$A$2011:$JJ$2550,$BI$5+63,0)) ->  | BK62: =IF(ISNA(IF(VLOOKUP($B62,'D2'!$H$11:$BQ$611,$V$3,0)="",-100,VLOOKUP($B62,'D2'!$H$11:$BQ$611,$V$3,0))),-100,IF(VLOOKUP($B62,'D2'!$H$11:$BQ$611,$V$3,0)="",-100,VLOOKUP($B62,'D2'!$H$11:$BQ$611,$V$3,0))) -> -100 | BL62: =IF(BK62="","",RIGHT(VLOOKUP($B62,'D2'!$H$11:$JJ$550,$V$3+1,0),2)) ->  | BM62: 1 | BO62: 41 | BP62: =+BP61 -> E
A63: 56 | AB63: 1 | AC63: PMDR | AD63: 7204 | AE63: Penjagaan Muka dan Dandanan Rambut | AF63: PMDR | AG63: A | AL63: K | AT63: 40 | AU63: =+AU62 -> E | BD63: 0 | BF63: =IF(#REF!="",I63,#REF!) ->  | BI63: =IF(ISNA(IF(VLOOKUP($B63,'D2'!$A$2011:$BQ$2611,$BI$5,0)="",-100,VLOOKUP($B63,'D2'!$A$2011:$BQ$2611,$BI$5,0))),-100,IF(VLOOKUP($B63,'D2'!$A$2011:$BQ$2611,$BI$5,0)="",-100,VLOOKUP($B63,'D2'!$A$2011:$BQ$2611,$BI$5,0))) -> -100 | BJ63: =IF(BI63="","",VLOOKUP($B63,'D2'!$A$2011:$JJ$2550,$BI$5+63,0)) ->  | BK63: =IF(ISNA(IF(VLOOKUP($B63,'D2'!$H$11:$BQ$611,$V$3,0)="",-100,VLOOKUP($B63,'D2'!$H$11:$BQ$611,$V$3,0))),-100,IF(VLOOKUP($B63,'D2'!$H$11:$BQ$611,$V$3,0)="",-100,VLOOKUP($B63,'D2'!$H$11:$BQ$611,$V$3,0))) -> -100 | BL63: =IF(BK63="","",RIGHT(VLOOKUP($B63,'D2'!$H$11:$JJ$550,$V$3+1,0),2)) ->  | BM63: 1 | BO63: 40 | BP63: =+BP62 -> E
A64: 57 | AB64: 1 | AC64: Z | AD64: 7205 | AE64: Asuhan dan Pendidikan Awal Kanak-Kanak | AF64: Z | AL64: K | AT64: 39 | AU64: G | BD64: 0 | BF64: =IF(#REF!="",I64,#REF!) ->  | BI64: =IF(ISNA(IF(VLOOKUP($B64,'D2'!$A$2011:$BQ$2611,$BI$5,0)="",-100,VLOOKUP($B64,'D2'!$A$2011:$BQ$2611,$BI$5,0))),-100,IF(VLOOKUP($B64,'D2'!$A$2011:$BQ$2611,$BI$5,0)="",-100,VLOOKUP($B64,'D2'!$A$2011:$BQ$2611,$BI$5,0))) -> -100 | BJ64: =IF(BI64="","",VLOOKUP($B64,'D2'!$A$2011:$JJ$2550,$BI$5+63,0)) ->  | BK64: =IF(ISNA(IF(VLOOKUP($B64,'D2'!$H$11:$BQ$611,$V$3,0)="",-100,VLOOKUP($B64,'D2'!$H$11:$BQ$611,$V$3,0))),-100,IF(VLOOKUP($B64,'D2'!$H$11:$BQ$611,$V$3,0)="",-100,VLOOKUP($B64,'D2'!$H$11:$BQ$611,$V$3,0))) -> -100 | BL64: =IF(BK64="","",RIGHT(VLOOKUP($B64,'D2'!$H$11:$JJ$550,$V$3+1,0),2)) ->  | BM64: 1 | BO64: 39 | BP64: G
A65: 58 | AB65: 1 | AC65: Z | AD65: 7206 | AE65: Gerontologi Asas dan Perkhidmatan Geriatrik | AF65: Z | AL65: K | AT65: 38 | AU65: =+AU64 -> G | BD65: 0 | BF65: =IF(#REF!="",I65,#REF!) ->  | BI65: =IF(ISNA(IF(VLOOKUP($B65,'D2'!$A$2011:$BQ$2611,$BI$5,0)="",-100,VLOOKUP($B65,'D2'!$A$2011:$BQ$2611,$BI$5,0))),-100,IF(VLOOKUP($B65,'D2'!$A$2011:$BQ$2611,$BI$5,0)="",-100,VLOOKUP($B65,'D2'!$A$2011:$BQ$2611,$BI$5,0))) -> -100 | BJ65: =IF(BI65="","",VLOOKUP($B65,'D2'!$A$2011:$JJ$2550,$BI$5+63,0)) ->  | BK65: =IF(ISNA(IF(VLOOKUP($B65,'D2'!$H$11:$BQ$611,$V$3,0)="",-100,VLOOKUP($B65,'D2'!$H$11:$BQ$611,$V$3,0))),-100,IF(VLOOKUP($B65,'D2'!$H$11:$BQ$611,$V$3,0)="",-100,VLOOKUP($B65,'D2'!$H$11:$BQ$611,$V$3,0))) -> -100 | BL65: =IF(BK65="","",RIGHT(VLOOKUP($B65,'D2'!$H$11:$JJ$550,$V$3+1,0),2)) ->  | BM65: 1 | BO65: 38 | BP65: =+BP64 -> G
A66: 59 | AB66: 1 | AC66: LDN | AD66: 7301 | AE66: Lanskap dan Nurseri | AF66: LDN | AG66: A | AL66: K | AT66: 37 | AU66: G | BD66: 0 | BF66: =IF(#REF!="",I66,#REF!) ->  | BI66: =IF(ISNA(IF(VLOOKUP($B66,'D2'!$A$2011:$BQ$2611,$BI$5,0)="",-100,VLOOKUP($B66,'D2'!$A$2011:$BQ$2611,$BI$5,0))),-100,IF(VLOOKUP($B66,'D2'!$A$2011:$BQ$2611,$BI$5,0)="",-100,VLOOKUP($B66,'D2'!$A$2011:$BQ$2611,$BI$5,0))) -> -100 | BJ66: =IF(BI66="","",VLOOKUP($B66,'D2'!$A$2011:$JJ$2550,$BI$5+63,0)) ->  | BK66: =IF(ISNA(IF(VLOOKUP($B66,'D2'!$H$11:$BQ$611,$V$3,0)="",-100,VLOOKUP($B66,'D2'!$H$11:$BQ$611,$V$3,0))),-100,IF(VLOOKUP($B66,'D2'!$H$11:$BQ$611,$V$3,0)="",-100,VLOOKUP($B66,'D2'!$H$11:$BQ$611,$V$3,0))) -> -100 | BL66: =IF(BK66="","",RIGHT(VLOOKUP($B66,'D2'!$H$11:$JJ$550,$V$3+1,0),2)) ->  | BM66: 1 | BO66: 37 | BP66: G
A67: 60 | AB67: 1 | AC67: AHR | AD67: 7302 | AE67: Akuakultur dan Haiwan Rekreasi | AF67: AHR | AG67: A | AL67: K | AT67: 36 | AU67: G | BD67: 0 | BF67: =IF(#REF!="",I67,#REF!) ->  | BI67: =IF(ISNA(IF(VLOOKUP($B67,'D2'!$A$2011:$BQ$2611,$BI$5,0)="",-100,VLOOKUP($B67,'D2'!$A$2011:$BQ$2611,$BI$5,0))),-100,IF(VLOOKUP($B67,'D2'!$A$2011:$BQ$2611,$BI$5,0)="",-100,VLOOKUP($B67,'D2'!$A$2011:$BQ$2611,$BI$5,0))) -> -100 | BJ67: =IF(BI67="","",VLOOKUP($B67,'D2'!$A$2011:$JJ$2550,$BI$5+63,0)) ->  | BK67: =IF(ISNA(IF(VLOOKUP($B67,'D2'!$H$11:$BQ$611,$V$3,0)="",-100,VLOOKUP($B67,'D2'!$H$11:$BQ$611,$V$3,0))),-100,IF(VLOOKUP($B67,'D2'!$H$11:$BQ$611,$V$3,0)="",-100,VLOOKUP($B67,'D2'!$H$11:$BQ$611,$V$3,0))) -> -100 | BL67: =IF(BK67="","",RIGHT(VLOOKUP($B67,'D2'!$H$11:$JJ$550,$V$3+1,0),2)) ->  | BM67: 1 | BO67: 36 | BP67: G
A68: 61 | AB68: 1 | AC68: TMN | AD68: 7303 | AE68: Tanaman Makanan | AF68: TMN | AG68: A | AL68: K | AT68: =+AT67-1 -> 35 | AU68: G | BD68: 0 | BF68: =IF(#REF!="",I68,#REF!) ->  | BI68: =IF(ISNA(IF(VLOOKUP($B68,'D2'!$A$2011:$BQ$2611,$BI$5,0)="",-100,VLOOKUP($B68,'D2'!$A$2011:$BQ$2611,$BI$5,0))),-100,IF(VLOOKUP($B68,'D2'!$A$2011:$BQ$2611,$BI$5,0)="",-100,VLOOKUP($B68,'D2'!$A$2011:$BQ$2611,$BI$5,0))) -> -100 | BJ68: =IF(BI68="","",VLOOKUP($B68,'D2'!$A$2011:$JJ$2550,$BI$5+63,0)) ->  | BK68: =IF(ISNA(IF(VLOOKUP($B68,'D2'!$H$11:$BQ$611,$V$3,0)="",-100,VLOOKUP($B68,'D2'!$H$11:$BQ$611,$V$3,0))),-100,IF(VLOOKUP($B68,'D2'!$H$11:$BQ$611,$V$3,0)="",-100,VLOOKUP($B68,'D2'!$H$11:$BQ$611,$V$3,0))) -> -100 | BL68: =IF(BK68="","",RIGHT(VLOOKUP($B68,'D2'!$H$11:$JJ$550,$V$3+1,0),2)) ->  | BM68: 1 | BO68: =+BO67-1 -> 35 | BP68: G
A69: 62 | AB69: 1 | AC69: SRT | AD69: 7401 | AE69: Seni Reka Tanda | AF69: SRT | AG69: A | AL69: K | AT69: 34 | AU69: G | BD69: 0 | BF69: =IF(#REF!="",I69,#REF!) ->  | BI69: =IF(ISNA(IF(VLOOKUP($B69,'D2'!$A$2011:$BQ$2611,$BI$5,0)="",-100,VLOOKUP($B69,'D2'!$A$2011:$BQ$2611,$BI$5,0))),-100,IF(VLOOKUP($B69,'D2'!$A$2011:$BQ$2611,$BI$5,0)="",-100,VLOOKUP($B69,'D2'!$A$2011:$BQ$2611,$BI$5,0))) -> -100 | BJ69: =IF(BI69="","",VLOOKUP($B69,'D2'!$A$2011:$JJ$2550,$BI$5+63,0)) ->  | BK69: =IF(ISNA(IF(VLOOKUP($B69,'D2'!$H$11:$BQ$611,$V$3,0)="",-100,VLOOKUP($B69,'D2'!$H$11:$BQ$611,$V$3,0))),-100,IF(VLOOKUP($B69,'D2'!$H$11:$BQ$611,$V$3,0)="",-100,VLOOKUP($B69,'D2'!$H$11:$BQ$611,$V$3,0))) -> -100 | BL69: =IF(BK69="","",RIGHT(VLOOKUP($B69,'D2'!$H$11:$JJ$550,$V$3+1,0),2)) ->  | BM69: 1 | BO69: 34 | BP69: G
A70: 63 | AB70: 1 | AC70: HDA | AD70: 7402 | AE70: Hiasan Dalaman Asas | AF70: HDA | AG70: A | AL70: K | AT70: 33 | AU70: G | BD70: 0 | BF70: =IF(#REF!="",I70,#REF!) ->  | BI70: =IF(ISNA(IF(VLOOKUP($B70,'D2'!$A$2011:$BQ$2611,$BI$5,0)="",-100,VLOOKUP($B70,'D2'!$A$2011:$BQ$2611,$BI$5,0))),-100,IF(VLOOKUP($B70,'D2'!$A$2011:$BQ$2611,$BI$5,0)="",-100,VLOOKUP($B70,'D2'!$A$2011:$BQ$2611,$BI$5,0))) -> -100 | BJ70: =IF(BI70="","",VLOOKUP($B70,'D2'!$A$2011:$JJ$2550,$BI$5+63,0)) ->  | BK70: =IF(ISNA(IF(VLOOKUP($B70,'D2'!$H$11:$BQ$611,$V$3,0)="",-100,VLOOKUP($B70,'D2'!$H$11:$BQ$611,$V$3,0))),-100,IF(VLOOKUP($B70,'D2'!$H$11:$BQ$611,$V$3,0)="",-100,VLOOKUP($B70,'D2'!$H$11:$BQ$611,$V$3,0))) -> -100 | BL70: =IF(BK70="","",RIGHT(VLOOKUP($B70,'D2'!$H$11:$JJ$550,$V$3+1,0),2)) ->  | BM70: 1 | BO70: 33 | BP70: G
A71: 64 | AB71: 1 | AC71: PDM | AD71: 7403 | AE71: Produksi Multimedia | AF71: PDM | AG71: A | AL71: K | AN71: =VLOOKUP(AL71,$AQ$3:$AS$22,2,0) ->  | AO71: =VLOOKUP(AL71,$AQ$3:$AS$22,3,0) ->  | AT71: 32 | AU71: G | BD71: 0 | BF71: =IF(#REF!="",I71,#REF!) ->  | BI71: =IF(ISNA(IF(VLOOKUP($B71,'D2'!$A$2011:$BQ$2611,$BI$5,0)="",-100,VLOOKUP($B71,'D2'!$A$2011:$BQ$2611,$BI$5,0))),-100,IF(VLOOKUP($B71,'D2'!$A$2011:$BQ$2611,$BI$5,0)="",-100,VLOOKUP($B71,'D2'!$A$2011:$BQ$2611,$BI$5,0))) -> -100 | BJ71: =IF(BI71="","",VLOOKUP($B71,'D2'!$A$2011:$JJ$2550,$BI$5+63,0)) ->  | BK71: =IF(ISNA(IF(VLOOKUP($B71,'D2'!$H$11:$BQ$611,$V$3,0)="",-100,VLOOKUP($B71,'D2'!$H$11:$BQ$611,$V$3,0))),-100,IF(VLOOKUP($B71,'D2'!$H$11:$BQ$611,$V$3,0)="",-100,VLOOKUP($B71,'D2'!$H$11:$BQ$611,$V$3,0))) -> -100 | BL71: =IF(BK71="","",RIGHT(VLOOKUP($B71,'D2'!$H$11:$JJ$550,$V$3+1,0),2)) ->  | BM71: 1 | BO71: 32 | BP71: G
A72: 65 | AB72: 1 | AC72: GBK | AD72: 7404 | AE72: Grafik Berkomputer | AF72: GBK | AG72: A | AL72: K | AT72: 31 | AU72: G | BD72: 0 | BF72: =IF(#REF!="",I72,#REF!) ->  | BI72: =IF(ISNA(IF(VLOOKUP($B72,'D2'!$A$2011:$BQ$2611,$BI$5,0)="",-100,VLOOKUP($B72,'D2'!$A$2011:$BQ$2611,$BI$5,0))),-100,IF(VLOOKUP($B72,'D2'!$A$2011:$BQ$2611,$BI$5,0)="",-100,VLOOKUP($B72,'D2'!$A$2011:$BQ$2611,$BI$5,0))) -> -100 | BJ72: =IF(BI72="","",VLOOKUP($B72,'D2'!$A$2011:$JJ$2550,$BI$5+63,0)) ->  | BK72: =IF(ISNA(IF(VLOOKUP($B72,'D2'!$H$11:$BQ$611,$V$3,0)="",-100,VLOOKUP($B72,'D2'!$H$11:$BQ$611,$V$3,0))),-100,IF(VLOOKUP($B72,'D2'!$H$11:$BQ$611,$V$3,0)="",-100,VLOOKUP($B72,'D2'!$H$11:$BQ$611,$V$3,0))) -> -100 | BL72: =IF(BK72="","",RIGHT(VLOOKUP($B72,'D2'!$H$11:$JJ$550,$V$3+1,0),2)) ->  | BM72: 1 | BO72: 31 | BP72: G
A73: 66 | AB73: =IF(ISNA(VLOOKUP(AC73,$AT$5:$AU$36,2,0)),AB72,AB72+1) -> 1 | AC73: KC | AD73: 9216 | AE73: Kesusasteraan Cina | AF73: KC | AG73: A | AL73: K | AT73: 30 | AU73: G | BD73: =IF(L73="",E73,L73) -> 0 | BE73: =VLOOKUP(BD73,$AT$3:$AU$102,2,0) ->  | BF73: =IF(#REF!="",I73,#REF!) ->  | BG73: =VLOOKUP(BF73,$AT$3:$AU$102,2,0) ->  | BI73: =IF(ISNA(IF(VLOOKUP($B73,'D2'!$A$2011:$BQ$2611,$BI$5,0)="",-100,VLOOKUP($B73,'D2'!$A$2011:$BQ$2611,$BI$5,0))),-100,IF(VLOOKUP($B73,'D2'!$A$2011:$BQ$2611,$BI$5,0)="",-100,VLOOKUP($B73,'D2'!$A$2011:$BQ$2611,$BI$5,0))) -> -100 | BJ73: =IF(BI73="","",VLOOKUP($B73,'D2'!$A$2011:$JJ$2550,$BI$5+63,0)) ->  | BK73: =IF(ISNA(IF(VLOOKUP($B73,'D2'!$H$11:$BQ$611,$V$3,0)="",-100,VLOOKUP($B73,'D2'!$H$11:$BQ$611,$V$3,0))),-100,IF(VLOOKUP($B73,'D2'!$H$11:$BQ$611,$V$3,0)="",-100,VLOOKUP($B73,'D2'!$H$11:$BQ$611,$V$3,0))) -> -100 | BL73: =IF(BK73="","",RIGHT(VLOOKUP($B73,'D2'!$H$11:$JJ$550,$V$3+1,0),2)) ->  | BM73: =IF(ISNA(D73),0,1) -> 1 | BO73: 30 | BP73: G | BR73: =FIND("[",D73) ->  | BS73: =IF(BR73=1,MID(D73,BR73+1,LEN(D73)-(BR73+1))) -> 
A74: 67 | AB74: 1 | AC74: KBT | AD74: 9217 | AE74: Kesusasteraan Tamil | AF74: KBT | AG74: A | AL74: K | AT74: 29 | AU74: G | BD74: 0 | BF74: =IF(#REF!="",I74,#REF!) ->  | BI74: =IF(ISNA(IF(VLOOKUP($B74,'D2'!$A$2011:$BQ$2611,$BI$5,0)="",-100,VLOOKUP($B74,'D2'!$A$2011:$BQ$2611,$BI$5,0))),-100,IF(VLOOKUP($B74,'D2'!$A$2011:$BQ$2611,$BI$5,0)="",-100,VLOOKUP($B74,'D2'!$A$2011:$BQ$2611,$BI$5,0))) -> -100 | BJ74: =IF(BI74="","",VLOOKUP($B74,'D2'!$A$2011:$JJ$2550,$BI$5+63,0)) ->  | BK74: =IF(ISNA(IF(VLOOKUP($B74,'D2'!$H$11:$BQ$611,$V$3,0)="",-100,VLOOKUP($B74,'D2'!$H$11:$BQ$611,$V$3,0))),-100,IF(VLOOKUP($B74,'D2'!$H$11:$BQ$611,$V$3,0)="",-100,VLOOKUP($B74,'D2'!$H$11:$BQ$611,$V$3,0))) -> -100 | BL74: =IF(BK74="","",RIGHT(VLOOKUP($B74,'D2'!$H$11:$JJ$550,$V$3+1,0),2)) ->  | BM74: 1 | BO74: 29 | BP74: G
A75: 68 | AB75: 1 | AC75: Z | AD75: 9221 | AE75: Bible Knowledge | AF75: Z | AL75: K | AT75: 28 | AU75: G | BD75: 0 | BF75: =IF(#REF!="",I75,#REF!) ->  | BI75: =IF(ISNA(IF(VLOOKUP($B75,'D2'!$A$2011:$BQ$2611,$BI$5,0)="",-100,VLOOKUP($B75,'D2'!$A$2011:$BQ$2611,$BI$5,0))),-100,IF(VLOOKUP($B75,'D2'!$A$2011:$BQ$2611,$BI$5,0)="",-100,VLOOKUP($B75,'D2'!$A$2011:$BQ$2611,$BI$5,0))) -> -100 | BJ75: =IF(BI75="","",VLOOKUP($B75,'D2'!$A$2011:$JJ$2550,$BI$5+63,0)) ->  | BK75: =IF(ISNA(IF(VLOOKUP($B75,'D2'!$H$11:$BQ$611,$V$3,0)="",-100,VLOOKUP($B75,'D2'!$H$11:$BQ$611,$V$3,0))),-100,IF(VLOOKUP($B75,'D2'!$H$11:$BQ$611,$V$3,0)="",-100,VLOOKUP($B75,'D2'!$H$11:$BQ$611,$V$3,0))) -> -100 | BL75: =IF(BK75="","",RIGHT(VLOOKUP($B75,'D2'!$H$11:$JJ$550,$V$3+1,0),2)) ->  | BM75: 1 | BO75: 28 | BP75: G
A76: 69 | AB76: 1 | AC76: Z | AD76: 9303 | AE76: Bahasa Perancis | AF76: Z | AL76: K | AT76: 27 | AU76: G | BD76: 0 | BF76: =IF(#REF!="",I76,#REF!) ->  | BI76: =IF(ISNA(IF(VLOOKUP($B76,'D2'!$A$2011:$BQ$2611,$BI$5,0)="",-100,VLOOKUP($B76,'D2'!$A$2011:$BQ$2611,$BI$5,0))),-100,IF(VLOOKUP($B76,'D2'!$A$2011:$BQ$2611,$BI$5,0)="",-100,VLOOKUP($B76,'D2'!$A$2011:$BQ$2611,$BI$5,0))) -> -100 | BJ76: =IF(BI76="","",VLOOKUP($B76,'D2'!$A$2011:$JJ$2550,$BI$5+63,0)) ->  | BK76: =IF(ISNA(IF(VLOOKUP($B76,'D2'!$H$11:$BQ$611,$V$3,0)="",-100,VLOOKUP($B76,'D2'!$H$11:$BQ$611,$V$3,0))),-100,IF(VLOOKUP($B76,'D2'!$H$11:$BQ$611,$V$3,0)="",-100,VLOOKUP($B76,'D2'!$H$11:$BQ$611,$V$3,0))) -> -100 | BL76: =IF(BK76="","",RIGHT(VLOOKUP($B76,'D2'!$H$11:$JJ$550,$V$3+1,0),2)) ->  | BM76: 1 | BO76: 27 | BP76: G
A77: 70 | AB77: 1 | AC77: Z | AD77: 9378 | AE77: Bahasa Punjabi | AF77: Z | AL77: K | AT77: 26 | AU77: G | BD77: 0 | BF77: =IF(#REF!="",I77,#REF!) ->  | BI77: =IF(ISNA(IF(VLOOKUP($B77,'D2'!$A$2011:$BQ$2611,$BI$5,0)="",-100,VLOOKUP($B77,'D2'!$A$2011:$BQ$2611,$BI$5,0))),-100,IF(VLOOKUP($B77,'D2'!$A$2011:$BQ$2611,$BI$5,0)="",-100,VLOOKUP($B77,'D2'!$A$2011:$BQ$2611,$BI$5,0))) -> -100 | BJ77: =IF(BI77="","",VLOOKUP($B77,'D2'!$A$2011:$JJ$2550,$BI$5+63,0)) ->  | BK77: =IF(ISNA(IF(VLOOKUP($B77,'D2'!$H$11:$BQ$611,$V$3,0)="",-100,VLOOKUP($B77,'D2'!$H$11:$BQ$611,$V$3,0))),-100,IF(VLOOKUP($B77,'D2'!$H$11:$BQ$611,$V$3,0)="",-100,VLOOKUP($B77,'D2'!$H$11:$BQ$611,$V$3,0))) -> -100 | BL77: =IF(BK77="","",RIGHT(VLOOKUP($B77,'D2'!$H$11:$JJ$550,$V$3+1,0),2)) ->  | BM77: 1 | BO77: 26 | BP77: G
A78: 71 | AB78: 1 | AC78: KAQ | AD78: 8001 | AE78: Kemahiran Al Quran | AF78: KAQ | AG78: A | AL78: K | AT78: 25 | AU78: G | BD78: 0 | BF78: =IF(#REF!="",I78,#REF!) ->  | BI78: =IF(ISNA(IF(VLOOKUP($B78,'D2'!$A$2011:$BQ$2611,$BI$5,0)="",-100,VLOOKUP($B78,'D2'!$A$2011:$BQ$2611,$BI$5,0))),-100,IF(VLOOKUP($B78,'D2'!$A$2011:$BQ$2611,$BI$5,0)="",-100,VLOOKUP($B78,'D2'!$A$2011:$BQ$2611,$BI$5,0))) -> -100 | BJ78: =IF(BI78="","",VLOOKUP($B78,'D2'!$A$2011:$JJ$2550,$BI$5+63,0)) ->  | BK78: =IF(ISNA(IF(VLOOKUP($B78,'D2'!$H$11:$BQ$611,$V$3,0)="",-100,VLOOKUP($B78,'D2'!$H$11:$BQ$611,$V$3,0))),-100,IF(VLOOKUP($B78,'D2'!$H$11:$BQ$611,$V$3,0)="",-100,VLOOKUP($B78,'D2'!$H$11:$BQ$611,$V$3,0))) -> -100 | BL78: =IF(BK78="","",RIGHT(VLOOKUP($B78,'D2'!$H$11:$JJ$550,$V$3+1,0),2)) ->  | BM78: 1 | BO78: 25 | BP78: G
A79: 72 | AB79: 1 | AC79: MTDLP | AD79: 8002 | AE79: Matematik Tambahan DLP | AF79: MTDLP | AG79: A | AL79: K | AT79: 24 | AU79: G | BD79: 0 | BF79: =IF(#REF!="",I79,#REF!) ->  | BI79: =IF(ISNA(IF(VLOOKUP($B79,'D2'!$A$2011:$BQ$2611,$BI$5,0)="",-100,VLOOKUP($B79,'D2'!$A$2011:$BQ$2611,$BI$5,0))),-100,IF(VLOOKUP($B79,'D2'!$A$2011:$BQ$2611,$BI$5,0)="",-100,VLOOKUP($B79,'D2'!$A$2011:$BQ$2611,$BI$5,0))) -> -100 | BJ79: =IF(BI79="","",VLOOKUP($B79,'D2'!$A$2011:$JJ$2550,$BI$5+63,0)) ->  | BK79: =IF(ISNA(IF(VLOOKUP($B79,'D2'!$H$11:$BQ$611,$V$3,0)="",-100,VLOOKUP($B79,'D2'!$H$11:$BQ$611,$V$3,0))),-100,IF(VLOOKUP($B79,'D2'!$H$11:$BQ$611,$V$3,0)="",-100,VLOOKUP($B79,'D2'!$H$11:$BQ$611,$V$3,0))) -> -100 | BL79: =IF(BK79="","",RIGHT(VLOOKUP($B79,'D2'!$H$11:$JJ$550,$V$3+1,0),2)) ->  | BM79: 1 | BO79: 24 | BP79: G
A80: 73 | AB80: 1 | AC80: MMADLP | AD80: 8003 | AE80: Matematik DLP | AF80: MMADLP | AG80: A | AL80: K | AT80: 23 | AU80: G | BD80: 0 | BF80: =IF(#REF!="",I80,#REF!) ->  | BI80: =IF(ISNA(IF(VLOOKUP($B80,'D2'!$A$2011:$BQ$2611,$BI$5,0)="",-100,VLOOKUP($B80,'D2'!$A$2011:$BQ$2611,$BI$5,0))),-100,IF(VLOOKUP($B80,'D2'!$A$2011:$BQ$2611,$BI$5,0)="",-100,VLOOKUP($B80,'D2'!$A$2011:$BQ$2611,$BI$5,0))) -> -100 | BJ80: =IF(BI80="","",VLOOKUP($B80,'D2'!$A$2011:$JJ$2550,$BI$5+63,0)) ->  | BK80: =IF(ISNA(IF(VLOOKUP($B80,'D2'!$H$11:$BQ$611,$V$3,0)="",-100,VLOOKUP($B80,'D2'!$H$11:$BQ$611,$V$3,0))),-100,IF(VLOOKUP($B80,'D2'!$H$11:$BQ$611,$V$3,0)="",-100,VLOOKUP($B80,'D2'!$H$11:$BQ$611,$V$3,0))) -> -100 | BL80: =IF(BK80="","",RIGHT(VLOOKUP($B80,'D2'!$H$11:$JJ$550,$V$3+1,0),2)) ->  | BM80: 1 | BO80: 23 | BP80: G
A81: 74 | AB81: 1 | AC81: BDLP | AD81: 8004 | AE81: Biologi DLP | AF81: BDLP | AG81: A | AL81: K | AT81: 22 | AU81: G | BD81: 0 | BF81: =IF(#REF!="",I81,#REF!) ->  | BI81: =IF(ISNA(IF(VLOOKUP($B81,'D2'!$A$2011:$BQ$2611,$BI$5,0)="",-100,VLOOKUP($B81,'D2'!$A$2011:$BQ$2611,$BI$5,0))),-100,IF(VLOOKUP($B81,'D2'!$A$2011:$BQ$2611,$BI$5,0)="",-100,VLOOKUP($B81,'D2'!$A$2011:$BQ$2611,$BI$5,0))) -> -100 | BJ81: =IF(BI81="","",VLOOKUP($B81,'D2'!$A$2011:$JJ$2550,$BI$5+63,0)) ->  | BK81: =IF(ISNA(IF(VLOOKUP($B81,'D2'!$H$11:$BQ$611,$V$3,0)="",-100,VLOOKUP($B81,'D2'!$H$11:$BQ$611,$V$3,0))),-100,IF(VLOOKUP($B81,'D2'!$H$11:$BQ$611,$V$3,0)="",-100,VLOOKUP($B81,'D2'!$H$11:$BQ$611,$V$3,0))) -> -100 | BL81: =IF(BK81="","",RIGHT(VLOOKUP($B81,'D2'!$H$11:$JJ$550,$V$3+1,0),2)) ->  | BM81: 1 | BO81: 22 | BP81: G
A82: 75 | AB82: 1 | AC82: KDLP | AD82: 8005 | AE82: KIMIA DLP | AF82: KDLP | AG82: A | AL82: K | AT82: 21 | AU82: G | BD82: 0 | BF82: =IF(#REF!="",I82,#REF!) ->  | BI82: =IF(ISNA(IF(VLOOKUP($B82,'D2'!$A$2011:$BQ$2611,$BI$5,0)="",-100,VLOOKUP($B82,'D2'!$A$2011:$BQ$2611,$BI$5,0))),-100,IF(VLOOKUP($B82,'D2'!$A$2011:$BQ$2611,$BI$5,0)="",-100,VLOOKUP($B82,'D2'!$A$2011:$BQ$2611,$BI$5,0))) -> -100 | BJ82: =IF(BI82="","",VLOOKUP($B82,'D2'!$A$2011:$JJ$2550,$BI$5+63,0)) ->  | BK82: =IF(ISNA(IF(VLOOKUP($B82,'D2'!$H$11:$BQ$611,$V$3,0)="",-100,VLOOKUP($B82,'D2'!$H$11:$BQ$611,$V$3,0))),-100,IF(VLOOKUP($B82,'D2'!$H$11:$BQ$611,$V$3,0)="",-100,VLOOKUP($B82,'D2'!$H$11:$BQ$611,$V$3,0))) -> -100 | BL82: =IF(BK82="","",RIGHT(VLOOKUP($B82,'D2'!$H$11:$JJ$550,$V$3+1,0),2)) ->  | BM82: 1 | BO82: 21 | BP82: G
A83: 76 | AB83: 1 | AC83: FDLP | AD83: 8006 | AE83: FIZIK DLP | AF83: FDLP | AG83: A | AL83: K | AT83: 20 | AU83: G | BD83: 0 | BF83: =IF(#REF!="",I83,#REF!) ->  | BI83: =IF(ISNA(IF(VLOOKUP($B83,'D2'!$A$2011:$BQ$2611,$BI$5,0)="",-100,VLOOKUP($B83,'D2'!$A$2011:$BQ$2611,$BI$5,0))),-100,IF(VLOOKUP($B83,'D2'!$A$2011:$BQ$2611,$BI$5,0)="",-100,VLOOKUP($B83,'D2'!$A$2011:$BQ$2611,$BI$5,0))) -> -100 | BJ83: =IF(BI83="","",VLOOKUP($B83,'D2'!$A$2011:$JJ$2550,$BI$5+63,0)) ->  | BK83: =IF(ISNA(IF(VLOOKUP($B83,'D2'!$H$11:$BQ$611,$V$3,0)="",-100,VLOOKUP($B83,'D2'!$H$11:$BQ$611,$V$3,0))),-100,IF(VLOOKUP($B83,'D2'!$H$11:$BQ$611,$V$3,0)="",-100,VLOOKUP($B83,'D2'!$H$11:$BQ$611,$V$3,0))) -> -100 | BL83: =IF(BK83="","",RIGHT(VLOOKUP($B83,'D2'!$H$11:$JJ$550,$V$3+1,0),2)) ->  | BM83: 1 | BO83: 20 | BP83: G
A84: 77 | AB84: 1 | AC84: STDLP | AD84: 8007 | AE84: Sains Tambahan DLP | AF84: STDLP | AG84: A | AL84: K | AT84: 19 | AU84: G | BD84: 0 | BF84: =IF(#REF!="",I84,#REF!) ->  | BI84: =IF(ISNA(IF(VLOOKUP($B84,'D2'!$A$2011:$BQ$2611,$BI$5,0)="",-100,VLOOKUP($B84,'D2'!$A$2011:$BQ$2611,$BI$5,0))),-100,IF(VLOOKUP($B84,'D2'!$A$2011:$BQ$2611,$BI$5,0)="",-100,VLOOKUP($B84,'D2'!$A$2011:$BQ$2611,$BI$5,0))) -> -100 | BJ84: =IF(BI84="","",VLOOKUP($B84,'D2'!$A$2011:$JJ$2550,$BI$5+63,0)) ->  | BK84: =IF(ISNA(IF(VLOOKUP($B84,'D2'!$H$11:$BQ$611,$V$3,0)="",-100,VLOOKUP($B84,'D2'!$H$11:$BQ$611,$V$3,0))),-100,IF(VLOOKUP($B84,'D2'!$H$11:$BQ$611,$V$3,0)="",-100,VLOOKUP($B84,'D2'!$H$11:$BQ$611,$V$3,0))) -> -100 | BL84: =IF(BK84="","",RIGHT(VLOOKUP($B84,'D2'!$H$11:$JJ$550,$V$3+1,0),2)) ->  | BM84: 1 | BO84: 19 | BP84: G
A85: 78 | AB85: 1 | AC85: SMADLP | AD85: 8008 | AE85: Sains DLP | AF85: SMADLP | AG85: A | AL85: K | AT85: 18 | AU85: G | BD85: 0 | BF85: =IF(#REF!="",I85,#REF!) ->  | BI85: =IF(ISNA(IF(VLOOKUP($B85,'D2'!$A$2011:$BQ$2611,$BI$5,0)="",-100,VLOOKUP($B85,'D2'!$A$2011:$BQ$2611,$BI$5,0))),-100,IF(VLOOKUP($B85,'D2'!$A$2011:$BQ$2611,$BI$5,0)="",-100,VLOOKUP($B85,'D2'!$A$2011:$BQ$2611,$BI$5,0))) -> -100 | BJ85: =IF(BI85="","",VLOOKUP($B85,'D2'!$A$2011:$JJ$2550,$BI$5+63,0)) ->  | BK85: =IF(ISNA(IF(VLOOKUP($B85,'D2'!$H$11:$BQ$611,$V$3,0)="",-100,VLOOKUP($B85,'D2'!$H$11:$BQ$611,$V$3,0))),-100,IF(VLOOKUP($B85,'D2'!$H$11:$BQ$611,$V$3,0)="",-100,VLOOKUP($B85,'D2'!$H$11:$BQ$611,$V$3,0))) -> -100 | BL85: =IF(BK85="","",RIGHT(VLOOKUP($B85,'D2'!$H$11:$JJ$550,$V$3+1,0),2)) ->  | BM85: 1 | BO85: 18 | BP85: G
A86: 79 | AB86: 1 | AC86: BAT | AD86: 8009 | AE86: Bahasa Arab Tinggi | AF86: BAT | AG86: A | AL86: K | AT86: 17 | AU86: G | BD86: 0 | BF86: =IF(#REF!="",I86,#REF!) ->  | BI86: =IF(ISNA(IF(VLOOKUP($B86,'D2'!$A$2011:$BQ$2611,$BI$5,0)="",-100,VLOOKUP($B86,'D2'!$A$2011:$BQ$2611,$BI$5,0))),-100,IF(VLOOKUP($B86,'D2'!$A$2011:$BQ$2611,$BI$5,0)="",-100,VLOOKUP($B86,'D2'!$A$2011:$BQ$2611,$BI$5,0))) -> -100 | BJ86: =IF(BI86="","",VLOOKUP($B86,'D2'!$A$2011:$JJ$2550,$BI$5+63,0)) ->  | BK86: =IF(ISNA(IF(VLOOKUP($B86,'D2'!$H$11:$BQ$611,$V$3,0)="",-100,VLOOKUP($B86,'D2'!$H$11:$BQ$611,$V$3,0))),-100,IF(VLOOKUP($B86,'D2'!$H$11:$BQ$611,$V$3,0)="",-100,VLOOKUP($B86,'D2'!$H$11:$BQ$611,$V$3,0))) -> -100 | BL86: =IF(BK86="","",RIGHT(VLOOKUP($B86,'D2'!$H$11:$JJ$550,$V$3+1,0),2)) ->  | BM86: 1 | BO86: 17 | BP86: G
A87: 80 | AB87: 1 | AC87: HIFZQ | AD87: 8010 | AE87: HIFZ AL-QURAN | AF87: HIFZQ | AG87: A | AL87: K | AT87: 16 | AU87: G | BD87: 0 | BF87: =IF(#REF!="",I87,#REF!) ->  | BI87: =IF(ISNA(IF(VLOOKUP($B87,'D2'!$A$2011:$BQ$2611,$BI$5,0)="",-100,VLOOKUP($B87,'D2'!$A$2011:$BQ$2611,$BI$5,0))),-100,IF(VLOOKUP($B87,'D2'!$A$2011:$BQ$2611,$BI$5,0)="",-100,VLOOKUP($B87,'D2'!$A$2011:$BQ$2611,$BI$5,0))) -> -100 | BJ87: =IF(BI87="","",VLOOKUP($B87,'D2'!$A$2011:$JJ$2550,$BI$5+63,0)) ->  | BK87: =IF(ISNA(IF(VLOOKUP($B87,'D2'!$H$11:$BQ$611,$V$3,0)="",-100,VLOOKUP($B87,'D2'!$H$11:$BQ$611,$V$3,0))),-100,IF(VLOOKUP($B87,'D2'!$H$11:$BQ$611,$V$3,0)="",-100,VLOOKUP($B87,'D2'!$H$11:$BQ$611,$V$3,0))) -> -100 | BL87: =IF(BK87="","",RIGHT(VLOOKUP($B87,'D2'!$H$11:$JJ$550,$V$3+1,0),2)) ->  | BM87: 1 | BO87: 16 | BP87: G
A88: 81 | AB88: 1 | AC88: MAHQ | AD88: 8011 | AE88: MAHARAT AL-QURAN | AF88: MAHQ | AG88: A | AL88: K | AT88: 15 | AU88: G | BD88: 0 | BF88: =IF(#REF!="",I88,#REF!) ->  | BI88: =IF(ISNA(IF(VLOOKUP($B88,'D2'!$A$2011:$BQ$2611,$BI$5,0)="",-100,VLOOKUP($B88,'D2'!$A$2011:$BQ$2611,$BI$5,0))),-100,IF(VLOOKUP($B88,'D2'!$A$2011:$BQ$2611,$BI$5,0)="",-100,VLOOKUP($B88,'D2'!$A$2011:$BQ$2611,$BI$5,0))) -> -100 | BJ88: =IF(BI88="","",VLOOKUP($B88,'D2'!$A$2011:$JJ$2550,$BI$5+63,0)) ->  | BK88: =IF(ISNA(IF(VLOOKUP($B88,'D2'!$H$11:$BQ$611,$V$3,0)="",-100,VLOOKUP($B88,'D2'!$H$11:$BQ$611,$V$3,0))),-100,IF(VLOOKUP($B88,'D2'!$H$11:$BQ$611,$V$3,0)="",-100,VLOOKUP($B88,'D2'!$H$11:$BQ$611,$V$3,0))) -> -100 | BL88: =IF(BK88="","",RIGHT(VLOOKUP($B88,'D2'!$H$11:$JJ$550,$V$3+1,0),2)) ->  | BM88: 1 | BO88: 15 | BP88: G
A89: 82 | AB89: 1 | AC89: AADABAL | AD89: 8012 | AE89: AL-ADAB WA AL-BALAGHAH | AF89: AADABAL | AG89: A | AL89: K | AT89: 14 | AU89: G | BD89: 0 | BF89: =IF(#REF!="",I89,#REF!) ->  | BI89: =IF(ISNA(IF(VLOOKUP($B89,'D2'!$A$2011:$BQ$2611,$BI$5,0)="",-100,VLOOKUP($B89,'D2'!$A$2011:$BQ$2611,$BI$5,0))),-100,IF(VLOOKUP($B89,'D2'!$A$2011:$BQ$2611,$BI$5,0)="",-100,VLOOKUP($B89,'D2'!$A$2011:$BQ$2611,$BI$5,0))) -> -100 | BJ89: =IF(BI89="","",VLOOKUP($B89,'D2'!$A$2011:$JJ$2550,$BI$5+63,0)) ->  | BK89: =IF(ISNA(IF(VLOOKUP($B89,'D2'!$H$11:$BQ$611,$V$3,0)="",-100,VLOOKUP($B89,'D2'!$H$11:$BQ$611,$V$3,0))),-100,IF(VLOOKUP($B89,'D2'!$H$11:$BQ$611,$V$3,0)="",-100,VLOOKUP($B89,'D2'!$H$11:$BQ$611,$V$3,0))) -> -100 | BL89: =IF(BK89="","",RIGHT(VLOOKUP($B89,'D2'!$H$11:$JJ$550,$V$3+1,0),2)) ->  | BM89: 1 | BO89: 14 | BP89: G
A90: 83 | AB90: 1 | AC90: ALUGAAAM | AD90: 8013 | AE90: AL-LUGHAH AL-ARABIAH AL-MUASIRAH | AF90: ALUGAAAM | AG90: A | AL90: K | AT90: 13 | AU90: G | BD90: 0 | BF90: =IF(#REF!="",I90,#REF!) ->  | BI90: =IF(ISNA(IF(VLOOKUP($B90,'D2'!$A$2011:$BQ$2611,$BI$5,0)="",-100,VLOOKUP($B90,'D2'!$A$2011:$BQ$2611,$BI$5,0))),-100,IF(VLOOKUP($B90,'D2'!$A$2011:$BQ$2611,$BI$5,0)="",-100,VLOOKUP($B90,'D2'!$A$2011:$BQ$2611,$BI$5,0))) -> -100 | BJ90: =IF(BI90="","",VLOOKUP($B90,'D2'!$A$2011:$JJ$2550,$BI$5+63,0)) ->  | BK90: =IF(ISNA(IF(VLOOKUP($B90,'D2'!$H$11:$BQ$611,$V$3,0)="",-100,VLOOKUP($B90,'D2'!$H$11:$BQ$611,$V$3,0))),-100,IF(VLOOKUP($B90,'D2'!$H$11:$BQ$611,$V$3,0)="",-100,VLOOKUP($B90,'D2'!$H$11:$BQ$611,$V$3,0))) -> -100 | BL90: =IF(BK90="","",RIGHT(VLOOKUP($B90,'D2'!$H$11:$JJ$550,$V$3+1,0),2)) ->  | BM90: 1 | BO90: 13 | BP90: G
A91: 84 | AB91: 1 | AC91: AMANH | AD91: 8014 | AE91: AL-MANHAJ AL-ULUM AL-ISLAMIYAH | AF91: AMANH | AG91: A | AL91: K | AT91: 12 | AU91: G | BD91: 0 | BF91: =IF(#REF!="",I91,#REF!) ->  | BI91: =IF(ISNA(IF(VLOOKUP($B91,'D2'!$A$2011:$BQ$2611,$BI$5,0)="",-100,VLOOKUP($B91,'D2'!$A$2011:$BQ$2611,$BI$5,0))),-100,IF(VLOOKUP($B91,'D2'!$A$2011:$BQ$2611,$BI$5,0)="",-100,VLOOKUP($B91,'D2'!$A$2011:$BQ$2611,$BI$5,0))) -> -100 | BJ91: =IF(BI91="","",VLOOKUP($B91,'D2'!$A$2011:$JJ$2550,$BI$5+63,0)) ->  | BK91: =IF(ISNA(IF(VLOOKUP($B91,'D2'!$H$11:$BQ$611,$V$3,0)="",-100,VLOOKUP($B91,'D2'!$H$11:$BQ$611,$V$3,0))),-100,IF(VLOOKUP($B91,'D2'!$H$11:$BQ$611,$V$3,0)="",-100,VLOOKUP($B91,'D2'!$H$11:$BQ$611,$V$3,0))) -> -100 | BL91: =IF(BK91="","",RIGHT(VLOOKUP($B91,'D2'!$H$11:$JJ$550,$V$3+1,0),2)) ->  | BM91: 1 | BO91: 12 | BP91: G
A92: 85 | AB92: 1 | AC92: ASYA | AD92: 8015 | AE92: AL-SYARIAH | AF92: ASYA | AG92: A | AL92: K | AT92: 11 | AU92: G | BD92: 0 | BF92: =IF(#REF!="",I92,#REF!) ->  | BI92: =IF(ISNA(IF(VLOOKUP($B92,'D2'!$A$2011:$BQ$2611,$BI$5,0)="",-100,VLOOKUP($B92,'D2'!$A$2011:$BQ$2611,$BI$5,0))),-100,IF(VLOOKUP($B92,'D2'!$A$2011:$BQ$2611,$BI$5,0)="",-100,VLOOKUP($B92,'D2'!$A$2011:$BQ$2611,$BI$5,0))) -> -100 | BJ92: =IF(BI92="","",VLOOKUP($B92,'D2'!$A$2011:$JJ$2550,$BI$5+63,0)) ->  | BK92: =IF(ISNA(IF(VLOOKUP($B92,'D2'!$H$11:$BQ$611,$V$3,0)="",-100,VLOOKUP($B92,'D2'!$H$11:$BQ$611,$V$3,0))),-100,IF(VLOOKUP($B92,'D2'!$H$11:$BQ$611,$V$3,0)="",-100,VLOOKUP($B92,'D2'!$H$11:$BQ$611,$V$3,0))) -> -100 | BL92: =IF(BK92="","",RIGHT(VLOOKUP($B92,'D2'!$H$11:$JJ$550,$V$3+1,0),2)) ->  | BM92: 1 | BO92: 11 | BP92: G
A93: 86 | AB93: 1 | AC93: UADIN | AD93: 8016 | AE93: USUL AL-DIN | AF93: UADIN | AG93: A | AL93: K | AT93: 10 | AU93: G | BD93: 0 | BF93: =IF(#REF!="",I93,#REF!) ->  | BI93: =IF(ISNA(IF(VLOOKUP($B93,'D2'!$A$2011:$BQ$2611,$BI$5,0)="",-100,VLOOKUP($B93,'D2'!$A$2011:$BQ$2611,$BI$5,0))),-100,IF(VLOOKUP($B93,'D2'!$A$2011:$BQ$2611,$BI$5,0)="",-100,VLOOKUP($B93,'D2'!$A$2011:$BQ$2611,$BI$5,0))) -> -100 | BJ93: =IF(BI93="","",VLOOKUP($B93,'D2'!$A$2011:$JJ$2550,$BI$5+63,0)) ->  | BK93: =IF(ISNA(IF(VLOOKUP($B93,'D2'!$H$11:$BQ$611,$V$3,0)="",-100,VLOOKUP($B93,'D2'!$H$11:$BQ$611,$V$3,0))),-100,IF(VLOOKUP($B93,'D2'!$H$11:$BQ$611,$V$3,0)="",-100,VLOOKUP($B93,'D2'!$H$11:$BQ$611,$V$3,0))) -> -100 | BL93: =IF(BK93="","",RIGHT(VLOOKUP($B93,'D2'!$H$11:$JJ$550,$V$3+1,0),2)) ->  | BM93: 1 | BO93: 10 | BP93: G
A94: 87 | AB94: 1 | AL94: K | AT94: 9 | AU94: G | BD94: 0 | BF94: =IF(#REF!="",I94,#REF!) ->  | BI94: =IF(ISNA(IF(VLOOKUP($B94,'D2'!$A$2011:$BQ$2611,$BI$5,0)="",-100,VLOOKUP($B94,'D2'!$A$2011:$BQ$2611,$BI$5,0))),-100,IF(VLOOKUP($B94,'D2'!$A$2011:$BQ$2611,$BI$5,0)="",-100,VLOOKUP($B94,'D2'!$A$2011:$BQ$2611,$BI$5,0))) -> -100 | BJ94: =IF(BI94="","",VLOOKUP($B94,'D2'!$A$2011:$JJ$2550,$BI$5+63,0)) ->  | BK94: =IF(ISNA(IF(VLOOKUP($B94,'D2'!$H$11:$BQ$611,$V$3,0)="",-100,VLOOKUP($B94,'D2'!$H$11:$BQ$611,$V$3,0))),-100,IF(VLOOKUP($B94,'D2'!$H$11:$BQ$611,$V$3,0)="",-100,VLOOKUP($B94,'D2'!$H$11:$BQ$611,$V$3,0))) -> -100 | BL94: =IF(BK94="","",RIGHT(VLOOKUP($B94,'D2'!$H$11:$JJ$550,$V$3+1,0),2)) ->  | BM94: 1 | BO94: 9 | BP94: G
A95: 88 | AB95: 1 | AL95: K | AT95: 8 | AU95: G | BD95: 0 | BF95: =IF(#REF!="",I95,#REF!) ->  | BI95: =IF(ISNA(IF(VLOOKUP($B95,'D2'!$A$2011:$BQ$2611,$BI$5,0)="",-100,VLOOKUP($B95,'D2'!$A$2011:$BQ$2611,$BI$5,0))),-100,IF(VLOOKUP($B95,'D2'!$A$2011:$BQ$2611,$BI$5,0)="",-100,VLOOKUP($B95,'D2'!$A$2011:$BQ$2611,$BI$5,0))) -> -100 | BJ95: =IF(BI95="","",VLOOKUP($B95,'D2'!$A$2011:$JJ$2550,$BI$5+63,0)) ->  | BK95: =IF(ISNA(IF(VLOOKUP($B95,'D2'!$H$11:$BQ$611,$V$3,0)="",-100,VLOOKUP($B95,'D2'!$H$11:$BQ$611,$V$3,0))),-100,IF(VLOOKUP($B95,'D2'!$H$11:$BQ$611,$V$3,0)="",-100,VLOOKUP($B95,'D2'!$H$11:$BQ$611,$V$3,0))) -> -100 | BL95: =IF(BK95="","",RIGHT(VLOOKUP($B95,'D2'!$H$11:$JJ$550,$V$3+1,0),2)) ->  | BM95: 1 | BO95: 8 | BP95: G
A96: 89 | AB96: 1 | AL96: K | AT96: 7 | AU96: G | BD96: 0 | BF96: =IF(#REF!="",I96,#REF!) ->  | BI96: =IF(ISNA(IF(VLOOKUP($B96,'D2'!$A$2011:$BQ$2611,$BI$5,0)="",-100,VLOOKUP($B96,'D2'!$A$2011:$BQ$2611,$BI$5,0))),-100,IF(VLOOKUP($B96,'D2'!$A$2011:$BQ$2611,$BI$5,0)="",-100,VLOOKUP($B96,'D2'!$A$2011:$BQ$2611,$BI$5,0))) -> -100 | BJ96: =IF(BI96="","",VLOOKUP($B96,'D2'!$A$2011:$JJ$2550,$BI$5+63,0)) ->  | BK96: =IF(ISNA(IF(VLOOKUP($B96,'D2'!$H$11:$BQ$611,$V$3,0)="",-100,VLOOKUP($B96,'D2'!$H$11:$BQ$611,$V$3,0))),-100,IF(VLOOKUP($B96,'D2'!$H$11:$BQ$611,$V$3,0)="",-100,VLOOKUP($B96,'D2'!$H$11:$BQ$611,$V$3,0))) -> -100 | BL96: =IF(BK96="","",RIGHT(VLOOKUP($B96,'D2'!$H$11:$JJ$550,$V$3+1,0),2)) ->  | BM96: 1 | BO96: 7 | BP96: G
A97: 90 | AB97: 1 | AL97: K | AT97: 6 | AU97: G | BD97: 0 | BF97: =IF(#REF!="",I97,#REF!) ->  | BI97: =IF(ISNA(IF(VLOOKUP($B97,'D2'!$A$2011:$BQ$2611,$BI$5,0)="",-100,VLOOKUP($B97,'D2'!$A$2011:$BQ$2611,$BI$5,0))),-100,IF(VLOOKUP($B97,'D2'!$A$2011:$BQ$2611,$BI$5,0)="",-100,VLOOKUP($B97,'D2'!$A$2011:$BQ$2611,$BI$5,0))) -> -100 | BJ97: =IF(BI97="","",VLOOKUP($B97,'D2'!$A$2011:$JJ$2550,$BI$5+63,0)) ->  | BK97: =IF(ISNA(IF(VLOOKUP($B97,'D2'!$H$11:$BQ$611,$V$3,0)="",-100,VLOOKUP($B97,'D2'!$H$11:$BQ$611,$V$3,0))),-100,IF(VLOOKUP($B97,'D2'!$H$11:$BQ$611,$V$3,0)="",-100,VLOOKUP($B97,'D2'!$H$11:$BQ$611,$V$3,0))) -> -100 | BL97: =IF(BK97="","",RIGHT(VLOOKUP($B97,'D2'!$H$11:$JJ$550,$V$3+1,0),2)) ->  | BM97: 1 | BO97: 6 | BP97: G
A98: 91 | AB98: 1 | AL98: K | AT98: 5 | AU98: G | BD98: 0 | BF98: =IF(#REF!="",I98,#REF!) ->  | BI98: =IF(ISNA(IF(VLOOKUP($B98,'D2'!$A$2011:$BQ$2611,$BI$5,0)="",-100,VLOOKUP($B98,'D2'!$A$2011:$BQ$2611,$BI$5,0))),-100,IF(VLOOKUP($B98,'D2'!$A$2011:$BQ$2611,$BI$5,0)="",-100,VLOOKUP($B98,'D2'!$A$2011:$BQ$2611,$BI$5,0))) -> -100 | BJ98: =IF(BI98="","",VLOOKUP($B98,'D2'!$A$2011:$JJ$2550,$BI$5+63,0)) ->  | BK98: =IF(ISNA(IF(VLOOKUP($B98,'D2'!$H$11:$BQ$611,$V$3,0)="",-100,VLOOKUP($B98,'D2'!$H$11:$BQ$611,$V$3,0))),-100,IF(VLOOKUP($B98,'D2'!$H$11:$BQ$611,$V$3,0)="",-100,VLOOKUP($B98,'D2'!$H$11:$BQ$611,$V$3,0))) -> -100 | BL98: =IF(BK98="","",RIGHT(VLOOKUP($B98,'D2'!$H$11:$JJ$550,$V$3+1,0),2)) ->  | BM98: 1 | BO98: 5 | BP98: G
A99: 92 | AB99: 1 | AL99: K | AT99: 4 | AU99: G | BD99: 0 | BF99: =IF(#REF!="",I99,#REF!) ->  | BI99: =IF(ISNA(IF(VLOOKUP($B99,'D2'!$A$2011:$BQ$2611,$BI$5,0)="",-100,VLOOKUP($B99,'D2'!$A$2011:$BQ$2611,$BI$5,0))),-100,IF(VLOOKUP($B99,'D2'!$A$2011:$BQ$2611,$BI$5,0)="",-100,VLOOKUP($B99,'D2'!$A$2011:$BQ$2611,$BI$5,0))) -> -100 | BJ99: =IF(BI99="","",VLOOKUP($B99,'D2'!$A$2011:$JJ$2550,$BI$5+63,0)) ->  | BK99: =IF(ISNA(IF(VLOOKUP($B99,'D2'!$H$11:$BQ$611,$V$3,0)="",-100,VLOOKUP($B99,'D2'!$H$11:$BQ$611,$V$3,0))),-100,IF(VLOOKUP($B99,'D2'!$H$11:$BQ$611,$V$3,0)="",-100,VLOOKUP($B99,'D2'!$H$11:$BQ$611,$V$3,0))) -> -100 | BL99: =IF(BK99="","",RIGHT(VLOOKUP($B99,'D2'!$H$11:$JJ$550,$V$3+1,0),2)) ->  | BM99: 1 | BO99: 4 | BP99: G
A100: 93 | AB100: 1 | AL100: K | AT100: 3 | AU100: G | BD100: 0 | BF100: =IF(#REF!="",I100,#REF!) ->  | BI100: =IF(ISNA(IF(VLOOKUP($B100,'D2'!$A$2011:$BQ$2611,$BI$5,0)="",-100,VLOOKUP($B100,'D2'!$A$2011:$BQ$2611,$BI$5,0))),-100,IF(VLOOKUP($B100,'D2'!$A$2011:$BQ$2611,$BI$5,0)="",-100,VLOOKUP($B100,'D2'!$A$2011:$BQ$2611,$BI$5,0))) -> -100 | BJ100: =IF(BI100="","",VLOOKUP($B100,'D2'!$A$2011:$JJ$2550,$BI$5+63,0)) ->  | BK100: =IF(ISNA(IF(VLOOKUP($B100,'D2'!$H$11:$BQ$611,$V$3,0)="",-100,VLOOKUP($B100,'D2'!$H$11:$BQ$611,$V$3,0))),-100,IF(VLOOKUP($B100,'D2'!$H$11:$BQ$611,$V$3,0)="",-100,VLOOKUP($B100,'D2'!$H$11:$BQ$611,$V$3,0))) -> -100 | BL100: =IF(BK100="","",RIGHT(VLOOKUP($B100,'D2'!$H$11:$JJ$550,$V$3+1,0),2)) ->  | BM100: 1 | BO100: 3 | BP100: G
A101: 94 | AB101: 1 | AL101: K | AT101: 2 | AU101: G | BD101: 0 | BF101: =IF(#REF!="",I101,#REF!) ->  | BI101: =IF(ISNA(IF(VLOOKUP($B101,'D2'!$A$2011:$BQ$2611,$BI$5,0)="",-100,VLOOKUP($B101,'D2'!$A$2011:$BQ$2611,$BI$5,0))),-100,IF(VLOOKUP($B101,'D2'!$A$2011:$BQ$2611,$BI$5,0)="",-100,VLOOKUP($B101,'D2'!$A$2011:$BQ$2611,$BI$5,0))) -> -100 | BJ101: =IF(BI101="","",VLOOKUP($B101,'D2'!$A$2011:$JJ$2550,$BI$5+63,0)) ->  | BK101: =IF(ISNA(IF(VLOOKUP($B101,'D2'!$H$11:$BQ$611,$V$3,0)="",-100,VLOOKUP($B101,'D2'!$H$11:$BQ$611,$V$3,0))),-100,IF(VLOOKUP($B101,'D2'!$H$11:$BQ$611,$V$3,0)="",-100,VLOOKUP($B101,'D2'!$H$11:$BQ$611,$V$3,0))) -> -100 | BL101: =IF(BK101="","",RIGHT(VLOOKUP($B101,'D2'!$H$11:$JJ$550,$V$3+1,0),2)) ->  | BM101: 1 | BO101: 2 | BP101: G
A102: 95 | AB102: 1 | AL102: K | AT102: 1 | AU102: G | BD102: 0 | BF102: =IF(#REF!="",I102,#REF!) ->  | BI102: =IF(ISNA(IF(VLOOKUP($B102,'D2'!$A$2011:$BQ$2611,$BI$5,0)="",-100,VLOOKUP($B102,'D2'!$A$2011:$BQ$2611,$BI$5,0))),-100,IF(VLOOKUP($B102,'D2'!$A$2011:$BQ$2611,$BI$5,0)="",-100,VLOOKUP($B102,'D2'!$A$2011:$BQ$2611,$BI$5,0))) -> -100 | BJ102: =IF(BI102="","",VLOOKUP($B102,'D2'!$A$2011:$JJ$2550,$BI$5+63,0)) ->  | BK102: =IF(ISNA(IF(VLOOKUP($B102,'D2'!$H$11:$BQ$611,$V$3,0)="",-100,VLOOKUP($B102,'D2'!$H$11:$BQ$611,$V$3,0))),-100,IF(VLOOKUP($B102,'D2'!$H$11:$BQ$611,$V$3,0)="",-100,VLOOKUP($B102,'D2'!$H$11:$BQ$611,$V$3,0))) -> -100 | BL102: =IF(BK102="","",RIGHT(VLOOKUP($B102,'D2'!$H$11:$JJ$550,$V$3+1,0),2)) ->  | BM102: 1 | BO102: 1 | BP102: G
A103: 96 | AB103: 1 | AL103: K | AT103: 0 | AU103: G | BD103: 0 | BF103: =IF(#REF!="",I103,#REF!) ->  | BI103: =IF(ISNA(IF(VLOOKUP($B103,'D2'!$A$2011:$BQ$2611,$BI$5,0)="",-100,VLOOKUP($B103,'D2'!$A$2011:$BQ$2611,$BI$5,0))),-100,IF(VLOOKUP($B103,'D2'!$A$2011:$BQ$2611,$BI$5,0)="",-100,VLOOKUP($B103,'D2'!$A$2011:$BQ$2611,$BI$5,0))) -> -100 | BJ103: =IF(BI103="","",VLOOKUP($B103,'D2'!$A$2011:$JJ$2550,$BI$5+63,0)) ->  | BK103: =IF(ISNA(IF(VLOOKUP($B103,'D2'!$H$11:$BQ$611,$V$3,0)="",-100,VLOOKUP($B103,'D2'!$H$11:$BQ$611,$V$3,0))),-100,IF(VLOOKUP($B103,'D2'!$H$11:$BQ$611,$V$3,0)="",-100,VLOOKUP($B103,'D2'!$H$11:$BQ$611,$V$3,0))) -> -100 | BL103: =IF(BK103="","",RIGHT(VLOOKUP($B103,'D2'!$H$11:$JJ$550,$V$3+1,0),2)) ->  | BM103: 1 | BO103: 0 | BP103: G
A104: 97 | AB104: 1 | AL104: K | AT104: -1 | AU104: TH | BD104: 0 | BF104: =IF(#REF!="",I104,#REF!) ->  | BI104: =IF(ISNA(IF(VLOOKUP($B104,'D2'!$A$2011:$BQ$2611,$BI$5,0)="",-100,VLOOKUP($B104,'D2'!$A$2011:$BQ$2611,$BI$5,0))),-100,IF(VLOOKUP($B104,'D2'!$A$2011:$BQ$2611,$BI$5,0)="",-100,VLOOKUP($B104,'D2'!$A$2011:$BQ$2611,$BI$5,0))) -> -100 | BJ104: =IF(BI104="","",VLOOKUP($B104,'D2'!$A$2011:$JJ$2550,$BI$5+63,0)) ->  | BK104: =IF(ISNA(IF(VLOOKUP($B104,'D2'!$H$11:$BQ$611,$V$3,0)="",-100,VLOOKUP($B104,'D2'!$H$11:$BQ$611,$V$3,0))),-100,IF(VLOOKUP($B104,'D2'!$H$11:$BQ$611,$V$3,0)="",-100,VLOOKUP($B104,'D2'!$H$11:$BQ$611,$V$3,0))) -> -100 | BL104: =IF(BK104="","",RIGHT(VLOOKUP($B104,'D2'!$H$11:$JJ$550,$V$3+1,0),2)) ->  | BM104: 1 | BO104: -1 | BP104: TH
A105: 98 | AB105: =IF(ISNA(VLOOKUP(AC105,$AT$5:$AU$36,2,0)),AB104,AB104+1) -> 1 | AL105: K | AT105: -100 | BD105: 0 | BF105: =IF(#REF!="",I105,#REF!) ->  | BI105: =IF(ISNA(IF(VLOOKUP($B105,'D2'!$A$2011:$BQ$2611,$BI$5,0)="",-100,VLOOKUP($B105,'D2'!$A$2011:$BQ$2611,$BI$5,0))),-100,IF(VLOOKUP($B105,'D2'!$A$2011:$BQ$2611,$BI$5,0)="",-100,VLOOKUP($B105,'D2'!$A$2011:$BQ$2611,$BI$5,0))) -> -100 | BJ105: =IF(BI105="","",VLOOKUP($B105,'D2'!$A$2011:$JJ$2550,$BI$5+63,0)) ->  | BK105: =IF(ISNA(IF(VLOOKUP($B105,'D2'!$H$11:$BQ$611,$V$3,0)="",-100,VLOOKUP($B105,'D2'!$H$11:$BQ$611,$V$3,0))),-100,IF(VLOOKUP($B105,'D2'!$H$11:$BQ$611,$V$3,0)="",-100,VLOOKUP($B105,'D2'!$H$11:$BQ$611,$V$3,0))) -> -100 | BL105: =IF(BK105="","",RIGHT(VLOOKUP($B105,'D2'!$H$11:$JJ$550,$V$3+1,0),2)) ->  | BM105: 1
A106: 99 | AB106: 1 | AL106: K | BD106: 0 | BF106: =IF(#REF!="",I106,#REF!) ->  | BI106: =IF(ISNA(IF(VLOOKUP($B106,'D2'!$A$2011:$BQ$2611,$BI$5,0)="",-100,VLOOKUP($B106,'D2'!$A$2011:$BQ$2611,$BI$5,0))),-100,IF(VLOOKUP($B106,'D2'!$A$2011:$BQ$2611,$BI$5,0)="",-100,VLOOKUP($B106,'D2'!$A$2011:$BQ$2611,$BI$5,0))) -> -100 | BJ106: =IF(BI106="","",VLOOKUP($B106,'D2'!$A$2011:$JJ$2550,$BI$5+63,0)) ->  | BK106: =IF(ISNA(IF(VLOOKUP($B106,'D2'!$H$11:$BQ$611,$V$3,0)="",-100,VLOOKUP($B106,'D2'!$H$11:$BQ$611,$V$3,0))),-100,IF(VLOOKUP($B106,'D2'!$H$11:$BQ$611,$V$3,0)="",-100,VLOOKUP($B106,'D2'!$H$11:$BQ$611,$V$3,0))) -> -100 | BL106: =IF(BK106="","",RIGHT(VLOOKUP($B106,'D2'!$H$11:$JJ$550,$V$3+1,0),2)) ->  | BM106: 1
A107: 100 | AB107: 1 | AL107: K | BD107: 0 | BF107: =IF(#REF!="",I107,#REF!) ->  | BI107: =IF(ISNA(IF(VLOOKUP($B107,'D2'!$A$2011:$BQ$2611,$BI$5,0)="",-100,VLOOKUP($B107,'D2'!$A$2011:$BQ$2611,$BI$5,0))),-100,IF(VLOOKUP($B107,'D2'!$A$2011:$BQ$2611,$BI$5,0)="",-100,VLOOKUP($B107,'D2'!$A$2011:$BQ$2611,$BI$5,0))) -> -100 | BJ107: =IF(BI107="","",VLOOKUP($B107,'D2'!$A$2011:$JJ$2550,$BI$5+63,0)) ->  | BK107: =IF(ISNA(IF(VLOOKUP($B107,'D2'!$H$11:$BQ$611,$V$3,0)="",-100,VLOOKUP($B107,'D2'!$H$11:$BQ$611,$V$3,0))),-100,IF(VLOOKUP($B107,'D2'!$H$11:$BQ$611,$V$3,0)="",-100,VLOOKUP($B107,'D2'!$H$11:$BQ$611,$V$3,0))) -> -100 | BL107: =IF(BK107="","",RIGHT(VLOOKUP($B107,'D2'!$H$11:$JJ$550,$V$3+1,0),2)) ->  | BM107: 1
A108: 101 | AL108: K | BD108: 0 | BF108: =IF(#REF!="",I108,#REF!) ->  | BI108: =IF(ISNA(IF(VLOOKUP($B108,'D2'!$A$2011:$BQ$2611,$BI$5,0)="",-100,VLOOKUP($B108,'D2'!$A$2011:$BQ$2611,$BI$5,0))),-100,IF(VLOOKUP($B108,'D2'!$A$2011:$BQ$2611,$BI$5,0)="",-100,VLOOKUP($B108,'D2'!$A$2011:$BQ$2611,$BI$5,0))) -> -100 | BJ108: =IF(BI108="","",VLOOKUP($B108,'D2'!$A$2011:$JJ$2550,$BI$5+63,0)) ->  | BK108: =IF(ISNA(IF(VLOOKUP($B108,'D2'!$H$11:$BQ$611,$V$3,0)="",-100,VLOOKUP($B108,'D2'!$H$11:$BQ$611,$V$3,0))),-100,IF(VLOOKUP($B108,'D2'!$H$11:$BQ$611,$V$3,0)="",-100,VLOOKUP($B108,'D2'!$H$11:$BQ$611,$V$3,0))) -> -100 | BL108: =IF(BK108="","",RIGHT(VLOOKUP($B108,'D2'!$H$11:$JJ$550,$V$3+1,0),2)) ->  | BM108: 1
A109: 102 | AL109: K | BD109: 0 | BF109: =IF(#REF!="",I109,#REF!) ->  | BI109: =IF(ISNA(IF(VLOOKUP($B109,'D2'!$A$2011:$BQ$2611,$BI$5,0)="",-100,VLOOKUP($B109,'D2'!$A$2011:$BQ$2611,$BI$5,0))),-100,IF(VLOOKUP($B109,'D2'!$A$2011:$BQ$2611,$BI$5,0)="",-100,VLOOKUP($B109,'D2'!$A$2011:$BQ$2611,$BI$5,0))) -> -100 | BJ109: =IF(BI109="","",VLOOKUP($B109,'D2'!$A$2011:$JJ$2550,$BI$5+63,0)) ->  | BK109: =IF(ISNA(IF(VLOOKUP($B109,'D2'!$H$11:$BQ$611,$V$3,0)="",-100,VLOOKUP($B109,'D2'!$H$11:$BQ$611,$V$3,0))),-100,IF(VLOOKUP($B109,'D2'!$H$11:$BQ$611,$V$3,0)="",-100,VLOOKUP($B109,'D2'!$H$11:$BQ$611,$V$3,0))) -> -100 | BL109: =IF(BK109="","",RIGHT(VLOOKUP($B109,'D2'!$H$11:$JJ$550,$V$3+1,0),2)) ->  | BM109: 1
A110: 103 | AL110: K | BD110: 0 | BF110: =IF(#REF!="",I110,#REF!) ->  | BI110: =IF(ISNA(IF(VLOOKUP($B110,'D2'!$A$2011:$BQ$2611,$BI$5,0)="",-100,VLOOKUP($B110,'D2'!$A$2011:$BQ$2611,$BI$5,0))),-100,IF(VLOOKUP($B110,'D2'!$A$2011:$BQ$2611,$BI$5,0)="",-100,VLOOKUP($B110,'D2'!$A$2011:$BQ$2611,$BI$5,0))) -> -100 | BJ110: =IF(BI110="","",VLOOKUP($B110,'D2'!$A$2011:$JJ$2550,$BI$5+63,0)) ->  | BK110: =IF(ISNA(IF(VLOOKUP($B110,'D2'!$H$11:$BQ$611,$V$3,0)="",-100,VLOOKUP($B110,'D2'!$H$11:$BQ$611,$V$3,0))),-100,IF(VLOOKUP($B110,'D2'!$H$11:$BQ$611,$V$3,0)="",-100,VLOOKUP($B110,'D2'!$H$11:$BQ$611,$V$3,0))) -> -100 | BL110: =IF(BK110="","",RIGHT(VLOOKUP($B110,'D2'!$H$11:$JJ$550,$V$3+1,0),2)) ->  | BM110: 1
A111: 104 | AL111: K | AT111: 100 | AU111: A+ | BD111: 0 | BF111: =IF(#REF!="",I111,#REF!) ->  | BI111: =IF(ISNA(IF(VLOOKUP($B111,'D2'!$A$2011:$BQ$2611,$BI$5,0)="",-100,VLOOKUP($B111,'D2'!$A$2011:$BQ$2611,$BI$5,0))),-100,IF(VLOOKUP($B111,'D2'!$A$2011:$BQ$2611,$BI$5,0)="",-100,VLOOKUP($B111,'D2'!$A$2011:$BQ$2611,$BI$5,0))) -> -100 | BJ111: =IF(BI111="","",VLOOKUP($B111,'D2'!$A$2011:$JJ$2550,$BI$5+63,0)) ->  | BK111: =IF(ISNA(IF(VLOOKUP($B111,'D2'!$H$11:$BQ$611,$V$3,0)="",-100,VLOOKUP($B111,'D2'!$H$11:$BQ$611,$V$3,0))),-100,IF(VLOOKUP($B111,'D2'!$H$11:$BQ$611,$V$3,0)="",-100,VLOOKUP($B111,'D2'!$H$11:$BQ$611,$V$3,0))) -> -100 | BL111: =IF(BK111="","",RIGHT(VLOOKUP($B111,'D2'!$H$11:$JJ$550,$V$3+1,0),2)) ->  | BM111: 1
